Workbook

Sheet SysLists (hidden)
A1: Reporting Year | C1: Order | D1: Countries | E1: CountryCode | F1: SummerPeriod | G1: SummerCode | I1: Key | J1: Model | K1: Size | L1: Samples
A2: 2013 | C2: 1 | D2: Austria | E2: A | F2: 1st May to 30th September | G2: N | I2: =J2&"_"&K2 -> N_S | J2: N | K2: S | L2: -
C3: =C2+1 -> 2 | D3: Belgium | E3: B | F3: 1st May to 30th September | G3: N | I3: N_L | J3: N | K3: L | L3: -
C4: 3 | D4: Denmark | E4: DK | F4: 1st June to 31st August | G4: A | I4: C_S | J4: C | K4: S | L4: 50
C5: 4 | D5: Finland | E5: FIN | F5: 1st June to 31st August | G5: A | I5: C_L | J5: C | K5: L | L5: 50
C6: 5 | D6: France | E6: F | F6: 1st May to 30th September | G6: N | I6: A_S | J6: A | K6: S | L6: 50
C7: 6 | D7: Germany | E7: D | F7: 1st May to 30th September | G7: N | I7: A_L | J7: A | K7: L | L7: 100
C8: 7 | D8: Greece | E8: GR | F8: 1st May to 30th September | G8: N | I8: B_S | J8: B | K8: S | L8: 100
C9: 8 | D9: Ireland | E9: IRE | F9: 1st June to 31st August | G9: A | I9: B_L | J9: B | K9: L | L9: 200
C10: 9 | D10: Italy | E10: I | F10: 1st May to 30th September | G10: N
C11: 10 | D11: Luxembourg | E11: L | F11: 1st May to 30th September | G11: N
C12: 11 | D12: Netherlands | E12: NL | F12: 1st May to 30th September | G12: N
C13: 12 | D13: Portugal | E13: P | F13: 1st May to 30th September | G13: N
C14: 13 | D14: Spain | E14: E | F14: 1st May to 30th September | G14: N
C15: 14 | D15: Sweden | E15: S | F15: 1st June to 31st August | G15: A
C16: 15 | D16: UK | E16: UK | F16: 1st June to 31st August | G16: A
C17: 16 | D17: Cyprus | E17: CY | F17: 1st May to 30th September | G17: N
C18: 17 | D18: Czech Republic | E18: CZ | F18: 1st May to 30th September | G18: N
C19: 18 | D19: Estonia | E19: EE | F19: 1st May to 30th September | G19: N
C20: 19 | D20: Hungary | E20: HU | F20: 1st May to 30th September | G20: N
C21: 20 | D21: Latvia | E21: LV | F21: 1st June to 31st August | G21: A
C22: 21 | D22: Lithuania | E22: LT | F22: 1st May to 30th September | G22: N
C23: 22 | D23: Malta | E23: MT | F23: 1st May to 30th September | G23: N
C24: 23 | D24: Poland | E24: PL | F24: 1st May to 30th September | G24: N
C25: 24 | D25: Slovakia | E25: SK | F25: 1st May to 30th September | G25: N
C26: 25 | D26: Slovenia | E26: SI | F26: 1st May to 30th September | G26: N
C27: 26 | D27: Bulgaria | E27: BU | F27: 1st May to 30th September | G27: N
C28: 27 | D28: Romania | E28: RO | F28: 1st May to 30th September | G28: N

Sheet CheckList (hidden)
H1: Check Numerical | N1: Petrol sales | O1: Regional Petrol
C2: Sheet | D2: Cell | E2: Comment | H2: Sheet | I2: Cell | J2: Comment | N2: =pTonnes -> 0 | O2: ='Regional Petrol Sampling (S)'!C31+'Regional Petrol Sampling (W)'!C31 -> 0 | P2: =N2-O2 -> 0 | Q2: ="Petrol ("&S2&")" -> Petrol (1) | R2: ="Diesel ("&S2&")" -> Diesel (1) | S2: 1 | V2: =Sales!A10 -> Regular unleaded petrol (minimum RON >= 91)1 | W2: =IF(Sales!B10<>"",Sales!B10,"") -> 
B3: 1 | C3: Contacts&Annual Summary | D3: C9 | E3: Country not selected | G3: 1 | H3: Sales | I3: C10 | J3: Please provide a numerical value | N3: Diesel Sales | O3: Regional Diesel | Q3: ="Petrol ("&S3&")" -> Petrol (2) | R3: ="Diesel ("&S3&")" -> Diesel (2) | S3: 2 | V3: =Sales!A11 -> Regular unleaded petrol (minimum RON >= 91) E52 | W3: =IF(Sales!B11<>"",Sales!B11,"") -> kl
B4: 1 | C4: Contacts&Annual Summary | D4: C10 | E4: Date Report Completed not provided | G4: 1 | H4: Sales | I4: C11 | J4: Please provide a numerical value | N4: =dTonnes -> 0 | O4: ='Regional Diesel Sampling (W)'!C31+'Regional Diesel Sampling (S)'!C31 -> 0 | P4: =N4-O4 -> 0 | Q4: Petrol (1+2) | R4: Diesel (1+2) | S4: 1+2 | V4: =Sales!A12 -> Regular unleaded petrol (minimum RON >= 91) E102 | W4: =IF(Sales!B12<>"",Sales!B12,"") -> op
B5: 1 | C5: Contacts&Annual Summary | D5: C11 | E5: Organisation Responsible for Report not provided | G5: 1 | H5: Sales | I5: C12 | J5: Please provide a numerical value | Q5: Petrol (3) | R5: Diesel (3) | S5: 3 | V5: =Sales!A13 -> Regular unleaded petrol (minimum RON >= 91) E+2 | W5: =IF(Sales!B13<>"",Sales!B13,"") -> 0
B6: 1 | C6: Contacts&Annual Summary | D6: C12 | E6: Address of Organisation Street not provided | G6: 1 | H6: Sales | I6: C13 | J6: Please provide a numerical value | N6: Regular unleaded petrol (minimum RON = 91) | Q6: Petrol (4) | R6: Diesel (4) | S6: 4 | V6: =Sales!A14 -> Unleaded petrol (minimum RON >= 95)1 | W6: =IF(Sales!B14<>"",Sales!B14,"") -> 
B7: 1 | C7: Contacts&Annual Summary | D7: C13 | E7: City not provided | G7: 1 | H7: Sales | I7: C14 | J7: Please provide a numerical value | N7: Regular unleaded petrol (minimum RON = 91) E5 | Q7: Petrol (3+4) | R7: Diesel (3+4) | S7: 3+4 | V7: =Sales!A15 -> Unleaded petrol (minimum RON >= 95) E52 | W7: =IF(Sales!B15<>"",Sales!B15,"") -> 0
B8: 1 | C8: Contacts&Annual Summary | D8: C14 | E8: Postcode not provided | G8: 1 | H8: Sales | I8: C15 | J8: Please provide a numerical value | N8: Regular unleaded petrol (minimum RON = 91) E10 | Q8: Petrol (5) | R8: Diesel (5) | S8: 5 | V8: =Sales!A16 -> Unleaded petrol (minimum RON >= 95) E102 | W8: =IF(Sales!B16<>"",Sales!B16,"") -> 0
B9: 1 | C9: Contacts&Annual Summary | D9: C15 | E9: Person Responsible for Report not provided | G9: 1 | H9: Sales | I9: C16 | J9: Please provide a numerical value | N9: Regular unleaded petrol (minimum RON = 91) E+ | Q9: Petrol (6) | R9: Diesel (6) | S9: 6 | V9: =Sales!A17 -> Unleaded petrol (minimum RON >= 95) E+2 | W9: =IF(Sales!B17<>"",Sales!B17,"") -> 0
B10: 1 | C10: Contacts&Annual Summary | D10: C16 | E10: Telephone Number not provided | G10: 1 | H10: Sales | I10: C17 | J10: Please provide a numerical value | N10: Unleaded petrol (minimum RON = 95) | Q10: Petrol (5+6) | R10: Diesel (5+6) | S10: 5+6 | V10: =Sales!A18 -> 0 | W10: =IF(Sales!B18<>"",Sales!B18,"") -> 
B11: 1 | C11: Contacts&Annual Summary | D11: C17 | E11: Email not provided | G11: 1 | H11: Sales | I11: C18 | J11: Please provide a numerical value | N11: Unleaded petrol (minimum RON = 95) E5 | Q11: Petrol (7) | R11: Diesel (7) | S11: 7 | V11: =Sales!A19 -> 0 | W11: =IF(Sales!B19<>"",Sales!B19,"") -> 
B12: 1 | C12: Contacts&Annual Summary | D12: B41 | E12: General Summary of Analysis and Additional Information not provided | G12: 1 | H12: Sales | I12: C19 | J12: Please provide a numerical value | N12: Unleaded petrol (minimum RON = 95) E10 | Q12: Petrol (8) | R12: Diesel (8) | S12: 8 | V12: =Sales!A20 -> 0 | W12: =IF(Sales!B20<>"",Sales!B20,"") -> 
B13: 1 | C13: FQMS&Sampling | D13: C13 | E13: Starting date of Summer Period not provided | G13: 1 | H13: Sales | I13: C20 | J13: Please provide a numerical value | N13: Unleaded petrol (minimum RON = 95) E+ | Q13: Petrol (7+8) | R13: Diesel (7+8) | S13: 7+8 | V13: =Sales!A21 -> 0 | W13: =IF(Sales!B21<>"",Sales!B21,"") -> 
B14: 1 | C14: FQMS&Sampling | D14: C14 | E14: Ending date of Summer Period not provided | G14: 1 | H14: Sales | I14: C21 | J14: Please provide a numerical value | N14: Unleaded petrol (minimum 95 =< RON < 98) | Q14: Petrol (9) | R14: Diesel (9) | S14: 9 | V14: =Sales!A22 -> Unleaded petrol (minimum RON >= 98)1 | W14: =IF(Sales!B22<>"",Sales!B22,"") -> 
B15: 1 | C15: FQMS&Sampling | D15: C16 | E15: Starting date of Winter Period not provided | G15: 1 | H15: Sales | I15: C22 | J15: Please provide a numerical value | N15: Unleaded petrol (minimum 95 =< RON < 98) E5 | Q15: Petrol (10) | R15: Diesel (10) | S15: 10 | V15: =Sales!A23 -> Unleaded petrol (minimum RON >= 98) E52 | W15: =IF(Sales!B23<>"",Sales!B23,"") -> 0
B16: 1 | C16: FQMS&Sampling | D16: C17 | E16: Ending date of Winter Period not provided | G16: 1 | H16: Sales | I16: C23 | J16: Please provide a numerical value | N16: Unleaded petrol (minimum 95 =< RON < 98) E10 | Q16: Petrol (9+10) | R16: Diesel (9+10) | S16: 9+10 | V16: =Sales!A24 -> Unleaded petrol (minimum RON >= 98) E102 | W16: =IF(Sales!B24<>"",Sales!B24,"") -> 0
B17: 1 | C17: FQMS&Sampling | D17: B37 | E17: Additional information not provided | G17: 1 | H17: Sales | I17: C24 | J17: Please provide a numerical value | N17: Unleaded petrol (minimum 95 =< RON < 98) E+ | R17: Petrol (1) | V17: =Sales!A25 -> Unleaded petrol (minimum RON >= 98) E+2 | W17: =IF(Sales!B25<>"",Sales!B25,"") -> 0
B18: 1 | C18: Detailed FQMS | D18: B28 | E18: Please provide information on sampling | G18: 1 | H18: Sales | I18: C25 | J18: Please provide a numerical value | N18: Unleaded petrol (minimum RON >= 98) | R18: Petrol (2)
B19: 1 | C19: Detailed FQMS | D19: B42 | E19: Please provide information on FQMS administration | G19: 1 | H19: Sales | I19: C27 | J19: Please provide a numerical value | N19: Unleaded petrol (minimum RON >= 98) E5 | R19: Petrol (1+2) | V19: =Sales!A27 -> Diesel fuel | W19: =IF(Sales!B27<>"",Sales!B27,"") -> 
B20: 1 | C20: Detailed FQMS | D20: B49 | E20: Please provide information on National Legislation that transposed the FQD | G20: 1 | H20: Sales | I20: C29 | J20: Please provide a numerical value | N20: Unleaded petrol (minimum RON >= 98) E10 | R20: Petrol (3) | V20: =Sales!A29 -> Diesel fuel B73 | W20: =IF(Sales!B29<>"",Sales!B29,"") -> 0
B21: 1 | C21: Detailed FQMS | D21: B58 | E21: Please provide information on reporting periods | G21: 1 | H21: Sales | I21: C30 | J21: Please provide a numerical value | N21: Unleaded petrol (minimum RON >= 98) E+ | R21: Petrol (4) | V21: =Sales!A30 -> Diesel fuel B+4 ( >7% FAME <=30%) | W21: =IF(Sales!B30<>"",Sales!B30,"") -> 0
B22: 1 | C22: Sales | D22: A37 | E22: Please provide information on how fuel pumps are labeled for MMT content | G22: 1 | H22: Sales | I22: C31 | J22: Please provide a numerical value | R22: Petrol (3+4) | V22: =Sales!A31 -> Diesel fuel B+4 (FAME >30%) | W22: =IF(Sales!B31<>"",Sales!B31,"") -> 0
B23: 1 | C23: Sales | D23: A41 | E23: Please provide information on customer information on biofuel content | G23: 1 | H23: Sales | I23: D10 | J23: Please provide a numerical value | N23: Diesel fuel | R23: Petrol (5)
B24: 1 | C24: Sales | D24: A45 | E24: Please provide additional comments if any | G24: 1 | H24: Sales | I24: D11 | J24: Please provide a numerical value | N24: Diesel fuel B7 | R24: Petrol (6)
G25: 1 | H25: Sales | I25: D12 | J25: Please provide a numerical value | N25: Diesel fuel B+ ( >7% FAME <=30%) | R25: Petrol (5+6)
G26: 1 | H26: Sales | I26: D13 | J26: Please provide a numerical value | N26: Diesel fuel B+ (FAME >30%) | R26: Petrol (7)
G27: 1 | H27: Sales | I27: D14 | J27: Please provide a numerical value | R27: Petrol (8)
G28: 1 | H28: Sales | I28: D15 | J28: Please provide a numerical value | R28: Petrol (7+8)
G29: 1 | H29: Sales | I29: D16 | J29: Please provide a numerical value | R29: Petrol (9)
G30: 1 | H30: Sales | I30: D17 | J30: Please provide a numerical value | N30: Sales petrol samples | O30: Regional Petrol samples | R30: Petrol (10)
G31: 1 | H31: Sales | I31: D18 | J31: Please provide a numerical value | N31: =Sales!J26 -> 0 | O31: ='Regional Petrol Sampling (S)'!G31+'Regional Petrol Sampling (W)'!G31 -> 0 | P31: =N31-O31 -> 0 | R31: Petrol (9+10)
G32: 1 | H32: Sales | I32: D19 | J32: Please provide a numerical value | N32: Sales diesel samples | O32: Regional diesel samples
G33: 1 | H33: Sales | I33: D20 | J33: Please provide a numerical value | N33: =Sales!J32 -> 0 | O33: ='Regional Diesel Sampling (S)'!G31+'Regional Diesel Sampling (W)'!G31 -> 0 | P33: =N33-O33 -> 0
G34: 1 | H34: Sales | I34: D21 | J34: Please provide a numerical value
G35: 1 | H35: Sales | I35: D22 | J35: Please provide a numerical value
G36: 1 | H36: Sales | I36: D23 | J36: Please provide a numerical value
G37: 1 | H37: Sales | I37: D24 | J37: Please provide a numerical value
G38: 1 | H38: Sales | I38: D25 | J38: Please provide a numerical value
G39: 1 | H39: Sales | I39: D27 | J39: Please provide a numerical value
G40: 1 | H40: Sales | I40: D29 | J40: Please provide a numerical value
G41: 1 | H41: Sales | I41: D30 | J41: Please provide a numerical value | N41: for diesel
G42: 1 | H42: Sales | I42: D31 | J42: Please provide a numerical value | N42: 42 | O42: 14
G43: 1 | H43: Sales | I43: E10 | J43: Please provide a numerical value | N43: 43 | O43: 15
G44: 1 | H44: Sales | I44: E11 | J44: Please provide a numerical value | N44: 44 | O44: 15
G45: 1 | H45: Sales | I45: E12 | J45: Please provide a numerical value | N45: 45 | O45: 16
G46: 1 | H46: Sales | I46: E13 | J46: Please provide a numerical value | N46: 46 | O46: 17
G47: 1 | H47: Sales | I47: E14 | J47: Please provide a numerical value | N47: 47 | O47: 18
G48: 1 | H48: Sales | I48: E15 | J48: Please provide a numerical value | N48: 48 | O48: 18
G49: 1 | H49: Sales | I49: E16 | J49: Please provide a numerical value | N49: 49 | O49: 19
G50: 1 | H50: Sales | I50: E17 | J50: Please provide a numerical value | N50: 50 | O50: 20
G51: 1 | H51: Sales | I51: E18 | J51: Please provide a numerical value | N51: 51 | O51: 20
G52: 1 | H52: Sales | I52: E19 | J52: Please provide a numerical value
G53: 1 | H53: Sales | I53: E20 | J53: Please provide a numerical value
G54: 1 | H54: Sales | I54: E21 | J54: Please provide a numerical value
G55: 1 | H55: Sales | I55: E22 | J55: Please provide a numerical value
G56: 1 | H56: Sales | I56: E23 | J56: Please provide a numerical value
G57: 1 | H57: Sales | I57: E24 | J57: Please provide a numerical value
G58: 1 | H58: Sales | I58: E25 | J58: Please provide a numerical value
G59: 1 | H59: Sales | I59: E27 | J59: Please provide a numerical value
G60: 1 | H60: Sales | I60: E29 | J60: Please provide a numerical value
G61: 1 | H61: Sales | I61: E30 | J61: Please provide a numerical value | N61: for petrol
G62: 1 | H62: Sales | I62: E31 | J62: Please provide a numerical value | N62: 62 | O62: 17
G63: 1 | H63: Sales | I63: F10 | J63: Please provide a numerical value | K63: Integer | N63: 63 | O63: 17
G64: 1 | H64: Sales | I64: F11 | J64: Please provide a numerical value | K64: Integer | N64: 64 | O64: 18
G65: 1 | H65: Sales | I65: F12 | J65: Please provide a numerical value | K65: Integer | N65: 65 | O65: 18
G66: 1 | H66: Sales | I66: F13 | J66: Please provide a numerical value | K66: Integer | N66: 66 | O66: 0
G67: 1 | H67: Sales | I67: F14 | J67: Please provide a numerical value | K67: Integer | N67: 67 | O67: 20
G68: 1 | H68: Sales | I68: F15 | J68: Please provide a numerical value | K68: Integer | N68: 68 | O68: 20
G69: 1 | H69: Sales | I69: F16 | J69: Please provide a numerical value | K69: Integer | N69: 69 | O69: 20
G70: 1 | H70: Sales | I70: F17 | J70: Please provide a numerical value | K70: Integer | N70: 70 | O70: 20
G71: 1 | H71: Sales | I71: F18 | J71: Please provide a numerical value | K71: Integer | N71: 71 | O71: 20
G72: 1 | H72: Sales | I72: F19 | J72: Please provide a numerical value | K72: Integer | N72: 72 | O72: 20
G73: 1 | H73: Sales | I73: F20 | J73: Please provide a numerical value | K73: Integer | N73: 73 | O73: 20
G74: 1 | H74: Sales | I74: F21 | J74: Please provide a numerical value | K74: Integer | N74: 74 | O74: 0
G75: 1 | H75: Sales | I75: F22 | J75: Please provide a numerical value | K75: Integer | N75: 75 | O75: 22
G76: 1 | H76: Sales | I76: F23 | J76: Please provide a numerical value | K76: Integer | N76: 76 | O76: 23
G77: 1 | H77: Sales | I77: F24 | J77: Please provide a numerical value | K77: Integer | N77: 77 | O77: 0
G78: 1 | H78: Sales | I78: F25 | J78: Please provide a numerical value | K78: Integer | N78: 78 | O78: 25
G79: 1 | H79: Sales | I79: F27 | J79: Please provide a numerical value | K79: Integer | N79: 79 | O79: 25
G80: 1 | H80: Sales | I80: F29 | J80: Please provide a numerical value | K80: Integer | N80: 80 | O80: 25
G81: 1 | H81: Sales | I81: F30 | J81: Please provide a numerical value | K81: Integer | N81: 81 | O81: 25
G82: 1 | H82: Sales | I82: F31 | J82: Please provide a numerical value | K82: Integer | N82: 82 | O82: 25
G83: 1 | H83: Sales | I83: G10 | J83: Please provide a numerical value | K83: Integer | N83: 83 | O83: 26
G84: 1 | H84: Sales | I84: G11 | J84: Please provide a numerical value | K84: Integer | N84: 84 | O84: 27
G85: 1 | H85: Sales | I85: G12 | J85: Please provide a numerical value | K85: Integer | N85: 85 | O85: 27
G86: 1 | H86: Sales | I86: G13 | J86: Please provide a numerical value | K86: Integer | N86: 86 | O86: 27
G87: 1 | H87: Sales | I87: G14 | J87: Please provide a numerical value | K87: Integer | N87: 87 | O87: 28
G88: 1 | H88: Sales | I88: G15 | J88: Please provide a numerical value | K88: Integer | N88: 88 | O88: 29
G89: 1 | H89: Sales | I89: G16 | J89: Please provide a numerical value | K89: Integer | N89: 89 | O89: 0
G90: 1 | H90: Sales | I90: G17 | J90: Please provide a numerical value | K90: Integer | N90: 90 | O90: 31
G91: 1 | H91: Sales | I91: G18 | J91: Please provide a numerical value | K91: Integer | N91: 91 | O91: 32
G92: 1 | H92: Sales | I92: G19 | J92: Please provide a numerical value | K92: Integer | N92: 92 | O92: 33
G93: 1 | H93: Sales | I93: G20 | J93: Please provide a numerical value | K93: Integer | N93: 93 | O93: 34
G94: 1 | H94: Sales | I94: G21 | J94: Please provide a numerical value | K94: Integer | N94: 94 | O94: 35
G95: 1 | H95: Sales | I95: G22 | J95: Please provide a numerical value | K95: Integer | N95: 95 | O95: 36
G96: 1 | H96: Sales | I96: G23 | J96: Please provide a numerical value | K96: Integer | N96: 96 | O96: 37
G97: 1 | H97: Sales | I97: G24 | J97: Please provide a numerical value | K97: Integer | N97: 97 | O97: 28
G98: 1 | H98: Sales | I98: G25 | J98: Please provide a numerical value | K98: Integer | N98: 98 | O98: 29
G99: 1 | H99: Sales | I99: G27 | J99: Please provide a numerical value | K99: Integer | N99: 99 | O99: 0
G100: 1 | H100: Sales | I100: G29 | J100: Please provide a numerical value | K100: Integer | N100: 100 | O100: 31
G101: 1 | H101: Sales | I101: G30 | J101: Please provide a numerical value | K101: Integer | N101: 101 | O101: 32
G102: 1 | H102: Sales | I102: G31 | J102: Please provide a numerical value | K102: Integer | N102: 102 | O102: 33
G103: 1 | H103: Sales | I103: H10 | J103: Please provide a numerical value | K103: Integer | N103: 103 | O103: 34
G104: 1 | H104: Sales | I104: H11 | J104: Please provide a numerical value | K104: Integer | N104: 104 | O104: 35
G105: 1 | H105: Sales | I105: H12 | J105: Please provide a numerical value | K105: Integer | N105: 105 | O105: 36
G106: 1 | H106: Sales | I106: H13 | J106: Please provide a numerical value | K106: Integer | N106: 106 | O106: 37
G107: 1 | H107: Sales | I107: H14 | J107: Please provide a numerical value | K107: Integer | N107: 107 | O107: 28
G108: 1 | H108: Sales | I108: H15 | J108: Please provide a numerical value | K108: Integer | N108: 108 | O108: 29
G109: 1 | H109: Sales | I109: H16 | J109: Please provide a numerical value | K109: Integer | N109: 109 | O109: 0
G110: 1 | H110: Sales | I110: H17 | J110: Please provide a numerical value | K110: Integer | N110: 110 | O110: 31
G111: 1 | H111: Sales | I111: H18 | J111: Please provide a numerical value | K111: Integer | N111: 111 | O111: 32
G112: 1 | H112: Sales | I112: H19 | J112: Please provide a numerical value | K112: Integer | N112: 112 | O112: 33
G113: 1 | H113: Sales | I113: H20 | J113: Please provide a numerical value | K113: Integer | N113: 113 | O113: 34
G114: 1 | H114: Sales | I114: H21 | J114: Please provide a numerical value | K114: Integer | N114: 114 | O114: 35
G115: 1 | H115: Sales | I115: H22 | J115: Please provide a numerical value | K115: Integer | N115: 115 | O115: 36
G116: 1 | H116: Sales | I116: H23 | J116: Please provide a numerical value | K116: Integer | N116: 116 | O116: 37
G117: 1 | H117: Sales | I117: H24 | J117: Please provide a numerical value | K117: Integer | N117: 117 | O117: 38
G118: 1 | H118: Sales | I118: H25 | J118: Please provide a numerical value | K118: Integer | N118: 118 | O118: 38
G119: 1 | H119: Sales | I119: H27 | J119: Please provide a numerical value | K119: Integer | N119: 119 | O119: 38
G120: 1 | H120: Sales | I120: H29 | J120: Please provide a numerical value | K120: Integer | N120: 120 | O120: 38
G121: 1 | H121: Sales | I121: H30 | J121: Please provide a numerical value | K121: Integer | N121: 121 | O121: 39
G122: 1 | H122: Sales | I122: H31 | J122: Please provide a numerical value | K122: Integer | N122: 122 | O122: 40
G123: 1 | H123: Regional Petrol Sampling (S) | I123: C14 | J123: Please provide a numerical value | N123: 123 | O123: 40
G124: 1 | H124: Regional Petrol Sampling (S) | I124: C15 | J124: Please provide a numerical value
G125: 1 | H125: Regional Petrol Sampling (S) | I125: C16 | J125: Please provide a numerical value
G126: 1 | H126: Regional Petrol Sampling (S) | I126: C17 | J126: Please provide a numerical value
G127: 1 | H127: Regional Petrol Sampling (S) | I127: C18 | J127: Please provide a numerical value
G128: 1 | H128: Regional Petrol Sampling (S) | I128: C19 | J128: Please provide a numerical value
G129: 1 | H129: Regional Petrol Sampling (S) | I129: C20 | J129: Please provide a numerical value
G130: 1 | H130: Regional Petrol Sampling (S) | I130: C21 | J130: Please provide a numerical value
G131: 1 | H131: Regional Petrol Sampling (S) | I131: C22 | J131: Please provide a numerical value
G132: 1 | H132: Regional Petrol Sampling (S) | I132: C23 | J132: Please provide a numerical value
G133: 1 | H133: Regional Petrol Sampling (S) | I133: C24 | J133: Please provide a numerical value
G134: 1 | H134: Regional Petrol Sampling (S) | I134: C25 | J134: Please provide a numerical value
G135: 1 | H135: Regional Petrol Sampling (S) | I135: C26 | J135: Please provide a numerical value
G136: 1 | H136: Regional Petrol Sampling (S) | I136: C27 | J136: Please provide a numerical value
G137: 1 | H137: Regional Petrol Sampling (S) | I137: C28 | J137: Please provide a numerical value
G138: 1 | H138: Regional Petrol Sampling (S) | I138: C29 | J138: Please provide a numerical value
G139: 1 | H139: Regional Petrol Sampling (S) | I139: C9 | J139: Please provide a numerical value | K139: Integer
G140: 1 | H140: Regional Petrol Sampling (W) | I140: C14 | J140: Please provide a numerical value
G141: 1 | H141: Regional Petrol Sampling (W) | I141: C15 | J141: Please provide a numerical value
G142: 1 | H142: Regional Petrol Sampling (W) | I142: C16 | J142: Please provide a numerical value
G143: 1 | H143: Regional Petrol Sampling (W) | I143: C17 | J143: Please provide a numerical value
G144: 1 | H144: Regional Petrol Sampling (W) | I144: C18 | J144: Please provide a numerical value
G145: 1 | H145: Regional Petrol Sampling (W) | I145: C19 | J145: Please provide a numerical value
G146: 1 | H146: Regional Petrol Sampling (W) | I146: C20 | J146: Please provide a numerical value
G147: 1 | H147: Regional Petrol Sampling (W) | I147: C21 | J147: Please provide a numerical value
G148: 1 | H148: Regional Petrol Sampling (W) | I148: C22 | J148: Please provide a numerical value
G149: 1 | H149: Regional Petrol Sampling (W) | I149: C23 | J149: Please provide a numerical value
G150: 1 | H150: Regional Petrol Sampling (W) | I150: C24 | J150: Please provide a numerical value
G151: 1 | H151: Regional Petrol Sampling (W) | I151: C25 | J151: Please provide a numerical value
G152: 1 | H152: Regional Petrol Sampling (W) | I152: C26 | J152: Please provide a numerical value
G153: 1 | H153: Regional Petrol Sampling (W) | I153: C27 | J153: Please provide a numerical value
G154: 1 | H154: Regional Petrol Sampling (W) | I154: C28 | J154: Please provide a numerical value
G155: 1 | H155: Regional Petrol Sampling (W) | I155: C29 | J155: Please provide a numerical value
G156: 1 | H156: Regional Petrol Sampling (W) | I156: C9 | J156: Please provide a numerical value | K156: Integer
G157: 1 | H157: Regional Diesel Sampling (S) | I157: C14 | J157: Please provide a numerical value
G158: 1 | H158: Regional Diesel Sampling (S) | I158: C15 | J158: Please provide a numerical value
G159: 1 | H159: Regional Diesel Sampling (S) | I159: C16 | J159: Please provide a numerical value
G160: 1 | H160: Regional Diesel Sampling (S) | I160: C17 | J160: Please provide a numerical value
G161: 1 | H161: Regional Diesel Sampling (S) | I161: C18 | J161: Please provide a numerical value
G162: 1 | H162: Regional Diesel Sampling (S) | I162: C19 | J162: Please provide a numerical value
G163: 1 | H163: Regional Diesel Sampling (S) | I163: C20 | J163: Please provide a numerical value
G164: 1 | H164: Regional Diesel Sampling (S) | I164: C21 | J164: Please provide a numerical value
G165: 1 | H165: Regional Diesel Sampling (S) | I165: C22 | J165: Please provide a numerical value
G166: 1 | H166: Regional Diesel Sampling (S) | I166: C23 | J166: Please provide a numerical value
G167: 1 | H167: Regional Diesel Sampling (S) | I167: C24 | J167: Please provide a numerical value
G168: 1 | H168: Regional Diesel Sampling (S) | I168: C25 | J168: Please provide a numerical value
G169: 1 | H169: Regional Diesel Sampling (S) | I169: C26 | J169: Please provide a numerical value
G170: 1 | H170: Regional Diesel Sampling (S) | I170: C27 | J170: Please provide a numerical value
G171: 1 | H171: Regional Diesel Sampling (S) | I171: C28 | J171: Please provide a numerical value
G172: 1 | H172: Regional Diesel Sampling (S) | I172: C29 | J172: Please provide a numerical value
G173: 1 | H173: Regional Diesel Sampling (S) | I173: C9 | J173: Please provide a numerical value | K173: Integer
G174: 1 | H174: Regional Diesel Sampling (W) | I174: C14 | J174: Please provide a numerical value
G175: 1 | H175: Regional Diesel Sampling (W) | I175: C15 | J175: Please provide a numerical value
G176: 1 | H176: Regional Diesel Sampling (W) | I176: C16 | J176: Please provide a numerical value
G177: 1 | H177: Regional Diesel Sampling (W) | I177: C17 | J177: Please provide a numerical value
G178: 1 | H178: Regional Diesel Sampling (W) | I178: C18 | J178: Please provide a numerical value
G179: 1 | H179: Regional Diesel Sampling (W) | I179: C19 | J179: Please provide a numerical value
G180: 1 | H180: Regional Diesel Sampling (W) | I180: C20 | J180: Please provide a numerical value
G181: 1 | H181: Regional Diesel Sampling (W) | I181: C21 | J181: Please provide a numerical value
G182: 1 | H182: Regional Diesel Sampling (W) | I182: C22 | J182: Please provide a numerical value
G183: 1 | H183: Regional Diesel Sampling (W) | I183: C23 | J183: Please provide a numerical value
G184: 1 | H184: Regional Diesel Sampling (W) | I184: C24 | J184: Please provide a numerical value
G185: 1 | H185: Regional Diesel Sampling (W) | I185: C25 | J185: Please provide a numerical value
G186: 1 | H186: Regional Diesel Sampling (W) | I186: C26 | J186: Please provide a numerical value
G187: 1 | H187: Regional Diesel Sampling (W) | I187: C27 | J187: Please provide a numerical value
G188: 1 | H188: Regional Diesel Sampling (W) | I188: C28 | J188: Please provide a numerical value
G189: 1 | H189: Regional Diesel Sampling (W) | I189: C29 | J189: Please provide a numerical value
G190: 1 | H190: Regional Diesel Sampling (W) | I190: C9 | J190: Please provide a numerical value | K190: Integer
G191: 2 | H191: Petrol | I191: B9 | J191: Please provide a numerical value
G192: 2 | H192: Petrol | I192: C17 | J192: Please provide a numerical value | K192: Integer
G193: 2 | H193: Petrol | I193: C18 | J193: Please provide a numerical value | K193: Integer
G194: 2 | H194: Petrol | I194: C20 | J194: Please provide a numerical value | K194: Integer
G195: 2 | H195: Petrol | I195: C22 | J195: Please provide a numerical value | K195: Integer
G196: 2 | H196: Petrol | I196: C23 | J196: Please provide a numerical value | K196: Integer
G197: 2 | H197: Petrol | I197: C25 | J197: Please provide a numerical value | K197: Integer
G198: 2 | H198: Petrol | I198: C26 | J198: Please provide a numerical value | K198: Integer
G199: 2 | H199: Petrol | I199: C27 | J199: Please provide a numerical value | K199: Integer
G200: 2 | H200: Petrol | I200: C28 | J200: Please provide a numerical value | K200: Integer
... 312 more rows

Sheet Introduction
A1: EU Fuel Quality Monitoring Submissions – 2023 Reporting Year All reports should be submitted to the EIONET Central Data Repository no later than 31 August; see guidance from the European Environment Agency (EEA) concerning reporting instructions. After submitting your report, you should also notify the European Commission at ENV-98-70-Implementation@ec.europa.eu. Introduction, purpose & format Directive 98/70/EC of the European Parliament and of the Council of 13 October 1998 relating to the quality of petrol and diesel fuels, as last amended by Directive 2009/30/EC and Directive 2011/63/EU, sets the environmental specifications for all petrol and diesel fuel marketed in the European Union. These specifications can be found in Annexes I to IV of the Directive. Article 8(1) obliges the Member States to monitor the compliance with these fuel quality specifications according to the analytical measurement methods referred to in the Directive and subsequent amends. By no later than 31 August each year the Member States must submit a summary of fuel quality monitoring data collected during the period January to December of the previous calendar year. Member States are required to report according to European Standard EN 14274:2003, unless they use a national fuel quality monitoring system of equivalent confidence. The purpose of this online reporting system is to assist Member States in data reporting, and; • Facilitate the collation and interpretation of Member State submissions, reducing the need to return to Member States for additional information; • Provide additional guidance to Member States on the provision of information that would assist in the interpretation/understanding of both their national fuel quality monitoring systems and the significance of the results of sample analysis in the annual EU Fuel Quality Monitoring Summary Report. The format of this reporting platform broadly follows that of Commission Decision 2002/159/EC and has been revised and approved by the European Commission Directorate General responsible for ensuring compliance with the Directive. Your assistance in providing submission data using this online reporting platform is greatly appreciated. We have provided instructions (see Instructions tab) for filling in the required data. The information requested in the tab “Detailed FQMS” is required for the 2019 submission, but will not be required for the next two submissions. If you have any queries regarding this reporting platform, please do not hesitate to contact the EEA at fqd@eea.europa.eu. Thank you again for your assistance with this work.

Sheet Instructions
A1: Instructions and guide to new reporting requests Certain additional information is requested in order to gain a complete picture of Member State fuel quality monitoring systems and compliance with Directive specifications. 1. Description of fuel quality monitoring system in the <Detailed FQMS> tab Member States have been asked, in 2012 for the first time, to provide a detailed breakdown of the Fuel Quality Monitoring System used. Updates to this information will be requested on a 3-yearly basis. The additional optional information requested serves several purposes: to clarify the method of sample collection and analysis; to put into context/explain the reasons for differences in national fuel quality monitoring systems; to identify how the Fuel Quality Monitoring System is managed; to provide details on how the fuel quality legislation has been transposed into national law; and to clarify reporting periods. 2. Description of fuel quality monitoring system in the <FQMS&Sampling> tab The information requested has been reduced. However, Member States are requested to provide details of any changes to the Fuel Quality Monitoring System that have been implemented since the last detailed breakdown of the Fuel Quality Monitoring System. 3. Petrol and Diesel sample analysis reporting tables Changes introduced in the 2011 template: a) Separate tables are requested for different RON and different sulphur grades in order to identify any particular issues with different fuel types; b) Additional clarifying information is requested to help interpret correctly the significance of any exceedances of the limit values and allow Member States the opportunity to provide information on how such potential exceedances are followed up. 4. Reporting fuel sales and sample numbers in the <Sales> tab Changes introduced in the 2011 template: a) Member States are requested to provide detail about the location of fuel sampling in the sales tab. This helps to assess the number of samples according to Directive requirements. Sampling at service stations (retail or commercial fuel dispensing sites where fuel is dispensed into road vehicles for propulsion) means that the fuel is being sampled at the point of use and reduces the risk of contamination in the supply chain before use. Sampling at the end of the distribution chain (i.e. dispensing/refuelling sites) ensures that any contamination is identified before it reaches the vehicle, whilst sampling the whole distribution chain will also help identify at what point any potential contamination might have occurred. 5. Statistical analysis to enhance accuracy requested in reporting tabs {<Petrol (1)> through to <Diesel (1 + 2)>} a) As in the 2009 , 2010, 2011, 2012 and 2013 report templates, Member States are requested to provide the median value for each parameter tested. Providing the Median helps in the statistical analysis of fuel quality throughout the EU. b) Additional parameters as required by the Directive; provision has been made, in the 2011 template onwards, for reporting test results for MMT (including labelling), FAME (diesel) and the Vapour Pressure Waiver for petrol that contains bioethanol. c) In the 2010 template onwards, Member States are asked to provide further data on the distribution of the fuel samples, this will aid the Commission in further understanding of the fuel within the member states. The data required included: • Column "No Samples outside 95% tolerance limit": Please provide the number of samples that fail to reach the tolerance limit (95% Confidence) as set out in the <Methods&Limits> tab. • Column "25% of Sample Value": Please provide where the 25% level of the fuel sample dataset occurs, e.g.: if a sample dataset has 11 values of {21,22,23,24,25,26,27,28,29,30,31} The 25% value is the 3rd value = 23 • Column "75% of Sample Value": Please provide where the 75% level of the dataset occurs, e.g.: if a sample has 11 values of {21,22,23,24,25,26,27,28,29,30,31} The 75% value is the 9th value = 29 To aid users, this can be calculated by using the QUARTILE function in Excel (For more information on using this, see: http://office.microsoft.com/en-us/excel-help/quartile-HP005209226.aspx?CTT=1)

Sheet Methods&Limits
A1: Directive 98/70/EC: Test Methods, Limit Values and Tolerance Limits*
A2: *Based on information provided by the Belgium, the German Environmental Protection Agency, Italy, Irish EPA, UK DTI and CEN TC19
A4: Petrol
A6: Parameter | B6: Unit | C6: 98/70/EC | E6: Test specified in 2009/30/EC or EN 228:2012+A1:2017
C7: Limit values | E7: Method | F7: Date | G7: Reproducibility, R* | H7: Tolerance limits (95% confidence)
C8: Min. | D8: Max. | H8: Minimum | I8: Maximum
A9: Research Octane Number (RON) | B9: -- | C9: 95 | E9: EN-ISO 5164 | F9: 2014 | G9: 0.7 | H9: =C9-0.59*G9 -> 94.587
A10: (RON 91 fuel only) | B10: -- | C10: 91 | E10: EN-ISO 5164 | F10: 2014 | G10: 0.7 | H10: =C10-0.59*G10 -> 90.587
A11: Motor Octane Number (MON) | B11: -- | C11: 85 | E11: EN-ISO 5163 | F11: 2014 | G11: 0.9 | H11: =C11-0.59*G11 -> 84.469
A12: (RON 91 fuel only) | B12: -- | C12: 81 | E12: EN-ISO 5163 | F12: 2014 | G12: 0.9 | H12: =C12-0.59*G12 -> 80.469
A13: Vapour Pressure, DVPE
A14: --summer period (normal) | B14: kPa | D14: 60 | E14: EN 13016-1 | F14: 2018 | G14: 2.2 | I14: =D14+0.59*G14 -> 61.298
A15: -- Petrol with bioethanol content 0-2 | B15: kPa | D15: =D14+5.95 -> 65.95 | E15: EN 1601 | F15: 2017 | G15: 2.3 | I15: =D15+0.59*G15 -> 67.307
A16: -- Petrol with bioethanol content 2-4 | B16: kPa | D16: =D14+7.8 -> 67.8 | E16: EN 1601 | F16: 2017 | G16: 2.3 | I16: =D16+0.59*G16 -> 69.157
A17: -- Petrol with bioethanol content 4-6 | B17: kPa | D17: =D14+8 -> 68 | E17: EN 1601 | F17: 2017 | G17: 2.3 | I17: =D17+0.59*G17 -> 69.357
A18: -- Petrol with bioethanol content 6-8 | B18: kPa | D18: =D14+7.88 -> 67.88 | E18: EN 1601 | F18: 2017 | G18: 2.3 | I18: =D18+0.59*G18 -> 69.237
A19: -- Petrol with bioethanol content 8-10 | B19: kPa | D19: =D14+7.76 -> 67.76 | E19: EN 1601 | F19: 2017 | G19: 2.3 | I19: 69.117
A20: --summer period (arctic or severe weather conditions) | B20: kPa | D20: 70 | E20: EN 13016-1 | F20: 2018 | G20: 2.3 | I20: =D20+0.59*G20 -> 71.357
A21: Distillation *
A22: --evaporated at 100 oC | B22: % V/V | C22: 46 | E22: EN-ISO 3405 | F22: 2020 | G22: 4 | H22: =C22-0.59*G22 -> 43.64
A23: -- evaporated at 150 oC | B23: % V/V | C23: 75 | E23: EN-ISO 3405 | F23: 2020 | G23: 4 | H23: =C23-0.59*G23 -> 72.64
A24: Hydrocarbon analysis
A25: -- Olefins | B25: % V/V | D25: 18 | E25: EN 15553 | F25: 2021 | G25: 6.4 | I25: =D25+0.59*G25 -> 21.776
D26: =D25 -> 18 | E26: EN-ISO 22854 | F26: 2021 | G26: 2.6 | I26: 19.534
A27: *without oxygenates | D27: =D25 -> 18 | E27: EN 15553 | F27: 2021 | G27: - | I27: -
E28: EN-ISO 22854 | F28: 2021 | G28: - | I28: -
A29: -- Olefins (RON 91 fuel only)*** | B29: % V/V | D29: 21 | E29: ASTM D1319 | F29: 2020 | G29: 5.1 | I29: 24.009
A30: -- Aromatics (from 2005) | D30: 35 | E30: EN-ISO 22854 | F30: 2021 | G30: 1.7 | I30: 36.003
A31: -- Benzene | B31: % V/V | D31: 1 | E31: EN 12177 | F31: 2022 | G31: 0.1 | I31: 1.059
D32: =D31 -> 1 | E32: EN 238 | F32: 1996 | G32: =0.17 -> 0.17 | I32: 1.1003
D33: =D32 -> 1 | E33: EN-ISO 22854 | F33: 2021 | G33: 0.05 | I33: =D33+0.59*G33 -> 1.0295
A34: Oxygen content | B34: % (m/m) | D34: 3.7 | E34: EN 1601 | F34: 2017 | G34: 0.41 | I34: =D34+0.59*G34 -> 3.9419
D35: 2.7 | E35: EN 1601 | F35: 2017 | G35: 0.41 | I35: =D35+0.59*G35 -> 2.9419
A36: Oxygenates
A37: -- Methanol | B37: % V/V | D37: 3 | E37: EN 1601 | F37: 2017 | G37: 0.3 | I37: =D37+0.59*G37 -> 3.177
A38: -- Ethanol | B38: % V/V | D38: 10 | E38: EN 1601 | F38: 2017 | G38: 0.8 | I38: 10.472
A39: -- Iso-propyl alcohol | B39: % V/V | D39: 12 | E39: EN 1601 | F39: 2017 | G39: 0.9 | I39: 12.531
A40: -- Tert-butyl alcohol | B40: % V/V | D40: 15 | E40: EN 1601 | F40: 2017 | G40: 1 | I40: 15.59
A41: -- Iso-butyl alcohol | B41: % V/V | D41: 15 | E41: EN 1601 | F41: 2017 | G41: 1 | I41: 15.59
A42: -- Ethers with 5 or more carbon atoms per molecule | B42: % V/V | D42: 22 | E42: EN 1601 | F42: 2017 | G42: 1 | I42: 22.59
A43: -- other oxygenates | B43: % V/V | D43: 15 | E43: EN 1601 | F43: 2017 | G43: 1 | I43: 15.59
A44: Oxygen content | B44: % (m/m) | D44: 3.7 | E44: EN 13132 | F44: 2002 | G44: 0.3 | I44: 3.877
D45: 2.7 | E45: EN 13132 | F45: 2002 | G45: 0.3 | I45: 2.877
A46: Oxygenates
A47: -- Methanol | B47: % V/V | D47: 3 | E47: EN 13132 | F47: 2002 | G47: 0.3 | I47: =D47+0.59*G47 -> 3.177
A48: -- Ethanol | B48: % V/V | D48: 10 | E48: EN 13132 | F48: 2002 | G48: 0.8 | I48: 10.472
A49: -- Iso-propyl alcohol | B49: % V/V | D49: 12 | E49: EN 13132 | F49: 2002 | G49: 0.8 | I49: 12.472
A50: -- Tert-butyl alcohol | B50: % V/V | D50: 15 | E50: EN 13132 | F50: 2002 | G50: 1 | I50: 15.59
A51: -- Iso-butyl alcohol | B51: % V/V | D51: 15 | E51: EN 13132 | F51: 2002 | G51: 1 | I51: =D51+0.59*G51 -> 15.59
A52: -- Ethers with 5 or more carbon atoms per molecule | B52: % V/V | D52: 22 | E52: EN 13132 | F52: 2002 | G52: 1 | I52: 22.59
A53: -- other oxygenates | B53: % V/V | D53: 15 | E53: EN 13132 | F53: 2002 | G53: 1 | I53: 15.59
A54: Oxygen content | B54: % (m/m) | D54: 3.7 | E54: EN-ISO 22854 | F54: 2021 | G54: 0.4 | I54: 3.936
D55: 2.7 | E55: EN-ISO 22854 | F55: 2021 | G55: 0.4 | I55: 2.936
A56: Oxyginates
A57: -- Methanol | B57: % V/V | D57: 3 | E57: EN-ISO 22854 | F57: 2021 | G57: 0.4 | I57: =D57+0.59*G57 -> 3.236
A58: -- Ethanol | B58: % V/V | D58: 10 | E58: EN-ISO 22854 | F58: 2021 | G58: 0.6 | I58: =D58+0.59*G58 -> 10.354
A59: -- Iso-propyl alcohol | B59: % V/V | D59: 12 | E59: EN-ISO 22854 | F59: 2021 | G59: 0.7 | I59: 12.413
A60: -- Tert-butyl alcohol | B60: % V/V | D60: 15 | E60: EN-ISO 22854 | F60: 2021 | G60: 0.7 | I60: 15.413
A61: -- Iso-butyl alcohol | B61: % V/V | D61: 15 | E61: EN-ISO 22854 | F61: 2021 | G61: 0.7 | I61: 15.413
A62: -- Ethers with 5 or more carbon atoms per molecule | B62: % V/V | D62: 22 | E62: EN-ISO 22854 | F62: 2021 | G62: 0.9 | I62: 22.531
A63: -- other oxygenates | B63: % V/V | D63: 15 | E63: EN-ISO 22854 | F63: 2021 | G63: 0.7 | I63: 15.413
A64: Sulphur content (sulphur free, from 2005)** | B64: mg/kg | D64: 10 | E64: EN-ISO 14596 | F64: 2018 | G64: 5 | I64: =D64+0.59*G64 -> 12.95
D65: =D64 -> 10 | E65: EN 24260 | F65: 1994 | G65: 1 | I65: 10.59
D66: =D65 -> 10 | E66: EN-ISO 20846 | F66: 2019 | G66: 2.7 | I66: 11.593
D67: =D66 -> 10 | E67: EN-ISO 20884 | F67: 2019 | G67: 3.1 | I67: 11.829
A68: Lead content | B68: g/l | D68: 0.005 | E68: EN 237 | F68: 2004 | G68: 0.0062 | I68: 0.008658
A72: * R values and limits are fixed precision statements provided by CEN, to be used in the absence of specific values from Member States. Member States may use and report their own defined R depending on their testing conditions.
A73: **According to Directive amendment 2003/17/EC "By no later than 1 January 2009, Member States shall ensure that unleaded petrol may be marketed in their territory only if it complies with the environmental specification set out in Annex III except for the sulphur content which shall be a maximum of 10 mg/kg."
A74: ***RON91 is not covered by EN228:2008: MS who wish to sample and report Olefines for RON91 should: a) use method ASTM D1319 as in previous years b) report only the quantity of fuel sold
A76: Diesel
A78: Parameter | B78: Unit | C78: 98/70/EC | E78: Test specified in 2009/30/EC or EN 590:2013+A1:2017
C79: Limit values | E79: Method | F79: Date | G79: Reproducability, R* | H79: Tolerance limits (95% confidence)
C80: Min. | D80: Max. | H80: Minimum | I80: Maximum
A81: Cetane number | B81: -- | C81: 51 | D81: -- | E81: EN-ISO 5165 | F81: 2020 | G81: 4.3 | H81: =C81-0.59*G81 -> 48.463
A82: Density at 15 oC | B82: kg/m3 | D82: 845 | E82: EN-ISO 3675 | F82: 2022 | G82: 1.2 | I82: =D82+0.59*G82 -> 845.708
E83: EN-ISO 12185 | F83: 2024 | G83: =(I83-D82)/0.59 -> 0.5084745763 | I83: 845.3
A84: Distillation -- 95% Point | B84: oC | D84: 360 | E84: EN-ISO 3405 | F84: 2019 | G84: 10 | I84: =D84+0.59*G84 -> 365.9
A85: Polycyclic aromatic hydrocarbons | B85: % (m/m) | D85: 8 | E85: EN 12916 | F85: 2019 | G85: 1.9 | I85: =D85+0.59*G85 -> 9.121
A86: Sulphur content (sulphur free, from 2005) | B86: mg/kg | D86: 10 | E86: EN-ISO 20846 | F86: 2019 | G86: 2.2 | I86: =D86+0.59*G86 -> 11.298
D87: =D86 -> 10 | E87: EN-ISO 20884 | F87: 2019 | G87: 3.1 | I87: =D87+0.59*G87 -> 11.829
A88: FAME Content | B88: % V/V | D88: 10 | E88: EN14078 | F88: 2014 | G88: 0.5 | I88: =D88+0.59*G88 -> 10.295

Sheet Contacts&Annual Summary
D1: <-- GO BACK
B2: Contacts & Summary
B4: Details of those compiling the Fuel Quality Monitoring Report
B6: The authorities responsible for compiling the fuel quality monitoring report are requested to complete the table below.
B8: Reporting Year: | C8: 2023
B9: Country:
B10: Date Report Completed:
B11: Organisation Responsible for Report
B12: Address of Organisation Street:
B13: City:
B14: Postcode:
B15: Person Responsible for Report:
B16: Telephone Number:
B17: Email:
B19: DEFINITIONS AND EXPLANATION
B21: Parent fuel grade: Directive 98/70/EC sets the environmental specifications for petrol and diesel fuel marketed in the EU. The specifications in the Directive can be thought of as ‘parent fuel grades’. These include (i) regular unleaded petrol (RON > 91), (ii) unleaded petrol (RON > 95) and (iii) diesel fuel.
B22: National fuel grade: Member States may, of course, define ‘national’ fuel grades which must still, however, respect the specification of the parent fuel grade. For example, national fuel grades may comprise super unleaded petrol (RON > 98), lead replacement petrol, zero sulphur petrol, zero sulphur diesel, etc.
B23: Zero sulphur or sulphur-free fuels: As of 1st January 2009 sulphur content of all fuels marketed within a member state territory must not exceed a maximum of 10 mg/kg.
B25: SUMMARY REPORTING FORMAT FOR PETROL & DIESEL
B27: Member States are requested to provide a brief general summary of the results of the year's monitoring, including information on any:
B28: - other parameters measured;
B29: - exclusions;
B30: - further details on breaches of parameter tolerance limits (i.e. number of samples, values);
B31: - enforcement actions taken as a result of breaches of the limit values/tolerance limits; and
B32: - additional information deemed relevant.
B34: In particular, Member States should provide additional explanatory information on reasoning for exceptional cases where exclusions are made, such as:
B35: - fuel grades marketed in very small quantities;
B36: - mandatory fuel parameters that are not measured;
B37: - geographical areas that are left outside the monitoring programme;
B38: - exceptionally high or low values of analytical results (i.e. outliers).
B40: General Summary of Analysis and Additional Information:

Sheet FQMS&Sampling
B2: Fuel Quality Monitoring System | G2: <-- GO BACK
B4: Year: | C4: ='Contacts&Annual Summary'!C8 -> 2023
B6: Description of Fuel Quality Monitoring System
B8: Member States should provide details on the operation of their national fuel quality monitoring systems.
B9: Directive 98/70/EC requires the vapour pressure of petrol to be less than 60.0 kPa during the summer period, which spans 1 May until 30 September. However, for those Member States that experience ‘arctic or severe weather conditions’ the summer period covers the period 1 June to 31 August and the vapour pressure must not exceed 70 kPa. Member States are requested to define the Summer/Winter periods implemented in their territories and also applying to their fuel quality monitoring system reporting.
B10: Definition of Monitoring System Summer and Winter Periods:
B12: Summer Period
B13: Start
B14: End
B15: Winter Period
B16: Start
B17: End
B18: * Normal = 1st May to 30th September; Arctic = 1st June to 31st August
B19: 2009/30/EC states that the summer period shall begin no later than 1 May and shall not end before 30 September. For Member States with a low ambient summer temperatures the summer period shall begin no later than 1 June and shall not end before 31 August. See Annex I footnote 4.
B20: Has a Vapour Pressure Waiver been granted? If yes, please provide details in the space below: | D20: Please Select
B22: Member States should indicate below whether their monitoring system is set up using the European Standard EN 14274:2003 statistical model A, B or C and whether it is based on the large or small country framework. Alternatively, the Member State should indicate if they are using their own nationally defined system. Where using a Nationally defined system, please include details of the system and the reson for using this system based on National conditions.
B24: Country Size (L = Large, S = Small) | D24: Please Note: A country is classified as Large if total automotive fuel sales exceed 15 millions tons per annum.
D25: Minimum number of samples each period*
D26: (Petrol, per grade; Diesel)
B27: Fuel Quality Monitoring System model used: | C27: Yes / No | D27: Small Country | E27: Large Country
B28: EN 14274 Statistical Model A | C28: No | D28: 50 | E28: 100
B29: EN 14274 Statistical Model B | C29: No | D29: 100 | E29: 200
B30: EN 14274 Statistical Model C | C30: No | D30: 50 | E30: --
B31: National System | C31: No | D31: -- | E31: --
B33: If Member States are using the European Standard EN 14274:2003, they should also provide details on the sampling programme by completing the relevant sections of the table in Annex I (as defined in Annexes B and C of EN 14274:2003), plus details of any additional provisions made in the table below.
B35: * The minimum number of samples as specified in European Standard EN 14274 refers to a minimum number of samples taken from Fuel Dispensing sites in order to determine fuel quality at the point of use. If sampling has taken place in terminals or refineries, please provide additional information detailing the number of samples per fuel grade at each sample location in the section below.
B36: ADDITIONAL INFORMATION/ ANNUAL FQM UPDATES OR SIGNIFICANT FQMS UPDATE: Member States have been asked, in 2012 for the first time to provide a detailed breakdown of the Fuel Quality Monitoring System used. Updates to this information will be requested on a 3-yearly basis (see tab 'Detailed FQMS'). In the interim years, Member States are requested to please provide details in the box below of any changes to the Fuel Quality Monitoring System that have been implemented since the last detailed breakdown of the Fuel Quality Monitoring System. This includes; - Any change to the national monitoring system used - Derogations received since the last detailed FQMS report - Significant changes to sampling quantities or location since the last detailed FQM report - Any delays to provision of the annual fuel quality data report

Sheet Detailed FQMS
B2: Fuel Quality Monitoring System | J2: <-- GO BACK
B4: Please use this section to provide detailed information about the Fuel Quality Monitoring System that has been adopted by the Member State.
B5: From 2012, this information will be requested in detail by the Commission every three years - however, information about any amendments to the FQMS that take
B6: place in the intervening years should be provided as soon as possible (within the next reporting year) and a space has been provided in tab <FQMS&Sampling> for this
B7: purpose.
B9: FUEL QUALITY MONITORING MODEL
B10: Country Size (L = Large, S = Small) | C10: ='FQMS&Sampling'!C24 -> 0 | D10: Please Note: A country is classified as Large if total automotive fuel sales exceed 15 millions tons per annum.
D11: Minimum number of samples each period*
D12: (Petrol, per grade; Diesel)
B13: Fuel Quality Monitoring System model used: | C13: Yes / No | D13: Small Country | E13: Large Country
B14: EN 14274 Statistical Model A | C14: ='FQMS&Sampling'!C28 -> No | D14: ='FQMS&Sampling'!D28 -> 50 | E14: ='FQMS&Sampling'!E28 -> 100
B15: EN 14274 Statistical Model B | C15: ='FQMS&Sampling'!C29 -> No | D15: ='FQMS&Sampling'!D29 -> 100 | E15: ='FQMS&Sampling'!E29 -> 200
B16: EN 14274 Statistical Model C | C16: ='FQMS&Sampling'!C30 -> No | D16: ='FQMS&Sampling'!D30 -> 50 | E16: ='FQMS&Sampling'!E30 -> --
B17: National System | C17: ='FQMS&Sampling'!C31 -> No | D17: ='FQMS&Sampling'!D31 -> -- | E17: ='FQMS&Sampling'!E31 -> --
B18: * The minimum number of samples as specified in European Standard EN 14274 refers to a minimum number of samples taken from fuel dispensing sites in
B19: order to determine fuel quality at the point of use.
B21: SAMPLING
B22: In this section, please provide as much information as possioble about how the sampling system has been designed, including;
B23: - Organisation(s) responsible for sampling, analysis and reporting;
B24: - Types of locations at which sampling is carried out (e.g. refineries, terminals/depots, or from refuelling stations);
B25: - Frequency of sampling and selection of sampling points;
B26: - Assessment that shows the monitoring system’s equivalency to the CEN system, and;
B27: - Test methods used to sample the different parameters.
B32: FQMS ADMINISTRATION
B33: Please provide details of how the Fuel Quality Monitoring System is managed - this section should contain information about;
B34: - Which public body (or bodies) have responsibility for managing and implementing the FQM Directive
B35: - How fuel sampling is managed - e.g. is fuel sampling carried out by a public body, contracted privately and when is annual data provided
B36: - Which public body is responsible for taking action where non-compliant samples have been discovered - and the processes in place to report, manage and
B37: monitor such non-compliance
B38: - When and how was the system been designed e.g. whether using a National System or a EN 14274 models A, B or C, what national considerations have
B39: been taken into account during design and implementation?
B40: - Number of National refineries and distribution terminals
B41: - Please also provide any reason why the annual Fuel Quality Monitoring data report cannot be provided according to the annual deadline date of 30th June.
B46: NATIONAL LEGISLATION THAT TRANSPOSED THE FQD
B47: In order to meet the requirements of the Fuel Quality Directive, member states have been required to transpose elements of the Directive into their own
B48: legislative structure. Please use the space below to give details of how the fuel quality legislation has been transposed into national law.
B53: REPORTING PERIODS
B54: Please use the section below to provide information about seasonal periods and if an 'Arctic' derogation has been granted.
B55: In addition, this section should include information about the transition periods between summer and winter grade fuels and how this transition period is handled; e.g.
B56: - Are samples taken and tested during the transition period?
B57: - Are the results of samples taken during the transition period reported within the annual fuel quality report - or excluded as transitional?

Sheet Sales
A1: Total Sales of Petrol and Diesel | K1: <-- GO BACK
A2: Year: | B2: ='Contacts&Annual Summary'!C8 -> 2023
A4: Member states are requested to complete the following table, as applicable detailing the quantities of each type and grade of petrol and diesel fuel marketed in their territory.
A7: *NB: Please do not report national fuel grade sales under more than one category. Blank rows have been provided where petrol fuel sales to be reported contain bioethanol.
A8: Fuel Grade | B8: Name of national | C8: Biofuel | D8: National sales total | F8: No. Samples
B9: fuel grade | C9: Content | D9: Litres | E9: Tonnes | F9: Service Stations | G9: Terminals | H9: Refinery | I9: Location not available | J9: Total
A10: Regular unleaded petrol (minimum RON >= 91)1
A11: Regular unleaded petrol (minimum RON >= 91) E52 | B11: kl | C11: 0 | D11: 0 | E11: 0 | F11: 0 | G11: 0 | H11: 0 | I11: 0 | J11: =SUM(F11:I11) -> 0
A12: Regular unleaded petrol (minimum RON >= 91) E102 | B12: op | C12: 0 | D12: 0 | E12: 0 | F12: 0 | G12: 0 | H12: 0 | I12: 0 | J12: 0
A13: Regular unleaded petrol (minimum RON >= 91) E+2 | B13: 0 | C13: 0 | D13: 0 | E13: 0 | F13: 0 | G13: 0 | H13: 0 | I13: 0 | J13: 0
A14: Unleaded petrol (minimum RON >= 95)1
A15: Unleaded petrol (minimum RON >= 95) E52 | B15: 0 | C15: 0.05 | D15: 0 | E15: 0 | F15: 0 | G15: 0 | H15: 0 | I15: 0 | J15: 0
A16: Unleaded petrol (minimum RON >= 95) E102 | B16: 0 | C16: 0.1 | D16: 0 | E16: 0 | F16: 0 | G16: 0 | H16: 0 | I16: 0 | J16: =SUM(F16:I16) -> 0
A17: Unleaded petrol (minimum RON >= 95) E+2 | B17: 0 | C17: 0.25 | D17: 1111 | E17: 0 | F17: 0 | G17: 0 | H17: 0 | I17: 0 | J17: 0
A22: Unleaded petrol (minimum RON >= 98)1
A23: Unleaded petrol (minimum RON >= 98) E52 | B23: 0 | C23: 0 | D23: 0 | E23: 0 | F23: 0 | G23: 0 | H23: 0 | I23: 0 | J23: 0
A24: Unleaded petrol (minimum RON >= 98) E102 | B24: 0 | C24: 0 | D24: 0 | E24: 0 | F24: 0 | G24: 0 | H24: 0 | I24: 0 | J24: 0
A25: Unleaded petrol (minimum RON >= 98) E+2 | B25: 0 | C25: 0 | D25: 0 | E25: 0 | F25: 0 | G25: 0 | H25: 0 | I25: 0 | J25: 0
A26: Total Petrol | D26: =SUM(D10:D25) -> 1111 | E26: 0 | F26: 0 | G26: 0 | H26: 0 | I26: 0 | J26: 0
A27: Diesel fuel
A28: -
A29: Diesel fuel B73 | B29: 0 | C29: 0 | D29: 0 | E29: 0 | F29: 0 | G29: 0 | H29: 0 | I29: 0 | J29: =SUM(F29:I29) -> 0
A30: Diesel fuel B+4 ( >7% FAME <=30%) | B30: 0 | C30: 0 | D30: 0 | E30: 0 | F30: 0 | G30: 0 | H30: 0 | I30: 0 | J30: =SUM(F30:I30) -> 0
A31: Diesel fuel B+4 (FAME >30%) | B31: 0 | C31: 0 | D31: 0 | E31: 0 | F31: 0 | G31: 0 | H31: 0 | I31: 0 | J31: =SUM(F31:I31) -> 0
A32: Total Diesel | D32: =SUM(D27:D31) -> 0 | E32: 0 | F32: 0 | G32: 0 | H32: 0 | I32: 0 | J32: 0
A33: 1 as specified in Annex I of Directive 98/70/EC with maximum sulphur content of 10ppm.
A34: 2 E5 denotes fuels/petrol with up to 5 % ethanol content where the ethanol is derived from biofuels (OR where ethanol is of biogenic origin) E10 indicates fuels/petrol with up to 10 % ethanol content where the ethanol content comes from biofuels (OR where ethanol is of biogenic origin). E+ indicates biofuels blends with > 10 % ethanol.
A35: 3 B7 includes diesel fuels with up to 7 % FAME and; 4 B+ represents FAME blends of > 7 %
A36: From 1 January 2011, the MMT content of fuels is limited to 6mg. In addition, Directive 2009/30/EC specifies that fuels with MMT content should be labelled at the pump with the words: “Contains metallic additives”. Please provide any additional detail about labelling of fuels at the pump.
A40: Article 3, Paragraph 3 of Directive 2009/30/EC requests that Member States ensure the provision of appropriate information to consumers concerning the biofuel content of petrol and, in particular, on the appropriate use of different blends of petrol. Please use this space to provide information about how this has been achieved where biofuels are available for sale to consumers.
A44: Comments (completeness of data, particular issues, additional information, etc.)

Sheet Regional Petrol Sampling (S)
B1: Fuel Quality Monitoring System Regional Sampling of Petrol and Diesel (1) | O1: <-- GO BACK
B3: Country: | C3: ='Contacts&Annual Summary'!C9 -> 0
B4: Fuel type (petrol only): | C4: Petrol
B5: Statistical Model (A, B or C) (2) | C5: =IF(COUNTIF('FQMS&Sampling'!C28:C31,"Yes")>1,"Unknown",IF(COUNTIF('FQMS&Sampling'!C28:C31,"Yes")=0,"Select Model used in FQMS",INDEX('FQMS&Sampling'!B28:B31,MATCH("Yes",'FQMS&Sampling'!C28:C31,0)))) -> Select Model used in FQMS
B6: Reporting Year: | C6: ='Contacts&Annual Summary'!C8 -> 2023
B7: Period (Summer or Winter): | C7: Summer only
B9: Min. number of samples: | C9: 0
B11: Macro / Non-Macro Regions (add extra rows as needed) | C11: Fuel Sales (tonnes) | D11: Variability factor (3) | E11: Proportion of total samples | F11: Min. number of Samples per grade (4) | G11: Actual number of samples taken
G12: Grade: | H12: Grade 1 | I12: Grade 2 | J12: Grade 3 | K12: Grade 4 | L12: Grade 5 | M12: Grade 6 | N12: Grade 7
G13: Name/ID: | H13: kl
A14: 1 | B14: 0 | C14: 0 | D14: 0 | E14: =IF(C14=0,"-",C14/$C$31) -> - | F14: =IF(C14=0,"-",IF(INT($C$9*E14)<1,1,INT($C$9*E14))) -> -
A15: 2 | B15: 0 | C15: 0 | D15: 0 | E15: =IF(C15=0,"-",C15/$C$31) -> - | F15: -
A16: 3 | B16: 0 | C16: 0 | D16: 0 | E16: - | F16: -
A17: 4 | B17: 0 | C17: 0 | D17: 0 | E17: - | F17: -
A18: 5 | B18: 0 | C18: 0 | D18: 0 | E18: - | F18: -
A19: 6 | B19: 0 | C19: 0 | D19: 0 | E19: - | F19: -
A20: 7 | B20: 0 | C20: 0 | D20: 0 | E20: - | F20: -
A21: 8 | B21: 0 | C21: 0 | D21: 0 | E21: - | F21: -
A22: 9 | B22: 0 | C22: 0 | D22: 0 | E22: - | F22: -
A23: 10 | B23: 0 | C23: 0 | D23: 0 | E23: - | F23: -
A24: 11 | B24: 0 | C24: 0 | D24: 0 | E24: - | F24: -
A25: 12 | B25: 0 | C25: 0 | D25: 0 | E25: - | F25: -
A26: 13 | B26: 0 | C26: 0 | D26: 0 | E26: - | F26: -
A27: 14 | B27: 0 | C27: 0 | D27: 0 | E27: - | F27: -
A28: 15 | B28: 0 | C28: 0 | D28: 0 | E28: - | F28: -
A29: 16 | B29: 0 | C29: 0 | D29: 0 | E29: =IF(C29=0,"-",C29/$C$31) -> - | F29: =IF(C29=0,"-",IF(INT($C$9*E29)<1,1,INT($C$9*E29))) -> -
B30: Remainder | C30: -- | D30: -- | E30: -- | F30: =IF($C$9-SUM(F14:F29)<0,0,$C$9-SUM(F14:F29)) -> 0 | H30: =IF(H13="","",IF(H$9-SUM(H14:H29)<0,0,H$9-SUM(H14:H29))) -> 0
B31: Total | C31: =SUM(C14:C29) -> 0 | E31: =SUM(E14:E29) -> 0 | F31: =SUM(F14:F29) -> 0 | G31: =SUM(H31:N31) -> 0 | H31: =SUM(H14:H29) -> 0 | I31: =SUM(I14:I29) -> 0 | J31: 0 | K31: 0 | L31: 0 | M31: 0 | N31: 0
B33: (1) As defined in Annexes B and C of EN 14274:2003
B34: (2) Definitions according to those provided in EN 14274:2003.
B35: (3) Only for statistical Model A
B36: (4) For grades comprising <10% total sales, the minimum is calculated as: %sales x min. for parent grade (at least 1 sample)
B38: Additional Notes (e.g. identification of grades comprising <10% total sales)

Sheet Regional Petrol Sampling (W)
B1: Fuel Quality Monitoring System Regional Sampling of Petrol and Diesel (1) | O1: <-- GO BACK
B3: Country: | C3: ='Contacts&Annual Summary'!C9 -> 0
B4: Fuel type (petrol only): | C4: Petrol
B5: Statistical Model (A, B or C) (2) | C5: =IF(COUNTIF('FQMS&Sampling'!C28:C31,"Yes")>1,"Unknown",IF(COUNTIF('FQMS&Sampling'!C28:C31,"Yes")=0,"Select Model used in FQMS",INDEX('FQMS&Sampling'!B28:B31,MATCH("Yes",'FQMS&Sampling'!C28:C31,0)))) -> Select Model used in FQMS
B6: Reporting Year: | C6: ='Contacts&Annual Summary'!C8 -> 2023
B7: Period (Summer or Winter): | C7: Winter only
B9: Min. number of samples: | C9: ='Regional Petrol Sampling (S)'!C9 -> 0
B11: Macro / Non-Macro Regions (add extra rows as needed) | C11: Fuel Sales (tonnes) | D11: Variability factor (3) | E11: Proportion of total samples | F11: Min. number of Samples per grade (4) | G11: Actual number of samples taken
G12: Grade: | H12: Grade 1 | I12: Grade 2 | J12: Grade 3 | K12: Grade 4 | L12: Grade 5 | M12: Grade 6 | N12: Grade 7
G13: Name/ID: | H13: =IF('Regional Petrol Sampling (S)'!H13="","",'Regional Petrol Sampling (S)'!H13) -> kl | I13: =IF('Regional Petrol Sampling (S)'!I13="","",'Regional Petrol Sampling (S)'!I13) ->  | J13: =IF('Regional Petrol Sampling (S)'!J13="","",'Regional Petrol Sampling (S)'!J13) ->  | K13: =IF('Regional Petrol Sampling (S)'!K13="","",'Regional Petrol Sampling (S)'!K13) ->  | L13: =IF('Regional Petrol Sampling (S)'!L13="","",'Regional Petrol Sampling (S)'!L13) ->  | M13: =IF('Regional Petrol Sampling (S)'!M13="","",'Regional Petrol Sampling (S)'!M13) ->  | N13: =IF('Regional Petrol Sampling (S)'!N13="","",'Regional Petrol Sampling (S)'!N13) -> 
A14: 1 | B14: 0 | C14: 0 | D14: 0 | E14: =IF(C14=0,"-",C14/$C$31) -> - | F14: =IF(C14=0,"-",IF(INT($C$9*E14)<1,1,INT($C$9*E14))) -> -
A15: 2 | B15: 0 | C15: 0 | D15: 0 | E15: =IF(C15=0,"-",C15/$C$31) -> - | F15: -
A16: 3 | B16: 0 | C16: 0 | D16: 0 | E16: - | F16: -
A17: 4 | B17: 0 | C17: 0 | D17: 0 | E17: - | F17: -
A18: 5 | B18: 0 | C18: 0 | D18: 0 | E18: - | F18: -
A19: 6 | B19: 0 | C19: 0 | D19: 0 | E19: - | F19: -
A20: 7 | B20: 0 | C20: 0 | D20: 0 | E20: - | F20: -
A21: 8 | B21: 0 | C21: 0 | D21: 0 | E21: - | F21: -
A22: 9 | B22: 0 | C22: 0 | D22: 0 | E22: - | F22: -
A23: 10 | B23: 0 | C23: 0 | D23: 0 | E23: - | F23: -
A24: 11 | B24: 0 | C24: 0 | D24: 0 | E24: - | F24: -
A25: 12 | B25: 0 | C25: 0 | D25: 0 | E25: - | F25: -
A26: 13 | B26: 0 | C26: 0 | D26: 0 | E26: - | F26: -
A27: 14 | B27: 0 | C27: 0 | D27: 0 | E27: - | F27: -
A28: 15 | B28: 0 | C28: 0 | D28: 0 | E28: - | F28: -
A29: 16 | B29: 0 | C29: 0 | D29: 0 | E29: =IF(C29=0,"-",C29/$C$31) -> - | F29: =IF(C29=0,"-",IF(INT($C$9*E29)<1,1,INT($C$9*E29))) -> -
B30: Remainder | C30: -- | D30: -- | E30: -- | F30: =IF($C$9-SUM(F14:F29)<0,0,$C$9-SUM(F14:F29)) -> 0 | H30: =IF(H13="","",IF(H$9-SUM(H14:H29)<0,0,H$9-SUM(H14:H29))) -> 0
B31: Total | C31: =SUM(C14:C29) -> 0 | E31: =SUM(E14:E29) -> 0 | F31: =SUM(F14:F29) -> 0 | G31: =SUM(H31:N31) -> 0 | H31: =SUM(H14:H29) -> 0 | I31: 0 | J31: 0 | K31: 0 | L31: 0 | M31: 0 | N31: 0
B33: (1) As defined in Annexes B and C of EN 14274:2003
B34: (2) Definitions according to those provided in EN 14274:2003.
B35: (3) Only for statistical Model A
B36: (4) For grades comprising <10% total sales, the minimum is calculated as: %sales x min. for parent grade (at least 1 sample)
B38: Additional Notes (e.g. identification of grades comprising <10% total sales)

Sheet Regional Diesel Sampling (S)
B1: Fuel Quality Monitoring System Regional Sampling of Petrol and Diesel (1) | O1: <-- GO BACK
B3: Country: | C3: ='Contacts&Annual Summary'!C9 -> 0
B4: Fuel type (diesel only): | C4: Diesel
B5: Statistical Model (A, B or C) (2) | C5: =IF(COUNTIF('FQMS&Sampling'!C28:C31,"Yes")>1,"Unknown",IF(COUNTIF('FQMS&Sampling'!C28:C31,"Yes")=0,"Select Model used in FQMS",INDEX('FQMS&Sampling'!B28:B31,MATCH("Yes",'FQMS&Sampling'!C28:C31,0)))) -> Select Model used in FQMS
B6: Reporting Year: | C6: ='Contacts&Annual Summary'!C8 -> 2023
B7: Period (Summer or Winter): | C7: Summer only
B9: Min. number of samples: | C9: 0
B11: Macro / Non-Macro Regions (add extra rows as needed) | C11: Fuel Sales (tonnes) | D11: Variability factor (3) | E11: Proportion of total samples | F11: Min. number of Samples per grade (4) | G11: Actual number of samples taken
G12: Grade: | H12: Grade 1 | I12: Grade 2 | J12: Grade 3 | K12: Grade 4 | L12: Grade 5 | M12: Grade 6 | N12: Grade 7
G13: Name/ID:
A14: 1 | B14: 0 | C14: 0 | D14: 0 | E14: =IF(C14=0,"-",C14/$C$31) -> - | F14: =IF(C14=0,"-",IF(INT($C$9*E14)<1,1,INT($C$9*E14))) -> -
A15: 2 | B15: 0 | C15: 0 | D15: 0 | E15: =IF(C15=0,"-",C15/$C$31) -> - | F15: -
A16: 3 | B16: 0 | C16: 0 | D16: 0 | E16: - | F16: -
A17: 4 | B17: 0 | C17: 0 | D17: 0 | E17: - | F17: -
A18: 5 | B18: 0 | C18: 0 | D18: 0 | E18: - | F18: -
A19: 6 | B19: 0 | C19: 0 | D19: 0 | E19: - | F19: -
A20: 7 | B20: 0 | C20: 0 | D20: 0 | E20: - | F20: -
A21: 8 | B21: 0 | C21: 0 | D21: 0 | E21: - | F21: -
A22: 9 | B22: 0 | C22: 0 | D22: 0 | E22: - | F22: -
A23: 10 | B23: 0 | C23: 0 | D23: 0 | E23: - | F23: -
A24: 11 | B24: 0 | C24: 0 | D24: 0 | E24: - | F24: -
A25: 12 | B25: 0 | C25: 0 | D25: 0 | E25: - | F25: -
A26: 13 | B26: 0 | C26: 0 | D26: 0 | E26: - | F26: -
A27: 14 | B27: 0 | C27: 0 | D27: 0 | E27: - | F27: -
A28: 15 | B28: 0 | C28: 0 | D28: 0 | E28: - | F28: -
A29: 16 | B29: 0 | C29: 0 | D29: 0 | E29: =IF(C29=0,"-",C29/$C$31) -> - | F29: =IF(C29=0,"-",IF(INT($C$9*E29)<1,1,INT($C$9*E29))) -> -
B30: Remainder | C30: -- | D30: -- | E30: -- | F30: =IF($C$9-SUM(F14:F29)<0,0,$C$9-SUM(F14:F29)) -> 0 | H30: =IF(H13="","",IF(H$9-SUM(H14:H29)<0,0,H$9-SUM(H14:H29))) -> 
B31: Total | C31: =SUM(C14:C29) -> 0 | E31: =SUM(E14:E29) -> 0 | F31: =SUM(F14:F29) -> 0 | G31: =SUM(H31:N31) -> 0 | H31: =SUM(H14:H29) -> 0 | I31: 0 | J31: 0 | K31: 0 | L31: 0 | M31: 0 | N31: 0
B33: (1) As defined in Annexes B and C of EN 14274:2003
B34: (2) Definitions according to those provided in EN 14274:2003.
B35: (3) Only for statistical Model A
B36: (4) For grades comprising <10% total sales, the minimum is calculated as: %sales x min. for parent grade (at least 1 sample)
B38: Additional Notes (e.g. identification of grades comprising <10% total sales)

Sheet Regional Diesel Sampling (W)
B1: Fuel Quality Monitoring System Regional Sampling of Petrol and Diesel (1) | O1: <-- GO BACK
B3: Country: | C3: ='Contacts&Annual Summary'!C9 -> 0
B4: Fuel type (diesel only): | C4: Diesel
B5: Statistical Model (A, B or C) (2) | C5: =IF(COUNTIF('FQMS&Sampling'!C28:C31,"Yes")>1,"Unknown",IF(COUNTIF('FQMS&Sampling'!C28:C31,"Yes")=0,"Select Model used in FQMS",INDEX('FQMS&Sampling'!B28:B31,MATCH("Yes",'FQMS&Sampling'!C28:C31,0)))) -> Select Model used in FQMS
B6: Reporting Year: | C6: ='Contacts&Annual Summary'!C8 -> 2023
B7: Period (Summer or Winter): | C7: Winter only
B9: Min. number of samples: | C9: ='Regional Diesel Sampling (S)'!C9 -> 0
B11: Macro / Non-Macro Regions (add extra rows as needed) | C11: Fuel Sales (tonnes) | D11: Variability factor (3) | E11: Proportion of total samples | F11: Min. number of Samples per grade (4) | G11: Actual number of samples taken
G12: Grade: | H12: Grade 1 | I12: Grade 2 | J12: Grade 3 | K12: Grade 4 | L12: Grade 5 | M12: Grade 6 | N12: Grade 7
G13: Name/ID: | H13: =IF('Regional Diesel Sampling (S)'!H13="","",'Regional Diesel Sampling (S)'!H13) ->  | I13: =IF('Regional Diesel Sampling (S)'!I13="","",'Regional Diesel Sampling (S)'!I13) ->  | J13: =IF('Regional Diesel Sampling (S)'!J13="","",'Regional Diesel Sampling (S)'!J13) ->  | K13: =IF('Regional Diesel Sampling (S)'!K13="","",'Regional Diesel Sampling (S)'!K13) ->  | L13: =IF('Regional Diesel Sampling (S)'!L13="","",'Regional Diesel Sampling (S)'!L13) ->  | M13: =IF('Regional Diesel Sampling (S)'!M13="","",'Regional Diesel Sampling (S)'!M13) ->  | N13: =IF('Regional Diesel Sampling (S)'!N13="","",'Regional Diesel Sampling (S)'!N13) -> 
A14: 1 | B14: 0 | C14: 0 | D14: 0 | E14: =IF(C14=0,"-",C14/$C$31) -> - | F14: =IF(C14=0,"-",IF(INT($C$9*E14)<1,1,INT($C$9*E14))) -> -
A15: 2 | B15: 0 | C15: 0 | D15: 0 | E15: =IF(C15=0,"-",C15/$C$31) -> - | F15: -
A16: 3 | B16: 0 | C16: 0 | D16: 0 | E16: - | F16: -
A17: 4 | B17: 0 | C17: 0 | D17: 0 | E17: - | F17: -
A18: 5 | B18: 0 | C18: 0 | D18: 0 | E18: - | F18: -
A19: 6 | B19: 0 | C19: 0 | D19: 0 | E19: - | F19: -
A20: 7 | B20: 0 | C20: 0 | D20: 0 | E20: - | F20: -
A21: 8 | B21: 0 | C21: 0 | D21: 0 | E21: - | F21: -
A22: 9 | B22: 0 | C22: 0 | D22: 0 | E22: - | F22: -
A23: 10 | B23: 0 | C23: 0 | D23: 0 | E23: - | F23: -
A24: 11 | B24: 0 | C24: 0 | D24: 0 | E24: - | F24: -
A25: 12 | B25: 0 | C25: 0 | D25: 0 | E25: - | F25: -
A26: 13 | B26: 0 | C26: 0 | D26: 0 | E26: - | F26: -
A27: 14 | B27: 0 | C27: 0 | D27: 0 | E27: - | F27: -
A28: 15 | B28: 0 | C28: 0 | D28: 0 | E28: - | F28: -
A29: 16 | B29: 0 | C29: 0 | D29: 0 | E29: =IF(C29=0,"-",C29/$C$31) -> - | F29: =IF(C29=0,"-",IF(INT($C$9*E29)<1,1,INT($C$9*E29))) -> -
B30: Remainder | C30: -- | D30: -- | E30: -- | F30: =IF($C$9-SUM(F14:F29)<0,0,$C$9-SUM(F14:F29)) -> 0 | H30: =IF(H13="","",IF(H$9-SUM(H14:H29)<0,0,H$9-SUM(H14:H29))) -> 
B31: Total | C31: =SUM(C14:C29) -> 0 | E31: =SUM(E14:E29) -> 0 | F31: =SUM(F14:F29) -> 0 | G31: =SUM(H31:N31) -> 0 | H31: =SUM(H14:H29) -> 0 | I31: 0 | J31: 0 | K31: 0 | L31: 0 | M31: 0 | N31: 0
B33: (1) As defined in Annexes B and C of EN 14274:2003
B34: (2) Definitions according to those provided in EN 14274:2003.
B35: (3) Only for statistical Model A
B36: (4) For grades comprising <10% total sales, the minimum is calculated as: %sales x min. for parent grade (at least 1 sample)
B38: Additional Notes (e.g. identification of grades comprising <10% total sales)

Sheet Petrol (1)
A1: Market Fuels used in Vehicles with Spark Ignition Engines (Petrol) | R1: <-- GO BACK
A3: Country | B3: =IF(LEN('Contacts&Annual Summary'!C9) > 1,'Contacts&Annual Summary'!C9,"") ->  | G3: Notes on completing the tables The table structure has been locked to prevent modification - data can be copied and pasted, in bulk into the Reporting Results blue table cells. Where a white row exists between rows, it will not be possible to paste over white rows and sections should be pasted separately. Column H in the Test Methods and Analysis table is set to automatically check whether the values entered in the Reporting Results table exceed maximum or minimum Tolerance Limits. If any exceedance is detected, please provide details in the columns to the right including the number of samples, location samples were taken from, Values and Details of any action taken to address non-compliant samples. Compliance information is verified manually and this automated compliance check is not solely relied upon during data analysis. Please do not unlock this template - modified templates cannot be processed and may delay reporting.
A4: Reporting Year | B4: ='Contacts&Annual Summary'!C8 -> 2023
A5: Period (Summer or Winter) | B5: Summer
A6: Parent fuel grade | B6: Petrol
A7: National fuel grade
A8: Summer Period (N or A)* | B8: 0 | C8: =IF( B8="A","1st June to 31st August (arctic)","1st May to 30th September (normal)") -> 1st May to 30th September (normal)
A9: The maximum bioethanol content (% v/v) | B9: 0 | C9: Please include the bioethanol content as a numerical figure in % V/V
A10: * N = 1st May to 30th September (normal) ; A = 1st June to 31st August (arctic).
A12: Reporting results
A14: Parameter | B14: Unit | C14: Analytical and statistical results (Please see an explanation and examples for new columns/ information required in Cells I15 to K37 on the Introduction & Instructions tab). | L14: Limiting Value (1) | P14: Test method
L15: National Specification, if any | N15: According to Directive 2009/30/EC | P15: (more recent versions may also be used)
C16: No Samples | D16: Minimum | E16: Maximum | F16: Median | G16: Mean | H16: Standard Deviation | I16: No Samples outside 95% tolerance limit | J16: 25% of Sample Value | K16: 75% of Sample Value | L16: Minimum | M16: Maximum | N16: Minimum | O16: Maximum | P16: Method | Q16: Date
A17: Research Octane Number | B17: -- | C17: 0 | D17: 0 | E17: 0 | F17: 0 | G17: 0 | H17: 0 | I17: 0 | J17: 0 | K17: 0 | N17: 95 (2) | P17: EN-ISO 5164 | Q17: 2005
A18: Motor Octane Number | B18: -- | C18: 0 | D18: 0 | E18: 0 | F18: 0 | G18: 0 | H18: 0 | I18: 0 | J18: 0 | K18: 0 | N18: 85 (3) | P18: EN-ISO 5163 | Q18: 2005
A19: Vapour Pressure, DVPE (6) | B19: kPa | O19: (4)
A20: -- required for summer period only | C20: 0 | D20: 0 | E20: 0 | F20: 0 | G20: 0 | H20: 0 | I20: 0 | J20: 0 | K20: 0 | O20: =IF(E8="A",70,60) -> 60 | P20: EN 13106-1 | Q20: 2007
A21: Distillation | P21: EN-ISO 3405
A22: -- evaporated at 100 oC | B22: % V/V | C22: 0 | D22: 0 | E22: 0 | F22: 0 | G22: 0 | H22: 0 | I22: 0 | J22: 0 | K22: 0 | N22: 46 | Q22: 2000
A23: -- evaporated at 150 oC | B23: % V/V | C23: 0 | D23: 0 | E23: 0 | F23: 0 | G23: 0 | H23: 0 | I23: 0 | J23: 0 | K23: 0 | N23: 75
A24: Hydrocarbon analysis
A25: -- Olefins | B25: % V/V | C25: 0 | D25: 0 | E25: 0 | F25: 0 | G25: 0 | H25: 0 | I25: 0 | J25: 0 | K25: 0 | O25: 18.0 (5) | P25: ASTM D 1319 EN 15553 EN-ISO 22854 | Q25: 1995 2007 2008
A26: -- Aromatics | B26: % V/V | C26: 0 | D26: 0 | E26: 0 | F26: 0 | G26: 0 | H26: 0 | I26: 0 | J26: 0 | K26: 0 | O26: 35 | P26: EN-ISO 22854 | Q26: 1995 2008
A27: -- Benzene | B27: % V/V | C27: 0 | D27: 0 | E27: 0 | F27: 0 | G27: 0 | H27: 0 | I27: 0 | J27: 0 | K27: 0 | O27: 1 | P27: EN 238 EN 12177 EN-ISO 22854 | Q27: 1996 1998 2008
A28: =IF(C29>0,"Do not complete","Oxygen content") -> Oxygen content | B28: % (m/m) | C28: 0 | D28: 0 | E28: 0 | F28: 0 | G28: 0 | H28: 0 | I28: 0 | J28: 0 | K28: 0 | O28: 3.7 | P28: EN 1601 EN 13132 EN-ISO 22854 | Q28: 1997 2000 2008
A29: =IF(C28>0,"Do not complete","Oxygen content* *petrol with 5% (v/v) or less ethanol content") -> Oxygen content* *petrol with 5% (v/v) or less ethanol content | B29: % (m/m) | C29: 0 | D29: 0 | E29: 0 | F29: 0 | G29: 0 | H29: 0 | I29: 0 | J29: 0 | K29: 0 | O29: 2.7
A30: Oxygenates
A31: -- Methanol | B31: % V/V | C31: 0 | D31: 0 | E31: 0 | F31: 0 | G31: 0 | H31: 0 | I31: 0 | J31: 0 | K31: 0 | O31: 3
A32: -- Ethanol | B32: % V/V | C32: 0 | D32: 0 | E32: 0 | F32: 0 | G32: 0 | H32: 0 | I32: 0 | J32: 0 | K32: 0 | O32: 10
A33: -- Iso-propyl alcohol | B33: % V/V | C33: 0 | D33: 0 | E33: 0 | F33: 0 | G33: 0 | H33: 0 | I33: 0 | J33: 0 | K33: 0 | O33: 12 | P33: EN 1601 | Q33: 1997
A34: -- Tert-butyl alcohol | B34: % V/V | C34: 0 | D34: 0 | E34: 0 | F34: 0 | G34: 0 | H34: 0 | I34: 0 | J34: 0 | K34: 0 | O34: 15 | P34: EN 13132 | Q34: 2000
A35: -- Iso-butyl alcohol | B35: % V/V | C35: 0 | D35: 0 | E35: 0 | F35: 0 | G35: 0 | H35: 0 | I35: 0 | J35: 0 | K35: 0 | O35: 15 | P35: EN-ISO 22854 | Q35: 2008
A36: -- Ethers with ≥5 carbon atoms / molecule | B36: % V/V | C36: 0 | D36: 0 | E36: 0 | F36: 0 | G36: 0 | H36: 0 | I36: 0 | J36: 0 | K36: 0 | O36: 22
A37: -- other oxygenates | B37: % V/V | C37: 0 | D37: 0 | E37: 0 | F37: 0 | G37: 0 | H37: 0 | I37: 0 | J37: 0 | K37: 0 | O37: 15
A38: Sulphur content | B38: mg/kg | C38: 0 | D38: 0 | E38: 0 | F38: 0 | G38: 0 | H38: 0 | I38: 0 | J38: 0 | K38: 0 | O38: 10 | P38: EN-ISO 14596 EN 24260 EN-ISO 20846 EN-ISO 20884 | Q38: 1998 1994 2004 2004
A39: Lead content | B39: g/l | C39: 0 | D39: 0 | E39: 0 | F39: 0 | G39: 0 | H39: 0 | I39: 0 | J39: 0 | K39: 0 | O39: 0.005 | P39: EN 237 | Q39: 1996
A42: Sampling frequency
A44: Number of samples in month
A45: January | B45: 0 | C45: July | D45: 0 | E45: (1) The limiting values are "true values" and were established according to the procedures for limit setting in EN 228:2008 The results of individual measurements shall be interpreted following the criteria described in EN 228:2008.
A46: February | B46: 0 | C46: August | D46: 0
A47: March | B47: 0 | C47: September | D47: 0 | E47: (2) 91 for unleaded regular grade petrol: See 2009/30/EC Annex I, Footnote 3.
A48: April | B48: 0 | C48: October | D48: 0 | E48: (3) 81 for unleaded regular grade petrol: See 2009/30/EC Annex I, Footnote 3.
A49: May | B49: 0 | C49: November | D49: 0 | E49: (4) 70 kPa for Member States with arctic or severe weather conditions: See 2003/30/EC Annex I, Footnotes 4 & 5.
A50: June | B50: 0 | C50: December | D50: 0 | E50: (5) 21 for unleaded regular grade petrol: See 98/70/EC, Annex I, Footnote 6.
C51: Summer Months Total | D51: =SUM(B45:B50,D45:D50) -> 0 | E51: (6) Vapour pressure waiver applies for petrol containing Bioethanol, see 2009/30/EC Annex I, Footnote 5 and Annex III.
A53: Other notes (optional):
A57: Test Methods and Analysis
A59: Parameter | B59: Unit | C59: Test specified in 2009/30/EC or EN228:2008 | J59: Notes on exceedences
C60: Method | D60: Date | E60: Reproducability, R | F60: Tolerance limits | J60: Sample location (S,T or R) | K60: Values | L60: Details/action taken
F61: Minimum | G61: Maximum | H61: Exceeded?
A62: ='Methods&Limits'!A9 -> Research Octane Number (RON) | B62: ='Methods&Limits'!B9 -> -- | C62: ='Methods&Limits'!E9 -> EN-ISO 5164 | D62: ='Methods&Limits'!F9 -> 2014 | E62: ='Methods&Limits'!G9 -> 0.7 | F62: ='Methods&Limits'!H9 -> 94.587 | H62: =IF(D17="","",IF(D17<F62,"Yes","")) -> Yes
A63: ='Methods&Limits'!A10 -> (RON 91 fuel only) | B63: ='Methods&Limits'!B10 -> -- | C63: ='Methods&Limits'!E10 -> EN-ISO 5164 | D63: ='Methods&Limits'!F10 -> 2014 | E63: ='Methods&Limits'!G10 -> 0.7 | F63: ='Methods&Limits'!H10 -> 90.587 | H63: =IF(D17="","",IF(D17<F63,"Yes","")) -> Yes
A64: ='Methods&Limits'!A11 -> Motor Octane Number (MON) | B64: ='Methods&Limits'!B11 -> -- | C64: ='Methods&Limits'!E11 -> EN-ISO 5163 | D64: ='Methods&Limits'!F11 -> 2014 | E64: ='Methods&Limits'!G11 -> 0.9 | F64: ='Methods&Limits'!H11 -> 84.469 | H64: =IF(D18="","",IF(D18<F64,"Yes","")) -> Yes
A65: ='Methods&Limits'!A12 -> (RON 91 fuel only) | B65: ='Methods&Limits'!B12 -> -- | C65: ='Methods&Limits'!E12 -> EN-ISO 5163 | D65: ='Methods&Limits'!F12 -> 2014 | E65: ='Methods&Limits'!G12 -> 0.9 | F65: ='Methods&Limits'!H12 -> 80.469 | H65: =IF(D18="","",IF(D18<F65,"Yes","")) -> Yes
A66: ='Methods&Limits'!A13 -> Vapour Pressure, DVPE
A67: ='Methods&Limits'!A14 -> --summer period (normal) | B67: ='Methods&Limits'!B14 -> kPa | C67: ='Methods&Limits'!E14 -> EN 13016-1 | D67: ='Methods&Limits'!F14 -> 2018 | E67: ='Methods&Limits'!G14 -> 2.2 | G67: ='Methods&Limits'!I14 -> 61.298 | H67: =IF(E20>G67,"Yes","") -> 
A68: ='Methods&Limits'!A15 -> -- Petrol with bioethanol content 0-2 | B68: ='Methods&Limits'!B15 -> kPa | C68: ='Methods&Limits'!E15 -> EN 1601 | D68: ='Methods&Limits'!F15 -> 2017 | E68: ='Methods&Limits'!G15 -> 2.3 | G68: ='Methods&Limits'!I15 -> 67.307 | H68: =IF(E20>G68,"Yes","") -> 
A69: ='Methods&Limits'!A16 -> -- Petrol with bioethanol content 2-4 | B69: ='Methods&Limits'!B16 -> kPa | C69: ='Methods&Limits'!E16 -> EN 1601 | D69: ='Methods&Limits'!F16 -> 2017 | E69: ='Methods&Limits'!G16 -> 2.3 | G69: ='Methods&Limits'!I16 -> 69.157 | H69: =IF(E20>G69,"Yes","") -> 
A70: ='Methods&Limits'!A17 -> -- Petrol with bioethanol content 4-6 | B70: ='Methods&Limits'!B17 -> kPa | C70: ='Methods&Limits'!E17 -> EN 1601 | D70: ='Methods&Limits'!F17 -> 2017 | E70: ='Methods&Limits'!G17 -> 2.3 | G70: ='Methods&Limits'!I17 -> 69.357 | H70: =IF(E20>G70,"Yes","") -> 
A71: ='Methods&Limits'!A18 -> -- Petrol with bioethanol content 6-8 | B71: ='Methods&Limits'!B18 -> kPa | C71: ='Methods&Limits'!E18 -> EN 1601 | D71: ='Methods&Limits'!F18 -> 2017 | E71: ='Methods&Limits'!G18 -> 2.3 | G71: ='Methods&Limits'!I18 -> 69.237 | H71: =IF(E20>G71,"Yes","") -> 
A72: ='Methods&Limits'!A19 -> -- Petrol with bioethanol content 8-10 | B72: ='Methods&Limits'!B19 -> kPa | C72: ='Methods&Limits'!E19 -> EN 1601 | D72: ='Methods&Limits'!F19 -> 2017 | E72: ='Methods&Limits'!G19 -> 2.3 | G72: ='Methods&Limits'!I19 -> 69.117 | H72: =IF(E20>G72,"Yes","") -> 
A73: ='Methods&Limits'!A20 -> --summer period (arctic or severe weather conditions) | B73: ='Methods&Limits'!B20 -> kPa | C73: ='Methods&Limits'!E20 -> EN 13016-1 | D73: ='Methods&Limits'!F20 -> 2018 | E73: ='Methods&Limits'!G20 -> 2.3 | G73: ='Methods&Limits'!I20 -> 71.357 | H73: =IF(E20>G73,"Yes","") -> 
A74: ='Methods&Limits'!A21 -> Distillation *
A75: ='Methods&Limits'!A22 -> --evaporated at 100 oC | B75: ='Methods&Limits'!B22 -> % V/V | C75: ='Methods&Limits'!E22 -> EN-ISO 3405 | D75: ='Methods&Limits'!F22 -> 2020 | E75: ='Methods&Limits'!G22 -> 4 | F75: ='Methods&Limits'!H22 -> 43.64 | H75: =IF(D22="","",IF(D22<F75,"Yes","")) -> Yes
A76: ='Methods&Limits'!A23 -> -- evaporated at 150 oC | B76: ='Methods&Limits'!B23 -> % V/V | C76: ='Methods&Limits'!E23 -> EN-ISO 3405 | D76: ='Methods&Limits'!F23 -> 2020 | E76: ='Methods&Limits'!G23 -> 4 | F76: ='Methods&Limits'!H23 -> 72.64 | H76: =IF(D23="","",IF(D23<F76,"Yes","")) -> Yes
A77: ='Methods&Limits'!A24 -> Hydrocarbon analysis | H77: =IF(D24<F77,"Yes","") -> 
A78: ='Methods&Limits'!A25 -> -- Olefins | B78: ='Methods&Limits'!B25 -> % V/V | C78: ='Methods&Limits'!E25 -> EN 15553 | D78: ='Methods&Limits'!F25 -> 2021 | E78: ='Methods&Limits'!G25 -> 6.4 | G78: ='Methods&Limits'!I25 -> 21.776 | H78: =IF($E$25>G78,"Yes","") -> 
C79: ='Methods&Limits'!E26 -> EN-ISO 22854 | D79: ='Methods&Limits'!F26 -> 2021 | E79: ='Methods&Limits'!G26 -> 2.6 | G79: ='Methods&Limits'!I26 -> 19.534 | H79: =IF($E$25>G79,"Yes","") -> 
A80: ='Methods&Limits'!A27 -> *without oxygenates | C80: ='Methods&Limits'!E27 -> EN 15553 | D80: ='Methods&Limits'!F27 -> 2021 | E80: ='Methods&Limits'!G27 -> - | G80: ='Methods&Limits'!I27 -> - | H80: =IF($E$25>G80,"Yes","") -> 
C81: ='Methods&Limits'!E28 -> EN-ISO 22854 | D81: ='Methods&Limits'!F28 -> 2021 | E81: ='Methods&Limits'!G28 -> - | G81: ='Methods&Limits'!I28 -> - | H81: =IF($E$25>G81,"Yes","") -> 
A82: ='Methods&Limits'!A29 -> -- Olefins (RON 91 fuel only)*** | B82: ='Methods&Limits'!B29 -> % V/V | C82: ='Methods&Limits'!E29 -> ASTM D1319 | D82: ='Methods&Limits'!F29 -> 2020 | E82: ='Methods&Limits'!G29 -> 5.1 | G82: ='Methods&Limits'!I29 -> 24.009 | H82: =IF($E$25>G82,"Yes","") -> 
A83: ='Methods&Limits'!A30 -> -- Aromatics (from 2005) | C83: ='Methods&Limits'!E30 -> EN-ISO 22854 | D83: ='Methods&Limits'!F30 -> 2021 | E83: ='Methods&Limits'!G30 -> 1.7 | G83: ='Methods&Limits'!I30 -> 36.003 | H83: =IF($E$26>G83,"Yes","") -> 
A84: ='Methods&Limits'!A31 -> -- Benzene | B84: ='Methods&Limits'!B31 -> % V/V | C84: ='Methods&Limits'!E31 -> EN 12177 | D84: ='Methods&Limits'!F31 -> 2022 | E84: ='Methods&Limits'!G31 -> 0.1 | G84: ='Methods&Limits'!I31 -> 1.059 | H84: =IF(E27>G84,"Yes","") -> 
C85: ='Methods&Limits'!E32 -> EN 238 | D85: ='Methods&Limits'!F32 -> 1996 | E85: ='Methods&Limits'!G32 -> 0.17 | G85: ='Methods&Limits'!I32 -> 1.1003 | H85: =IF(E27>G85,"Yes","") -> 
C86: ='Methods&Limits'!E33 -> EN-ISO 22854 | D86: ='Methods&Limits'!F33 -> 2021 | E86: ='Methods&Limits'!G33 -> 0.05 | G86: ='Methods&Limits'!I33 -> 1.0295 | H86: =IF(E27>G86,"Yes","") -> 
A87: ='Methods&Limits'!A34 -> Oxygen content | B87: ='Methods&Limits'!B34 -> % (m/m) | C87: ='Methods&Limits'!E34 -> EN 1601 | D87: ='Methods&Limits'!F34 -> 2017 | E87: ='Methods&Limits'!G34 -> 0.41 | G87: ='Methods&Limits'!I34 -> 3.9419 | H87: =IF(E28>G87,"Yes","") -> 
C88: ='Methods&Limits'!E35 -> EN 1601 | D88: ='Methods&Limits'!F35 -> 2017 | E88: ='Methods&Limits'!G35 -> 0.41 | G88: ='Methods&Limits'!I35 -> 2.9419 | H88: =IF(E29>G88,"Yes","") -> 
A89: ='Methods&Limits'!A36 -> Oxygenates
A90: ='Methods&Limits'!A37 -> -- Methanol | B90: ='Methods&Limits'!B37 -> % V/V | C90: ='Methods&Limits'!E37 -> EN 1601 | D90: ='Methods&Limits'!F37 -> 2017 | E90: ='Methods&Limits'!G37 -> 0.3 | G90: ='Methods&Limits'!I37 -> 3.177 | H90: =IF(E31>G90,"Yes","") -> 
A91: ='Methods&Limits'!A38 -> -- Ethanol | B91: ='Methods&Limits'!B38 -> % V/V | C91: ='Methods&Limits'!E38 -> EN 1601 | D91: ='Methods&Limits'!F38 -> 2017 | E91: ='Methods&Limits'!G38 -> 0.8 | G91: ='Methods&Limits'!I38 -> 10.472
A92: ='Methods&Limits'!A39 -> -- Iso-propyl alcohol | B92: ='Methods&Limits'!B39 -> % V/V | C92: ='Methods&Limits'!E39 -> EN 1601 | D92: ='Methods&Limits'!F39 -> 2017 | E92: ='Methods&Limits'!G39 -> 0.9 | G92: ='Methods&Limits'!I39 -> 12.531
A93: ='Methods&Limits'!A40 -> -- Tert-butyl alcohol | B93: ='Methods&Limits'!B40 -> % V/V | C93: ='Methods&Limits'!E40 -> EN 1601 | D93: ='Methods&Limits'!F40 -> 2017 | E93: ='Methods&Limits'!G40 -> 1 | G93: ='Methods&Limits'!I40 -> 15.59
A94: ='Methods&Limits'!A41 -> -- Iso-butyl alcohol | B94: ='Methods&Limits'!B41 -> % V/V | C94: ='Methods&Limits'!E41 -> EN 1601 | D94: ='Methods&Limits'!F41 -> 2017 | E94: ='Methods&Limits'!G41 -> 1 | G94: ='Methods&Limits'!I41 -> 15.59
A95: ='Methods&Limits'!A42 -> -- Ethers with 5 or more carbon atoms per molecule | B95: ='Methods&Limits'!B42 -> % V/V | C95: ='Methods&Limits'!E42 -> EN 1601 | D95: ='Methods&Limits'!F42 -> 2017 | E95: ='Methods&Limits'!G42 -> 1 | G95: ='Methods&Limits'!I42 -> 22.59
A96: ='Methods&Limits'!A43 -> -- other oxygenates | B96: ='Methods&Limits'!B43 -> % V/V | C96: ='Methods&Limits'!E43 -> EN 1601 | D96: ='Methods&Limits'!F43 -> 2017 | E96: ='Methods&Limits'!G43 -> 1 | G96: ='Methods&Limits'!I43 -> 15.59
A97: ='Methods&Limits'!A44 -> Oxygen content | B97: ='Methods&Limits'!B44 -> % (m/m) | C97: ='Methods&Limits'!E44 -> EN 13132 | D97: ='Methods&Limits'!F44 -> 2002 | E97: ='Methods&Limits'!G44 -> 0.3 | G97: ='Methods&Limits'!I44 -> 3.877 | H97: =IF(E28>G97,"Yes","") -> 
C98: ='Methods&Limits'!E45 -> EN 13132 | D98: ='Methods&Limits'!F45 -> 2002 | E98: ='Methods&Limits'!G45 -> 0.3 | G98: ='Methods&Limits'!I45 -> 2.877 | H98: =IF(E29>G98,"Yes","") -> 
A99: ='Methods&Limits'!A46 -> Oxygenates
A100: ='Methods&Limits'!A47 -> -- Methanol | B100: ='Methods&Limits'!B47 -> % V/V | C100: ='Methods&Limits'!E47 -> EN 13132 | D100: ='Methods&Limits'!F47 -> 2002 | E100: ='Methods&Limits'!G47 -> 0.3 | G100: ='Methods&Limits'!I47 -> 3.177 | H100: =IF(E31>G100,"Yes","") -> 
A101: ='Methods&Limits'!A48 -> -- Ethanol | B101: ='Methods&Limits'!B48 -> % V/V | C101: ='Methods&Limits'!E48 -> EN 13132 | D101: ='Methods&Limits'!F48 -> 2002 | E101: ='Methods&Limits'!G48 -> 0.8 | G101: ='Methods&Limits'!I48 -> 10.472
A102: ='Methods&Limits'!A49 -> -- Iso-propyl alcohol | B102: ='Methods&Limits'!B49 -> % V/V | C102: ='Methods&Limits'!E49 -> EN 13132 | D102: ='Methods&Limits'!F49 -> 2002 | E102: ='Methods&Limits'!G49 -> 0.8 | G102: ='Methods&Limits'!I49 -> 12.472
A103: ='Methods&Limits'!A50 -> -- Tert-butyl alcohol | B103: ='Methods&Limits'!B50 -> % V/V | C103: ='Methods&Limits'!E50 -> EN 13132 | D103: ='Methods&Limits'!F50 -> 2002 | E103: ='Methods&Limits'!G50 -> 1 | G103: ='Methods&Limits'!I50 -> 15.59
A104: ='Methods&Limits'!A51 -> -- Iso-butyl alcohol | B104: ='Methods&Limits'!B51 -> % V/V | C104: ='Methods&Limits'!E51 -> EN 13132 | D104: ='Methods&Limits'!F51 -> 2002 | E104: ='Methods&Limits'!G51 -> 1 | G104: ='Methods&Limits'!I51 -> 15.59
A105: ='Methods&Limits'!A52 -> -- Ethers with 5 or more carbon atoms per molecule | B105: ='Methods&Limits'!B52 -> % V/V | C105: ='Methods&Limits'!E52 -> EN 13132 | D105: ='Methods&Limits'!F52 -> 2002 | E105: ='Methods&Limits'!G52 -> 1 | G105: ='Methods&Limits'!I52 -> 22.59
A106: ='Methods&Limits'!A53 -> -- other oxygenates | B106: ='Methods&Limits'!B53 -> % V/V | C106: ='Methods&Limits'!E53 -> EN 13132 | D106: ='Methods&Limits'!F53 -> 2002 | E106: ='Methods&Limits'!G53 -> 1 | G106: ='Methods&Limits'!I53 -> 15.59
A107: ='Methods&Limits'!A54 -> Oxygen content | B107: ='Methods&Limits'!B54 -> % (m/m) | C107: ='Methods&Limits'!E54 -> EN-ISO 22854 | D107: ='Methods&Limits'!F54 -> 2021 | E107: ='Methods&Limits'!G54 -> 0.4 | G107: ='Methods&Limits'!I54 -> 3.936 | H107: =IF(E28>G107,"Yes","") -> 
C108: ='Methods&Limits'!E55 -> EN-ISO 22854 | D108: ='Methods&Limits'!F55 -> 2021 | E108: ='Methods&Limits'!G55 -> 0.4 | G108: ='Methods&Limits'!I55 -> 2.936 | H108: =IF(E29>G108,"Yes","") -> 
A109: ='Methods&Limits'!A56 -> Oxyginates
A110: ='Methods&Limits'!A57 -> -- Methanol | B110: ='Methods&Limits'!B57 -> % V/V | C110: ='Methods&Limits'!E57 -> EN-ISO 22854 | D110: ='Methods&Limits'!F57 -> 2021 | E110: ='Methods&Limits'!G57 -> 0.4 | G110: ='Methods&Limits'!I57 -> 3.236 | H110: =IF(E31>G110,"Yes","") -> 
A111: ='Methods&Limits'!A58 -> -- Ethanol | B111: ='Methods&Limits'!B58 -> % V/V | C111: ='Methods&Limits'!E58 -> EN-ISO 22854 | D111: ='Methods&Limits'!F58 -> 2021 | E111: ='Methods&Limits'!G58 -> 0.6 | G111: ='Methods&Limits'!I58 -> 10.354
A112: ='Methods&Limits'!A59 -> -- Iso-propyl alcohol | B112: ='Methods&Limits'!B59 -> % V/V | C112: ='Methods&Limits'!E59 -> EN-ISO 22854 | D112: ='Methods&Limits'!F59 -> 2021 | E112: ='Methods&Limits'!G59 -> 0.7 | G112: ='Methods&Limits'!I59 -> 12.413
A113: ='Methods&Limits'!A60 -> -- Tert-butyl alcohol | B113: ='Methods&Limits'!B60 -> % V/V | C113: ='Methods&Limits'!E60 -> EN-ISO 22854 | D113: ='Methods&Limits'!F60 -> 2021 | E113: ='Methods&Limits'!G60 -> 0.7 | G113: ='Methods&Limits'!I60 -> 15.413
A114: ='Methods&Limits'!A61 -> -- Iso-butyl alcohol | B114: ='Methods&Limits'!B61 -> % V/V | C114: ='Methods&Limits'!E61 -> EN-ISO 22854 | D114: ='Methods&Limits'!F61 -> 2021 | E114: ='Methods&Limits'!G61 -> 0.7 | G114: ='Methods&Limits'!I61 -> 15.413
A115: ='Methods&Limits'!A62 -> -- Ethers with 5 or more carbon atoms per molecule | B115: ='Methods&Limits'!B62 -> % V/V | C115: ='Methods&Limits'!E62 -> EN-ISO 22854 | D115: ='Methods&Limits'!F62 -> 2021 | E115: ='Methods&Limits'!G62 -> 0.9 | G115: ='Methods&Limits'!I62 -> 22.531
A116: ='Methods&Limits'!A63 -> -- other oxygenates | B116: ='Methods&Limits'!B63 -> % V/V | C116: ='Methods&Limits'!E63 -> EN-ISO 22854 | D116: ='Methods&Limits'!F63 -> 2021 | E116: ='Methods&Limits'!G63 -> 0.7 | G116: ='Methods&Limits'!I63 -> 15.413
A117: ='Methods&Limits'!A64:A64 -> Sulphur content (sulphur free, from 2005)** | B117: ='Methods&Limits'!B64 -> mg/kg | C117: ='Methods&Limits'!E64 -> EN-ISO 14596 | D117: ='Methods&Limits'!F64 -> 2018 | E117: ='Methods&Limits'!G64 -> 5 | G117: ='Methods&Limits'!I64 -> 12.95 | H117: =IF(E$38>G117,"Yes","") -> 
C118: ='Methods&Limits'!E65 -> EN 24260 | D118: ='Methods&Limits'!F65 -> 1994 | E118: ='Methods&Limits'!G65 -> 1 | G118: ='Methods&Limits'!I65 -> 10.59 | H118: =IF(E$38>G118,"Yes","") -> 
C119: ='Methods&Limits'!E66 -> EN-ISO 20846 | D119: ='Methods&Limits'!F66 -> 2019 | E119: ='Methods&Limits'!G66 -> 2.7 | G119: ='Methods&Limits'!I66 -> 11.593 | H119: =IF(E$38>G119,"Yes","") -> 
C120: ='Methods&Limits'!E67 -> EN-ISO 20884 | D120: ='Methods&Limits'!F67 -> 2019 | E120: ='Methods&Limits'!G67 -> 3.1 | G120: ='Methods&Limits'!I67 -> 11.829 | H120: =IF(E$38>G120,"Yes","") -> 
A121: ='Methods&Limits'!A68:A68 -> Lead content | B121: ='Methods&Limits'!B68 -> g/l | C121: ='Methods&Limits'!E68 -> EN 237 | D121: ='Methods&Limits'!F68 -> 2004 | E121: ='Methods&Limits'!G68 -> 0.0062 | G121: ='Methods&Limits'!I68 -> 0.008658 | H121: =IF($E$39>G121,"Yes","") -> 

Sheet Petrol (2)
A1: Market Fuels used in Vehicles with Spark Ignition Engines (Petrol) | R1: <-- GO BACK
A3: Country | B3: =IF(LEN('Contacts&Annual Summary'!C9) > 1,'Contacts&Annual Summary'!C9,"") ->  | G3: Notes on completing the tables The table structure has been locked to prevent modification - data can be copied and pasted, in bulk into the Reporting Results blue table cells. Where a white row exists between rows, it will not be possible to paste over white rows and sections should be pasted separately. Column H in the Test Methods and Analysis table is set to automatically check whether the values entered in the Reporting Results table exceed maximum or minimum Tolerance Limits. If any exceedance is detected, please provide details in the columns to the right including the number of samples, location samples were taken from, Values and Details of any action taken to address non-compliant samples. Compliance information is verified manually and this automated compliance check is not solely relied upon during data analysis. Please do not unlock this template - modified templates cannot be processed and may delay reporting.
A4: Reporting Year | B4: ='Contacts&Annual Summary'!C8 -> 2023
A5: Period (Summer or Winter) | B5: Winter
A6: Parent fuel grade | B6: Petrol
A7: National fuel grade | B7: ='Petrol (1)'!B7 -> 0
A8: Summer Period (N or A)* | B8: 0 | C8: =IF( B8="A","1st June to 31st August (arctic)","1st May to 30th September (normal)") -> 1st May to 30th September (normal)
A9: The maximum bioethanol content (% v/v) | B9: 0 | C9: Please include the bioethanol content as a numerical figure in % V/V
A10: * N = 1st May to 30th September (normal) ; A = 1st June to 31st August (arctic).
A12: Reporting results
A14: Parameter | B14: Unit | C14: Analytical and statistical results (Please see an explanation and examples for new columns/ information required in Cells I15 to K37 on the Introduction & Instructions tab). | L14: Limiting Value (1) | P14: Test method
L15: National Specification, if any | N15: According to Directive 2009/30/EC | P15: (more recent versions may also be used)
C16: No Samples | D16: Minimum | E16: Maximum | F16: Median | G16: Mean | H16: Standard Deviation | I16: No Samples outside 95% tolerance limit | J16: 25% of Sample Value | K16: 75% of Sample Value | L16: Minimum | M16: Maximum | N16: Minimum | O16: Maximum | P16: Method | Q16: Date
A17: Research Octane Number | B17: -- | C17: 0 | D17: 0 | E17: 0 | F17: 0 | G17: 0 | H17: 0 | I17: 0 | J17: 0 | K17: 0 | N17: 95 (2) | P17: EN-ISO 5164 | Q17: 2005
A18: Motor Octane Number | B18: -- | C18: 0 | D18: 0 | E18: 0 | F18: 0 | G18: 0 | H18: 0 | I18: 0 | J18: 0 | K18: 0 | N18: 85 (3) | P18: EN-ISO 5163 | Q18: 2005
A19: Vapour Pressure, DVPE (6) | B19: kPa | O19: (4)
A20: -- required for summer period only | C20: 0 | D20: 0 | E20: 0 | F20: 0 | G20: 0 | H20: 0 | I20: 0 | J20: 0 | K20: 0 | O20: =IF(E8="A",70,60) -> 60 | P20: EN 13106-1 | Q20: 2007
A21: Distillation | P21: EN-ISO 3405
A22: -- evaporated at 100 oC | B22: % V/V | C22: 0 | D22: 0 | E22: 0 | F22: 0 | G22: 0 | H22: 0 | I22: 0 | J22: 0 | K22: 0 | N22: 46 | Q22: 2000
A23: -- evaporated at 150 oC | B23: % V/V | C23: 0 | D23: 0 | E23: 0 | F23: 0 | G23: 0 | H23: 0 | I23: 0 | J23: 0 | K23: 0 | N23: 75
A24: Hydrocarbon analysis
A25: -- Olefins | B25: % V/V | C25: 0 | D25: 0 | E25: 0 | F25: 0 | G25: 0 | H25: 0 | I25: 0 | J25: 0 | K25: 0 | O25: 18.0 (5) | P25: ASTM D 1319 EN 15553 EN-ISO 22854 | Q25: 1995 2007 2008
A26: -- Aromatics | B26: % V/V | C26: 0 | D26: 0 | E26: 0 | F26: 0 | G26: 0 | H26: 0 | I26: 0 | J26: 0 | K26: 0 | O26: 35 | P26: EN-ISO 22854 | Q26: 1995 2008
A27: -- Benzene | B27: % V/V | C27: 0 | D27: 0 | E27: 0 | F27: 0 | G27: 0 | H27: 0 | I27: 0 | J27: 0 | K27: 0 | O27: 1 | P27: EN 238 EN 12177 EN-ISO 22854 | Q27: 1996 1998 2008
A28: =IF(C29>0,"Do not complete","Oxygen content") -> Oxygen content | B28: % (m/m) | C28: 0 | D28: 0 | E28: 0 | F28: 0 | G28: 0 | H28: 0 | I28: 0 | J28: 0 | K28: 0 | O28: 3.7 | P28: EN 1601 EN 13132 EN-ISO 22854 | Q28: 1997 2000 2008
A29: =IF(C28>0,"Do not complete","Oxygen content* *petrol with 5% (v/v) or less ethanol content") -> Oxygen content* *petrol with 5% (v/v) or less ethanol content | B29: % (m/m) | C29: 0 | D29: 0 | E29: 0 | F29: 0 | G29: 0 | H29: 0 | I29: 0 | J29: 0 | K29: 0 | O29: 2.7
A30: Oxygenates
A31: -- Methanol | B31: % V/V | C31: 0 | D31: 0 | E31: 0 | F31: 0 | G31: 0 | H31: 0 | I31: 0 | J31: 0 | K31: 0 | O31: 3
A32: -- Ethanol | B32: % V/V | C32: 0 | D32: 0 | E32: 0 | F32: 0 | G32: 0 | H32: 0 | I32: 0 | J32: 0 | K32: 0 | O32: 10
A33: -- Iso-propyl alcohol | B33: % V/V | C33: 0 | D33: 0 | E33: 0 | F33: 0 | G33: 0 | H33: 0 | I33: 0 | J33: 0 | K33: 0 | O33: 12 | P33: EN 1601 | Q33: 1997
A34: -- Tert-butyl alcohol | B34: % V/V | C34: 0 | D34: 0 | E34: 0 | F34: 0 | G34: 0 | H34: 0 | I34: 0 | J34: 0 | K34: 0 | O34: 15 | P34: EN 13132 | Q34: 2000
A35: -- Iso-butyl alcohol | B35: % V/V | C35: 0 | D35: 0 | E35: 0 | F35: 0 | G35: 0 | H35: 0 | I35: 0 | J35: 0 | K35: 0 | O35: 15 | P35: EN-ISO 22854 | Q35: 2008
A36: -- Ethers with ≥5 carbon atoms / molecule | B36: % V/V | C36: 0 | D36: 0 | E36: 0 | F36: 0 | G36: 0 | H36: 0 | I36: 0 | J36: 0 | K36: 0 | O36: 22
A37: -- other oxygenates | B37: % V/V | C37: 0 | D37: 0 | E37: 0 | F37: 0 | G37: 0 | H37: 0 | I37: 0 | J37: 0 | K37: 0 | O37: 15
A38: Sulphur content | B38: mg/kg | C38: 0 | D38: 0 | E38: 0 | F38: 0 | G38: 0 | H38: 0 | I38: 0 | J38: 0 | K38: 0 | O38: 10 | P38: EN-ISO 14596 EN 24260 EN-ISO 20846 EN-ISO 20884 | Q38: 1998 1994 2004 2004
A39: Lead content | B39: g/l | C39: 0 | D39: 0 | E39: 0 | F39: 0 | G39: 0 | H39: 0 | I39: 0 | J39: 0 | K39: 0 | O39: 0.005 | P39: EN 237 | Q39: 1996
A42: Sampling frequency
A44: Number of samples in month
A45: January | B45: 0 | C45: July | D45: 0 | E45: (1) The limiting values are "true values" and were established according to the procedures for limit setting in EN 228:2008 The results of individual measurements shall be interpreted following the criteria described in EN 228:2008.
A46: February | B46: 0 | C46: August | D46: 0
A47: March | B47: 0 | C47: September | D47: 0 | E47: (2) 91 for unleaded regular grade petrol: See 2009/30/EC Annex I, Footnote 3.
A48: April | B48: 0 | C48: October | D48: 0 | E48: (3) 81 for unleaded regular grade petrol: See 2009/30/EC Annex I, Footnote 3.
A49: May | B49: 0 | C49: November | D49: 0 | E49: (4) 70 kPa for Member States with arctic or severe weather conditions: See 2003/30/EC Annex I, Footnotes 4 & 5.
A50: June | B50: 0 | C50: December | D50: 0 | E50: (5) 21 for unleaded regular grade petrol: See 98/70/EC, Annex I, Footnote 6.
C51: Winter Months Total | D51: =SUM(B45:B50,D45:D50) -> 0 | E51: (6) Vapour pressure waiver applies for petrol containing Bioethanol, see 2009/30/EC Annex I, Footnote 5 and Annex III.
A53: Other notes (optional):
A57: Test Methods and Analysis
A59: Parameter | B59: Unit | C59: Test specified in 2009/30/EC or EN228:2008 | J59: Notes on exceedences
C60: Method | D60: Date | E60: Reproducability, R | F60: Tolerance limits | J60: Sample location (S,T or R) | K60: Values | L60: Details/action taken
F61: Minimum | G61: Maximum | H61: Exceeded?
A62: ='Methods&Limits'!A9 -> Research Octane Number (RON) | B62: ='Methods&Limits'!B9 -> -- | C62: ='Methods&Limits'!E9 -> EN-ISO 5164 | D62: ='Methods&Limits'!F9 -> 2014 | E62: ='Methods&Limits'!G9 -> 0.7 | F62: ='Methods&Limits'!H9 -> 94.587 | H62: =IF(D17="","",IF(D17<F62,"Yes","")) -> Yes
A63: ='Methods&Limits'!A10 -> (RON 91 fuel only) | B63: ='Methods&Limits'!B10 -> -- | C63: ='Methods&Limits'!E10 -> EN-ISO 5164 | D63: ='Methods&Limits'!F10 -> 2014 | E63: ='Methods&Limits'!G10 -> 0.7 | F63: ='Methods&Limits'!H10 -> 90.587 | H63: =IF(D17="","",IF(D17<F63,"Yes","")) -> Yes
A64: ='Methods&Limits'!A11 -> Motor Octane Number (MON) | B64: ='Methods&Limits'!B11 -> -- | C64: ='Methods&Limits'!E11 -> EN-ISO 5163 | D64: ='Methods&Limits'!F11 -> 2014 | E64: ='Methods&Limits'!G11 -> 0.9 | F64: ='Methods&Limits'!H11 -> 84.469 | H64: =IF(D18="","",IF(D18<F64,"Yes","")) -> Yes
A65: ='Methods&Limits'!A12 -> (RON 91 fuel only) | B65: ='Methods&Limits'!B12 -> -- | C65: ='Methods&Limits'!E12 -> EN-ISO 5163 | D65: ='Methods&Limits'!F12 -> 2014 | E65: ='Methods&Limits'!G12 -> 0.9 | F65: ='Methods&Limits'!H12 -> 80.469 | H65: =IF(D18="","",IF(D18<F65,"Yes","")) -> Yes
A66: ='Methods&Limits'!A13 -> Vapour Pressure, DVPE
A67: ='Methods&Limits'!A14 -> --summer period (normal) | B67: ='Methods&Limits'!B14 -> kPa | C67: ='Methods&Limits'!E14 -> EN 13016-1 | D67: ='Methods&Limits'!F14 -> 2018 | E67: ='Methods&Limits'!G14 -> 2.2 | G67: ='Methods&Limits'!I14 -> 61.298
A68: ='Methods&Limits'!A15 -> -- Petrol with bioethanol content 0-2 | B68: ='Methods&Limits'!B15 -> kPa | C68: ='Methods&Limits'!E15 -> EN 1601 | D68: ='Methods&Limits'!F15 -> 2017 | E68: ='Methods&Limits'!G15 -> 2.3 | G68: ='Methods&Limits'!I15 -> 67.307
A69: ='Methods&Limits'!A16 -> -- Petrol with bioethanol content 2-4 | B69: ='Methods&Limits'!B16 -> kPa | C69: ='Methods&Limits'!E16 -> EN 1601 | D69: ='Methods&Limits'!F16 -> 2017 | E69: ='Methods&Limits'!G16 -> 2.3 | G69: ='Methods&Limits'!I16 -> 69.157
A70: ='Methods&Limits'!A17 -> -- Petrol with bioethanol content 4-6 | B70: ='Methods&Limits'!B17 -> kPa | C70: ='Methods&Limits'!E17 -> EN 1601 | D70: ='Methods&Limits'!F17 -> 2017 | E70: ='Methods&Limits'!G17 -> 2.3 | G70: ='Methods&Limits'!I17 -> 69.357
A71: ='Methods&Limits'!A18 -> -- Petrol with bioethanol content 6-8 | B71: ='Methods&Limits'!B18 -> kPa | C71: ='Methods&Limits'!E18 -> EN 1601 | D71: ='Methods&Limits'!F18 -> 2017 | E71: ='Methods&Limits'!G18 -> 2.3 | G71: ='Methods&Limits'!I18 -> 69.237
A72: ='Methods&Limits'!A19 -> -- Petrol with bioethanol content 8-10 | B72: ='Methods&Limits'!B19 -> kPa | C72: ='Methods&Limits'!E19 -> EN 1601 | D72: ='Methods&Limits'!F19 -> 2017 | E72: ='Methods&Limits'!G19 -> 2.3 | G72: ='Methods&Limits'!I19 -> 69.117
A73: ='Methods&Limits'!A20 -> --summer period (arctic or severe weather conditions) | B73: ='Methods&Limits'!B20 -> kPa | C73: ='Methods&Limits'!E20 -> EN 13016-1 | D73: ='Methods&Limits'!F20 -> 2018 | E73: ='Methods&Limits'!G20 -> 2.3 | G73: ='Methods&Limits'!I20 -> 71.357
A74: ='Methods&Limits'!A21 -> Distillation *
A75: ='Methods&Limits'!A22 -> --evaporated at 100 oC | B75: ='Methods&Limits'!B22 -> % V/V | C75: ='Methods&Limits'!E22 -> EN-ISO 3405 | D75: ='Methods&Limits'!F22 -> 2020 | E75: ='Methods&Limits'!G22 -> 4 | F75: ='Methods&Limits'!H22 -> 43.64 | H75: =IF(D22="","",IF(D22<F75,"Yes","")) -> Yes
A76: ='Methods&Limits'!A23 -> -- evaporated at 150 oC | B76: ='Methods&Limits'!B23 -> % V/V | C76: ='Methods&Limits'!E23 -> EN-ISO 3405 | D76: ='Methods&Limits'!F23 -> 2020 | E76: ='Methods&Limits'!G23 -> 4 | F76: ='Methods&Limits'!H23 -> 72.64 | H76: =IF(D23="","",IF(D23<F76,"Yes","")) -> Yes
A77: ='Methods&Limits'!A24 -> Hydrocarbon analysis | H77: =IF(D24<F77,"Yes","") -> 
A78: ='Methods&Limits'!A25 -> -- Olefins | B78: ='Methods&Limits'!B25 -> % V/V | C78: ='Methods&Limits'!E25 -> EN 15553 | D78: ='Methods&Limits'!F25 -> 2021 | E78: ='Methods&Limits'!G25 -> 6.4 | G78: ='Methods&Limits'!I25 -> 21.776 | H78: =IF($E$25>G78,"Yes","") -> 
C79: ='Methods&Limits'!E26 -> EN-ISO 22854 | D79: ='Methods&Limits'!F26 -> 2021 | E79: ='Methods&Limits'!G26 -> 2.6 | G79: ='Methods&Limits'!I26 -> 19.534 | H79: =IF($E$25>G79,"Yes","") -> 
A80: ='Methods&Limits'!A27 -> *without oxygenates | C80: ='Methods&Limits'!E27 -> EN 15553 | D80: ='Methods&Limits'!F27 -> 2021 | E80: ='Methods&Limits'!G27 -> - | G80: ='Methods&Limits'!I27 -> - | H80: =IF($E$25>G80,"Yes","") -> 
C81: ='Methods&Limits'!E28 -> EN-ISO 22854 | D81: ='Methods&Limits'!F28 -> 2021 | E81: ='Methods&Limits'!G28 -> - | G81: ='Methods&Limits'!I28 -> - | H81: =IF($E$25>G81,"Yes","") -> 
A82: ='Methods&Limits'!A29 -> -- Olefins (RON 91 fuel only)*** | B82: ='Methods&Limits'!B29 -> % V/V | C82: ='Methods&Limits'!E29 -> ASTM D1319 | D82: ='Methods&Limits'!F29 -> 2020 | E82: ='Methods&Limits'!G29 -> 5.1 | G82: ='Methods&Limits'!I29 -> 24.009 | H82: =IF($E$25>G82,"Yes","") -> 
A83: ='Methods&Limits'!A30 -> -- Aromatics (from 2005) | C83: ='Methods&Limits'!E30 -> EN-ISO 22854 | D83: ='Methods&Limits'!F30 -> 2021 | E83: ='Methods&Limits'!G30 -> 1.7 | G83: ='Methods&Limits'!I30 -> 36.003 | H83: =IF($E$26>G83,"Yes","") -> 
A84: ='Methods&Limits'!A31 -> -- Benzene | B84: ='Methods&Limits'!B31 -> % V/V | C84: ='Methods&Limits'!E31 -> EN 12177 | D84: ='Methods&Limits'!F31 -> 2022 | E84: ='Methods&Limits'!G31 -> 0.1 | G84: ='Methods&Limits'!I31 -> 1.059 | H84: =IF(E27>G84,"Yes","") -> 
C85: ='Methods&Limits'!E32 -> EN 238 | D85: ='Methods&Limits'!F32 -> 1996 | E85: ='Methods&Limits'!G32 -> 0.17 | G85: ='Methods&Limits'!I32 -> 1.1003 | H85: =IF(E27>G85,"Yes","") -> 
C86: ='Methods&Limits'!E33 -> EN-ISO 22854 | D86: ='Methods&Limits'!F33 -> 2021 | E86: ='Methods&Limits'!G33 -> 0.05 | G86: ='Methods&Limits'!I33 -> 1.0295 | H86: =IF(E27>G86,"Yes","") -> 
A87: ='Methods&Limits'!A34 -> Oxygen content | B87: ='Methods&Limits'!B34 -> % (m/m) | C87: ='Methods&Limits'!E34 -> EN 1601 | D87: ='Methods&Limits'!F34 -> 2017 | E87: ='Methods&Limits'!G34 -> 0.41 | G87: ='Methods&Limits'!I34 -> 3.9419 | H87: =IF(E28>G87,"Yes","") -> 
C88: ='Methods&Limits'!E35 -> EN 1601 | D88: ='Methods&Limits'!F35 -> 2017 | E88: ='Methods&Limits'!G35 -> 0.41 | G88: ='Methods&Limits'!I35 -> 2.9419 | H88: =IF(E29>G88,"Yes","") -> 
A89: ='Methods&Limits'!A36 -> Oxygenates
A90: ='Methods&Limits'!A37 -> -- Methanol | B90: ='Methods&Limits'!B37 -> % V/V | C90: ='Methods&Limits'!E37 -> EN 1601 | D90: ='Methods&Limits'!F37 -> 2017 | E90: ='Methods&Limits'!G37 -> 0.3 | G90: ='Methods&Limits'!I37 -> 3.177 | H90: =IF(E31>G90,"Yes","") -> 
A91: ='Methods&Limits'!A38 -> -- Ethanol | B91: ='Methods&Limits'!B38 -> % V/V | C91: ='Methods&Limits'!E38 -> EN 1601 | D91: ='Methods&Limits'!F38 -> 2017 | E91: ='Methods&Limits'!G38 -> 0.8 | G91: ='Methods&Limits'!I38 -> 10.472
A92: ='Methods&Limits'!A39 -> -- Iso-propyl alcohol | B92: ='Methods&Limits'!B39 -> % V/V | C92: ='Methods&Limits'!E39 -> EN 1601 | D92: ='Methods&Limits'!F39 -> 2017 | E92: ='Methods&Limits'!G39 -> 0.9 | G92: ='Methods&Limits'!I39 -> 12.531
A93: ='Methods&Limits'!A40 -> -- Tert-butyl alcohol | B93: ='Methods&Limits'!B40 -> % V/V | C93: ='Methods&Limits'!E40 -> EN 1601 | D93: ='Methods&Limits'!F40 -> 2017 | E93: ='Methods&Limits'!G40 -> 1 | G93: ='Methods&Limits'!I40 -> 15.59
A94: ='Methods&Limits'!A41 -> -- Iso-butyl alcohol | B94: ='Methods&Limits'!B41 -> % V/V | C94: ='Methods&Limits'!E41 -> EN 1601 | D94: ='Methods&Limits'!F41 -> 2017 | E94: ='Methods&Limits'!G41 -> 1 | G94: ='Methods&Limits'!I41 -> 15.59
A95: ='Methods&Limits'!A42 -> -- Ethers with 5 or more carbon atoms per molecule | B95: ='Methods&Limits'!B42 -> % V/V | C95: ='Methods&Limits'!E42 -> EN 1601 | D95: ='Methods&Limits'!F42 -> 2017 | E95: ='Methods&Limits'!G42 -> 1 | G95: ='Methods&Limits'!I42 -> 22.59
A96: ='Methods&Limits'!A43 -> -- other oxygenates | B96: ='Methods&Limits'!B43 -> % V/V | C96: ='Methods&Limits'!E43 -> EN 1601 | D96: ='Methods&Limits'!F43 -> 2017 | E96: ='Methods&Limits'!G43 -> 1 | G96: ='Methods&Limits'!I43 -> 15.59
A97: ='Methods&Limits'!A44 -> Oxygen content | B97: ='Methods&Limits'!B44 -> % (m/m) | C97: ='Methods&Limits'!E44 -> EN 13132 | D97: ='Methods&Limits'!F44 -> 2002 | E97: ='Methods&Limits'!G44 -> 0.3 | G97: ='Methods&Limits'!I44 -> 3.877 | H97: =IF(E28>G97,"Yes","") -> 
C98: ='Methods&Limits'!E45 -> EN 13132 | D98: ='Methods&Limits'!F45 -> 2002 | E98: ='Methods&Limits'!G45 -> 0.3 | G98: ='Methods&Limits'!I45 -> 2.877 | H98: =IF(E29>G98,"Yes","") -> 
A99: ='Methods&Limits'!A46 -> Oxygenates
A100: ='Methods&Limits'!A47 -> -- Methanol | B100: ='Methods&Limits'!B47 -> % V/V | C100: ='Methods&Limits'!E47 -> EN 13132 | D100: ='Methods&Limits'!F47 -> 2002 | E100: ='Methods&Limits'!G47 -> 0.3 | G100: ='Methods&Limits'!I47 -> 3.177 | H100: =IF(E31>G100,"Yes","") -> 
A101: ='Methods&Limits'!A48 -> -- Ethanol | B101: ='Methods&Limits'!B48 -> % V/V | C101: ='Methods&Limits'!E48 -> EN 13132 | D101: ='Methods&Limits'!F48 -> 2002 | E101: ='Methods&Limits'!G48 -> 0.8 | G101: ='Methods&Limits'!I48 -> 10.472
A102: ='Methods&Limits'!A49 -> -- Iso-propyl alcohol | B102: ='Methods&Limits'!B49 -> % V/V | C102: ='Methods&Limits'!E49 -> EN 13132 | D102: ='Methods&Limits'!F49 -> 2002 | E102: ='Methods&Limits'!G49 -> 0.8 | G102: ='Methods&Limits'!I49 -> 12.472
A103: ='Methods&Limits'!A50 -> -- Tert-butyl alcohol | B103: ='Methods&Limits'!B50 -> % V/V | C103: ='Methods&Limits'!E50 -> EN 13132 | D103: ='Methods&Limits'!F50 -> 2002 | E103: ='Methods&Limits'!G50 -> 1 | G103: ='Methods&Limits'!I50 -> 15.59
A104: ='Methods&Limits'!A51 -> -- Iso-butyl alcohol | B104: ='Methods&Limits'!B51 -> % V/V | C104: ='Methods&Limits'!E51 -> EN 13132 | D104: ='Methods&Limits'!F51 -> 2002 | E104: ='Methods&Limits'!G51 -> 1 | G104: ='Methods&Limits'!I51 -> 15.59
A105: ='Methods&Limits'!A52 -> -- Ethers with 5 or more carbon atoms per molecule | B105: ='Methods&Limits'!B52 -> % V/V | C105: ='Methods&Limits'!E52 -> EN 13132 | D105: ='Methods&Limits'!F52 -> 2002 | E105: ='Methods&Limits'!G52 -> 1 | G105: ='Methods&Limits'!I52 -> 22.59
A106: ='Methods&Limits'!A53 -> -- other oxygenates | B106: ='Methods&Limits'!B53 -> % V/V | C106: ='Methods&Limits'!E53 -> EN 13132 | D106: ='Methods&Limits'!F53 -> 2002 | E106: ='Methods&Limits'!G53 -> 1 | G106: ='Methods&Limits'!I53 -> 15.59
A107: ='Methods&Limits'!A54 -> Oxygen content | B107: ='Methods&Limits'!B54 -> % (m/m) | C107: ='Methods&Limits'!E54 -> EN-ISO 22854 | D107: ='Methods&Limits'!F54 -> 2021 | E107: ='Methods&Limits'!G54 -> 0.4 | G107: ='Methods&Limits'!I54 -> 3.936 | H107: =IF(E28>G107,"Yes","") -> 
C108: ='Methods&Limits'!E55 -> EN-ISO 22854 | D108: ='Methods&Limits'!F55 -> 2021 | E108: ='Methods&Limits'!G55 -> 0.4 | G108: ='Methods&Limits'!I55 -> 2.936 | H108: =IF(E29>G108,"Yes","") -> 
A109: ='Methods&Limits'!A56 -> Oxyginates
A110: ='Methods&Limits'!A57 -> -- Methanol | B110: ='Methods&Limits'!B57 -> % V/V | C110: ='Methods&Limits'!E57 -> EN-ISO 22854 | D110: ='Methods&Limits'!F57 -> 2021 | E110: ='Methods&Limits'!G57 -> 0.4 | G110: ='Methods&Limits'!I57 -> 3.236 | H110: =IF(E31>G110,"Yes","") -> 
A111: ='Methods&Limits'!A58 -> -- Ethanol | B111: ='Methods&Limits'!B58 -> % V/V | C111: ='Methods&Limits'!E58 -> EN-ISO 22854 | D111: ='Methods&Limits'!F58 -> 2021 | E111: ='Methods&Limits'!G58 -> 0.6 | G111: ='Methods&Limits'!I58 -> 10.354
A112: ='Methods&Limits'!A59 -> -- Iso-propyl alcohol | B112: ='Methods&Limits'!B59 -> % V/V | C112: ='Methods&Limits'!E59 -> EN-ISO 22854 | D112: ='Methods&Limits'!F59 -> 2021 | E112: ='Methods&Limits'!G59 -> 0.7 | G112: ='Methods&Limits'!I59 -> 12.413
A113: ='Methods&Limits'!A60 -> -- Tert-butyl alcohol | B113: ='Methods&Limits'!B60 -> % V/V | C113: ='Methods&Limits'!E60 -> EN-ISO 22854 | D113: ='Methods&Limits'!F60 -> 2021 | E113: ='Methods&Limits'!G60 -> 0.7 | G113: ='Methods&Limits'!I60 -> 15.413
A114: ='Methods&Limits'!A61 -> -- Iso-butyl alcohol | B114: ='Methods&Limits'!B61 -> % V/V | C114: ='Methods&Limits'!E61 -> EN-ISO 22854 | D114: ='Methods&Limits'!F61 -> 2021 | E114: ='Methods&Limits'!G61 -> 0.7 | G114: ='Methods&Limits'!I61 -> 15.413
A115: ='Methods&Limits'!A62 -> -- Ethers with 5 or more carbon atoms per molecule | B115: ='Methods&Limits'!B62 -> % V/V | C115: ='Methods&Limits'!E62 -> EN-ISO 22854 | D115: ='Methods&Limits'!F62 -> 2021 | E115: ='Methods&Limits'!G62 -> 0.9 | G115: ='Methods&Limits'!I62 -> 22.531
A116: ='Methods&Limits'!A63 -> -- other oxygenates | B116: ='Methods&Limits'!B63 -> % V/V | C116: ='Methods&Limits'!E63 -> EN-ISO 22854 | D116: ='Methods&Limits'!F63 -> 2021 | E116: ='Methods&Limits'!G63 -> 0.7 | G116: ='Methods&Limits'!I63 -> 15.413
A117: ='Methods&Limits'!A64:A64 -> Sulphur content (sulphur free, from 2005)** | B117: ='Methods&Limits'!B64 -> mg/kg | C117: ='Methods&Limits'!E64 -> EN-ISO 14596 | D117: ='Methods&Limits'!F64 -> 2018 | E117: ='Methods&Limits'!G64 -> 5 | G117: ='Methods&Limits'!I64 -> 12.95 | H117: =IF(E$38>G117,"Yes","") -> 
C118: ='Methods&Limits'!E65 -> EN 24260 | D118: ='Methods&Limits'!F65 -> 1994 | E118: ='Methods&Limits'!G65 -> 1 | G118: ='Methods&Limits'!I65 -> 10.59 | H118: =IF(E$38>G118,"Yes","") -> 
C119: ='Methods&Limits'!E66 -> EN-ISO 20846 | D119: ='Methods&Limits'!F66 -> 2019 | E119: ='Methods&Limits'!G66 -> 2.7 | G119: ='Methods&Limits'!I66 -> 11.593 | H119: =IF(E$38>G119,"Yes","") -> 
C120: ='Methods&Limits'!E67 -> EN-ISO 20884 | D120: ='Methods&Limits'!F67 -> 2019 | E120: ='Methods&Limits'!G67 -> 3.1 | G120: ='Methods&Limits'!I67 -> 11.829 | H120: =IF(E$38>G120,"Yes","") -> 
A121: ='Methods&Limits'!A68:A68 -> Lead content | B121: ='Methods&Limits'!B68 -> g/l | C121: ='Methods&Limits'!E68 -> EN 237 | D121: ='Methods&Limits'!F68 -> 2004 | E121: ='Methods&Limits'!G68 -> 0.0062 | G121: ='Methods&Limits'!I68 -> 0.008658 | H121: =IF($E$39>G121,"Yes","") -> 

Sheet Petrol (1+2)
A1: Market Fuels used in Vehicles with Spark Ignition Engines (Petrol) | R1: <-- GO BACK
A3: Country | B3: =IF(LEN('Contacts&Annual Summary'!C9) > 1,'Contacts&Annual Summary'!C9,"") ->  | G3: Notes on completing the tables The table structure has been locked to prevent modification - data can be copied and pasted, in bulk into the Reporting Results blue table cells. Where a white row exists between rows, it will not be possible to paste over white rows and sections should be pasted separately. Column H in the Test Methods and Analysis table is set to automatically check whether the values entered in the Reporting Results table exceed maximum or minimum Tolerance Limits. If any exceedance is detected, please provide details in the columns to the right including the number of samples, location samples were taken from, Values and Details of any action taken to address non-compliant samples. Compliance information is verified manually and this automated compliance check is not solely relied upon during data analysis. Please do not unlock this template - modified templates cannot be processed and may delay reporting.
A4: Reporting Year | B4: ='Contacts&Annual Summary'!C8 -> 2023
A5: Period (Summer or Winter) | B5: Full Year
A6: Parent fuel grade | B6: Petrol
A7: National fuel grade | B7: ='Petrol (1)'!B7 -> 0
A8: Summer Period (N or A)* | B8: 0 | C8: =IF( B8="A","1st June to 31st August (arctic)","1st May to 30th September (normal)") -> 1st May to 30th September (normal)
A9: The maximum bioethanol content (% v/v) | B9: =MAX('Petrol (1)'!B9,'Petrol (2)'!B9) -> 0 | C9: Please include the bioethanol content as a numerical figure in % V/V
A10: * N = 1st May to 30th September (normal) ; A = 1st June to 31st August (arctic).
A12: Reporting results
A14: Parameter | B14: Unit | C14: Analytical and statistical results (Please see an explanation and examples for new columns/ information required in Cells I15 to K37 on the Introduction & Instructions tab). | L14: Limiting Value (1) | P14: Test method
L15: National Specification, if any | N15: According to Directive 2009/30/EC | P15: (more recent versions may also be used)
C16: No Samples | D16: Minimum | E16: Maximum | F16: Median | G16: Mean | H16: Standard Deviation | I16: No Samples outside 95% tolerance limit | J16: 25% of Sample Value | K16: 75% of Sample Value | L16: Minimum | M16: Maximum | N16: Minimum | O16: Maximum | P16: Method | Q16: Date
A17: Research Octane Number | B17: -- | C17: =IF(AND('Petrol (1)'!C17="",'Petrol (2)'!C17=""),"",'Petrol (1)'!C17+'Petrol (2)'!C17) -> 0 | D17: =IF(AND('Petrol (1)'!D17="",'Petrol (2)'!D17=""),"",MIN('Petrol (1)'!D17,'Petrol (2)'!D17)) -> 0 | E17: =IF(AND('Petrol (1)'!E17="",'Petrol (2)'!E17=""),"",MAX('Petrol (1)'!E17,'Petrol (2)'!E17)) -> 0 | F17: 0 | G17: 0 | H17: 0 | I17: =IF(AND('Petrol (1)'!I17="",'Petrol (2)'!I17=""),"",'Petrol (1)'!I17+'Petrol (2)'!I17) -> 0 | J17: 0 | K17: 0 | N17: 95 (2) | P17: EN-ISO 5164 | Q17: 2005
A18: Motor Octane Number | B18: -- | C18: =IF(AND('Petrol (1)'!C18="",'Petrol (2)'!C18=""),"",'Petrol (1)'!C18+'Petrol (2)'!C18) -> 0 | D18: =IF(AND('Petrol (1)'!D18="",'Petrol (2)'!D18=""),"",MIN('Petrol (1)'!D18,'Petrol (2)'!D18)) -> 0 | E18: =IF(AND('Petrol (1)'!E18="",'Petrol (2)'!E18=""),"",MAX('Petrol (1)'!E18,'Petrol (2)'!E18)) -> 0 | F18: 0 | G18: 0 | H18: 0 | I18: =IF(AND('Petrol (1)'!I18="",'Petrol (2)'!I18=""),"",'Petrol (1)'!I18+'Petrol (2)'!I18) -> 0 | J18: 0 | K18: 0 | N18: 85 (3) | P18: EN-ISO 5163 | Q18: 2005
A19: Vapour Pressure, DVPE (6) | B19: kPa | O19: (4)
A20: -- required for summer period only | C20: =IF(AND('Petrol (1)'!C20="",'Petrol (2)'!C20=""),"",'Petrol (1)'!C20+'Petrol (2)'!C20) -> 0 | D20: =IF(AND('Petrol (1)'!D20="",'Petrol (2)'!D20=""),"",MIN('Petrol (1)'!D20,'Petrol (2)'!D20)) -> 0 | E20: =IF(AND('Petrol (1)'!E20="",'Petrol (2)'!E20=""),"",MAX('Petrol (1)'!E20,'Petrol (2)'!E20)) -> 0 | F20: 0 | G20: 0 | H20: 0 | I20: =IF(AND('Petrol (1)'!I20="",'Petrol (2)'!I20=""),"",'Petrol (1)'!I20+'Petrol (2)'!I20) -> 0 | J20: 0 | K20: 0 | O20: =IF(E8="A",70,60) -> 60 | P20: EN 13106-1 | Q20: 2007
A21: Distillation | P21: EN-ISO 3405
A22: -- evaporated at 100 oC | B22: % V/V | C22: =IF(AND('Petrol (1)'!C22="",'Petrol (2)'!C22=""),"",'Petrol (1)'!C22+'Petrol (2)'!C22) -> 0 | D22: =IF(AND('Petrol (1)'!D22="",'Petrol (2)'!D22=""),"",MIN('Petrol (1)'!D22,'Petrol (2)'!D22)) -> 0 | E22: =IF(AND('Petrol (1)'!E22="",'Petrol (2)'!E22=""),"",MAX('Petrol (1)'!E22,'Petrol (2)'!E22)) -> 0 | F22: 0 | G22: 0 | H22: 0 | I22: =IF(AND('Petrol (1)'!I22="",'Petrol (2)'!I22=""),"",'Petrol (1)'!I22+'Petrol (2)'!I22) -> 0 | J22: 0 | K22: 0 | N22: 46 | Q22: 2000
A23: -- evaporated at 150 oC | B23: % V/V | C23: =IF(AND('Petrol (1)'!C23="",'Petrol (2)'!C23=""),"",'Petrol (1)'!C23+'Petrol (2)'!C23) -> 0 | D23: =IF(AND('Petrol (1)'!D23="",'Petrol (2)'!D23=""),"",MIN('Petrol (1)'!D23,'Petrol (2)'!D23)) -> 0 | E23: =IF(AND('Petrol (1)'!E23="",'Petrol (2)'!E23=""),"",MAX('Petrol (1)'!E23,'Petrol (2)'!E23)) -> 0 | F23: 0 | G23: 0 | H23: 0 | I23: =IF(AND('Petrol (1)'!I23="",'Petrol (2)'!I23=""),"",'Petrol (1)'!I23+'Petrol (2)'!I23) -> 0 | J23: 0 | K23: 0 | N23: 75
A24: Hydrocarbon analysis
A25: -- Olefins | B25: % V/V | C25: =IF(AND('Petrol (1)'!C25="",'Petrol (2)'!C25=""),"",'Petrol (1)'!C25+'Petrol (2)'!C25) -> 0 | D25: =IF(AND('Petrol (1)'!D25="",'Petrol (2)'!D25=""),"",MIN('Petrol (1)'!D25,'Petrol (2)'!D25)) -> 0 | E25: =IF(AND('Petrol (1)'!E25="",'Petrol (2)'!E25=""),"",MAX('Petrol (1)'!E25,'Petrol (2)'!E25)) -> 0 | F25: 0 | G25: 0 | H25: 0 | I25: =IF(AND('Petrol (1)'!I25="",'Petrol (2)'!I25=""),"",'Petrol (1)'!I25+'Petrol (2)'!I25) -> 0 | J25: 0 | K25: 0 | O25: 18.0 (5) | P25: ASTM D 1319 EN 15553 EN-ISO 22854 | Q25: 1995 2007 2008
A26: -- Aromatics | B26: % V/V | C26: =IF(AND('Petrol (1)'!C26="",'Petrol (2)'!C26=""),"",'Petrol (1)'!C26+'Petrol (2)'!C26) -> 0 | D26: =IF(AND('Petrol (1)'!D26="",'Petrol (2)'!D26=""),"",MIN('Petrol (1)'!D26,'Petrol (2)'!D26)) -> 0 | E26: =IF(AND('Petrol (1)'!E26="",'Petrol (2)'!E26=""),"",MAX('Petrol (1)'!E26,'Petrol (2)'!E26)) -> 0 | F26: 0 | G26: 0 | H26: 0 | I26: =IF(AND('Petrol (1)'!I26="",'Petrol (2)'!I26=""),"",'Petrol (1)'!I26+'Petrol (2)'!I26) -> 0 | J26: 0 | K26: 0 | O26: 35 | P26: EN-ISO 22854 | Q26: 1995 2008
A27: -- Benzene | B27: % V/V | C27: =IF(AND('Petrol (1)'!C27="",'Petrol (2)'!C27=""),"",'Petrol (1)'!C27+'Petrol (2)'!C27) -> 0 | D27: =IF(AND('Petrol (1)'!D27="",'Petrol (2)'!D27=""),"",MIN('Petrol (1)'!D27,'Petrol (2)'!D27)) -> 0 | E27: =IF(AND('Petrol (1)'!E27="",'Petrol (2)'!E27=""),"",MAX('Petrol (1)'!E27,'Petrol (2)'!E27)) -> 0 | F27: 0 | G27: 0 | H27: 0 | I27: =IF(AND('Petrol (1)'!I27="",'Petrol (2)'!I27=""),"",'Petrol (1)'!I27+'Petrol (2)'!I27) -> 0 | J27: 0 | K27: 0 | O27: 1 | P27: EN 238 EN 12177 EN-ISO 22854 | Q27: 1996 1998 2008
A28: =IF(C29>0,"Do not complete","Oxygen content") -> Oxygen content | B28: % (m/m) | C28: =IF(AND('Petrol (1)'!C28="",'Petrol (2)'!C28=""),"",'Petrol (1)'!C28+'Petrol (2)'!C28) -> 0 | D28: =IF(AND('Petrol (1)'!D28="",'Petrol (2)'!D28=""),"",MIN('Petrol (1)'!D28,'Petrol (2)'!D28)) -> 0 | E28: =IF(AND('Petrol (1)'!E28="",'Petrol (2)'!E28=""),"",MAX('Petrol (1)'!E28,'Petrol (2)'!E28)) -> 0 | F28: 0 | G28: 0 | H28: 0 | I28: =IF(AND('Petrol (1)'!I28="",'Petrol (2)'!I28=""),"",'Petrol (1)'!I28+'Petrol (2)'!I28) -> 0 | J28: 0 | K28: 0 | O28: 3.7 | P28: EN 1601 EN 13132 EN-ISO 22854 | Q28: 1997 2000 2008
A29: =IF(C28>0,"Do not complete","Oxygen content* *petrol with 5% (v/v) or less ethanol content") -> Oxygen content* *petrol with 5% (v/v) or less ethanol content | B29: % (m/m) | C29: =IF(AND('Petrol (1)'!C29="",'Petrol (2)'!C29=""),"",'Petrol (1)'!C29+'Petrol (2)'!C29) -> 0 | D29: =IF(AND('Petrol (1)'!D29="",'Petrol (2)'!D29=""),"",MIN('Petrol (1)'!D29,'Petrol (2)'!D29)) -> 0 | E29: =IF(AND('Petrol (1)'!E29="",'Petrol (2)'!E29=""),"",MAX('Petrol (1)'!E29,'Petrol (2)'!E29)) -> 0 | F29: 0 | G29: 0 | H29: 0 | I29: =IF(AND('Petrol (1)'!I29="",'Petrol (2)'!I29=""),"",'Petrol (1)'!I29+'Petrol (2)'!I29) -> 0 | J29: 0 | K29: 0 | O29: 2.7
A30: Oxygenates
A31: -- Methanol | B31: % V/V | C31: =IF(AND('Petrol (1)'!C31="",'Petrol (2)'!C31=""),"",'Petrol (1)'!C31+'Petrol (2)'!C31) -> 0 | D31: =IF(AND('Petrol (1)'!D31="",'Petrol (2)'!D31=""),"",MIN('Petrol (1)'!D31,'Petrol (2)'!D31)) -> 0 | E31: =IF(AND('Petrol (1)'!E31="",'Petrol (2)'!E31=""),"",MAX('Petrol (1)'!E31,'Petrol (2)'!E31)) -> 0 | F31: 0 | G31: 0 | H31: 0 | I31: =IF(AND('Petrol (1)'!I31="",'Petrol (2)'!I31=""),"",'Petrol (1)'!I31+'Petrol (2)'!I31) -> 0 | J31: 0 | K31: 0 | O31: 3
A32: -- Ethanol | B32: % V/V | C32: =IF(AND('Petrol (1)'!C32="",'Petrol (2)'!C32=""),"",'Petrol (1)'!C32+'Petrol (2)'!C32) -> 0 | D32: =IF(AND('Petrol (1)'!D32="",'Petrol (2)'!D32=""),"",MIN('Petrol (1)'!D32,'Petrol (2)'!D32)) -> 0 | E32: =IF(AND('Petrol (1)'!E32="",'Petrol (2)'!E32=""),"",MAX('Petrol (1)'!E32,'Petrol (2)'!E32)) -> 0 | F32: 0 | G32: 0 | H32: 0 | I32: =IF(AND('Petrol (1)'!I32="",'Petrol (2)'!I32=""),"",'Petrol (1)'!I32+'Petrol (2)'!I32) -> 0 | J32: 0 | K32: 0 | O32: 10
A33: -- Iso-propyl alcohol | B33: % V/V | C33: =IF(AND('Petrol (1)'!C33="",'Petrol (2)'!C33=""),"",'Petrol (1)'!C33+'Petrol (2)'!C33) -> 0 | D33: =IF(AND('Petrol (1)'!D33="",'Petrol (2)'!D33=""),"",MIN('Petrol (1)'!D33,'Petrol (2)'!D33)) -> 0 | E33: =IF(AND('Petrol (1)'!E33="",'Petrol (2)'!E33=""),"",MAX('Petrol (1)'!E33,'Petrol (2)'!E33)) -> 0 | F33: 0 | G33: 0 | H33: 0 | I33: =IF(AND('Petrol (1)'!I33="",'Petrol (2)'!I33=""),"",'Petrol (1)'!I33+'Petrol (2)'!I33) -> 0 | J33: 0 | K33: 0 | O33: 12 | P33: EN 1601 | Q33: 1997
A34: -- Tert-butyl alcohol | B34: % V/V | C34: =IF(AND('Petrol (1)'!C34="",'Petrol (2)'!C34=""),"",'Petrol (1)'!C34+'Petrol (2)'!C34) -> 0 | D34: =IF(AND('Petrol (1)'!D34="",'Petrol (2)'!D34=""),"",MIN('Petrol (1)'!D34,'Petrol (2)'!D34)) -> 0 | E34: =IF(AND('Petrol (1)'!E34="",'Petrol (2)'!E34=""),"",MAX('Petrol (1)'!E34,'Petrol (2)'!E34)) -> 0 | F34: 0 | G34: 0 | H34: 0 | I34: =IF(AND('Petrol (1)'!I34="",'Petrol (2)'!I34=""),"",'Petrol (1)'!I34+'Petrol (2)'!I34) -> 0 | J34: 0 | K34: 0 | O34: 15 | P34: EN 13132 | Q34: 2000
A35: -- Iso-butyl alcohol | B35: % V/V | C35: =IF(AND('Petrol (1)'!C35="",'Petrol (2)'!C35=""),"",'Petrol (1)'!C35+'Petrol (2)'!C35) -> 0 | D35: =IF(AND('Petrol (1)'!D35="",'Petrol (2)'!D35=""),"",MIN('Petrol (1)'!D35,'Petrol (2)'!D35)) -> 0 | E35: =IF(AND('Petrol (1)'!E35="",'Petrol (2)'!E35=""),"",MAX('Petrol (1)'!E35,'Petrol (2)'!E35)) -> 0 | F35: 0 | G35: 0 | H35: 0 | I35: =IF(AND('Petrol (1)'!I35="",'Petrol (2)'!I35=""),"",'Petrol (1)'!I35+'Petrol (2)'!I35) -> 0 | J35: 0 | K35: 0 | O35: 15 | P35: EN-ISO 22854 | Q35: 2008
A36: -- Ethers with ≥5 carbon atoms / molecule | B36: % V/V | C36: =IF(AND('Petrol (1)'!C36="",'Petrol (2)'!C36=""),"",'Petrol (1)'!C36+'Petrol (2)'!C36) -> 0 | D36: =IF(AND('Petrol (1)'!D36="",'Petrol (2)'!D36=""),"",MIN('Petrol (1)'!D36,'Petrol (2)'!D36)) -> 0 | E36: =IF(AND('Petrol (1)'!E36="",'Petrol (2)'!E36=""),"",MAX('Petrol (1)'!E36,'Petrol (2)'!E36)) -> 0 | F36: 0 | G36: 0 | H36: 0 | I36: =IF(AND('Petrol (1)'!I36="",'Petrol (2)'!I36=""),"",'Petrol (1)'!I36+'Petrol (2)'!I36) -> 0 | J36: 0 | K36: 0 | O36: 22
A37: -- other oxygenates | B37: % V/V | C37: =IF(AND('Petrol (1)'!C37="",'Petrol (2)'!C37=""),"",'Petrol (1)'!C37+'Petrol (2)'!C37) -> 0 | D37: =IF(AND('Petrol (1)'!D37="",'Petrol (2)'!D37=""),"",MIN('Petrol (1)'!D37,'Petrol (2)'!D37)) -> 0 | E37: =IF(AND('Petrol (1)'!E37="",'Petrol (2)'!E37=""),"",MAX('Petrol (1)'!E37,'Petrol (2)'!E37)) -> 0 | F37: 0 | G37: 0 | H37: 0 | I37: =IF(AND('Petrol (1)'!I37="",'Petrol (2)'!I37=""),"",'Petrol (1)'!I37+'Petrol (2)'!I37) -> 0 | J37: 0 | K37: 0 | O37: 15
A38: Sulphur content | B38: mg/kg | C38: =IF(AND('Petrol (1)'!C38="",'Petrol (2)'!C38=""),"",'Petrol (1)'!C38+'Petrol (2)'!C38) -> 0 | D38: =IF(AND('Petrol (1)'!D38="",'Petrol (2)'!D38=""),"",MIN('Petrol (1)'!D38,'Petrol (2)'!D38)) -> 0 | E38: =IF(AND('Petrol (1)'!E38="",'Petrol (2)'!E38=""),"",MAX('Petrol (1)'!E38,'Petrol (2)'!E38)) -> 0 | F38: 0 | G38: 0 | H38: 0 | I38: =IF(AND('Petrol (1)'!I38="",'Petrol (2)'!I38=""),"",'Petrol (1)'!I38+'Petrol (2)'!I38) -> 0 | J38: 0 | K38: 0 | O38: 10 | P38: EN-ISO 14596 EN 24260 EN-ISO 20846 EN-ISO 20884 | Q38: 1998 1994 2004 2004
A39: Lead content | B39: g/l | C39: =IF(AND('Petrol (1)'!C39="",'Petrol (2)'!C39=""),"",'Petrol (1)'!C39+'Petrol (2)'!C39) -> 0 | D39: =IF(AND('Petrol (1)'!D39="",'Petrol (2)'!D39=""),"",MIN('Petrol (1)'!D39,'Petrol (2)'!D39)) -> 0 | E39: =IF(AND('Petrol (1)'!E39="",'Petrol (2)'!E39=""),"",MAX('Petrol (1)'!E39,'Petrol (2)'!E39)) -> 0 | F39: 0 | G39: 0 | H39: 0 | I39: =IF(AND('Petrol (1)'!I39="",'Petrol (2)'!I39=""),"",'Petrol (1)'!I39+'Petrol (2)'!I39) -> 0 | J39: 0 | K39: 0 | O39: 0.005 | P39: EN 237 | Q39: 1996
A42: Sampling frequency
A44: Number of samples in month
A45: January | B45: ='Petrol (1)'!B45+'Petrol (2)'!B45 -> 0 | C45: July | D45: ='Petrol (1)'!D45+'Petrol (2)'!D45 -> 0 | E45: (1) The limiting values are "true values" and were established according to the procedures for limit setting in EN 228:2008 The results of individual measurements shall be interpreted following the criteria described in EN 228:2008.
A46: February | B46: ='Petrol (1)'!B46+'Petrol (2)'!B46 -> 0 | C46: August | D46: ='Petrol (1)'!D46+'Petrol (2)'!D46 -> 0
A47: March | B47: ='Petrol (1)'!B47+'Petrol (2)'!B47 -> 0 | C47: September | D47: ='Petrol (1)'!D47+'Petrol (2)'!D47 -> 0 | E47: (2) 91 for unleaded regular grade petrol: See 2009/30/EC Annex I, Footnote 3.
A48: April | B48: ='Petrol (1)'!B48+'Petrol (2)'!B48 -> 0 | C48: October | D48: ='Petrol (1)'!D48+'Petrol (2)'!D48 -> 0 | E48: (3) 81 for unleaded regular grade petrol: See 2009/30/EC Annex I, Footnote 3.
A49: May | B49: ='Petrol (1)'!B49+'Petrol (2)'!B49 -> 0 | C49: November | D49: ='Petrol (1)'!D49+'Petrol (2)'!D49 -> 0 | E49: (4) 70 kPa for Member States with arctic or severe weather conditions: See 2003/30/EC Annex I, Footnotes 4 & 5.
A50: June | B50: ='Petrol (1)'!B50+'Petrol (2)'!B50 -> 0 | C50: December | D50: ='Petrol (1)'!D50+'Petrol (2)'!D50 -> 0 | E50: (5) 21 for unleaded regular grade petrol: See 98/70/EC, Annex I, Footnote 6.
C51: Full Year Total | D51: =SUM(B45:B50,D45:D50) -> 0 | E51: (6) Vapour pressure waiver applies for petrol containing Bioethanol, see 2009/30/EC Annex I, Footnote 5 and Annex III.
A53: Other notes (optional):
A57: Test Methods and Analysis | I57: Only if not provided in Summer and Winter sheets
A59: Parameter | B59: Unit | C59: Test specified in 2009/30/EC or EN228:2008 | J59: Notes on exceedences
C60: Method | D60: Date | E60: Reproducability, R | F60: Tolerance limits | J60: Sample location (S,T or R) | K60: Values | L60: Details/action taken
F61: Minimum | G61: Maximum | H61: Exceeded?
A62: ='Methods&Limits'!A9 -> Research Octane Number (RON) | B62: ='Methods&Limits'!B9 -> -- | C62: ='Methods&Limits'!E9 -> EN-ISO 5164 | D62: ='Methods&Limits'!F9 -> 2014 | E62: ='Methods&Limits'!G9 -> 0.7 | F62: ='Methods&Limits'!H9 -> 94.587 | H62: =IF(D17="","",IF(D17<F62,"Yes","")) -> Yes
A63: ='Methods&Limits'!A10 -> (RON 91 fuel only) | B63: ='Methods&Limits'!B10 -> -- | C63: ='Methods&Limits'!E10 -> EN-ISO 5164 | D63: ='Methods&Limits'!F10 -> 2014 | E63: ='Methods&Limits'!G10 -> 0.7 | F63: ='Methods&Limits'!H10 -> 90.587 | H63: =IF(D17="","",IF(D17<F63,"Yes","")) -> Yes
A64: ='Methods&Limits'!A11 -> Motor Octane Number (MON) | B64: ='Methods&Limits'!B11 -> -- | C64: ='Methods&Limits'!E11 -> EN-ISO 5163 | D64: ='Methods&Limits'!F11 -> 2014 | E64: ='Methods&Limits'!G11 -> 0.9 | F64: ='Methods&Limits'!H11 -> 84.469 | H64: =IF(D18="","",IF(D18<F64,"Yes","")) -> Yes
A65: ='Methods&Limits'!A12 -> (RON 91 fuel only) | B65: ='Methods&Limits'!B12 -> -- | C65: ='Methods&Limits'!E12 -> EN-ISO 5163 | D65: ='Methods&Limits'!F12 -> 2014 | E65: ='Methods&Limits'!G12 -> 0.9 | F65: ='Methods&Limits'!H12 -> 80.469 | H65: =IF(D18="","",IF(D18<F65,"Yes","")) -> Yes
A66: ='Methods&Limits'!A13 -> Vapour Pressure, DVPE
A67: ='Methods&Limits'!A14 -> --summer period (normal) | B67: ='Methods&Limits'!B14 -> kPa | C67: ='Methods&Limits'!E14 -> EN 13016-1 | D67: ='Methods&Limits'!F14 -> 2018 | E67: ='Methods&Limits'!G14 -> 2.2 | G67: ='Methods&Limits'!I14 -> 61.298 | H67: =IF(E$20="","",IF(E$20>G67,"Yes","")) -> 
A68: ='Methods&Limits'!A15 -> -- Petrol with bioethanol content 0-2 | B68: ='Methods&Limits'!B15 -> kPa | C68: ='Methods&Limits'!E15 -> EN 1601 | D68: ='Methods&Limits'!F15 -> 2017 | E68: ='Methods&Limits'!G15 -> 2.3 | G68: ='Methods&Limits'!I15 -> 67.307 | H68: =IF(E$20="","",IF(E$20>G68,"Yes","")) -> 
A69: ='Methods&Limits'!A16 -> -- Petrol with bioethanol content 2-4 | B69: ='Methods&Limits'!B16 -> kPa | C69: ='Methods&Limits'!E16 -> EN 1601 | D69: ='Methods&Limits'!F16 -> 2017 | E69: ='Methods&Limits'!G16 -> 2.3 | G69: ='Methods&Limits'!I16 -> 69.157
A70: ='Methods&Limits'!A17 -> -- Petrol with bioethanol content 4-6 | B70: ='Methods&Limits'!B17 -> kPa | C70: ='Methods&Limits'!E17 -> EN 1601 | D70: ='Methods&Limits'!F17 -> 2017 | E70: ='Methods&Limits'!G17 -> 2.3 | G70: ='Methods&Limits'!I17 -> 69.357
A71: ='Methods&Limits'!A18 -> -- Petrol with bioethanol content 6-8 | B71: ='Methods&Limits'!B18 -> kPa | C71: ='Methods&Limits'!E18 -> EN 1601 | D71: ='Methods&Limits'!F18 -> 2017 | E71: ='Methods&Limits'!G18 -> 2.3 | G71: ='Methods&Limits'!I18 -> 69.237
A72: ='Methods&Limits'!A19 -> -- Petrol with bioethanol content 8-10 | B72: ='Methods&Limits'!B19 -> kPa | C72: ='Methods&Limits'!E19 -> EN 1601 | D72: ='Methods&Limits'!F19 -> 2017 | E72: ='Methods&Limits'!G19 -> 2.3 | G72: ='Methods&Limits'!I19 -> 69.117
A73: ='Methods&Limits'!A20 -> --summer period (arctic or severe weather conditions) | B73: ='Methods&Limits'!B20 -> kPa | C73: ='Methods&Limits'!E20 -> EN 13016-1 | D73: ='Methods&Limits'!F20 -> 2018 | E73: ='Methods&Limits'!G20 -> 2.3 | G73: ='Methods&Limits'!I20 -> 71.357
A74: ='Methods&Limits'!A21 -> Distillation *
A75: ='Methods&Limits'!A22 -> --evaporated at 100 oC | B75: ='Methods&Limits'!B22 -> % V/V | C75: ='Methods&Limits'!E22 -> EN-ISO 3405 | D75: ='Methods&Limits'!F22 -> 2020 | E75: ='Methods&Limits'!G22 -> 4 | F75: ='Methods&Limits'!H22 -> 43.64 | H75: =IF(D22="","",IF(D22<F75,"Yes","")) -> Yes
A76: ='Methods&Limits'!A23 -> -- evaporated at 150 oC | B76: ='Methods&Limits'!B23 -> % V/V | C76: ='Methods&Limits'!E23 -> EN-ISO 3405 | D76: ='Methods&Limits'!F23 -> 2020 | E76: ='Methods&Limits'!G23 -> 4 | F76: ='Methods&Limits'!H23 -> 72.64 | H76: =IF(D23="","",IF(D23<F76,"Yes","")) -> Yes
A77: ='Methods&Limits'!A24 -> Hydrocarbon analysis | H77: =IF(D24<F77,"Yes","") -> 
A78: ='Methods&Limits'!A25 -> -- Olefins | B78: ='Methods&Limits'!B25 -> % V/V | C78: ='Methods&Limits'!E25 -> EN 15553 | D78: ='Methods&Limits'!F25 -> 2021 | E78: ='Methods&Limits'!G25 -> 6.4 | G78: ='Methods&Limits'!I25 -> 21.776 | H78: =IF(E$25="","",IF(E$25>G78,"Yes","")) -> 
C79: ='Methods&Limits'!E26 -> EN-ISO 22854 | D79: ='Methods&Limits'!F26 -> 2021 | E79: ='Methods&Limits'!G26 -> 2.6 | G79: ='Methods&Limits'!I26 -> 19.534 | H79: =IF(E$25="","",IF(E$25>G79,"Yes","")) -> 
A80: ='Methods&Limits'!A27 -> *without oxygenates | C80: ='Methods&Limits'!E27 -> EN 15553 | D80: ='Methods&Limits'!F27 -> 2021 | E80: ='Methods&Limits'!G27 -> - | G80: ='Methods&Limits'!I27 -> - | H80: =IF(E$25="","",IF(E$25>G80,"Yes","")) -> 
C81: ='Methods&Limits'!E28 -> EN-ISO 22854 | D81: ='Methods&Limits'!F28 -> 2021 | E81: ='Methods&Limits'!G28 -> - | G81: ='Methods&Limits'!I28 -> - | H81: =IF(E$25="","",IF(E$25>G81,"Yes","")) -> 
A82: ='Methods&Limits'!A29 -> -- Olefins (RON 91 fuel only)*** | B82: ='Methods&Limits'!B29 -> % V/V | C82: ='Methods&Limits'!E29 -> ASTM D1319 | D82: ='Methods&Limits'!F29 -> 2020 | E82: ='Methods&Limits'!G29 -> 5.1 | G82: ='Methods&Limits'!I29 -> 24.009 | H82: =IF(E$25="","",IF(E$25>G82,"Yes","")) -> 
A83: ='Methods&Limits'!A30 -> -- Aromatics (from 2005) | C83: ='Methods&Limits'!E30 -> EN-ISO 22854 | D83: ='Methods&Limits'!F30 -> 2021 | E83: ='Methods&Limits'!G30 -> 1.7 | G83: ='Methods&Limits'!I30 -> 36.003 | H83: =IF(E$26="","",IF(E$26>G83,"Yes","")) -> 
A84: ='Methods&Limits'!A31 -> -- Benzene | B84: ='Methods&Limits'!B31 -> % V/V | C84: ='Methods&Limits'!E31 -> EN 12177 | D84: ='Methods&Limits'!F31 -> 2022 | E84: ='Methods&Limits'!G31 -> 0.1 | G84: ='Methods&Limits'!I31 -> 1.059 | H84: =IF(E$27="","",IF(E$27>G84,"Yes","")) -> 
C85: ='Methods&Limits'!E32 -> EN 238 | D85: ='Methods&Limits'!F32 -> 1996 | E85: ='Methods&Limits'!G32 -> 0.17 | G85: ='Methods&Limits'!I32 -> 1.1003 | H85: =IF(E$27="","",IF(E$27>G85,"Yes","")) -> 
C86: ='Methods&Limits'!E33 -> EN-ISO 22854 | D86: ='Methods&Limits'!F33 -> 2021 | E86: ='Methods&Limits'!G33 -> 0.05 | G86: ='Methods&Limits'!I33 -> 1.0295 | H86: =IF(E$27="","",IF(E$27>G86,"Yes","")) -> 
A87: ='Methods&Limits'!A34 -> Oxygen content | B87: ='Methods&Limits'!B34 -> % (m/m) | C87: ='Methods&Limits'!E34 -> EN 1601 | D87: ='Methods&Limits'!F34 -> 2017 | E87: ='Methods&Limits'!G34 -> 0.41 | G87: ='Methods&Limits'!I34 -> 3.9419 | H87: =IF(E$27="","",IF(E$27>G87,"Yes","")) -> 
C88: ='Methods&Limits'!E35 -> EN 1601 | D88: ='Methods&Limits'!F35 -> 2017 | E88: ='Methods&Limits'!G35 -> 0.41 | G88: ='Methods&Limits'!I35 -> 2.9419 | H88: =IF(E$27="","",IF(E$27>G88,"Yes","")) -> 
A89: ='Methods&Limits'!A36 -> Oxygenates
A90: ='Methods&Limits'!A37 -> -- Methanol | B90: ='Methods&Limits'!B37 -> % V/V | C90: ='Methods&Limits'!E37 -> EN 1601 | D90: ='Methods&Limits'!F37 -> 2017 | E90: ='Methods&Limits'!G37 -> 0.3 | G90: ='Methods&Limits'!I37 -> 3.177 | H90: =IF(E31="","",IF(E31>G90,"Yes","")) -> 
A91: ='Methods&Limits'!A38 -> -- Ethanol | B91: ='Methods&Limits'!B38 -> % V/V | C91: ='Methods&Limits'!E38 -> EN 1601 | D91: ='Methods&Limits'!F38 -> 2017 | E91: ='Methods&Limits'!G38 -> 0.8 | G91: ='Methods&Limits'!I38 -> 10.472
A92: ='Methods&Limits'!A39 -> -- Iso-propyl alcohol | B92: ='Methods&Limits'!B39 -> % V/V | C92: ='Methods&Limits'!E39 -> EN 1601 | D92: ='Methods&Limits'!F39 -> 2017 | E92: ='Methods&Limits'!G39 -> 0.9 | G92: ='Methods&Limits'!I39 -> 12.531
A93: ='Methods&Limits'!A40 -> -- Tert-butyl alcohol | B93: ='Methods&Limits'!B40 -> % V/V | C93: ='Methods&Limits'!E40 -> EN 1601 | D93: ='Methods&Limits'!F40 -> 2017 | E93: ='Methods&Limits'!G40 -> 1 | G93: ='Methods&Limits'!I40 -> 15.59
A94: ='Methods&Limits'!A41 -> -- Iso-butyl alcohol | B94: ='Methods&Limits'!B41 -> % V/V | C94: ='Methods&Limits'!E41 -> EN 1601 | D94: ='Methods&Limits'!F41 -> 2017 | E94: ='Methods&Limits'!G41 -> 1 | G94: ='Methods&Limits'!I41 -> 15.59
A95: ='Methods&Limits'!A42 -> -- Ethers with 5 or more carbon atoms per molecule | B95: ='Methods&Limits'!B42 -> % V/V | C95: ='Methods&Limits'!E42 -> EN 1601 | D95: ='Methods&Limits'!F42 -> 2017 | E95: ='Methods&Limits'!G42 -> 1 | G95: ='Methods&Limits'!I42 -> 22.59
A96: ='Methods&Limits'!A43 -> -- other oxygenates | B96: ='Methods&Limits'!B43 -> % V/V | C96: ='Methods&Limits'!E43 -> EN 1601 | D96: ='Methods&Limits'!F43 -> 2017 | E96: ='Methods&Limits'!G43 -> 1 | G96: ='Methods&Limits'!I43 -> 15.59
A97: ='Methods&Limits'!A44 -> Oxygen content | B97: ='Methods&Limits'!B44 -> % (m/m) | C97: ='Methods&Limits'!E44 -> EN 13132 | D97: ='Methods&Limits'!F44 -> 2002 | E97: ='Methods&Limits'!G44 -> 0.3 | G97: ='Methods&Limits'!I44 -> 3.877 | H97: =IF(E28="","",IF(E28>G97,"Yes","")) -> 
C98: ='Methods&Limits'!E45 -> EN 13132 | D98: ='Methods&Limits'!F45 -> 2002 | E98: ='Methods&Limits'!G45 -> 0.3 | G98: ='Methods&Limits'!I45 -> 2.877 | H98: =IF(E29="","",IF(E29>G98,"Yes","")) -> 
A99: ='Methods&Limits'!A46 -> Oxygenates
A100: ='Methods&Limits'!A47 -> -- Methanol | B100: ='Methods&Limits'!B47 -> % V/V | C100: ='Methods&Limits'!E47 -> EN 13132 | D100: ='Methods&Limits'!F47 -> 2002 | E100: ='Methods&Limits'!G47 -> 0.3 | G100: ='Methods&Limits'!I47 -> 3.177 | H100: =IF(E31="","",IF(E31>G100,"Yes","")) -> 
A101: ='Methods&Limits'!A48 -> -- Ethanol | B101: ='Methods&Limits'!B48 -> % V/V | C101: ='Methods&Limits'!E48 -> EN 13132 | D101: ='Methods&Limits'!F48 -> 2002 | E101: ='Methods&Limits'!G48 -> 0.8 | G101: ='Methods&Limits'!I48 -> 10.472
A102: ='Methods&Limits'!A49 -> -- Iso-propyl alcohol | B102: ='Methods&Limits'!B49 -> % V/V | C102: ='Methods&Limits'!E49 -> EN 13132 | D102: ='Methods&Limits'!F49 -> 2002 | E102: ='Methods&Limits'!G49 -> 0.8 | G102: ='Methods&Limits'!I49 -> 12.472
A103: ='Methods&Limits'!A50 -> -- Tert-butyl alcohol | B103: ='Methods&Limits'!B50 -> % V/V | C103: ='Methods&Limits'!E50 -> EN 13132 | D103: ='Methods&Limits'!F50 -> 2002 | E103: ='Methods&Limits'!G50 -> 1 | G103: ='Methods&Limits'!I50 -> 15.59
A104: ='Methods&Limits'!A51 -> -- Iso-butyl alcohol | B104: ='Methods&Limits'!B51 -> % V/V | C104: ='Methods&Limits'!E51 -> EN 13132 | D104: ='Methods&Limits'!F51 -> 2002 | E104: ='Methods&Limits'!G51 -> 1 | G104: ='Methods&Limits'!I51 -> 15.59
A105: ='Methods&Limits'!A52 -> -- Ethers with 5 or more carbon atoms per molecule | B105: ='Methods&Limits'!B52 -> % V/V | C105: ='Methods&Limits'!E52 -> EN 13132 | D105: ='Methods&Limits'!F52 -> 2002 | E105: ='Methods&Limits'!G52 -> 1 | G105: ='Methods&Limits'!I52 -> 22.59
A106: ='Methods&Limits'!A53 -> -- other oxygenates | B106: ='Methods&Limits'!B53 -> % V/V | C106: ='Methods&Limits'!E53 -> EN 13132 | D106: ='Methods&Limits'!F53 -> 2002 | E106: ='Methods&Limits'!G53 -> 1 | G106: ='Methods&Limits'!I53 -> 15.59
A107: ='Methods&Limits'!A54 -> Oxygen content | B107: ='Methods&Limits'!B54 -> % (m/m) | C107: ='Methods&Limits'!E54 -> EN-ISO 22854 | D107: ='Methods&Limits'!F54 -> 2021 | E107: ='Methods&Limits'!G54 -> 0.4 | G107: ='Methods&Limits'!I54 -> 3.936 | H107: =IF(E28="","",IF(E28>G107,"Yes","")) -> 
C108: ='Methods&Limits'!E55 -> EN-ISO 22854 | D108: ='Methods&Limits'!F55 -> 2021 | E108: ='Methods&Limits'!G55 -> 0.4 | G108: ='Methods&Limits'!I55 -> 2.936 | H108: =IF(E29="","",IF(E29>G108,"Yes","")) -> 
A109: ='Methods&Limits'!A56 -> Oxyginates
A110: ='Methods&Limits'!A57 -> -- Methanol | B110: ='Methods&Limits'!B57 -> % V/V | C110: ='Methods&Limits'!E57 -> EN-ISO 22854 | D110: ='Methods&Limits'!F57 -> 2021 | E110: ='Methods&Limits'!G57 -> 0.4 | G110: ='Methods&Limits'!I57 -> 3.236 | H110: =IF(E31="","",IF(E31>G110,"Yes","")) -> 
A111: ='Methods&Limits'!A58 -> -- Ethanol | B111: ='Methods&Limits'!B58 -> % V/V | C111: ='Methods&Limits'!E58 -> EN-ISO 22854 | D111: ='Methods&Limits'!F58 -> 2021 | E111: ='Methods&Limits'!G58 -> 0.6 | G111: ='Methods&Limits'!I58 -> 10.354
A112: ='Methods&Limits'!A59 -> -- Iso-propyl alcohol | B112: ='Methods&Limits'!B59 -> % V/V | C112: ='Methods&Limits'!E59 -> EN-ISO 22854 | D112: ='Methods&Limits'!F59 -> 2021 | E112: ='Methods&Limits'!G59 -> 0.7 | G112: ='Methods&Limits'!I59 -> 12.413
A113: ='Methods&Limits'!A60 -> -- Tert-butyl alcohol | B113: ='Methods&Limits'!B60 -> % V/V | C113: ='Methods&Limits'!E60 -> EN-ISO 22854 | D113: ='Methods&Limits'!F60 -> 2021 | E113: ='Methods&Limits'!G60 -> 0.7 | G113: ='Methods&Limits'!I60 -> 15.413
A114: ='Methods&Limits'!A61 -> -- Iso-butyl alcohol | B114: ='Methods&Limits'!B61 -> % V/V | C114: ='Methods&Limits'!E61 -> EN-ISO 22854 | D114: ='Methods&Limits'!F61 -> 2021 | E114: ='Methods&Limits'!G61 -> 0.7 | G114: ='Methods&Limits'!I61 -> 15.413
A115: ='Methods&Limits'!A62 -> -- Ethers with 5 or more carbon atoms per molecule | B115: ='Methods&Limits'!B62 -> % V/V | C115: ='Methods&Limits'!E62 -> EN-ISO 22854 | D115: ='Methods&Limits'!F62 -> 2021 | E115: ='Methods&Limits'!G62 -> 0.9 | G115: ='Methods&Limits'!I62 -> 22.531
A116: ='Methods&Limits'!A63 -> -- other oxygenates | B116: ='Methods&Limits'!B63 -> % V/V | C116: ='Methods&Limits'!E63 -> EN-ISO 22854 | D116: ='Methods&Limits'!F63 -> 2021 | E116: ='Methods&Limits'!G63 -> 0.7 | G116: ='Methods&Limits'!I63 -> 15.413
A117: ='Methods&Limits'!A64:A64 -> Sulphur content (sulphur free, from 2005)** | B117: ='Methods&Limits'!B64 -> mg/kg | C117: ='Methods&Limits'!E64 -> EN-ISO 14596 | D117: ='Methods&Limits'!F64 -> 2018 | E117: ='Methods&Limits'!G64 -> 5 | G117: ='Methods&Limits'!I64 -> 12.95 | H117: =IF(E$38="","",IF(E$38>G117,"Yes","")) -> 
C118: ='Methods&Limits'!E65 -> EN 24260 | D118: ='Methods&Limits'!F65 -> 1994 | E118: ='Methods&Limits'!G65 -> 1 | G118: ='Methods&Limits'!I65 -> 10.59 | H118: =IF(E$38="","",IF(E$38>G118,"Yes","")) -> 
C119: ='Methods&Limits'!E66 -> EN-ISO 20846 | D119: ='Methods&Limits'!F66 -> 2019 | E119: ='Methods&Limits'!G66 -> 2.7 | G119: ='Methods&Limits'!I66 -> 11.593 | H119: =IF(E$38="","",IF(E$38>G119,"Yes","")) -> 
C120: ='Methods&Limits'!E67 -> EN-ISO 20884 | D120: ='Methods&Limits'!F67 -> 2019 | E120: ='Methods&Limits'!G67 -> 3.1 | G120: ='Methods&Limits'!I67 -> 11.829 | H120: =IF(E$38="","",IF(E$38>G120,"Yes","")) -> 
A121: ='Methods&Limits'!A68:A68 -> Lead content | B121: ='Methods&Limits'!B68 -> g/l | C121: ='Methods&Limits'!E68 -> EN 237 | D121: ='Methods&Limits'!F68 -> 2004 | E121: ='Methods&Limits'!G68 -> 0.0062 | G121: ='Methods&Limits'!I68 -> 0.008658 | H121: =IF(E39="","",IF(E39>G121,"Yes","")) -> 

Sheet Petrol (3)
A1: Market Fuels used in Vehicles with Spark Ignition Engines (Petrol) | R1: <-- GO BACK
A3: Country | B3: =IF(LEN('Contacts&Annual Summary'!C9) > 1,'Contacts&Annual Summary'!C9,"") ->  | G3: Notes on completing the tables The table structure has been locked to prevent modification - data can be copied and pasted, in bulk into the Reporting Results blue table cells. Where a white row exists between rows, it will not be possible to paste over white rows and sections should be pasted separately. Column H in the Test Methods and Analysis table is set to automatically check whether the values entered in the Reporting Results table exceed maximum or minimum Tolerance Limits. If any exceedance is detected, please provide details in the columns to the right including the number of samples, location samples were taken from, Values and Details of any action taken to address non-compliant samples. Compliance information is verified manually and this automated compliance check is not solely relied upon during data analysis. Please do not unlock this template - modified templates cannot be processed and may delay reporting.
A4: Reporting Year | B4: ='Contacts&Annual Summary'!C8 -> 2023
A5: Period (Summer or Winter) | B5: Summer
A6: Parent fuel grade | B6: Petrol
A7: National fuel grade
A8: Summer Period (N or A)* | B8: 0 | C8: =IF( B8="A","1st June to 31st August (arctic)","1st May to 30th September (normal)") -> 1st May to 30th September (normal)
A9: The maximum bioethanol content (% v/v) | B9: 0 | C9: Please include the bioethanol content as a numerical figure in % V/V
A10: * N = 1st May to 30th September (normal) ; A = 1st June to 31st August (arctic).
A12: Reporting results
A14: Parameter | B14: Unit | C14: Analytical and statistical results (Please see an explanation and examples for new columns/ information required in Cells I15 to K37 on the Introduction & Instructions tab). | L14: Limiting Value (1) | P14: Test method
L15: National Specification, if any | N15: According to Directive 2009/30/EC | P15: (more recent versions may also be used)
C16: No Samples | D16: Minimum | E16: Maximum | F16: Median | G16: Mean | H16: Standard Deviation | I16: No Samples outside 95% tolerance limit | J16: 25% of Sample Value | K16: 75% of Sample Value | L16: Minimum | M16: Maximum | N16: Minimum | O16: Maximum | P16: Method | Q16: Date
A17: Research Octane Number | B17: -- | C17: 0 | D17: 0 | E17: 0 | F17: 0 | G17: 0 | H17: 0 | I17: 0 | J17: 0 | K17: 0 | N17: 95 (2) | P17: EN-ISO 5164 | Q17: 2005
A18: Motor Octane Number | B18: -- | C18: 0 | D18: 0 | E18: 0 | F18: 0 | G18: 0 | H18: 0 | I18: 0 | J18: 0 | K18: 0 | N18: 85 (3) | P18: EN-ISO 5163 | Q18: 2005
A19: Vapour Pressure, DVPE (6) | B19: kPa | O19: (4)
A20: -- required for summer period only | C20: 0 | D20: 0 | E20: 0 | F20: 0 | G20: 0 | H20: 0 | I20: 0 | J20: 0 | K20: 0 | O20: =IF(E8="A",70,60) -> 60 | P20: EN 13106-1 | Q20: 2007
A21: Distillation | P21: EN-ISO 3405
A22: -- evaporated at 100 oC | B22: % V/V | C22: 0 | D22: 0 | E22: 0 | F22: 0 | G22: 0 | H22: 0 | I22: 0 | J22: 0 | K22: 0 | N22: 46 | Q22: 2000
A23: -- evaporated at 150 oC | B23: % V/V | C23: 0 | D23: 0 | E23: 0 | F23: 0 | G23: 0 | H23: 0 | I23: 0 | J23: 0 | K23: 0 | N23: 75
A24: Hydrocarbon analysis
A25: -- Olefins | B25: % V/V | C25: 0 | D25: 0 | E25: 0 | F25: 0 | G25: 0 | H25: 0 | I25: 0 | J25: 0 | K25: 0 | O25: 18.0 (5) | P25: ASTM D 1319 EN 15553 EN-ISO 22854 | Q25: 1995 2007 2008
A26: -- Aromatics | B26: % V/V | C26: 0 | D26: 0 | E26: 0 | F26: 0 | G26: 0 | H26: 0 | I26: 0 | J26: 0 | K26: 0 | O26: 35 | P26: EN-ISO 22854 | Q26: 1995 2008
A27: -- Benzene | B27: % V/V | C27: 0 | D27: 0 | E27: 0 | F27: 0 | G27: 0 | H27: 0 | I27: 0 | J27: 0 | K27: 0 | O27: 1 | P27: EN 238 EN 12177 EN-ISO 22854 | Q27: 1996 1998 2008
A28: =IF(C29>0,"Do not complete","Oxygen content") -> Oxygen content | B28: % (m/m) | C28: 0 | D28: 0 | E28: 0 | F28: 0 | G28: 0 | H28: 0 | I28: 0 | J28: 0 | K28: 0 | O28: 3.7 | P28: EN 1601 EN 13132 EN-ISO 22854 | Q28: 1997 2000 2008
A29: =IF(C28>0,"Do not complete","Oxygen content* *petrol with 5% (v/v) or less ethanol content") -> Oxygen content* *petrol with 5% (v/v) or less ethanol content | B29: % (m/m) | C29: 0 | D29: 0 | E29: 0 | F29: 0 | G29: 0 | H29: 0 | I29: 0 | J29: 0 | K29: 0 | O29: 2.7
A30: Oxygenates
A31: -- Methanol | B31: % V/V | C31: 0 | D31: 0 | E31: 0 | F31: 0 | G31: 0 | H31: 0 | I31: 0 | J31: 0 | K31: 0 | O31: 3
A32: -- Ethanol | B32: % V/V | C32: 0 | D32: 0 | E32: 0 | F32: 0 | G32: 0 | H32: 0 | I32: 0 | J32: 0 | K32: 0 | O32: 10
A33: -- Iso-propyl alcohol | B33: % V/V | C33: 0 | D33: 0 | E33: 0 | F33: 0 | G33: 0 | H33: 0 | I33: 0 | J33: 0 | K33: 0 | O33: 12 | P33: EN 1601 | Q33: 1997
A34: -- Tert-butyl alcohol | B34: % V/V | C34: 0 | D34: 0 | E34: 0 | F34: 0 | G34: 0 | H34: 0 | I34: 0 | J34: 0 | K34: 0 | O34: 15 | P34: EN 13132 | Q34: 2000
A35: -- Iso-butyl alcohol | B35: % V/V | C35: 0 | D35: 0 | E35: 0 | F35: 0 | G35: 0 | H35: 0 | I35: 0 | J35: 0 | K35: 0 | O35: 15 | P35: EN-ISO 22854 | Q35: 2008
A36: -- Ethers with ≥5 carbon atoms / molecule | B36: % V/V | C36: 0 | D36: 0 | E36: 0 | F36: 0 | G36: 0 | H36: 0 | I36: 0 | J36: 0 | K36: 0 | O36: 22
A37: -- other oxygenates | B37: % V/V | C37: 0 | D37: 0 | E37: 0 | F37: 0 | G37: 0 | H37: 0 | I37: 0 | J37: 0 | K37: 0 | O37: 15
A38: Sulphur content | B38: mg/kg | C38: 0 | D38: 0 | E38: 0 | F38: 0 | G38: 0 | H38: 0 | I38: 0 | J38: 0 | K38: 0 | O38: 10 | P38: EN-ISO 14596 EN 24260 EN-ISO 20846 EN-ISO 20884 | Q38: 1998 1994 2004 2004
A39: Lead content | B39: g/l | C39: 0 | D39: 0 | E39: 0 | F39: 0 | G39: 0 | H39: 0 | I39: 0 | J39: 0 | K39: 0 | O39: 0.005 | P39: EN 237 | Q39: 1996
A42: Sampling frequency
A44: Number of samples in month
A45: January | B45: 0 | C45: July | D45: 0 | E45: (1) The limiting values are "true values" and were established according to the procedures for limit setting in EN 228:2008 The results of individual measurements shall be interpreted following the criteria described in EN 228:2008.
A46: February | B46: 0 | C46: August | D46: 0
A47: March | B47: 0 | C47: September | D47: 0 | E47: (2) 91 for unleaded regular grade petrol: See 2009/30/EC Annex I, Footnote 3.
A48: April | B48: 0 | C48: October | D48: 0 | E48: (3) 81 for unleaded regular grade petrol: See 2009/30/EC Annex I, Footnote 3.
A49: May | B49: 0 | C49: November | D49: 0 | E49: (4) 70 kPa for Member States with arctic or severe weather conditions: See 2003/30/EC Annex I, Footnotes 4 & 5.
A50: June | B50: 0 | C50: December | D50: 0 | E50: (5) 21 for unleaded regular grade petrol: See 98/70/EC, Annex I, Footnote 6.
C51: Summer Months Total | D51: =SUM(B45:B50,D45:D50) -> 0 | E51: (6) Vapour pressure waiver applies for petrol containing Bioethanol, see 2009/30/EC Annex I, Footnote 5 and Annex III.
A53: Other notes (optional):
A57: Test Methods and Analysis
A59: Parameter | B59: Unit | C59: Test specified in 2009/30/EC or EN228:2008 | J59: Notes on exceedences
C60: Method | D60: Date | E60: Reproducability, R | F60: Tolerance limits | J60: Sample location (S,T or R) | K60: Values | L60: Details/action taken
F61: Minimum | G61: Maximum | H61: Exceeded?
A62: ='Methods&Limits'!A9 -> Research Octane Number (RON) | B62: ='Methods&Limits'!B9 -> -- | C62: ='Methods&Limits'!E9 -> EN-ISO 5164 | D62: ='Methods&Limits'!F9 -> 2014 | E62: ='Methods&Limits'!G9 -> 0.7 | F62: ='Methods&Limits'!H9 -> 94.587 | H62: =IF(D17="","",IF(D17<F62,"Yes","")) -> Yes
A63: ='Methods&Limits'!A10 -> (RON 91 fuel only) | B63: ='Methods&Limits'!B10 -> -- | C63: ='Methods&Limits'!E10 -> EN-ISO 5164 | D63: ='Methods&Limits'!F10 -> 2014 | E63: ='Methods&Limits'!G10 -> 0.7 | F63: ='Methods&Limits'!H10 -> 90.587 | H63: =IF(D17="","",IF(D17<F63,"Yes","")) -> Yes
A64: ='Methods&Limits'!A11 -> Motor Octane Number (MON) | B64: ='Methods&Limits'!B11 -> -- | C64: ='Methods&Limits'!E11 -> EN-ISO 5163 | D64: ='Methods&Limits'!F11 -> 2014 | E64: ='Methods&Limits'!G11 -> 0.9 | F64: ='Methods&Limits'!H11 -> 84.469 | H64: =IF(D18="","",IF(D18<F64,"Yes","")) -> Yes
A65: ='Methods&Limits'!A12 -> (RON 91 fuel only) | B65: ='Methods&Limits'!B12 -> -- | C65: ='Methods&Limits'!E12 -> EN-ISO 5163 | D65: ='Methods&Limits'!F12 -> 2014 | E65: ='Methods&Limits'!G12 -> 0.9 | F65: ='Methods&Limits'!H12 -> 80.469 | H65: =IF(D18="","",IF(D18<F65,"Yes","")) -> Yes
A66: ='Methods&Limits'!A13 -> Vapour Pressure, DVPE
A67: ='Methods&Limits'!A14 -> --summer period (normal) | B67: ='Methods&Limits'!B14 -> kPa | C67: ='Methods&Limits'!E14 -> EN 13016-1 | D67: ='Methods&Limits'!F14 -> 2018 | E67: ='Methods&Limits'!G14 -> 2.2 | G67: ='Methods&Limits'!I14 -> 61.298 | H67: =IF(E20>G67,"Yes","") -> 
A68: ='Methods&Limits'!A15 -> -- Petrol with bioethanol content 0-2 | B68: ='Methods&Limits'!B15 -> kPa | C68: ='Methods&Limits'!E15 -> EN 1601 | D68: ='Methods&Limits'!F15 -> 2017 | E68: ='Methods&Limits'!G15 -> 2.3 | G68: ='Methods&Limits'!I15 -> 67.307 | H68: =IF(E20>G68,"Yes","") -> 
A69: ='Methods&Limits'!A16 -> -- Petrol with bioethanol content 2-4 | B69: ='Methods&Limits'!B16 -> kPa | C69: ='Methods&Limits'!E16 -> EN 1601 | D69: ='Methods&Limits'!F16 -> 2017 | E69: ='Methods&Limits'!G16 -> 2.3 | G69: ='Methods&Limits'!I16 -> 69.157 | H69: =IF(E20>G69,"Yes","") -> 
A70: ='Methods&Limits'!A17 -> -- Petrol with bioethanol content 4-6 | B70: ='Methods&Limits'!B17 -> kPa | C70: ='Methods&Limits'!E17 -> EN 1601 | D70: ='Methods&Limits'!F17 -> 2017 | E70: ='Methods&Limits'!G17 -> 2.3 | G70: ='Methods&Limits'!I17 -> 69.357 | H70: =IF(E20>G70,"Yes","") -> 
A71: ='Methods&Limits'!A18 -> -- Petrol with bioethanol content 6-8 | B71: ='Methods&Limits'!B18 -> kPa | C71: ='Methods&Limits'!E18 -> EN 1601 | D71: ='Methods&Limits'!F18 -> 2017 | E71: ='Methods&Limits'!G18 -> 2.3 | G71: ='Methods&Limits'!I18 -> 69.237 | H71: =IF(E20>G71,"Yes","") -> 
A72: ='Methods&Limits'!A19 -> -- Petrol with bioethanol content 8-10 | B72: ='Methods&Limits'!B19 -> kPa | C72: ='Methods&Limits'!E19 -> EN 1601 | D72: ='Methods&Limits'!F19 -> 2017 | E72: ='Methods&Limits'!G19 -> 2.3 | G72: ='Methods&Limits'!I19 -> 69.117 | H72: =IF(E20>G72,"Yes","") -> 
A73: ='Methods&Limits'!A20 -> --summer period (arctic or severe weather conditions) | B73: ='Methods&Limits'!B20 -> kPa | C73: ='Methods&Limits'!E20 -> EN 13016-1 | D73: ='Methods&Limits'!F20 -> 2018 | E73: ='Methods&Limits'!G20 -> 2.3 | G73: ='Methods&Limits'!I20 -> 71.357 | H73: =IF(E20>G73,"Yes","") -> 
A74: ='Methods&Limits'!A21 -> Distillation *
A75: ='Methods&Limits'!A22 -> --evaporated at 100 oC | B75: ='Methods&Limits'!B22 -> % V/V | C75: ='Methods&Limits'!E22 -> EN-ISO 3405 | D75: ='Methods&Limits'!F22 -> 2020 | E75: ='Methods&Limits'!G22 -> 4 | F75: ='Methods&Limits'!H22 -> 43.64 | H75: =IF(D22="","",IF(D22<F75,"Yes","")) -> Yes
A76: ='Methods&Limits'!A23 -> -- evaporated at 150 oC | B76: ='Methods&Limits'!B23 -> % V/V | C76: ='Methods&Limits'!E23 -> EN-ISO 3405 | D76: ='Methods&Limits'!F23 -> 2020 | E76: ='Methods&Limits'!G23 -> 4 | F76: ='Methods&Limits'!H23 -> 72.64 | H76: =IF(D23="","",IF(D23<F76,"Yes","")) -> Yes
A77: ='Methods&Limits'!A24 -> Hydrocarbon analysis | H77: =IF(D24<F77,"Yes","") -> 
A78: ='Methods&Limits'!A25 -> -- Olefins | B78: ='Methods&Limits'!B25 -> % V/V | C78: ='Methods&Limits'!E25 -> EN 15553 | D78: ='Methods&Limits'!F25 -> 2021 | E78: ='Methods&Limits'!G25 -> 6.4 | G78: ='Methods&Limits'!I25 -> 21.776 | H78: =IF($E$25>G78,"Yes","") -> 
C79: ='Methods&Limits'!E26 -> EN-ISO 22854 | D79: ='Methods&Limits'!F26 -> 2021 | E79: ='Methods&Limits'!G26 -> 2.6 | G79: ='Methods&Limits'!I26 -> 19.534 | H79: =IF($E$25>G79,"Yes","") -> 
A80: ='Methods&Limits'!A27 -> *without oxygenates | C80: ='Methods&Limits'!E27 -> EN 15553 | D80: ='Methods&Limits'!F27 -> 2021 | E80: ='Methods&Limits'!G27 -> - | G80: ='Methods&Limits'!I27 -> - | H80: =IF($E$25>G80,"Yes","") -> 
C81: ='Methods&Limits'!E28 -> EN-ISO 22854 | D81: ='Methods&Limits'!F28 -> 2021 | E81: ='Methods&Limits'!G28 -> - | G81: ='Methods&Limits'!I28 -> - | H81: =IF($E$25>G81,"Yes","") -> 
A82: ='Methods&Limits'!A29 -> -- Olefins (RON 91 fuel only)*** | B82: ='Methods&Limits'!B29 -> % V/V | C82: ='Methods&Limits'!E29 -> ASTM D1319 | D82: ='Methods&Limits'!F29 -> 2020 | E82: ='Methods&Limits'!G29 -> 5.1 | G82: ='Methods&Limits'!I29 -> 24.009 | H82: =IF($E$25>G82,"Yes","") -> 
A83: ='Methods&Limits'!A30 -> -- Aromatics (from 2005) | C83: ='Methods&Limits'!E30 -> EN-ISO 22854 | D83: ='Methods&Limits'!F30 -> 2021 | E83: ='Methods&Limits'!G30 -> 1.7 | G83: ='Methods&Limits'!I30 -> 36.003 | H83: =IF($E$26>G83,"Yes","") -> 
A84: ='Methods&Limits'!A31 -> -- Benzene | B84: ='Methods&Limits'!B31 -> % V/V | C84: ='Methods&Limits'!E31 -> EN 12177 | D84: ='Methods&Limits'!F31 -> 2022 | E84: ='Methods&Limits'!G31 -> 0.1 | G84: ='Methods&Limits'!I31 -> 1.059 | H84: =IF(E27>G84,"Yes","") -> 
C85: ='Methods&Limits'!E32 -> EN 238 | D85: ='Methods&Limits'!F32 -> 1996 | E85: ='Methods&Limits'!G32 -> 0.17 | G85: ='Methods&Limits'!I32 -> 1.1003 | H85: =IF(E27>G85,"Yes","") -> 
C86: ='Methods&Limits'!E33 -> EN-ISO 22854 | D86: ='Methods&Limits'!F33 -> 2021 | E86: ='Methods&Limits'!G33 -> 0.05 | G86: ='Methods&Limits'!I33 -> 1.0295 | H86: =IF(E27>G86,"Yes","") -> 
A87: ='Methods&Limits'!A34 -> Oxygen content | B87: ='Methods&Limits'!B34 -> % (m/m) | C87: ='Methods&Limits'!E34 -> EN 1601 | D87: ='Methods&Limits'!F34 -> 2017 | E87: ='Methods&Limits'!G34 -> 0.41 | G87: ='Methods&Limits'!I34 -> 3.9419 | H87: =IF(E28>G87,"Yes","") -> 
C88: ='Methods&Limits'!E35 -> EN 1601 | D88: ='Methods&Limits'!F35 -> 2017 | E88: ='Methods&Limits'!G35 -> 0.41 | G88: ='Methods&Limits'!I35 -> 2.9419 | H88: =IF(E29>G88,"Yes","") -> 
A89: ='Methods&Limits'!A36 -> Oxygenates
A90: ='Methods&Limits'!A37 -> -- Methanol | B90: ='Methods&Limits'!B37 -> % V/V | C90: ='Methods&Limits'!E37 -> EN 1601 | D90: ='Methods&Limits'!F37 -> 2017 | E90: ='Methods&Limits'!G37 -> 0.3 | G90: ='Methods&Limits'!I37 -> 3.177 | H90: =IF(E31>G90,"Yes","") -> 
A91: ='Methods&Limits'!A38 -> -- Ethanol | B91: ='Methods&Limits'!B38 -> % V/V | C91: ='Methods&Limits'!E38 -> EN 1601 | D91: ='Methods&Limits'!F38 -> 2017 | E91: ='Methods&Limits'!G38 -> 0.8 | G91: ='Methods&Limits'!I38 -> 10.472
A92: ='Methods&Limits'!A39 -> -- Iso-propyl alcohol | B92: ='Methods&Limits'!B39 -> % V/V | C92: ='Methods&Limits'!E39 -> EN 1601 | D92: ='Methods&Limits'!F39 -> 2017 | E92: ='Methods&Limits'!G39 -> 0.9 | G92: ='Methods&Limits'!I39 -> 12.531
A93: ='Methods&Limits'!A40 -> -- Tert-butyl alcohol | B93: ='Methods&Limits'!B40 -> % V/V | C93: ='Methods&Limits'!E40 -> EN 1601 | D93: ='Methods&Limits'!F40 -> 2017 | E93: ='Methods&Limits'!G40 -> 1 | G93: ='Methods&Limits'!I40 -> 15.59
A94: ='Methods&Limits'!A41 -> -- Iso-butyl alcohol | B94: ='Methods&Limits'!B41 -> % V/V | C94: ='Methods&Limits'!E41 -> EN 1601 | D94: ='Methods&Limits'!F41 -> 2017 | E94: ='Methods&Limits'!G41 -> 1 | G94: ='Methods&Limits'!I41 -> 15.59
A95: ='Methods&Limits'!A42 -> -- Ethers with 5 or more carbon atoms per molecule | B95: ='Methods&Limits'!B42 -> % V/V | C95: ='Methods&Limits'!E42 -> EN 1601 | D95: ='Methods&Limits'!F42 -> 2017 | E95: ='Methods&Limits'!G42 -> 1 | G95: ='Methods&Limits'!I42 -> 22.59
A96: ='Methods&Limits'!A43 -> -- other oxygenates | B96: ='Methods&Limits'!B43 -> % V/V | C96: ='Methods&Limits'!E43 -> EN 1601 | D96: ='Methods&Limits'!F43 -> 2017 | E96: ='Methods&Limits'!G43 -> 1 | G96: ='Methods&Limits'!I43 -> 15.59
A97: ='Methods&Limits'!A44 -> Oxygen content | B97: ='Methods&Limits'!B44 -> % (m/m) | C97: ='Methods&Limits'!E44 -> EN 13132 | D97: ='Methods&Limits'!F44 -> 2002 | E97: ='Methods&Limits'!G44 -> 0.3 | G97: ='Methods&Limits'!I44 -> 3.877 | H97: =IF(E28>G97,"Yes","") -> 
C98: ='Methods&Limits'!E45 -> EN 13132 | D98: ='Methods&Limits'!F45 -> 2002 | E98: ='Methods&Limits'!G45 -> 0.3 | G98: ='Methods&Limits'!I45 -> 2.877 | H98: =IF(E29>G98,"Yes","") -> 
A99: ='Methods&Limits'!A46 -> Oxygenates
A100: ='Methods&Limits'!A47 -> -- Methanol | B100: ='Methods&Limits'!B47 -> % V/V | C100: ='Methods&Limits'!E47 -> EN 13132 | D100: ='Methods&Limits'!F47 -> 2002 | E100: ='Methods&Limits'!G47 -> 0.3 | G100: ='Methods&Limits'!I47 -> 3.177 | H100: =IF(E31>G100,"Yes","") -> 
A101: ='Methods&Limits'!A48 -> -- Ethanol | B101: ='Methods&Limits'!B48 -> % V/V | C101: ='Methods&Limits'!E48 -> EN 13132 | D101: ='Methods&Limits'!F48 -> 2002 | E101: ='Methods&Limits'!G48 -> 0.8 | G101: ='Methods&Limits'!I48 -> 10.472
A102: ='Methods&Limits'!A49 -> -- Iso-propyl alcohol | B102: ='Methods&Limits'!B49 -> % V/V | C102: ='Methods&Limits'!E49 -> EN 13132 | D102: ='Methods&Limits'!F49 -> 2002 | E102: ='Methods&Limits'!G49 -> 0.8 | G102: ='Methods&Limits'!I49 -> 12.472
A103: ='Methods&Limits'!A50 -> -- Tert-butyl alcohol | B103: ='Methods&Limits'!B50 -> % V/V | C103: ='Methods&Limits'!E50 -> EN 13132 | D103: ='Methods&Limits'!F50 -> 2002 | E103: ='Methods&Limits'!G50 -> 1 | G103: ='Methods&Limits'!I50 -> 15.59
A104: ='Methods&Limits'!A51 -> -- Iso-butyl alcohol | B104: ='Methods&Limits'!B51 -> % V/V | C104: ='Methods&Limits'!E51 -> EN 13132 | D104: ='Methods&Limits'!F51 -> 2002 | E104: ='Methods&Limits'!G51 -> 1 | G104: ='Methods&Limits'!I51 -> 15.59
A105: ='Methods&Limits'!A52 -> -- Ethers with 5 or more carbon atoms per molecule | B105: ='Methods&Limits'!B52 -> % V/V | C105: ='Methods&Limits'!E52 -> EN 13132 | D105: ='Methods&Limits'!F52 -> 2002 | E105: ='Methods&Limits'!G52 -> 1 | G105: ='Methods&Limits'!I52 -> 22.59
A106: ='Methods&Limits'!A53 -> -- other oxygenates | B106: ='Methods&Limits'!B53 -> % V/V | C106: ='Methods&Limits'!E53 -> EN 13132 | D106: ='Methods&Limits'!F53 -> 2002 | E106: ='Methods&Limits'!G53 -> 1 | G106: ='Methods&Limits'!I53 -> 15.59
A107: ='Methods&Limits'!A54 -> Oxygen content | B107: ='Methods&Limits'!B54 -> % (m/m) | C107: ='Methods&Limits'!E54 -> EN-ISO 22854 | D107: ='Methods&Limits'!F54 -> 2021 | E107: ='Methods&Limits'!G54 -> 0.4 | G107: ='Methods&Limits'!I54 -> 3.936 | H107: =IF(E28>G107,"Yes","") -> 
C108: ='Methods&Limits'!E55 -> EN-ISO 22854 | D108: ='Methods&Limits'!F55 -> 2021 | E108: ='Methods&Limits'!G55 -> 0.4 | G108: ='Methods&Limits'!I55 -> 2.936 | H108: =IF(E29>G108,"Yes","") -> 
A109: ='Methods&Limits'!A56 -> Oxyginates
A110: ='Methods&Limits'!A57 -> -- Methanol | B110: ='Methods&Limits'!B57 -> % V/V | C110: ='Methods&Limits'!E57 -> EN-ISO 22854 | D110: ='Methods&Limits'!F57 -> 2021 | E110: ='Methods&Limits'!G57 -> 0.4 | G110: ='Methods&Limits'!I57 -> 3.236 | H110: =IF(E31>G110,"Yes","") -> 
A111: ='Methods&Limits'!A58 -> -- Ethanol | B111: ='Methods&Limits'!B58 -> % V/V | C111: ='Methods&Limits'!E58 -> EN-ISO 22854 | D111: ='Methods&Limits'!F58 -> 2021 | E111: ='Methods&Limits'!G58 -> 0.6 | G111: ='Methods&Limits'!I58 -> 10.354
A112: ='Methods&Limits'!A59 -> -- Iso-propyl alcohol | B112: ='Methods&Limits'!B59 -> % V/V | C112: ='Methods&Limits'!E59 -> EN-ISO 22854 | D112: ='Methods&Limits'!F59 -> 2021 | E112: ='Methods&Limits'!G59 -> 0.7 | G112: ='Methods&Limits'!I59 -> 12.413
A113: ='Methods&Limits'!A60 -> -- Tert-butyl alcohol | B113: ='Methods&Limits'!B60 -> % V/V | C113: ='Methods&Limits'!E60 -> EN-ISO 22854 | D113: ='Methods&Limits'!F60 -> 2021 | E113: ='Methods&Limits'!G60 -> 0.7 | G113: ='Methods&Limits'!I60 -> 15.413
A114: ='Methods&Limits'!A61 -> -- Iso-butyl alcohol | B114: ='Methods&Limits'!B61 -> % V/V | C114: ='Methods&Limits'!E61 -> EN-ISO 22854 | D114: ='Methods&Limits'!F61 -> 2021 | E114: ='Methods&Limits'!G61 -> 0.7 | G114: ='Methods&Limits'!I61 -> 15.413
A115: ='Methods&Limits'!A62 -> -- Ethers with 5 or more carbon atoms per molecule | B115: ='Methods&Limits'!B62 -> % V/V | C115: ='Methods&Limits'!E62 -> EN-ISO 22854 | D115: ='Methods&Limits'!F62 -> 2021 | E115: ='Methods&Limits'!G62 -> 0.9 | G115: ='Methods&Limits'!I62 -> 22.531
A116: ='Methods&Limits'!A63 -> -- other oxygenates | B116: ='Methods&Limits'!B63 -> % V/V | C116: ='Methods&Limits'!E63 -> EN-ISO 22854 | D116: ='Methods&Limits'!F63 -> 2021 | E116: ='Methods&Limits'!G63 -> 0.7 | G116: ='Methods&Limits'!I63 -> 15.413
A117: ='Methods&Limits'!A64:A64 -> Sulphur content (sulphur free, from 2005)** | B117: ='Methods&Limits'!B64 -> mg/kg | C117: ='Methods&Limits'!E64 -> EN-ISO 14596 | D117: ='Methods&Limits'!F64 -> 2018 | E117: ='Methods&Limits'!G64 -> 5 | G117: ='Methods&Limits'!I64 -> 12.95 | H117: =IF(E$38>G117,"Yes","") -> 
C118: ='Methods&Limits'!E65 -> EN 24260 | D118: ='Methods&Limits'!F65 -> 1994 | E118: ='Methods&Limits'!G65 -> 1 | G118: ='Methods&Limits'!I65 -> 10.59 | H118: =IF(E$38>G118,"Yes","") -> 
C119: ='Methods&Limits'!E66 -> EN-ISO 20846 | D119: ='Methods&Limits'!F66 -> 2019 | E119: ='Methods&Limits'!G66 -> 2.7 | G119: ='Methods&Limits'!I66 -> 11.593 | H119: =IF(E$38>G119,"Yes","") -> 
C120: ='Methods&Limits'!E67 -> EN-ISO 20884 | D120: ='Methods&Limits'!F67 -> 2019 | E120: ='Methods&Limits'!G67 -> 3.1 | G120: ='Methods&Limits'!I67 -> 11.829 | H120: =IF(E$38>G120,"Yes","") -> 
A121: ='Methods&Limits'!A68:A68 -> Lead content | B121: ='Methods&Limits'!B68 -> g/l | C121: ='Methods&Limits'!E68 -> EN 237 | D121: ='Methods&Limits'!F68 -> 2004 | E121: ='Methods&Limits'!G68 -> 0.0062 | G121: ='Methods&Limits'!I68 -> 0.008658 | H121: =IF($E$39>G121,"Yes","") -> 

Sheet Petrol (4)
A1: Market Fuels used in Vehicles with Spark Ignition Engines (Petrol) | R1: <-- GO BACK
A3: Country | B3: =IF(LEN('Contacts&Annual Summary'!C9) > 1,'Contacts&Annual Summary'!C9,"") ->  | G3: Notes on completing the tables The table structure has been locked to prevent modification - data can be copied and pasted, in bulk into the Reporting Results blue table cells. Where a white row exists between rows, it will not be possible to paste over white rows and sections should be pasted separately. Column H in the Test Methods and Analysis table is set to automatically check whether the values entered in the Reporting Results table exceed maximum or minimum Tolerance Limits. If any exceedance is detected, please provide details in the columns to the right including the number of samples, location samples were taken from, Values and Details of any action taken to address non-compliant samples. Compliance information is verified manually and this automated compliance check is not solely relied upon during data analysis. Please do not unlock this template - modified templates cannot be processed and may delay reporting.
A4: Reporting Year | B4: ='Contacts&Annual Summary'!C8 -> 2023
A5: Period (Summer or Winter) | B5: Winter
A6: Parent fuel grade | B6: Petrol
A7: National fuel grade | B7: ='Petrol (3)'!B7 -> 0
A8: Summer Period (N or A)* | B8: 0 | C8: =IF( B8="A","1st June to 31st August (arctic)","1st May to 30th September (normal)") -> 1st May to 30th September (normal)
A9: The maximum bioethanol content (% v/v) | B9: 0 | C9: Please include the bioethanol content as a numerical figure in % V/V
A10: * N = 1st May to 30th September (normal) ; A = 1st June to 31st August (arctic).
A12: Reporting results
A14: Parameter | B14: Unit | C14: Analytical and statistical results (Please see an explanation and examples for new columns/ information required in Cells I15 to K37 on the Introduction & Instructions tab). | L14: Limiting Value (1) | P14: Test method
L15: National Specification, if any | N15: According to Directive 2009/30/EC | P15: (more recent versions may also be used)
C16: No Samples | D16: Minimum | E16: Maximum | F16: Median | G16: Mean | H16: Standard Deviation | I16: No Samples outside 95% tolerance limit | J16: 25% of Sample Value | K16: 75% of Sample Value | L16: Minimum | M16: Maximum | N16: Minimum | O16: Maximum | P16: Method | Q16: Date
A17: Research Octane Number | B17: -- | C17: 0 | D17: 0 | E17: 0 | F17: 0 | G17: 0 | H17: 0 | I17: 0 | J17: 0 | K17: 0 | N17: 95 (2) | P17: EN-ISO 5164 | Q17: 2005
A18: Motor Octane Number | B18: -- | C18: 0 | D18: 0 | E18: 0 | F18: 0 | G18: 0 | H18: 0 | I18: 0 | J18: 0 | K18: 0 | N18: 85 (3) | P18: EN-ISO 5163 | Q18: 2005
A19: Vapour Pressure, DVPE (6) | B19: kPa | O19: (4)
A20: -- required for summer period only | C20: 0 | D20: 0 | E20: 0 | F20: 0 | G20: 0 | H20: 0 | I20: 0 | J20: 0 | K20: 0 | O20: =IF(E8="A",70,60) -> 60 | P20: EN 13106-1 | Q20: 2007
A21: Distillation | P21: EN-ISO 3405
A22: -- evaporated at 100 oC | B22: % V/V | C22: 0 | D22: 0 | E22: 0 | F22: 0 | G22: 0 | H22: 0 | I22: 0 | J22: 0 | K22: 0 | N22: 46 | Q22: 2000
A23: -- evaporated at 150 oC | B23: % V/V | C23: 0 | D23: 0 | E23: 0 | F23: 0 | G23: 0 | H23: 0 | I23: 0 | J23: 0 | K23: 0 | N23: 75
A24: Hydrocarbon analysis
A25: -- Olefins | B25: % V/V | C25: 0 | D25: 0 | E25: 0 | F25: 0 | G25: 0 | H25: 0 | I25: 0 | J25: 0 | K25: 0 | O25: 18.0 (5) | P25: ASTM D 1319 EN 15553 EN-ISO 22854 | Q25: 1995 2007 2008
A26: -- Aromatics | B26: % V/V | C26: 0 | D26: 0 | E26: 0 | F26: 0 | G26: 0 | H26: 0 | I26: 0 | J26: 0 | K26: 0 | O26: 35 | P26: EN-ISO 22854 | Q26: 1995 2008
A27: -- Benzene | B27: % V/V | C27: 0 | D27: 0 | E27: 0 | F27: 0 | G27: 0 | H27: 0 | I27: 0 | J27: 0 | K27: 0 | O27: 1 | P27: EN 238 EN 12177 EN-ISO 22854 | Q27: 1996 1998 2008
A28: =IF(C29>0,"Do not complete","Oxygen content") -> Oxygen content | B28: % (m/m) | C28: 0 | D28: 0 | E28: 0 | F28: 0 | G28: 0 | H28: 0 | I28: 0 | J28: 0 | K28: 0 | O28: 3.7 | P28: EN 1601 EN 13132 EN-ISO 22854 | Q28: 1997 2000 2008
A29: =IF(C28>0,"Do not complete","Oxygen content* *petrol with 5% (v/v) or less ethanol content") -> Oxygen content* *petrol with 5% (v/v) or less ethanol content | B29: % (m/m) | C29: 0 | D29: 0 | E29: 0 | F29: 0 | G29: 0 | H29: 0 | I29: 0 | J29: 0 | K29: 0 | O29: 2.7
A30: Oxygenates
A31: -- Methanol | B31: % V/V | C31: 0 | D31: 0 | E31: 0 | F31: 0 | G31: 0 | H31: 0 | I31: 0 | J31: 0 | K31: 0 | O31: 3
A32: -- Ethanol | B32: % V/V | C32: 0 | D32: 0 | E32: 0 | F32: 0 | G32: 0 | H32: 0 | I32: 0 | J32: 0 | K32: 0 | O32: 10
A33: -- Iso-propyl alcohol | B33: % V/V | C33: 0 | D33: 0 | E33: 0 | F33: 0 | G33: 0 | H33: 0 | I33: 0 | J33: 0 | K33: 0 | O33: 12 | P33: EN 1601 | Q33: 1997
A34: -- Tert-butyl alcohol | B34: % V/V | C34: 0 | D34: 0 | E34: 0 | F34: 0 | G34: 0 | H34: 0 | I34: 0 | J34: 0 | K34: 0 | O34: 15 | P34: EN 13132 | Q34: 2000
A35: -- Iso-butyl alcohol | B35: % V/V | C35: 0 | D35: 0 | E35: 0 | F35: 0 | G35: 0 | H35: 0 | I35: 0 | J35: 0 | K35: 0 | O35: 15 | P35: EN-ISO 22854 | Q35: 2008
A36: -- Ethers with ≥5 carbon atoms / molecule | B36: % V/V | C36: 0 | D36: 0 | E36: 0 | F36: 0 | G36: 0 | H36: 0 | I36: 0 | J36: 0 | K36: 0 | O36: 22
A37: -- other oxygenates | B37: % V/V | C37: 0 | D37: 0 | E37: 0 | F37: 0 | G37: 0 | H37: 0 | I37: 0 | J37: 0 | K37: 0 | O37: 15
A38: Sulphur content | B38: mg/kg | C38: 0 | D38: 0 | E38: 0 | F38: 0 | G38: 0 | H38: 0 | I38: 0 | J38: 0 | K38: 0 | O38: 10 | P38: EN-ISO 14596 EN 24260 EN-ISO 20846 EN-ISO 20884 | Q38: 1998 1994 2004 2004
A39: Lead content | B39: g/l | C39: 0 | D39: 0 | E39: 0 | F39: 0 | G39: 0 | H39: 0 | I39: 0 | J39: 0 | K39: 0 | O39: 0.005 | P39: EN 237 | Q39: 1996
A42: Sampling frequency
A44: Number of samples in month
A45: January | B45: 0 | C45: July | D45: 0 | E45: (1) The limiting values are "true values" and were established according to the procedures for limit setting in EN 228:2008 The results of individual measurements shall be interpreted following the criteria described in EN 228:2008.
A46: February | B46: 0 | C46: August | D46: 0
A47: March | B47: 0 | C47: September | D47: 0 | E47: (2) 91 for unleaded regular grade petrol: See 2009/30/EC Annex I, Footnote 3.
A48: April | B48: 0 | C48: October | D48: 0 | E48: (3) 81 for unleaded regular grade petrol: See 2009/30/EC Annex I, Footnote 3.
A49: May | B49: 0 | C49: November | D49: 0 | E49: (4) 70 kPa for Member States with arctic or severe weather conditions: See 2003/30/EC Annex I, Footnotes 4 & 5.
A50: June | B50: 0 | C50: December | D50: 0 | E50: (5) 21 for unleaded regular grade petrol: See 98/70/EC, Annex I, Footnote 6.
C51: Winter Months Total | D51: =SUM(B45:B50,D45:D50) -> 0 | E51: (6) Vapour pressure waiver applies for petrol containing Bioethanol, see 2009/30/EC Annex I, Footnote 5 and Annex III.
A53: Other notes (optional):
A57: Test Methods and Analysis
A59: Parameter | B59: Unit | C59: Test specified in 2009/30/EC or EN228:2008 | J59: Notes on exceedences
C60: Method | D60: Date | E60: Reproducability, R | F60: Tolerance limits | J60: Sample location (S,T or R) | K60: Values | L60: Details/action taken
F61: Minimum | G61: Maximum | H61: Exceeded?
A62: ='Methods&Limits'!A9 -> Research Octane Number (RON) | B62: ='Methods&Limits'!B9 -> -- | C62: ='Methods&Limits'!E9 -> EN-ISO 5164 | D62: ='Methods&Limits'!F9 -> 2014 | E62: ='Methods&Limits'!G9 -> 0.7 | F62: ='Methods&Limits'!H9 -> 94.587 | H62: =IF(D17="","",IF(D17<F62,"Yes","")) -> Yes
A63: ='Methods&Limits'!A10 -> (RON 91 fuel only) | B63: ='Methods&Limits'!B10 -> -- | C63: ='Methods&Limits'!E10 -> EN-ISO 5164 | D63: ='Methods&Limits'!F10 -> 2014 | E63: ='Methods&Limits'!G10 -> 0.7 | F63: ='Methods&Limits'!H10 -> 90.587 | H63: =IF(D17="","",IF(D17<F63,"Yes","")) -> Yes
A64: ='Methods&Limits'!A11 -> Motor Octane Number (MON) | B64: ='Methods&Limits'!B11 -> -- | C64: ='Methods&Limits'!E11 -> EN-ISO 5163 | D64: ='Methods&Limits'!F11 -> 2014 | E64: ='Methods&Limits'!G11 -> 0.9 | F64: ='Methods&Limits'!H11 -> 84.469 | H64: =IF(D18="","",IF(D18<F64,"Yes","")) -> Yes
A65: ='Methods&Limits'!A12 -> (RON 91 fuel only) | B65: ='Methods&Limits'!B12 -> -- | C65: ='Methods&Limits'!E12 -> EN-ISO 5163 | D65: ='Methods&Limits'!F12 -> 2014 | E65: ='Methods&Limits'!G12 -> 0.9 | F65: ='Methods&Limits'!H12 -> 80.469 | H65: =IF(D18="","",IF(D18<F65,"Yes","")) -> Yes
A66: ='Methods&Limits'!A13 -> Vapour Pressure, DVPE
A67: ='Methods&Limits'!A14 -> --summer period (normal) | B67: ='Methods&Limits'!B14 -> kPa | C67: ='Methods&Limits'!E14 -> EN 13016-1 | D67: ='Methods&Limits'!F14 -> 2018 | E67: ='Methods&Limits'!G14 -> 2.2 | G67: ='Methods&Limits'!I14 -> 61.298
A68: ='Methods&Limits'!A15 -> -- Petrol with bioethanol content 0-2 | B68: ='Methods&Limits'!B15 -> kPa | C68: ='Methods&Limits'!E15 -> EN 1601 | D68: ='Methods&Limits'!F15 -> 2017 | E68: ='Methods&Limits'!G15 -> 2.3 | G68: ='Methods&Limits'!I15 -> 67.307
A69: ='Methods&Limits'!A16 -> -- Petrol with bioethanol content 2-4 | B69: ='Methods&Limits'!B16 -> kPa | C69: ='Methods&Limits'!E16 -> EN 1601 | D69: ='Methods&Limits'!F16 -> 2017 | E69: ='Methods&Limits'!G16 -> 2.3 | G69: ='Methods&Limits'!I16 -> 69.157
A70: ='Methods&Limits'!A17 -> -- Petrol with bioethanol content 4-6 | B70: ='Methods&Limits'!B17 -> kPa | C70: ='Methods&Limits'!E17 -> EN 1601 | D70: ='Methods&Limits'!F17 -> 2017 | E70: ='Methods&Limits'!G17 -> 2.3 | G70: ='Methods&Limits'!I17 -> 69.357
A71: ='Methods&Limits'!A18 -> -- Petrol with bioethanol content 6-8 | B71: ='Methods&Limits'!B18 -> kPa | C71: ='Methods&Limits'!E18 -> EN 1601 | D71: ='Methods&Limits'!F18 -> 2017 | E71: ='Methods&Limits'!G18 -> 2.3 | G71: ='Methods&Limits'!I18 -> 69.237
A72: ='Methods&Limits'!A19 -> -- Petrol with bioethanol content 8-10 | B72: ='Methods&Limits'!B19 -> kPa | C72: ='Methods&Limits'!E19 -> EN 1601 | D72: ='Methods&Limits'!F19 -> 2017 | E72: ='Methods&Limits'!G19 -> 2.3 | G72: ='Methods&Limits'!I19 -> 69.117
A73: ='Methods&Limits'!A20 -> --summer period (arctic or severe weather conditions) | B73: ='Methods&Limits'!B20 -> kPa | C73: ='Methods&Limits'!E20 -> EN 13016-1 | D73: ='Methods&Limits'!F20 -> 2018 | E73: ='Methods&Limits'!G20 -> 2.3 | G73: ='Methods&Limits'!I20 -> 71.357
A74: ='Methods&Limits'!A21 -> Distillation *
A75: ='Methods&Limits'!A22 -> --evaporated at 100 oC | B75: ='Methods&Limits'!B22 -> % V/V | C75: ='Methods&Limits'!E22 -> EN-ISO 3405 | D75: ='Methods&Limits'!F22 -> 2020 | E75: ='Methods&Limits'!G22 -> 4 | F75: ='Methods&Limits'!H22 -> 43.64 | H75: =IF(D22="","",IF(D22<F75,"Yes","")) -> Yes
A76: ='Methods&Limits'!A23 -> -- evaporated at 150 oC | B76: ='Methods&Limits'!B23 -> % V/V | C76: ='Methods&Limits'!E23 -> EN-ISO 3405 | D76: ='Methods&Limits'!F23 -> 2020 | E76: ='Methods&Limits'!G23 -> 4 | F76: ='Methods&Limits'!H23 -> 72.64 | H76: =IF(D23="","",IF(D23<F76,"Yes","")) -> Yes
A77: ='Methods&Limits'!A24 -> Hydrocarbon analysis | H77: =IF(D24<F77,"Yes","") -> 
A78: ='Methods&Limits'!A25 -> -- Olefins | B78: ='Methods&Limits'!B25 -> % V/V | C78: ='Methods&Limits'!E25 -> EN 15553 | D78: ='Methods&Limits'!F25 -> 2021 | E78: ='Methods&Limits'!G25 -> 6.4 | G78: ='Methods&Limits'!I25 -> 21.776 | H78: =IF($E$25>G78,"Yes","") -> 
C79: ='Methods&Limits'!E26 -> EN-ISO 22854 | D79: ='Methods&Limits'!F26 -> 2021 | E79: ='Methods&Limits'!G26 -> 2.6 | G79: ='Methods&Limits'!I26 -> 19.534 | H79: =IF($E$25>G79,"Yes","") -> 
A80: ='Methods&Limits'!A27 -> *without oxygenates | C80: ='Methods&Limits'!E27 -> EN 15553 | D80: ='Methods&Limits'!F27 -> 2021 | E80: ='Methods&Limits'!G27 -> - | G80: ='Methods&Limits'!I27 -> - | H80: =IF($E$25>G80,"Yes","") -> 
C81: ='Methods&Limits'!E28 -> EN-ISO 22854 | D81: ='Methods&Limits'!F28 -> 2021 | E81: ='Methods&Limits'!G28 -> - | G81: ='Methods&Limits'!I28 -> - | H81: =IF($E$25>G81,"Yes","") -> 
A82: ='Methods&Limits'!A29 -> -- Olefins (RON 91 fuel only)*** | B82: ='Methods&Limits'!B29 -> % V/V | C82: ='Methods&Limits'!E29 -> ASTM D1319 | D82: ='Methods&Limits'!F29 -> 2020 | E82: ='Methods&Limits'!G29 -> 5.1 | G82: ='Methods&Limits'!I29 -> 24.009 | H82: =IF($E$25>G82,"Yes","") -> 
A83: ='Methods&Limits'!A30 -> -- Aromatics (from 2005) | C83: ='Methods&Limits'!E30 -> EN-ISO 22854 | D83: ='Methods&Limits'!F30 -> 2021 | E83: ='Methods&Limits'!G30 -> 1.7 | G83: ='Methods&Limits'!I30 -> 36.003 | H83: =IF($E$26>G83,"Yes","") -> 
A84: ='Methods&Limits'!A31 -> -- Benzene | B84: ='Methods&Limits'!B31 -> % V/V | C84: ='Methods&Limits'!E31 -> EN 12177 | D84: ='Methods&Limits'!F31 -> 2022 | E84: ='Methods&Limits'!G31 -> 0.1 | G84: ='Methods&Limits'!I31 -> 1.059 | H84: =IF(E27>G84,"Yes","") -> 
C85: ='Methods&Limits'!E32 -> EN 238 | D85: ='Methods&Limits'!F32 -> 1996 | E85: ='Methods&Limits'!G32 -> 0.17 | G85: ='Methods&Limits'!I32 -> 1.1003 | H85: =IF(E27>G85,"Yes","") -> 
C86: ='Methods&Limits'!E33 -> EN-ISO 22854 | D86: ='Methods&Limits'!F33 -> 2021 | E86: ='Methods&Limits'!G33 -> 0.05 | G86: ='Methods&Limits'!I33 -> 1.0295 | H86: =IF(E27>G86,"Yes","") -> 
A87: ='Methods&Limits'!A34 -> Oxygen content | B87: ='Methods&Limits'!B34 -> % (m/m) | C87: ='Methods&Limits'!E34 -> EN 1601 | D87: ='Methods&Limits'!F34 -> 2017 | E87: ='Methods&Limits'!G34 -> 0.41 | G87: ='Methods&Limits'!I34 -> 3.9419 | H87: =IF(E28>G87,"Yes","") -> 
C88: ='Methods&Limits'!E35 -> EN 1601 | D88: ='Methods&Limits'!F35 -> 2017 | E88: ='Methods&Limits'!G35 -> 0.41 | G88: ='Methods&Limits'!I35 -> 2.9419 | H88: =IF(E29>G88,"Yes","") -> 
A89: ='Methods&Limits'!A36 -> Oxygenates
A90: ='Methods&Limits'!A37 -> -- Methanol | B90: ='Methods&Limits'!B37 -> % V/V | C90: ='Methods&Limits'!E37 -> EN 1601 | D90: ='Methods&Limits'!F37 -> 2017 | E90: ='Methods&Limits'!G37 -> 0.3 | G90: ='Methods&Limits'!I37 -> 3.177 | H90: =IF(E31>G90,"Yes","") -> 
A91: ='Methods&Limits'!A38 -> -- Ethanol | B91: ='Methods&Limits'!B38 -> % V/V | C91: ='Methods&Limits'!E38 -> EN 1601 | D91: ='Methods&Limits'!F38 -> 2017 | E91: ='Methods&Limits'!G38 -> 0.8 | G91: ='Methods&Limits'!I38 -> 10.472
A92: ='Methods&Limits'!A39 -> -- Iso-propyl alcohol | B92: ='Methods&Limits'!B39 -> % V/V | C92: ='Methods&Limits'!E39 -> EN 1601 | D92: ='Methods&Limits'!F39 -> 2017 | E92: ='Methods&Limits'!G39 -> 0.9 | G92: ='Methods&Limits'!I39 -> 12.531
A93: ='Methods&Limits'!A40 -> -- Tert-butyl alcohol | B93: ='Methods&Limits'!B40 -> % V/V | C93: ='Methods&Limits'!E40 -> EN 1601 | D93: ='Methods&Limits'!F40 -> 2017 | E93: ='Methods&Limits'!G40 -> 1 | G93: ='Methods&Limits'!I40 -> 15.59
A94: ='Methods&Limits'!A41 -> -- Iso-butyl alcohol | B94: ='Methods&Limits'!B41 -> % V/V | C94: ='Methods&Limits'!E41 -> EN 1601 | D94: ='Methods&Limits'!F41 -> 2017 | E94: ='Methods&Limits'!G41 -> 1 | G94: ='Methods&Limits'!I41 -> 15.59
A95: ='Methods&Limits'!A42 -> -- Ethers with 5 or more carbon atoms per molecule | B95: ='Methods&Limits'!B42 -> % V/V | C95: ='Methods&Limits'!E42 -> EN 1601 | D95: ='Methods&Limits'!F42 -> 2017 | E95: ='Methods&Limits'!G42 -> 1 | G95: ='Methods&Limits'!I42 -> 22.59
A96: ='Methods&Limits'!A43 -> -- other oxygenates | B96: ='Methods&Limits'!B43 -> % V/V | C96: ='Methods&Limits'!E43 -> EN 1601 | D96: ='Methods&Limits'!F43 -> 2017 | E96: ='Methods&Limits'!G43 -> 1 | G96: ='Methods&Limits'!I43 -> 15.59
A97: ='Methods&Limits'!A44 -> Oxygen content | B97: ='Methods&Limits'!B44 -> % (m/m) | C97: ='Methods&Limits'!E44 -> EN 13132 | D97: ='Methods&Limits'!F44 -> 2002 | E97: ='Methods&Limits'!G44 -> 0.3 | G97: ='Methods&Limits'!I44 -> 3.877 | H97: =IF(E28>G97,"Yes","") -> 
C98: ='Methods&Limits'!E45 -> EN 13132 | D98: ='Methods&Limits'!F45 -> 2002 | E98: ='Methods&Limits'!G45 -> 0.3 | G98: ='Methods&Limits'!I45 -> 2.877 | H98: =IF(E29>G98,"Yes","") -> 
A99: ='Methods&Limits'!A46 -> Oxygenates
A100: ='Methods&Limits'!A47 -> -- Methanol | B100: ='Methods&Limits'!B47 -> % V/V | C100: ='Methods&Limits'!E47 -> EN 13132 | D100: ='Methods&Limits'!F47 -> 2002 | E100: ='Methods&Limits'!G47 -> 0.3 | G100: ='Methods&Limits'!I47 -> 3.177 | H100: =IF(E31>G100,"Yes","") -> 
A101: ='Methods&Limits'!A48 -> -- Ethanol | B101: ='Methods&Limits'!B48 -> % V/V | C101: ='Methods&Limits'!E48 -> EN 13132 | D101: ='Methods&Limits'!F48 -> 2002 | E101: ='Methods&Limits'!G48 -> 0.8 | G101: ='Methods&Limits'!I48 -> 10.472
A102: ='Methods&Limits'!A49 -> -- Iso-propyl alcohol | B102: ='Methods&Limits'!B49 -> % V/V | C102: ='Methods&Limits'!E49 -> EN 13132 | D102: ='Methods&Limits'!F49 -> 2002 | E102: ='Methods&Limits'!G49 -> 0.8 | G102: ='Methods&Limits'!I49 -> 12.472
A103: ='Methods&Limits'!A50 -> -- Tert-butyl alcohol | B103: ='Methods&Limits'!B50 -> % V/V | C103: ='Methods&Limits'!E50 -> EN 13132 | D103: ='Methods&Limits'!F50 -> 2002 | E103: ='Methods&Limits'!G50 -> 1 | G103: ='Methods&Limits'!I50 -> 15.59
A104: ='Methods&Limits'!A51 -> -- Iso-butyl alcohol | B104: ='Methods&Limits'!B51 -> % V/V | C104: ='Methods&Limits'!E51 -> EN 13132 | D104: ='Methods&Limits'!F51 -> 2002 | E104: ='Methods&Limits'!G51 -> 1 | G104: ='Methods&Limits'!I51 -> 15.59
A105: ='Methods&Limits'!A52 -> -- Ethers with 5 or more carbon atoms per molecule | B105: ='Methods&Limits'!B52 -> % V/V | C105: ='Methods&Limits'!E52 -> EN 13132 | D105: ='Methods&Limits'!F52 -> 2002 | E105: ='Methods&Limits'!G52 -> 1 | G105: ='Methods&Limits'!I52 -> 22.59
A106: ='Methods&Limits'!A53 -> -- other oxygenates | B106: ='Methods&Limits'!B53 -> % V/V | C106: ='Methods&Limits'!E53 -> EN 13132 | D106: ='Methods&Limits'!F53 -> 2002 | E106: ='Methods&Limits'!G53 -> 1 | G106: ='Methods&Limits'!I53 -> 15.59
A107: ='Methods&Limits'!A54 -> Oxygen content | B107: ='Methods&Limits'!B54 -> % (m/m) | C107: ='Methods&Limits'!E54 -> EN-ISO 22854 | D107: ='Methods&Limits'!F54 -> 2021 | E107: ='Methods&Limits'!G54 -> 0.4 | G107: ='Methods&Limits'!I54 -> 3.936 | H107: =IF(E28>G107,"Yes","") -> 
C108: ='Methods&Limits'!E55 -> EN-ISO 22854 | D108: ='Methods&Limits'!F55 -> 2021 | E108: ='Methods&Limits'!G55 -> 0.4 | G108: ='Methods&Limits'!I55 -> 2.936 | H108: =IF(E29>G108,"Yes","") -> 
A109: ='Methods&Limits'!A56 -> Oxyginates
A110: ='Methods&Limits'!A57 -> -- Methanol | B110: ='Methods&Limits'!B57 -> % V/V | C110: ='Methods&Limits'!E57 -> EN-ISO 22854 | D110: ='Methods&Limits'!F57 -> 2021 | E110: ='Methods&Limits'!G57 -> 0.4 | G110: ='Methods&Limits'!I57 -> 3.236 | H110: =IF(E31>G110,"Yes","") -> 
A111: ='Methods&Limits'!A58 -> -- Ethanol | B111: ='Methods&Limits'!B58 -> % V/V | C111: ='Methods&Limits'!E58 -> EN-ISO 22854 | D111: ='Methods&Limits'!F58 -> 2021 | E111: ='Methods&Limits'!G58 -> 0.6 | G111: ='Methods&Limits'!I58 -> 10.354
A112: ='Methods&Limits'!A59 -> -- Iso-propyl alcohol | B112: ='Methods&Limits'!B59 -> % V/V | C112: ='Methods&Limits'!E59 -> EN-ISO 22854 | D112: ='Methods&Limits'!F59 -> 2021 | E112: ='Methods&Limits'!G59 -> 0.7 | G112: ='Methods&Limits'!I59 -> 12.413
A113: ='Methods&Limits'!A60 -> -- Tert-butyl alcohol | B113: ='Methods&Limits'!B60 -> % V/V | C113: ='Methods&Limits'!E60 -> EN-ISO 22854 | D113: ='Methods&Limits'!F60 -> 2021 | E113: ='Methods&Limits'!G60 -> 0.7 | G113: ='Methods&Limits'!I60 -> 15.413
A114: ='Methods&Limits'!A61 -> -- Iso-butyl alcohol | B114: ='Methods&Limits'!B61 -> % V/V | C114: ='Methods&Limits'!E61 -> EN-ISO 22854 | D114: ='Methods&Limits'!F61 -> 2021 | E114: ='Methods&Limits'!G61 -> 0.7 | G114: ='Methods&Limits'!I61 -> 15.413
A115: ='Methods&Limits'!A62 -> -- Ethers with 5 or more carbon atoms per molecule | B115: ='Methods&Limits'!B62 -> % V/V | C115: ='Methods&Limits'!E62 -> EN-ISO 22854 | D115: ='Methods&Limits'!F62 -> 2021 | E115: ='Methods&Limits'!G62 -> 0.9 | G115: ='Methods&Limits'!I62 -> 22.531
A116: ='Methods&Limits'!A63 -> -- other oxygenates | B116: ='Methods&Limits'!B63 -> % V/V | C116: ='Methods&Limits'!E63 -> EN-ISO 22854 | D116: ='Methods&Limits'!F63 -> 2021 | E116: ='Methods&Limits'!G63 -> 0.7 | G116: ='Methods&Limits'!I63 -> 15.413
A117: ='Methods&Limits'!A64:A64 -> Sulphur content (sulphur free, from 2005)** | B117: ='Methods&Limits'!B64 -> mg/kg | C117: ='Methods&Limits'!E64 -> EN-ISO 14596 | D117: ='Methods&Limits'!F64 -> 2018 | E117: ='Methods&Limits'!G64 -> 5 | G117: ='Methods&Limits'!I64 -> 12.95 | H117: =IF(E$38>G117,"Yes","") -> 
C118: ='Methods&Limits'!E65 -> EN 24260 | D118: ='Methods&Limits'!F65 -> 1994 | E118: ='Methods&Limits'!G65 -> 1 | G118: ='Methods&Limits'!I65 -> 10.59 | H118: =IF(E$38>G118,"Yes","") -> 
C119: ='Methods&Limits'!E66 -> EN-ISO 20846 | D119: ='Methods&Limits'!F66 -> 2019 | E119: ='Methods&Limits'!G66 -> 2.7 | G119: ='Methods&Limits'!I66 -> 11.593 | H119: =IF(E$38>G119,"Yes","") -> 
C120: ='Methods&Limits'!E67 -> EN-ISO 20884 | D120: ='Methods&Limits'!F67 -> 2019 | E120: ='Methods&Limits'!G67 -> 3.1 | G120: ='Methods&Limits'!I67 -> 11.829 | H120: =IF(E$38>G120,"Yes","") -> 
A121: ='Methods&Limits'!A68:A68 -> Lead content | B121: ='Methods&Limits'!B68 -> g/l | C121: ='Methods&Limits'!E68 -> EN 237 | D121: ='Methods&Limits'!F68 -> 2004 | E121: ='Methods&Limits'!G68 -> 0.0062 | G121: ='Methods&Limits'!I68 -> 0.008658 | H121: =IF($E$39>G121,"Yes","") -> 

Sheet Petrol (3+4)
A1: Market Fuels used in Vehicles with Spark Ignition Engines (Petrol) | R1: <-- GO BACK
A3: Country | B3: =IF(LEN('Contacts&Annual Summary'!C9) > 1,'Contacts&Annual Summary'!C9,"") ->  | G3: Notes on completing the tables The table structure has been locked to prevent modification - data can be copied and pasted, in bulk into the Reporting Results blue table cells. Where a white row exists between rows, it will not be possible to paste over white rows and sections should be pasted separately. Column H in the Test Methods and Analysis table is set to automatically check whether the values entered in the Reporting Results table exceed maximum or minimum Tolerance Limits. If any exceedance is detected, please provide details in the columns to the right including the number of samples, location samples were taken from, Values and Details of any action taken to address non-compliant samples. Compliance information is verified manually and this automated compliance check is not solely relied upon during data analysis. Please do not unlock this template - modified templates cannot be processed and may delay reporting.
A4: Reporting Year | B4: ='Contacts&Annual Summary'!C8 -> 2023
A5: Period (Summer or Winter) | B5: Full Year
A6: Parent fuel grade | B6: Petrol
A7: National fuel grade | B7: ='Petrol (3)'!B7 -> 0
A8: Summer Period (N or A)* | B8: 0 | C8: =IF( B8="A","1st June to 31st August (arctic)","1st May to 30th September (normal)") -> 1st May to 30th September (normal)
A9: The maximum bioethanol content (% v/v) | B9: =MAX('Petrol (3)'!B9,'Petrol (4)'!B9) -> 0 | C9: Please include the bioethanol content as a numerical figure in % V/V
A10: * N = 1st May to 30th September (normal) ; A = 1st June to 31st August (arctic).
A12: Reporting results
A14: Parameter | B14: Unit | C14: Analytical and statistical results (Please see an explanation and examples for new columns/ information required in Cells I15 to K37 on the Introduction & Instructions tab). | L14: Limiting Value (1) | P14: Test method
L15: National Specification, if any | N15: According to Directive 2009/30/EC | P15: (more recent versions may also be used)
C16: No Samples | D16: Minimum | E16: Maximum | F16: Median | G16: Mean | H16: Standard Deviation | I16: No Samples outside 95% tolerance limit | J16: 25% of Sample Value | K16: 75% of Sample Value | L16: Minimum | M16: Maximum | N16: Minimum | O16: Maximum | P16: Method | Q16: Date
A17: Research Octane Number | B17: -- | C17: =IF(AND('Petrol (3)'!C17="",'Petrol (4)'!C17=""),"",'Petrol (3)'!C17+'Petrol (4)'!C17) -> 0 | D17: =IF(AND('Petrol (3)'!D17="",'Petrol (4)'!D17=""),"",MIN('Petrol (3)'!D17,'Petrol (4)'!D17)) -> 0 | E17: =IF(AND('Petrol (3)'!E17="",'Petrol (4)'!E17=""),"",MAX('Petrol (3)'!E17,'Petrol (4)'!E17)) -> 0 | F17: 0 | G17: 0 | H17: 0 | I17: =IF(AND('Petrol (3)'!I17="",'Petrol (4)'!I17=""),"",'Petrol (3)'!I17+'Petrol (4)'!I17) -> 0 | J17: 0 | K17: 0 | N17: 95 (2) | P17: EN-ISO 5164 | Q17: 2005
A18: Motor Octane Number | B18: -- | C18: =IF(AND('Petrol (3)'!C18="",'Petrol (4)'!C18=""),"",'Petrol (3)'!C18+'Petrol (4)'!C18) -> 0 | D18: =IF(AND('Petrol (3)'!D18="",'Petrol (4)'!D18=""),"",MIN('Petrol (3)'!D18,'Petrol (4)'!D18)) -> 0 | E18: =IF(AND('Petrol (3)'!E18="",'Petrol (4)'!E18=""),"",MAX('Petrol (3)'!E18,'Petrol (4)'!E18)) -> 0 | F18: 0 | G18: 0 | H18: 0 | I18: =IF(AND('Petrol (3)'!I18="",'Petrol (4)'!I18=""),"",'Petrol (3)'!I18+'Petrol (4)'!I18) -> 0 | J18: 0 | K18: 0 | N18: 85 (3) | P18: EN-ISO 5163 | Q18: 2005
A19: Vapour Pressure, DVPE (6) | B19: kPa | O19: (4)
A20: -- required for summer period only | C20: =IF(AND('Petrol (3)'!C20="",'Petrol (4)'!C20=""),"",'Petrol (3)'!C20+'Petrol (4)'!C20) -> 0 | D20: =IF(AND('Petrol (3)'!D20="",'Petrol (4)'!D20=""),"",MIN('Petrol (3)'!D20,'Petrol (4)'!D20)) -> 0 | E20: =IF(AND('Petrol (3)'!E20="",'Petrol (4)'!E20=""),"",MAX('Petrol (3)'!E20,'Petrol (4)'!E20)) -> 0 | F20: 0 | G20: 0 | H20: 0 | I20: =IF(AND('Petrol (3)'!I20="",'Petrol (4)'!I20=""),"",'Petrol (3)'!I20+'Petrol (4)'!I20) -> 0 | J20: 0 | K20: 0 | O20: =IF(E8="A",70,60) -> 60 | P20: EN 13106-1 | Q20: 2007
A21: Distillation | P21: EN-ISO 3405
A22: -- evaporated at 100 oC | B22: % V/V | C22: =IF(AND('Petrol (3)'!C22="",'Petrol (4)'!C22=""),"",'Petrol (3)'!C22+'Petrol (4)'!C22) -> 0 | D22: =IF(AND('Petrol (3)'!D22="",'Petrol (4)'!D22=""),"",MIN('Petrol (3)'!D22,'Petrol (4)'!D22)) -> 0 | E22: =IF(AND('Petrol (3)'!E22="",'Petrol (4)'!E22=""),"",MAX('Petrol (3)'!E22,'Petrol (4)'!E22)) -> 0 | F22: 0 | G22: 0 | H22: 0 | I22: =IF(AND('Petrol (3)'!I22="",'Petrol (4)'!I22=""),"",'Petrol (3)'!I22+'Petrol (4)'!I22) -> 0 | J22: 0 | K22: 0 | N22: 46 | Q22: 2000
A23: -- evaporated at 150 oC | B23: % V/V | C23: =IF(AND('Petrol (3)'!C23="",'Petrol (4)'!C23=""),"",'Petrol (3)'!C23+'Petrol (4)'!C23) -> 0 | D23: =IF(AND('Petrol (3)'!D23="",'Petrol (4)'!D23=""),"",MIN('Petrol (3)'!D23,'Petrol (4)'!D23)) -> 0 | E23: =IF(AND('Petrol (3)'!E23="",'Petrol (4)'!E23=""),"",MAX('Petrol (3)'!E23,'Petrol (4)'!E23)) -> 0 | F23: 0 | G23: 0 | H23: 0 | I23: =IF(AND('Petrol (3)'!I23="",'Petrol (4)'!I23=""),"",'Petrol (3)'!I23+'Petrol (4)'!I23) -> 0 | J23: 0 | K23: 0 | N23: 75
A24: Hydrocarbon analysis
A25: -- Olefins | B25: % V/V | C25: =IF(AND('Petrol (3)'!C25="",'Petrol (4)'!C25=""),"",'Petrol (3)'!C25+'Petrol (4)'!C25) -> 0 | D25: =IF(AND('Petrol (3)'!D25="",'Petrol (4)'!D25=""),"",MIN('Petrol (3)'!D25,'Petrol (4)'!D25)) -> 0 | E25: =IF(AND('Petrol (3)'!E25="",'Petrol (4)'!E25=""),"",MAX('Petrol (3)'!E25,'Petrol (4)'!E25)) -> 0 | F25: 0 | G25: 0 | H25: 0 | I25: =IF(AND('Petrol (3)'!I25="",'Petrol (4)'!I25=""),"",'Petrol (3)'!I25+'Petrol (4)'!I25) -> 0 | J25: 0 | K25: 0 | O25: 18.0 (5) | P25: ASTM D 1319 EN 15553 EN-ISO 22854 | Q25: 1995 2007 2008
A26: -- Aromatics | B26: % V/V | C26: =IF(AND('Petrol (3)'!C26="",'Petrol (4)'!C26=""),"",'Petrol (3)'!C26+'Petrol (4)'!C26) -> 0 | D26: =IF(AND('Petrol (3)'!D26="",'Petrol (4)'!D26=""),"",MIN('Petrol (3)'!D26,'Petrol (4)'!D26)) -> 0 | E26: =IF(AND('Petrol (3)'!E26="",'Petrol (4)'!E26=""),"",MAX('Petrol (3)'!E26,'Petrol (4)'!E26)) -> 0 | F26: 0 | G26: 0 | H26: 0 | I26: =IF(AND('Petrol (3)'!I26="",'Petrol (4)'!I26=""),"",'Petrol (3)'!I26+'Petrol (4)'!I26) -> 0 | J26: 0 | K26: 0 | O26: 35 | P26: EN-ISO 22854 | Q26: 1995 2008
A27: -- Benzene | B27: % V/V | C27: =IF(AND('Petrol (3)'!C27="",'Petrol (4)'!C27=""),"",'Petrol (3)'!C27+'Petrol (4)'!C27) -> 0 | D27: =IF(AND('Petrol (3)'!D27="",'Petrol (4)'!D27=""),"",MIN('Petrol (3)'!D27,'Petrol (4)'!D27)) -> 0 | E27: =IF(AND('Petrol (3)'!E27="",'Petrol (4)'!E27=""),"",MAX('Petrol (3)'!E27,'Petrol (4)'!E27)) -> 0 | F27: 0 | G27: 0 | H27: 0 | I27: =IF(AND('Petrol (3)'!I27="",'Petrol (4)'!I27=""),"",'Petrol (3)'!I27+'Petrol (4)'!I27) -> 0 | J27: 0 | K27: 0 | O27: 1 | P27: EN 238 EN 12177 EN-ISO 22854 | Q27: 1996 1998 2008
A28: =IF(C29>0,"Do not complete","Oxygen content") -> Oxygen content | B28: % (m/m) | C28: =IF(AND('Petrol (3)'!C28="",'Petrol (4)'!C28=""),"",'Petrol (3)'!C28+'Petrol (4)'!C28) -> 0 | D28: =IF(AND('Petrol (3)'!D28="",'Petrol (4)'!D28=""),"",MIN('Petrol (3)'!D28,'Petrol (4)'!D28)) -> 0 | E28: =IF(AND('Petrol (3)'!E28="",'Petrol (4)'!E28=""),"",MAX('Petrol (3)'!E28,'Petrol (4)'!E28)) -> 0 | F28: 0 | G28: 0 | H28: 0 | I28: =IF(AND('Petrol (3)'!I28="",'Petrol (4)'!I28=""),"",'Petrol (3)'!I28+'Petrol (4)'!I28) -> 0 | J28: 0 | K28: 0 | O28: 3.7 | P28: EN 1601 EN 13132 EN-ISO 22854 | Q28: 1997 2000 2008
A29: =IF(C28>0,"Do not complete","Oxygen content* *petrol with 5% (v/v) or less ethanol content") -> Oxygen content* *petrol with 5% (v/v) or less ethanol content | B29: % (m/m) | C29: =IF(AND('Petrol (3)'!C29="",'Petrol (4)'!C29=""),"",'Petrol (3)'!C29+'Petrol (4)'!C29) -> 0 | D29: =IF(AND('Petrol (3)'!D29="",'Petrol (4)'!D29=""),"",MIN('Petrol (3)'!D29,'Petrol (4)'!D29)) -> 0 | E29: =IF(AND('Petrol (3)'!E29="",'Petrol (4)'!E29=""),"",MAX('Petrol (3)'!E29,'Petrol (4)'!E29)) -> 0 | F29: 0 | G29: 0 | H29: 0 | I29: =IF(AND('Petrol (3)'!I29="",'Petrol (4)'!I29=""),"",'Petrol (3)'!I29+'Petrol (4)'!I29) -> 0 | J29: 0 | K29: 0 | O29: 2.7
A30: Oxygenates
A31: -- Methanol | B31: % V/V | C31: =IF(AND('Petrol (3)'!C31="",'Petrol (4)'!C31=""),"",'Petrol (3)'!C31+'Petrol (4)'!C31) -> 0 | D31: =IF(AND('Petrol (3)'!D31="",'Petrol (4)'!D31=""),"",MIN('Petrol (3)'!D31,'Petrol (4)'!D31)) -> 0 | E31: =IF(AND('Petrol (3)'!E31="",'Petrol (4)'!E31=""),"",MAX('Petrol (3)'!E31,'Petrol (4)'!E31)) -> 0 | F31: 0 | G31: 0 | H31: 0 | I31: =IF(AND('Petrol (3)'!I31="",'Petrol (4)'!I31=""),"",'Petrol (3)'!I31+'Petrol (4)'!I31) -> 0 | J31: 0 | K31: 0 | O31: 3
A32: -- Ethanol | B32: % V/V | C32: =IF(AND('Petrol (3)'!C32="",'Petrol (4)'!C32=""),"",'Petrol (3)'!C32+'Petrol (4)'!C32) -> 0 | D32: =IF(AND('Petrol (3)'!D32="",'Petrol (4)'!D32=""),"",MIN('Petrol (3)'!D32,'Petrol (4)'!D32)) -> 0 | E32: =IF(AND('Petrol (3)'!E32="",'Petrol (4)'!E32=""),"",MAX('Petrol (3)'!E32,'Petrol (4)'!E32)) -> 0 | F32: 0 | G32: 0 | H32: 0 | I32: =IF(AND('Petrol (3)'!I32="",'Petrol (4)'!I32=""),"",'Petrol (3)'!I32+'Petrol (4)'!I32) -> 0 | J32: 0 | K32: 0 | O32: 10
A33: -- Iso-propyl alcohol | B33: % V/V | C33: =IF(AND('Petrol (3)'!C33="",'Petrol (4)'!C33=""),"",'Petrol (3)'!C33+'Petrol (4)'!C33) -> 0 | D33: =IF(AND('Petrol (3)'!D33="",'Petrol (4)'!D33=""),"",MIN('Petrol (3)'!D33,'Petrol (4)'!D33)) -> 0 | E33: =IF(AND('Petrol (3)'!E33="",'Petrol (4)'!E33=""),"",MAX('Petrol (3)'!E33,'Petrol (4)'!E33)) -> 0 | F33: 0 | G33: 0 | H33: 0 | I33: =IF(AND('Petrol (3)'!I33="",'Petrol (4)'!I33=""),"",'Petrol (3)'!I33+'Petrol (4)'!I33) -> 0 | J33: 0 | K33: 0 | O33: 12 | P33: EN 1601 | Q33: 1997
A34: -- Tert-butyl alcohol | B34: % V/V | C34: =IF(AND('Petrol (3)'!C34="",'Petrol (4)'!C34=""),"",'Petrol (3)'!C34+'Petrol (4)'!C34) -> 0 | D34: =IF(AND('Petrol (3)'!D34="",'Petrol (4)'!D34=""),"",MIN('Petrol (3)'!D34,'Petrol (4)'!D34)) -> 0 | E34: =IF(AND('Petrol (3)'!E34="",'Petrol (4)'!E34=""),"",MAX('Petrol (3)'!E34,'Petrol (4)'!E34)) -> 0 | F34: 0 | G34: 0 | H34: 0 | I34: =IF(AND('Petrol (3)'!I34="",'Petrol (4)'!I34=""),"",'Petrol (3)'!I34+'Petrol (4)'!I34) -> 0 | J34: 0 | K34: 0 | O34: 15 | P34: EN 13132 | Q34: 2000
A35: -- Iso-butyl alcohol | B35: % V/V | C35: =IF(AND('Petrol (3)'!C35="",'Petrol (4)'!C35=""),"",'Petrol (3)'!C35+'Petrol (4)'!C35) -> 0 | D35: =IF(AND('Petrol (3)'!D35="",'Petrol (4)'!D35=""),"",MIN('Petrol (3)'!D35,'Petrol (4)'!D35)) -> 0 | E35: =IF(AND('Petrol (3)'!E35="",'Petrol (4)'!E35=""),"",MAX('Petrol (3)'!E35,'Petrol (4)'!E35)) -> 0 | F35: 0 | G35: 0 | H35: 0 | I35: =IF(AND('Petrol (3)'!I35="",'Petrol (4)'!I35=""),"",'Petrol (3)'!I35+'Petrol (4)'!I35) -> 0 | J35: 0 | K35: 0 | O35: 15 | P35: EN-ISO 22854 | Q35: 2008
A36: -- Ethers with ≥5 carbon atoms / molecule | B36: % V/V | C36: =IF(AND('Petrol (3)'!C36="",'Petrol (4)'!C36=""),"",'Petrol (3)'!C36+'Petrol (4)'!C36) -> 0 | D36: =IF(AND('Petrol (3)'!D36="",'Petrol (4)'!D36=""),"",MIN('Petrol (3)'!D36,'Petrol (4)'!D36)) -> 0 | E36: =IF(AND('Petrol (3)'!E36="",'Petrol (4)'!E36=""),"",MAX('Petrol (3)'!E36,'Petrol (4)'!E36)) -> 0 | F36: 0 | G36: 0 | H36: 0 | I36: =IF(AND('Petrol (3)'!I36="",'Petrol (4)'!I36=""),"",'Petrol (3)'!I36+'Petrol (4)'!I36) -> 0 | J36: 0 | K36: 0 | O36: 22
A37: -- other oxygenates | B37: % V/V | C37: =IF(AND('Petrol (3)'!C37="",'Petrol (4)'!C37=""),"",'Petrol (3)'!C37+'Petrol (4)'!C37) -> 0 | D37: =IF(AND('Petrol (3)'!D37="",'Petrol (4)'!D37=""),"",MIN('Petrol (3)'!D37,'Petrol (4)'!D37)) -> 0 | E37: =IF(AND('Petrol (3)'!E37="",'Petrol (4)'!E37=""),"",MAX('Petrol (3)'!E37,'Petrol (4)'!E37)) -> 0 | F37: 0 | G37: 0 | H37: 0 | I37: =IF(AND('Petrol (3)'!I37="",'Petrol (4)'!I37=""),"",'Petrol (3)'!I37+'Petrol (4)'!I37) -> 0 | J37: 0 | K37: 0 | O37: 15
A38: Sulphur content | B38: mg/kg | C38: =IF(AND('Petrol (3)'!C38="",'Petrol (4)'!C38=""),"",'Petrol (3)'!C38+'Petrol (4)'!C38) -> 0 | D38: =IF(AND('Petrol (3)'!D38="",'Petrol (4)'!D38=""),"",MIN('Petrol (3)'!D38,'Petrol (4)'!D38)) -> 0 | E38: =IF(AND('Petrol (3)'!E38="",'Petrol (4)'!E38=""),"",MAX('Petrol (3)'!E38,'Petrol (4)'!E38)) -> 0 | F38: 0 | G38: 0 | H38: 0 | I38: =IF(AND('Petrol (3)'!I38="",'Petrol (4)'!I38=""),"",'Petrol (3)'!I38+'Petrol (4)'!I38) -> 0 | J38: 0 | K38: 0 | O38: 10 | P38: EN-ISO 14596 EN 24260 EN-ISO 20846 EN-ISO 20884 | Q38: 1998 1994 2004 2004
A39: Lead content | B39: g/l | C39: =IF(AND('Petrol (3)'!C39="",'Petrol (4)'!C39=""),"",'Petrol (3)'!C39+'Petrol (4)'!C39) -> 0 | D39: =IF(AND('Petrol (3)'!D39="",'Petrol (4)'!D39=""),"",MIN('Petrol (3)'!D39,'Petrol (4)'!D39)) -> 0 | E39: =IF(AND('Petrol (3)'!E39="",'Petrol (4)'!E39=""),"",MAX('Petrol (3)'!E39,'Petrol (4)'!E39)) -> 0 | F39: 0 | G39: 0 | H39: 0 | I39: =IF(AND('Petrol (3)'!I39="",'Petrol (4)'!I39=""),"",'Petrol (3)'!I39+'Petrol (4)'!I39) -> 0 | J39: 0 | K39: 0 | O39: 0.005 | P39: EN 237 | Q39: 1996
A42: Sampling frequency
A44: Number of samples in month
A45: January | B45: ='Petrol (3)'!B45+'Petrol (4)'!B45 -> 0 | C45: July | D45: ='Petrol (3)'!D45+'Petrol (4)'!D45 -> 0 | E45: (1) The limiting values are "true values" and were established according to the procedures for limit setting in EN 228:2008 The results of individual measurements shall be interpreted following the criteria described in EN 228:2008.
A46: February | B46: ='Petrol (3)'!B46+'Petrol (4)'!B46 -> 0 | C46: August | D46: ='Petrol (3)'!D46+'Petrol (4)'!D46 -> 0
A47: March | B47: ='Petrol (3)'!B47+'Petrol (4)'!B47 -> 0 | C47: September | D47: ='Petrol (3)'!D47+'Petrol (4)'!D47 -> 0 | E47: (2) 91 for unleaded regular grade petrol: See 2009/30/EC Annex I, Footnote 3.
A48: April | B48: ='Petrol (3)'!B48+'Petrol (4)'!B48 -> 0 | C48: October | D48: ='Petrol (3)'!D48+'Petrol (4)'!D48 -> 0 | E48: (3) 81 for unleaded regular grade petrol: See 2009/30/EC Annex I, Footnote 3.
A49: May | B49: ='Petrol (3)'!B49+'Petrol (4)'!B49 -> 0 | C49: November | D49: ='Petrol (3)'!D49+'Petrol (4)'!D49 -> 0 | E49: (4) 70 kPa for Member States with arctic or severe weather conditions: See 2003/30/EC Annex I, Footnotes 4 & 5.
A50: June | B50: ='Petrol (3)'!B50+'Petrol (4)'!B50 -> 0 | C50: December | D50: ='Petrol (3)'!D50+'Petrol (4)'!D50 -> 0 | E50: (5) 21 for unleaded regular grade petrol: See 98/70/EC, Annex I, Footnote 6.
C51: Full YearTotal | D51: =SUM(B45:B50,D45:D50) -> 0 | E51: (6) Vapour pressure waiver applies for petrol containing Bioethanol, see 2009/30/EC Annex I, Footnote 5 and Annex III.
A53: Other notes (optional):
A57: Test Methods and Analysis | I57: Only if not provided in Summer and Winter sheets
A59: Parameter | B59: Unit | C59: Test specified in 2009/30/EC or EN228:2008 | J59: Notes on exceedences
C60: Method | D60: Date | E60: Reproducability, R | F60: Tolerance limits | J60: Sample location (S,T or R) | K60: Values | L60: Details/action taken
F61: Minimum | G61: Maximum | H61: Exceeded?
A62: ='Methods&Limits'!A9 -> Research Octane Number (RON) | B62: ='Methods&Limits'!B9 -> -- | C62: ='Methods&Limits'!E9 -> EN-ISO 5164 | D62: ='Methods&Limits'!F9 -> 2014 | E62: ='Methods&Limits'!G9 -> 0.7 | F62: ='Methods&Limits'!H9 -> 94.587 | H62: =IF(D17="","",IF(D17<F62,"Yes","")) -> Yes
A63: ='Methods&Limits'!A10 -> (RON 91 fuel only) | B63: ='Methods&Limits'!B10 -> -- | C63: ='Methods&Limits'!E10 -> EN-ISO 5164 | D63: ='Methods&Limits'!F10 -> 2014 | E63: ='Methods&Limits'!G10 -> 0.7 | F63: ='Methods&Limits'!H10 -> 90.587 | H63: =IF(D17="","",IF(D17<F63,"Yes","")) -> Yes
A64: ='Methods&Limits'!A11 -> Motor Octane Number (MON) | B64: ='Methods&Limits'!B11 -> -- | C64: ='Methods&Limits'!E11 -> EN-ISO 5163 | D64: ='Methods&Limits'!F11 -> 2014 | E64: ='Methods&Limits'!G11 -> 0.9 | F64: ='Methods&Limits'!H11 -> 84.469 | H64: =IF(D18="","",IF(D18<F64,"Yes","")) -> Yes
A65: ='Methods&Limits'!A12 -> (RON 91 fuel only) | B65: ='Methods&Limits'!B12 -> -- | C65: ='Methods&Limits'!E12 -> EN-ISO 5163 | D65: ='Methods&Limits'!F12 -> 2014 | E65: ='Methods&Limits'!G12 -> 0.9 | F65: ='Methods&Limits'!H12 -> 80.469 | H65: =IF(D18="","",IF(D18<F65,"Yes","")) -> Yes
A66: ='Methods&Limits'!A13 -> Vapour Pressure, DVPE
A67: ='Methods&Limits'!A14 -> --summer period (normal) | B67: ='Methods&Limits'!B14 -> kPa | C67: ='Methods&Limits'!E14 -> EN 13016-1 | D67: ='Methods&Limits'!F14 -> 2018 | E67: ='Methods&Limits'!G14 -> 2.2 | G67: ='Methods&Limits'!I14 -> 61.298 | H67: =IF(E$20="","",IF(E$20>G67,"Yes","")) -> 
A68: ='Methods&Limits'!A15 -> -- Petrol with bioethanol content 0-2 | B68: ='Methods&Limits'!B15 -> kPa | C68: ='Methods&Limits'!E15 -> EN 1601 | D68: ='Methods&Limits'!F15 -> 2017 | E68: ='Methods&Limits'!G15 -> 2.3 | G68: ='Methods&Limits'!I15 -> 67.307 | H68: =IF(E$20="","",IF(E$20>G68,"Yes","")) -> 
A69: ='Methods&Limits'!A16 -> -- Petrol with bioethanol content 2-4 | B69: ='Methods&Limits'!B16 -> kPa | C69: ='Methods&Limits'!E16 -> EN 1601 | D69: ='Methods&Limits'!F16 -> 2017 | E69: ='Methods&Limits'!G16 -> 2.3 | G69: ='Methods&Limits'!I16 -> 69.157
A70: ='Methods&Limits'!A17 -> -- Petrol with bioethanol content 4-6 | B70: ='Methods&Limits'!B17 -> kPa | C70: ='Methods&Limits'!E17 -> EN 1601 | D70: ='Methods&Limits'!F17 -> 2017 | E70: ='Methods&Limits'!G17 -> 2.3 | G70: ='Methods&Limits'!I17 -> 69.357
A71: ='Methods&Limits'!A18 -> -- Petrol with bioethanol content 6-8 | B71: ='Methods&Limits'!B18 -> kPa | C71: ='Methods&Limits'!E18 -> EN 1601 | D71: ='Methods&Limits'!F18 -> 2017 | E71: ='Methods&Limits'!G18 -> 2.3 | G71: ='Methods&Limits'!I18 -> 69.237
A72: ='Methods&Limits'!A19 -> -- Petrol with bioethanol content 8-10 | B72: ='Methods&Limits'!B19 -> kPa | C72: ='Methods&Limits'!E19 -> EN 1601 | D72: ='Methods&Limits'!F19 -> 2017 | E72: ='Methods&Limits'!G19 -> 2.3 | G72: ='Methods&Limits'!I19 -> 69.117
A73: ='Methods&Limits'!A20 -> --summer period (arctic or severe weather conditions) | B73: ='Methods&Limits'!B20 -> kPa | C73: ='Methods&Limits'!E20 -> EN 13016-1 | D73: ='Methods&Limits'!F20 -> 2018 | E73: ='Methods&Limits'!G20 -> 2.3 | G73: ='Methods&Limits'!I20 -> 71.357
A74: ='Methods&Limits'!A21 -> Distillation *
A75: ='Methods&Limits'!A22 -> --evaporated at 100 oC | B75: ='Methods&Limits'!B22 -> % V/V | C75: ='Methods&Limits'!E22 -> EN-ISO 3405 | D75: ='Methods&Limits'!F22 -> 2020 | E75: ='Methods&Limits'!G22 -> 4 | F75: ='Methods&Limits'!H22 -> 43.64 | H75: =IF(D22="","",IF(D22<F75,"Yes","")) -> Yes
A76: ='Methods&Limits'!A23 -> -- evaporated at 150 oC | B76: ='Methods&Limits'!B23 -> % V/V | C76: ='Methods&Limits'!E23 -> EN-ISO 3405 | D76: ='Methods&Limits'!F23 -> 2020 | E76: ='Methods&Limits'!G23 -> 4 | F76: ='Methods&Limits'!H23 -> 72.64 | H76: =IF(D23="","",IF(D23<F76,"Yes","")) -> Yes
A77: ='Methods&Limits'!A24 -> Hydrocarbon analysis | H77: =IF(D24<F77,"Yes","") -> 
A78: ='Methods&Limits'!A25 -> -- Olefins | B78: ='Methods&Limits'!B25 -> % V/V | C78: ='Methods&Limits'!E25 -> EN 15553 | D78: ='Methods&Limits'!F25 -> 2021 | E78: ='Methods&Limits'!G25 -> 6.4 | G78: ='Methods&Limits'!I25 -> 21.776 | H78: =IF(E$25="","",IF(E$25>G78,"Yes","")) -> 
C79: ='Methods&Limits'!E26 -> EN-ISO 22854 | D79: ='Methods&Limits'!F26 -> 2021 | E79: ='Methods&Limits'!G26 -> 2.6 | G79: ='Methods&Limits'!I26 -> 19.534 | H79: =IF(E$25="","",IF(E$25>G79,"Yes","")) -> 
A80: ='Methods&Limits'!A27 -> *without oxygenates | C80: ='Methods&Limits'!E27 -> EN 15553 | D80: ='Methods&Limits'!F27 -> 2021 | E80: ='Methods&Limits'!G27 -> - | G80: ='Methods&Limits'!I27 -> - | H80: =IF(E$25="","",IF(E$25>G80,"Yes","")) -> 
C81: ='Methods&Limits'!E28 -> EN-ISO 22854 | D81: ='Methods&Limits'!F28 -> 2021 | E81: ='Methods&Limits'!G28 -> - | G81: ='Methods&Limits'!I28 -> - | H81: =IF(E$25="","",IF(E$25>G81,"Yes","")) -> 
A82: ='Methods&Limits'!A29 -> -- Olefins (RON 91 fuel only)*** | B82: ='Methods&Limits'!B29 -> % V/V | C82: ='Methods&Limits'!E29 -> ASTM D1319 | D82: ='Methods&Limits'!F29 -> 2020 | E82: ='Methods&Limits'!G29 -> 5.1 | G82: ='Methods&Limits'!I29 -> 24.009 | H82: =IF(E$25="","",IF(E$25>G82,"Yes","")) -> 
A83: ='Methods&Limits'!A30 -> -- Aromatics (from 2005) | C83: ='Methods&Limits'!E30 -> EN-ISO 22854 | D83: ='Methods&Limits'!F30 -> 2021 | E83: ='Methods&Limits'!G30 -> 1.7 | G83: ='Methods&Limits'!I30 -> 36.003 | H83: =IF(E$26="","",IF(E$26>G83,"Yes","")) -> 
A84: ='Methods&Limits'!A31 -> -- Benzene | B84: ='Methods&Limits'!B31 -> % V/V | C84: ='Methods&Limits'!E31 -> EN 12177 | D84: ='Methods&Limits'!F31 -> 2022 | E84: ='Methods&Limits'!G31 -> 0.1 | G84: ='Methods&Limits'!I31 -> 1.059 | H84: =IF(E$27="","",IF(E$27>G84,"Yes","")) -> 
C85: ='Methods&Limits'!E32 -> EN 238 | D85: ='Methods&Limits'!F32 -> 1996 | E85: ='Methods&Limits'!G32 -> 0.17 | G85: ='Methods&Limits'!I32 -> 1.1003 | H85: =IF(E$27="","",IF(E$27>G85,"Yes","")) -> 
C86: ='Methods&Limits'!E33 -> EN-ISO 22854 | D86: ='Methods&Limits'!F33 -> 2021 | E86: ='Methods&Limits'!G33 -> 0.05 | G86: ='Methods&Limits'!I33 -> 1.0295 | H86: =IF(E$27="","",IF(E$27>G86,"Yes","")) -> 
A87: ='Methods&Limits'!A34 -> Oxygen content | B87: ='Methods&Limits'!B34 -> % (m/m) | C87: ='Methods&Limits'!E34 -> EN 1601 | D87: ='Methods&Limits'!F34 -> 2017 | E87: ='Methods&Limits'!G34 -> 0.41 | G87: ='Methods&Limits'!I34 -> 3.9419 | H87: =IF(E$27="","",IF(E$27>G87,"Yes","")) -> 
C88: ='Methods&Limits'!E35 -> EN 1601 | D88: ='Methods&Limits'!F35 -> 2017 | E88: ='Methods&Limits'!G35 -> 0.41 | G88: ='Methods&Limits'!I35 -> 2.9419 | H88: =IF(E$27="","",IF(E$27>G88,"Yes","")) -> 
A89: ='Methods&Limits'!A36 -> Oxygenates
A90: ='Methods&Limits'!A37 -> -- Methanol | B90: ='Methods&Limits'!B37 -> % V/V | C90: ='Methods&Limits'!E37 -> EN 1601 | D90: ='Methods&Limits'!F37 -> 2017 | E90: ='Methods&Limits'!G37 -> 0.3 | G90: ='Methods&Limits'!I37 -> 3.177 | H90: =IF(E31="","",IF(E31>G90,"Yes","")) -> 
A91: ='Methods&Limits'!A38 -> -- Ethanol | B91: ='Methods&Limits'!B38 -> % V/V | C91: ='Methods&Limits'!E38 -> EN 1601 | D91: ='Methods&Limits'!F38 -> 2017 | E91: ='Methods&Limits'!G38 -> 0.8 | G91: ='Methods&Limits'!I38 -> 10.472
A92: ='Methods&Limits'!A39 -> -- Iso-propyl alcohol | B92: ='Methods&Limits'!B39 -> % V/V | C92: ='Methods&Limits'!E39 -> EN 1601 | D92: ='Methods&Limits'!F39 -> 2017 | E92: ='Methods&Limits'!G39 -> 0.9 | G92: ='Methods&Limits'!I39 -> 12.531
A93: ='Methods&Limits'!A40 -> -- Tert-butyl alcohol | B93: ='Methods&Limits'!B40 -> % V/V | C93: ='Methods&Limits'!E40 -> EN 1601 | D93: ='Methods&Limits'!F40 -> 2017 | E93: ='Methods&Limits'!G40 -> 1 | G93: ='Methods&Limits'!I40 -> 15.59
A94: ='Methods&Limits'!A41 -> -- Iso-butyl alcohol | B94: ='Methods&Limits'!B41 -> % V/V | C94: ='Methods&Limits'!E41 -> EN 1601 | D94: ='Methods&Limits'!F41 -> 2017 | E94: ='Methods&Limits'!G41 -> 1 | G94: ='Methods&Limits'!I41 -> 15.59
A95: ='Methods&Limits'!A42 -> -- Ethers with 5 or more carbon atoms per molecule | B95: ='Methods&Limits'!B42 -> % V/V | C95: ='Methods&Limits'!E42 -> EN 1601 | D95: ='Methods&Limits'!F42 -> 2017 | E95: ='Methods&Limits'!G42 -> 1 | G95: ='Methods&Limits'!I42 -> 22.59
A96: ='Methods&Limits'!A43 -> -- other oxygenates | B96: ='Methods&Limits'!B43 -> % V/V | C96: ='Methods&Limits'!E43 -> EN 1601 | D96: ='Methods&Limits'!F43 -> 2017 | E96: ='Methods&Limits'!G43 -> 1 | G96: ='Methods&Limits'!I43 -> 15.59
A97: ='Methods&Limits'!A44 -> Oxygen content | B97: ='Methods&Limits'!B44 -> % (m/m) | C97: ='Methods&Limits'!E44 -> EN 13132 | D97: ='Methods&Limits'!F44 -> 2002 | E97: ='Methods&Limits'!G44 -> 0.3 | G97: ='Methods&Limits'!I44 -> 3.877 | H97: =IF(E28="","",IF(E28>G97,"Yes","")) -> 
C98: ='Methods&Limits'!E45 -> EN 13132 | D98: ='Methods&Limits'!F45 -> 2002 | E98: ='Methods&Limits'!G45 -> 0.3 | G98: ='Methods&Limits'!I45 -> 2.877 | H98: =IF(E29="","",IF(E29>G98,"Yes","")) -> 
A99: ='Methods&Limits'!A46 -> Oxygenates
A100: ='Methods&Limits'!A47 -> -- Methanol | B100: ='Methods&Limits'!B47 -> % V/V | C100: ='Methods&Limits'!E47 -> EN 13132 | D100: ='Methods&Limits'!F47 -> 2002 | E100: ='Methods&Limits'!G47 -> 0.3 | G100: ='Methods&Limits'!I47 -> 3.177 | H100: =IF(E31="","",IF(E31>G100,"Yes","")) -> 
A101: ='Methods&Limits'!A48 -> -- Ethanol | B101: ='Methods&Limits'!B48 -> % V/V | C101: ='Methods&Limits'!E48 -> EN 13132 | D101: ='Methods&Limits'!F48 -> 2002 | E101: ='Methods&Limits'!G48 -> 0.8 | G101: ='Methods&Limits'!I48 -> 10.472
A102: ='Methods&Limits'!A49 -> -- Iso-propyl alcohol | B102: ='Methods&Limits'!B49 -> % V/V | C102: ='Methods&Limits'!E49 -> EN 13132 | D102: ='Methods&Limits'!F49 -> 2002 | E102: ='Methods&Limits'!G49 -> 0.8 | G102: ='Methods&Limits'!I49 -> 12.472
A103: ='Methods&Limits'!A50 -> -- Tert-butyl alcohol | B103: ='Methods&Limits'!B50 -> % V/V | C103: ='Methods&Limits'!E50 -> EN 13132 | D103: ='Methods&Limits'!F50 -> 2002 | E103: ='Methods&Limits'!G50 -> 1 | G103: ='Methods&Limits'!I50 -> 15.59
A104: ='Methods&Limits'!A51 -> -- Iso-butyl alcohol | B104: ='Methods&Limits'!B51 -> % V/V | C104: ='Methods&Limits'!E51 -> EN 13132 | D104: ='Methods&Limits'!F51 -> 2002 | E104: ='Methods&Limits'!G51 -> 1 | G104: ='Methods&Limits'!I51 -> 15.59
A105: ='Methods&Limits'!A52 -> -- Ethers with 5 or more carbon atoms per molecule | B105: ='Methods&Limits'!B52 -> % V/V | C105: ='Methods&Limits'!E52 -> EN 13132 | D105: ='Methods&Limits'!F52 -> 2002 | E105: ='Methods&Limits'!G52 -> 1 | G105: ='Methods&Limits'!I52 -> 22.59
A106: ='Methods&Limits'!A53 -> -- other oxygenates | B106: ='Methods&Limits'!B53 -> % V/V | C106: ='Methods&Limits'!E53 -> EN 13132 | D106: ='Methods&Limits'!F53 -> 2002 | E106: ='Methods&Limits'!G53 -> 1 | G106: ='Methods&Limits'!I53 -> 15.59
A107: ='Methods&Limits'!A54 -> Oxygen content | B107: ='Methods&Limits'!B54 -> % (m/m) | C107: ='Methods&Limits'!E54 -> EN-ISO 22854 | D107: ='Methods&Limits'!F54 -> 2021 | E107: ='Methods&Limits'!G54 -> 0.4 | G107: ='Methods&Limits'!I54 -> 3.936 | H107: =IF(E28="","",IF(E28>G107,"Yes","")) -> 
C108: ='Methods&Limits'!E55 -> EN-ISO 22854 | D108: ='Methods&Limits'!F55 -> 2021 | E108: ='Methods&Limits'!G55 -> 0.4 | G108: ='Methods&Limits'!I55 -> 2.936 | H108: =IF(E29="","",IF(E29>G108,"Yes","")) -> 
A109: ='Methods&Limits'!A56 -> Oxyginates
A110: ='Methods&Limits'!A57 -> -- Methanol | B110: ='Methods&Limits'!B57 -> % V/V | C110: ='Methods&Limits'!E57 -> EN-ISO 22854 | D110: ='Methods&Limits'!F57 -> 2021 | E110: ='Methods&Limits'!G57 -> 0.4 | G110: ='Methods&Limits'!I57 -> 3.236 | H110: =IF(E31="","",IF(E31>G110,"Yes","")) -> 
A111: ='Methods&Limits'!A58 -> -- Ethanol | B111: ='Methods&Limits'!B58 -> % V/V | C111: ='Methods&Limits'!E58 -> EN-ISO 22854 | D111: ='Methods&Limits'!F58 -> 2021 | E111: ='Methods&Limits'!G58 -> 0.6 | G111: ='Methods&Limits'!I58 -> 10.354
A112: ='Methods&Limits'!A59 -> -- Iso-propyl alcohol | B112: ='Methods&Limits'!B59 -> % V/V | C112: ='Methods&Limits'!E59 -> EN-ISO 22854 | D112: ='Methods&Limits'!F59 -> 2021 | E112: ='Methods&Limits'!G59 -> 0.7 | G112: ='Methods&Limits'!I59 -> 12.413
A113: ='Methods&Limits'!A60 -> -- Tert-butyl alcohol | B113: ='Methods&Limits'!B60 -> % V/V | C113: ='Methods&Limits'!E60 -> EN-ISO 22854 | D113: ='Methods&Limits'!F60 -> 2021 | E113: ='Methods&Limits'!G60 -> 0.7 | G113: ='Methods&Limits'!I60 -> 15.413
A114: ='Methods&Limits'!A61 -> -- Iso-butyl alcohol | B114: ='Methods&Limits'!B61 -> % V/V | C114: ='Methods&Limits'!E61 -> EN-ISO 22854 | D114: ='Methods&Limits'!F61 -> 2021 | E114: ='Methods&Limits'!G61 -> 0.7 | G114: ='Methods&Limits'!I61 -> 15.413
A115: ='Methods&Limits'!A62 -> -- Ethers with 5 or more carbon atoms per molecule | B115: ='Methods&Limits'!B62 -> % V/V | C115: ='Methods&Limits'!E62 -> EN-ISO 22854 | D115: ='Methods&Limits'!F62 -> 2021 | E115: ='Methods&Limits'!G62 -> 0.9 | G115: ='Methods&Limits'!I62 -> 22.531
A116: ='Methods&Limits'!A63 -> -- other oxygenates | B116: ='Methods&Limits'!B63 -> % V/V | C116: ='Methods&Limits'!E63 -> EN-ISO 22854 | D116: ='Methods&Limits'!F63 -> 2021 | E116: ='Methods&Limits'!G63 -> 0.7 | G116: ='Methods&Limits'!I63 -> 15.413
A117: ='Methods&Limits'!A64:A64 -> Sulphur content (sulphur free, from 2005)** | B117: ='Methods&Limits'!B64 -> mg/kg | C117: ='Methods&Limits'!E64 -> EN-ISO 14596 | D117: ='Methods&Limits'!F64 -> 2018 | E117: ='Methods&Limits'!G64 -> 5 | G117: ='Methods&Limits'!I64 -> 12.95 | H117: =IF(E$38="","",IF(E$38>G117,"Yes","")) -> 
C118: ='Methods&Limits'!E65 -> EN 24260 | D118: ='Methods&Limits'!F65 -> 1994 | E118: ='Methods&Limits'!G65 -> 1 | G118: ='Methods&Limits'!I65 -> 10.59 | H118: =IF(E$38="","",IF(E$38>G118,"Yes","")) -> 
C119: ='Methods&Limits'!E66 -> EN-ISO 20846 | D119: ='Methods&Limits'!F66 -> 2019 | E119: ='Methods&Limits'!G66 -> 2.7 | G119: ='Methods&Limits'!I66 -> 11.593 | H119: =IF(E$38="","",IF(E$38>G119,"Yes","")) -> 
C120: ='Methods&Limits'!E67 -> EN-ISO 20884 | D120: ='Methods&Limits'!F67 -> 2019 | E120: ='Methods&Limits'!G67 -> 3.1 | G120: ='Methods&Limits'!I67 -> 11.829 | H120: =IF(E$38="","",IF(E$38>G120,"Yes","")) -> 
A121: ='Methods&Limits'!A68:A68 -> Lead content | B121: ='Methods&Limits'!B68 -> g/l | C121: ='Methods&Limits'!E68 -> EN 237 | D121: ='Methods&Limits'!F68 -> 2004 | E121: ='Methods&Limits'!G68 -> 0.0062 | G121: ='Methods&Limits'!I68 -> 0.008658 | H121: =IF(E39="","",IF(E39>G121,"Yes","")) -> 

Sheet Petrol (5)
A1: Market Fuels used in Vehicles with Spark Ignition Engines (Petrol) | R1: <-- GO BACK
A3: Country | B3: =IF(LEN('Contacts&Annual Summary'!C9) > 1,'Contacts&Annual Summary'!C9,"") ->  | G3: Notes on completing the tables The table structure has been locked to prevent modification - data can be copied and pasted, in bulk into the Reporting Results blue table cells. Where a white row exists between rows, it will not be possible to paste over white rows and sections should be pasted separately. Column H in the Test Methods and Analysis table is set to automatically check whether the values entered in the Reporting Results table exceed maximum or minimum Tolerance Limits. If any exceedance is detected, please provide details in the columns to the right including the number of samples, location samples were taken from, Values and Details of any action taken to address non-compliant samples. Compliance information is verified manually and this automated compliance check is not solely relied upon during data analysis. Please do not unlock this template - modified templates cannot be processed and may delay reporting.
A4: Reporting Year | B4: ='Contacts&Annual Summary'!C8 -> 2023
A5: Period (Summer or Winter) | B5: Summer
A6: Parent fuel grade | B6: Petrol
A7: National fuel grade
A8: Summer Period (N or A)* | B8: 0 | C8: =IF( B8="A","1st June to 31st August (arctic)","1st May to 30th September (normal)") -> 1st May to 30th September (normal)
A9: The maximum bioethanol content (% v/v) | B9: 0 | C9: Please include the bioethanol content as a numerical figure in % V/V
A10: * N = 1st May to 30th September (normal) ; A = 1st June to 31st August (arctic).
A12: Reporting results
A14: Parameter | B14: Unit | C14: Analytical and statistical results (Please see an explanation and examples for new columns/ information required in Cells I15 to K37 on the Introduction & Instructions tab). | L14: Limiting Value (1) | P14: Test method
L15: National Specification, if any | N15: According to Directive 2009/30/EC | P15: (more recent versions may also be used)
C16: No Samples | D16: Minimum | E16: Maximum | F16: Median | G16: Mean | H16: Standard Deviation | I16: No Samples outside 95% tolerance limit | J16: 25% of Sample Value | K16: 75% of Sample Value | L16: Minimum | M16: Maximum | N16: Minimum | O16: Maximum | P16: Method | Q16: Date
A17: Research Octane Number | B17: -- | C17: 0 | D17: 0 | E17: 0 | F17: 0 | G17: 0 | H17: 0 | I17: 0 | J17: 0 | K17: 0 | N17: 95 (2) | P17: EN-ISO 5164 | Q17: 2005
A18: Motor Octane Number | B18: -- | C18: 0 | D18: 0 | E18: 0 | F18: 0 | G18: 0 | H18: 0 | I18: 0 | J18: 0 | K18: 0 | N18: 85 (3) | P18: EN-ISO 5163 | Q18: 2005
A19: Vapour Pressure, DVPE (6) | B19: kPa | O19: (4)
A20: -- required for summer period only | C20: 0 | D20: 0 | E20: 0 | F20: 0 | G20: 0 | H20: 0 | I20: 0 | J20: 0 | K20: 0 | O20: =IF(E8="A",70,60) -> 60 | P20: EN 13106-1 | Q20: 2007
A21: Distillation | P21: EN-ISO 3405
A22: -- evaporated at 100 oC | B22: % V/V | C22: 0 | D22: 0 | E22: 0 | F22: 0 | G22: 0 | H22: 0 | I22: 0 | J22: 0 | K22: 0 | N22: 46 | Q22: 2000
A23: -- evaporated at 150 oC | B23: % V/V | C23: 0 | D23: 0 | E23: 0 | F23: 0 | G23: 0 | H23: 0 | I23: 0 | J23: 0 | K23: 0 | N23: 75
A24: Hydrocarbon analysis
A25: -- Olefins | B25: % V/V | C25: 0 | D25: 0 | E25: 0 | F25: 0 | G25: 0 | H25: 0 | I25: 0 | J25: 0 | K25: 0 | O25: 18.0 (5) | P25: ASTM D 1319 EN 15553 EN-ISO 22854 | Q25: 1995 2007 2008
A26: -- Aromatics | B26: % V/V | C26: 0 | D26: 0 | E26: 0 | F26: 0 | G26: 0 | H26: 0 | I26: 0 | J26: 0 | K26: 0 | O26: 35 | P26: EN-ISO 22854 | Q26: 1995 2008
A27: -- Benzene | B27: % V/V | C27: 0 | D27: 0 | E27: 0 | F27: 0 | G27: 0 | H27: 0 | I27: 0 | J27: 0 | K27: 0 | O27: 1 | P27: EN 238 EN 12177 EN-ISO 22854 | Q27: 1996 1998 2008
A28: =IF(C29>0,"Do not complete","Oxygen content") -> Oxygen content | B28: % (m/m) | C28: 0 | D28: 0 | E28: 0 | F28: 0 | G28: 0 | H28: 0 | I28: 0 | J28: 0 | K28: 0 | O28: 3.7 | P28: EN 1601 EN 13132 EN-ISO 22854 | Q28: 1997 2000 2008
A29: =IF(C28>0,"Do not complete","Oxygen content* *petrol with 5% (v/v) or less ethanol content") -> Oxygen content* *petrol with 5% (v/v) or less ethanol content | B29: % (m/m) | C29: 0 | D29: 0 | E29: 0 | F29: 0 | G29: 0 | H29: 0 | I29: 0 | J29: 0 | K29: 0 | O29: 2.7
A30: Oxygenates
A31: -- Methanol | B31: % V/V | C31: 0 | D31: 0 | E31: 0 | F31: 0 | G31: 0 | H31: 0 | I31: 0 | J31: 0 | K31: 0 | O31: 3
A32: -- Ethanol | B32: % V/V | C32: 0 | D32: 0 | E32: 0 | F32: 0 | G32: 0 | H32: 0 | I32: 0 | J32: 0 | K32: 0 | O32: 10
A33: -- Iso-propyl alcohol | B33: % V/V | C33: 0 | D33: 0 | E33: 0 | F33: 0 | G33: 0 | H33: 0 | I33: 0 | J33: 0 | K33: 0 | O33: 12 | P33: EN 1601 | Q33: 1997
A34: -- Tert-butyl alcohol | B34: % V/V | C34: 0 | D34: 0 | E34: 0 | F34: 0 | G34: 0 | H34: 0 | I34: 0 | J34: 0 | K34: 0 | O34: 15 | P34: EN 13132 | Q34: 2000
A35: -- Iso-butyl alcohol | B35: % V/V | C35: 0 | D35: 0 | E35: 0 | F35: 0 | G35: 0 | H35: 0 | I35: 0 | J35: 0 | K35: 0 | O35: 15 | P35: EN-ISO 22854 | Q35: 2008
A36: -- Ethers with ≥5 carbon atoms / molecule | B36: % V/V | C36: 0 | D36: 0 | E36: 0 | F36: 0 | G36: 0 | H36: 0 | I36: 0 | J36: 0 | K36: 0 | O36: 22
A37: -- other oxygenates | B37: % V/V | C37: 0 | D37: 0 | E37: 0 | F37: 0 | G37: 0 | H37: 0 | I37: 0 | J37: 0 | K37: 0 | O37: 15
A38: Sulphur content | B38: mg/kg | C38: 0 | D38: 0 | E38: 0 | F38: 0 | G38: 0 | H38: 0 | I38: 0 | J38: 0 | K38: 0 | O38: 10 | P38: EN-ISO 14596 EN 24260 EN-ISO 20846 EN-ISO 20884 | Q38: 1998 1994 2004 2004
A39: Lead content | B39: g/l | C39: 0 | D39: 0 | E39: 0 | F39: 0 | G39: 0 | H39: 0 | I39: 0 | J39: 0 | K39: 0 | O39: 0.005 | P39: EN 237 | Q39: 1996
A42: Sampling frequency
A44: Number of samples in month
A45: January | B45: 0 | C45: July | D45: 0 | E45: (1) The limiting values are "true values" and were established according to the procedures for limit setting in EN 228:2008 The results of individual measurements shall be interpreted following the criteria described in EN 228:2008.
A46: February | B46: 0 | C46: August | D46: 0
A47: March | B47: 0 | C47: September | D47: 0 | E47: (2) 91 for unleaded regular grade petrol: See 2009/30/EC Annex I, Footnote 3.
A48: April | B48: 0 | C48: October | D48: 0 | E48: (3) 81 for unleaded regular grade petrol: See 2009/30/EC Annex I, Footnote 3.
A49: May | B49: 0 | C49: November | D49: 0 | E49: (4) 70 kPa for Member States with arctic or severe weather conditions: See 2003/30/EC Annex I, Footnotes 4 & 5.
A50: June | B50: 0 | C50: December | D50: 0 | E50: (5) 21 for unleaded regular grade petrol: See 98/70/EC, Annex I, Footnote 6.
C51: Summer Months Total | D51: =SUM(B45:B50,D45:D50) -> 0 | E51: (6) Vapour pressure waiver applies for petrol containing Bioethanol, see 2009/30/EC Annex I, Footnote 5 and Annex III.
A53: Other notes (optional):
A57: Test Methods and Analysis
A59: Parameter | B59: Unit | C59: Test specified in 2009/30/EC or EN228:2008 | J59: Notes on exceedences
C60: Method | D60: Date | E60: Reproducability, R | F60: Tolerance limits | J60: Sample location (S,T or R) | K60: Values | L60: Details/action taken
F61: Minimum | G61: Maximum | H61: Exceeded?
A62: ='Methods&Limits'!A9 -> Research Octane Number (RON) | B62: ='Methods&Limits'!B9 -> -- | C62: ='Methods&Limits'!E9 -> EN-ISO 5164 | D62: ='Methods&Limits'!F9 -> 2014 | E62: ='Methods&Limits'!G9 -> 0.7 | F62: ='Methods&Limits'!H9 -> 94.587 | H62: =IF(D17="","",IF(D17<F62,"Yes","")) -> Yes
A63: ='Methods&Limits'!A10 -> (RON 91 fuel only) | B63: ='Methods&Limits'!B10 -> -- | C63: ='Methods&Limits'!E10 -> EN-ISO 5164 | D63: ='Methods&Limits'!F10 -> 2014 | E63: ='Methods&Limits'!G10 -> 0.7 | F63: ='Methods&Limits'!H10 -> 90.587 | H63: =IF(D17="","",IF(D17<F63,"Yes","")) -> Yes
A64: ='Methods&Limits'!A11 -> Motor Octane Number (MON) | B64: ='Methods&Limits'!B11 -> -- | C64: ='Methods&Limits'!E11 -> EN-ISO 5163 | D64: ='Methods&Limits'!F11 -> 2014 | E64: ='Methods&Limits'!G11 -> 0.9 | F64: ='Methods&Limits'!H11 -> 84.469 | H64: =IF(D18="","",IF(D18<F64,"Yes","")) -> Yes
A65: ='Methods&Limits'!A12 -> (RON 91 fuel only) | B65: ='Methods&Limits'!B12 -> -- | C65: ='Methods&Limits'!E12 -> EN-ISO 5163 | D65: ='Methods&Limits'!F12 -> 2014 | E65: ='Methods&Limits'!G12 -> 0.9 | F65: ='Methods&Limits'!H12 -> 80.469 | H65: =IF(D18="","",IF(D18<F65,"Yes","")) -> Yes
A66: ='Methods&Limits'!A13 -> Vapour Pressure, DVPE
A67: ='Methods&Limits'!A14 -> --summer period (normal) | B67: ='Methods&Limits'!B14 -> kPa | C67: ='Methods&Limits'!E14 -> EN 13016-1 | D67: ='Methods&Limits'!F14 -> 2018 | E67: ='Methods&Limits'!G14 -> 2.2 | G67: ='Methods&Limits'!I14 -> 61.298 | H67: =IF(E20>G67,"Yes","") -> 
A68: ='Methods&Limits'!A15 -> -- Petrol with bioethanol content 0-2 | B68: ='Methods&Limits'!B15 -> kPa | C68: ='Methods&Limits'!E15 -> EN 1601 | D68: ='Methods&Limits'!F15 -> 2017 | E68: ='Methods&Limits'!G15 -> 2.3 | G68: ='Methods&Limits'!I15 -> 67.307 | H68: =IF(E20>G68,"Yes","") -> 
A69: ='Methods&Limits'!A16 -> -- Petrol with bioethanol content 2-4 | B69: ='Methods&Limits'!B16 -> kPa | C69: ='Methods&Limits'!E16 -> EN 1601 | D69: ='Methods&Limits'!F16 -> 2017 | E69: ='Methods&Limits'!G16 -> 2.3 | G69: ='Methods&Limits'!I16 -> 69.157 | H69: =IF(E20>G69,"Yes","") -> 
A70: ='Methods&Limits'!A17 -> -- Petrol with bioethanol content 4-6 | B70: ='Methods&Limits'!B17 -> kPa | C70: ='Methods&Limits'!E17 -> EN 1601 | D70: ='Methods&Limits'!F17 -> 2017 | E70: ='Methods&Limits'!G17 -> 2.3 | G70: ='Methods&Limits'!I17 -> 69.357 | H70: =IF(E20>G70,"Yes","") -> 
A71: ='Methods&Limits'!A18 -> -- Petrol with bioethanol content 6-8 | B71: ='Methods&Limits'!B18 -> kPa | C71: ='Methods&Limits'!E18 -> EN 1601 | D71: ='Methods&Limits'!F18 -> 2017 | E71: ='Methods&Limits'!G18 -> 2.3 | G71: ='Methods&Limits'!I18 -> 69.237 | H71: =IF(E20>G71,"Yes","") -> 
A72: ='Methods&Limits'!A19 -> -- Petrol with bioethanol content 8-10 | B72: ='Methods&Limits'!B19 -> kPa | C72: ='Methods&Limits'!E19 -> EN 1601 | D72: ='Methods&Limits'!F19 -> 2017 | E72: ='Methods&Limits'!G19 -> 2.3 | G72: ='Methods&Limits'!I19 -> 69.117 | H72: =IF(E20>G72,"Yes","") -> 
A73: ='Methods&Limits'!A20 -> --summer period (arctic or severe weather conditions) | B73: ='Methods&Limits'!B20 -> kPa | C73: ='Methods&Limits'!E20 -> EN 13016-1 | D73: ='Methods&Limits'!F20 -> 2018 | E73: ='Methods&Limits'!G20 -> 2.3 | G73: ='Methods&Limits'!I20 -> 71.357 | H73: =IF(E20>G73,"Yes","") -> 
A74: ='Methods&Limits'!A21 -> Distillation *
A75: ='Methods&Limits'!A22 -> --evaporated at 100 oC | B75: ='Methods&Limits'!B22 -> % V/V | C75: ='Methods&Limits'!E22 -> EN-ISO 3405 | D75: ='Methods&Limits'!F22 -> 2020 | E75: ='Methods&Limits'!G22 -> 4 | F75: ='Methods&Limits'!H22 -> 43.64 | H75: =IF(D22="","",IF(D22<F75,"Yes","")) -> Yes
A76: ='Methods&Limits'!A23 -> -- evaporated at 150 oC | B76: ='Methods&Limits'!B23 -> % V/V | C76: ='Methods&Limits'!E23 -> EN-ISO 3405 | D76: ='Methods&Limits'!F23 -> 2020 | E76: ='Methods&Limits'!G23 -> 4 | F76: ='Methods&Limits'!H23 -> 72.64 | H76: =IF(D23="","",IF(D23<F76,"Yes","")) -> Yes
A77: ='Methods&Limits'!A24 -> Hydrocarbon analysis | H77: =IF(D24<F77,"Yes","") -> 
A78: ='Methods&Limits'!A25 -> -- Olefins | B78: ='Methods&Limits'!B25 -> % V/V | C78: ='Methods&Limits'!E25 -> EN 15553 | D78: ='Methods&Limits'!F25 -> 2021 | E78: ='Methods&Limits'!G25 -> 6.4 | G78: ='Methods&Limits'!I25 -> 21.776 | H78: =IF($E$25>G78,"Yes","") -> 
C79: ='Methods&Limits'!E26 -> EN-ISO 22854 | D79: ='Methods&Limits'!F26 -> 2021 | E79: ='Methods&Limits'!G26 -> 2.6 | G79: ='Methods&Limits'!I26 -> 19.534 | H79: =IF($E$25>G79,"Yes","") -> 
A80: ='Methods&Limits'!A27 -> *without oxygenates | C80: ='Methods&Limits'!E27 -> EN 15553 | D80: ='Methods&Limits'!F27 -> 2021 | E80: ='Methods&Limits'!G27 -> - | G80: ='Methods&Limits'!I27 -> - | H80: =IF($E$25>G80,"Yes","") -> 
C81: ='Methods&Limits'!E28 -> EN-ISO 22854 | D81: ='Methods&Limits'!F28 -> 2021 | E81: ='Methods&Limits'!G28 -> - | G81: ='Methods&Limits'!I28 -> - | H81: =IF($E$25>G81,"Yes","") -> 
A82: ='Methods&Limits'!A29 -> -- Olefins (RON 91 fuel only)*** | B82: ='Methods&Limits'!B29 -> % V/V | C82: ='Methods&Limits'!E29 -> ASTM D1319 | D82: ='Methods&Limits'!F29 -> 2020 | E82: ='Methods&Limits'!G29 -> 5.1 | G82: ='Methods&Limits'!I29 -> 24.009 | H82: =IF($E$25>G82,"Yes","") -> 
A83: ='Methods&Limits'!A30 -> -- Aromatics (from 2005) | C83: ='Methods&Limits'!E30 -> EN-ISO 22854 | D83: ='Methods&Limits'!F30 -> 2021 | E83: ='Methods&Limits'!G30 -> 1.7 | G83: ='Methods&Limits'!I30 -> 36.003 | H83: =IF($E$26>G83,"Yes","") -> 
A84: ='Methods&Limits'!A31 -> -- Benzene | B84: ='Methods&Limits'!B31 -> % V/V | C84: ='Methods&Limits'!E31 -> EN 12177 | D84: ='Methods&Limits'!F31 -> 2022 | E84: ='Methods&Limits'!G31 -> 0.1 | G84: ='Methods&Limits'!I31 -> 1.059 | H84: =IF(E27>G84,"Yes","") -> 
C85: ='Methods&Limits'!E32 -> EN 238 | D85: ='Methods&Limits'!F32 -> 1996 | E85: ='Methods&Limits'!G32 -> 0.17 | G85: ='Methods&Limits'!I32 -> 1.1003 | H85: =IF(E27>G85,"Yes","") -> 
C86: ='Methods&Limits'!E33 -> EN-ISO 22854 | D86: ='Methods&Limits'!F33 -> 2021 | E86: ='Methods&Limits'!G33 -> 0.05 | G86: ='Methods&Limits'!I33 -> 1.0295 | H86: =IF(E27>G86,"Yes","") -> 
A87: ='Methods&Limits'!A34 -> Oxygen content | B87: ='Methods&Limits'!B34 -> % (m/m) | C87: ='Methods&Limits'!E34 -> EN 1601 | D87: ='Methods&Limits'!F34 -> 2017 | E87: ='Methods&Limits'!G34 -> 0.41 | G87: ='Methods&Limits'!I34 -> 3.9419 | H87: =IF(E28>G87,"Yes","") -> 
C88: ='Methods&Limits'!E35 -> EN 1601 | D88: ='Methods&Limits'!F35 -> 2017 | E88: ='Methods&Limits'!G35 -> 0.41 | G88: ='Methods&Limits'!I35 -> 2.9419 | H88: =IF(E29>G88,"Yes","") -> 
A89: ='Methods&Limits'!A36 -> Oxygenates
A90: ='Methods&Limits'!A37 -> -- Methanol | B90: ='Methods&Limits'!B37 -> % V/V | C90: ='Methods&Limits'!E37 -> EN 1601 | D90: ='Methods&Limits'!F37 -> 2017 | E90: ='Methods&Limits'!G37 -> 0.3 | G90: ='Methods&Limits'!I37 -> 3.177 | H90: =IF(E31>G90,"Yes","") -> 
A91: ='Methods&Limits'!A38 -> -- Ethanol | B91: ='Methods&Limits'!B38 -> % V/V | C91: ='Methods&Limits'!E38 -> EN 1601 | D91: ='Methods&Limits'!F38 -> 2017 | E91: ='Methods&Limits'!G38 -> 0.8 | G91: ='Methods&Limits'!I38 -> 10.472
A92: ='Methods&Limits'!A39 -> -- Iso-propyl alcohol | B92: ='Methods&Limits'!B39 -> % V/V | C92: ='Methods&Limits'!E39 -> EN 1601 | D92: ='Methods&Limits'!F39 -> 2017 | E92: ='Methods&Limits'!G39 -> 0.9 | G92: ='Methods&Limits'!I39 -> 12.531
A93: ='Methods&Limits'!A40 -> -- Tert-butyl alcohol | B93: ='Methods&Limits'!B40 -> % V/V | C93: ='Methods&Limits'!E40 -> EN 1601 | D93: ='Methods&Limits'!F40 -> 2017 | E93: ='Methods&Limits'!G40 -> 1 | G93: ='Methods&Limits'!I40 -> 15.59
A94: ='Methods&Limits'!A41 -> -- Iso-butyl alcohol | B94: ='Methods&Limits'!B41 -> % V/V | C94: ='Methods&Limits'!E41 -> EN 1601 | D94: ='Methods&Limits'!F41 -> 2017 | E94: ='Methods&Limits'!G41 -> 1 | G94: ='Methods&Limits'!I41 -> 15.59
A95: ='Methods&Limits'!A42 -> -- Ethers with 5 or more carbon atoms per molecule | B95: ='Methods&Limits'!B42 -> % V/V | C95: ='Methods&Limits'!E42 -> EN 1601 | D95: ='Methods&Limits'!F42 -> 2017 | E95: ='Methods&Limits'!G42 -> 1 | G95: ='Methods&Limits'!I42 -> 22.59
A96: ='Methods&Limits'!A43 -> -- other oxygenates | B96: ='Methods&Limits'!B43 -> % V/V | C96: ='Methods&Limits'!E43 -> EN 1601 | D96: ='Methods&Limits'!F43 -> 2017 | E96: ='Methods&Limits'!G43 -> 1 | G96: ='Methods&Limits'!I43 -> 15.59
A97: ='Methods&Limits'!A44 -> Oxygen content | B97: ='Methods&Limits'!B44 -> % (m/m) | C97: ='Methods&Limits'!E44 -> EN 13132 | D97: ='Methods&Limits'!F44 -> 2002 | E97: ='Methods&Limits'!G44 -> 0.3 | G97: ='Methods&Limits'!I44 -> 3.877 | H97: =IF(E28>G97,"Yes","") -> 
C98: ='Methods&Limits'!E45 -> EN 13132 | D98: ='Methods&Limits'!F45 -> 2002 | E98: ='Methods&Limits'!G45 -> 0.3 | G98: ='Methods&Limits'!I45 -> 2.877 | H98: =IF(E29>G98,"Yes","") -> 
A99: ='Methods&Limits'!A46 -> Oxygenates
A100: ='Methods&Limits'!A47 -> -- Methanol | B100: ='Methods&Limits'!B47 -> % V/V | C100: ='Methods&Limits'!E47 -> EN 13132 | D100: ='Methods&Limits'!F47 -> 2002 | E100: ='Methods&Limits'!G47 -> 0.3 | G100: ='Methods&Limits'!I47 -> 3.177 | H100: =IF(E31>G100,"Yes","") -> 
A101: ='Methods&Limits'!A48 -> -- Ethanol | B101: ='Methods&Limits'!B48 -> % V/V | C101: ='Methods&Limits'!E48 -> EN 13132 | D101: ='Methods&Limits'!F48 -> 2002 | E101: ='Methods&Limits'!G48 -> 0.8 | G101: ='Methods&Limits'!I48 -> 10.472
A102: ='Methods&Limits'!A49 -> -- Iso-propyl alcohol | B102: ='Methods&Limits'!B49 -> % V/V | C102: ='Methods&Limits'!E49 -> EN 13132 | D102: ='Methods&Limits'!F49 -> 2002 | E102: ='Methods&Limits'!G49 -> 0.8 | G102: ='Methods&Limits'!I49 -> 12.472
A103: ='Methods&Limits'!A50 -> -- Tert-butyl alcohol | B103: ='Methods&Limits'!B50 -> % V/V | C103: ='Methods&Limits'!E50 -> EN 13132 | D103: ='Methods&Limits'!F50 -> 2002 | E103: ='Methods&Limits'!G50 -> 1 | G103: ='Methods&Limits'!I50 -> 15.59
A104: ='Methods&Limits'!A51 -> -- Iso-butyl alcohol | B104: ='Methods&Limits'!B51 -> % V/V | C104: ='Methods&Limits'!E51 -> EN 13132 | D104: ='Methods&Limits'!F51 -> 2002 | E104: ='Methods&Limits'!G51 -> 1 | G104: ='Methods&Limits'!I51 -> 15.59
A105: ='Methods&Limits'!A52 -> -- Ethers with 5 or more carbon atoms per molecule | B105: ='Methods&Limits'!B52 -> % V/V | C105: ='Methods&Limits'!E52 -> EN 13132 | D105: ='Methods&Limits'!F52 -> 2002 | E105: ='Methods&Limits'!G52 -> 1 | G105: ='Methods&Limits'!I52 -> 22.59
A106: ='Methods&Limits'!A53 -> -- other oxygenates | B106: ='Methods&Limits'!B53 -> % V/V | C106: ='Methods&Limits'!E53 -> EN 13132 | D106: ='Methods&Limits'!F53 -> 2002 | E106: ='Methods&Limits'!G53 -> 1 | G106: ='Methods&Limits'!I53 -> 15.59
A107: ='Methods&Limits'!A54 -> Oxygen content | B107: ='Methods&Limits'!B54 -> % (m/m) | C107: ='Methods&Limits'!E54 -> EN-ISO 22854 | D107: ='Methods&Limits'!F54 -> 2021 | E107: ='Methods&Limits'!G54 -> 0.4 | G107: ='Methods&Limits'!I54 -> 3.936 | H107: =IF(E28>G107,"Yes","") -> 
C108: ='Methods&Limits'!E55 -> EN-ISO 22854 | D108: ='Methods&Limits'!F55 -> 2021 | E108: ='Methods&Limits'!G55 -> 0.4 | G108: ='Methods&Limits'!I55 -> 2.936 | H108: =IF(E29>G108,"Yes","") -> 
A109: ='Methods&Limits'!A56 -> Oxyginates
A110: ='Methods&Limits'!A57 -> -- Methanol | B110: ='Methods&Limits'!B57 -> % V/V | C110: ='Methods&Limits'!E57 -> EN-ISO 22854 | D110: ='Methods&Limits'!F57 -> 2021 | E110: ='Methods&Limits'!G57 -> 0.4 | G110: ='Methods&Limits'!I57 -> 3.236 | H110: =IF(E31>G110,"Yes","") -> 
A111: ='Methods&Limits'!A58 -> -- Ethanol | B111: ='Methods&Limits'!B58 -> % V/V | C111: ='Methods&Limits'!E58 -> EN-ISO 22854 | D111: ='Methods&Limits'!F58 -> 2021 | E111: ='Methods&Limits'!G58 -> 0.6 | G111: ='Methods&Limits'!I58 -> 10.354
A112: ='Methods&Limits'!A59 -> -- Iso-propyl alcohol | B112: ='Methods&Limits'!B59 -> % V/V | C112: ='Methods&Limits'!E59 -> EN-ISO 22854 | D112: ='Methods&Limits'!F59 -> 2021 | E112: ='Methods&Limits'!G59 -> 0.7 | G112: ='Methods&Limits'!I59 -> 12.413
A113: ='Methods&Limits'!A60 -> -- Tert-butyl alcohol | B113: ='Methods&Limits'!B60 -> % V/V | C113: ='Methods&Limits'!E60 -> EN-ISO 22854 | D113: ='Methods&Limits'!F60 -> 2021 | E113: ='Methods&Limits'!G60 -> 0.7 | G113: ='Methods&Limits'!I60 -> 15.413
A114: ='Methods&Limits'!A61 -> -- Iso-butyl alcohol | B114: ='Methods&Limits'!B61 -> % V/V | C114: ='Methods&Limits'!E61 -> EN-ISO 22854 | D114: ='Methods&Limits'!F61 -> 2021 | E114: ='Methods&Limits'!G61 -> 0.7 | G114: ='Methods&Limits'!I61 -> 15.413
A115: ='Methods&Limits'!A62 -> -- Ethers with 5 or more carbon atoms per molecule | B115: ='Methods&Limits'!B62 -> % V/V | C115: ='Methods&Limits'!E62 -> EN-ISO 22854 | D115: ='Methods&Limits'!F62 -> 2021 | E115: ='Methods&Limits'!G62 -> 0.9 | G115: ='Methods&Limits'!I62 -> 22.531
A116: ='Methods&Limits'!A63 -> -- other oxygenates | B116: ='Methods&Limits'!B63 -> % V/V | C116: ='Methods&Limits'!E63 -> EN-ISO 22854 | D116: ='Methods&Limits'!F63 -> 2021 | E116: ='Methods&Limits'!G63 -> 0.7 | G116: ='Methods&Limits'!I63 -> 15.413
A117: ='Methods&Limits'!A64:A64 -> Sulphur content (sulphur free, from 2005)** | B117: ='Methods&Limits'!B64 -> mg/kg | C117: ='Methods&Limits'!E64 -> EN-ISO 14596 | D117: ='Methods&Limits'!F64 -> 2018 | E117: ='Methods&Limits'!G64 -> 5 | G117: ='Methods&Limits'!I64 -> 12.95 | H117: =IF(E$38>G117,"Yes","") -> 
C118: ='Methods&Limits'!E65 -> EN 24260 | D118: ='Methods&Limits'!F65 -> 1994 | E118: ='Methods&Limits'!G65 -> 1 | G118: ='Methods&Limits'!I65 -> 10.59 | H118: =IF(E$38>G118,"Yes","") -> 
C119: ='Methods&Limits'!E66 -> EN-ISO 20846 | D119: ='Methods&Limits'!F66 -> 2019 | E119: ='Methods&Limits'!G66 -> 2.7 | G119: ='Methods&Limits'!I66 -> 11.593 | H119: =IF(E$38>G119,"Yes","") -> 
C120: ='Methods&Limits'!E67 -> EN-ISO 20884 | D120: ='Methods&Limits'!F67 -> 2019 | E120: ='Methods&Limits'!G67 -> 3.1 | G120: ='Methods&Limits'!I67 -> 11.829 | H120: =IF(E$38>G120,"Yes","") -> 
A121: ='Methods&Limits'!A68:A68 -> Lead content | B121: ='Methods&Limits'!B68 -> g/l | C121: ='Methods&Limits'!E68 -> EN 237 | D121: ='Methods&Limits'!F68 -> 2004 | E121: ='Methods&Limits'!G68 -> 0.0062 | G121: ='Methods&Limits'!I68 -> 0.008658 | H121: =IF($E$39>G121,"Yes","") -> 

Sheet Petrol (6)
A1: Market Fuels used in Vehicles with Spark Ignition Engines (Petrol) | R1: <-- GO BACK
A3: Country | B3: =IF(LEN('Contacts&Annual Summary'!C9) > 1,'Contacts&Annual Summary'!C9,"") ->  | G3: Notes on completing the tables The table structure has been locked to prevent modification - data can be copied and pasted, in bulk into the Reporting Results blue table cells. Where a white row exists between rows, it will not be possible to paste over white rows and sections should be pasted separately. Column H in the Test Methods and Analysis table is set to automatically check whether the values entered in the Reporting Results table exceed maximum or minimum Tolerance Limits. If any exceedance is detected, please provide details in the columns to the right including the number of samples, location samples were taken from, Values and Details of any action taken to address non-compliant samples. Compliance information is verified manually and this automated compliance check is not solely relied upon during data analysis. Please do not unlock this template - modified templates cannot be processed and may delay reporting.
A4: Reporting Year | B4: ='Contacts&Annual Summary'!C8 -> 2023
A5: Period (Summer or Winter) | B5: Winter
A6: Parent fuel grade | B6: Petrol
A7: National fuel grade | B7: ='Petrol (5)'!B7 -> 0
A8: Summer Period (N or A)* | B8: 0 | C8: =IF( B8="A","1st June to 31st August (arctic)","1st May to 30th September (normal)") -> 1st May to 30th September (normal)
A9: The maximum bioethanol content (% v/v) | B9: 0 | C9: Please include the bioethanol content as a numerical figure in % V/V
A10: * N = 1st May to 30th September (normal) ; A = 1st June to 31st August (arctic).
A12: Reporting results
A14: Parameter | B14: Unit | C14: Analytical and statistical results (Please see an explanation and examples for new columns/ information required in Cells I15 to K37 on the Introduction & Instructions tab). | L14: Limiting Value (1) | P14: Test method
L15: National Specification, if any | N15: According to Directive 2009/30/EC | P15: (more recent versions may also be used)
C16: No Samples | D16: Minimum | E16: Maximum | F16: Median | G16: Mean | H16: Standard Deviation | I16: No Samples outside 95% tolerance limit | J16: 25% of Sample Value | K16: 75% of Sample Value | L16: Minimum | M16: Maximum | N16: Minimum | O16: Maximum | P16: Method | Q16: Date
A17: Research Octane Number | B17: -- | C17: 0 | D17: 0 | E17: 0 | F17: 0 | G17: 0 | H17: 0 | I17: 0 | J17: 0 | K17: 0 | N17: 95 (2) | P17: EN-ISO 5164 | Q17: 2005
A18: Motor Octane Number | B18: -- | C18: 0 | D18: 0 | E18: 0 | F18: 0 | G18: 0 | H18: 0 | I18: 0 | J18: 0 | K18: 0 | N18: 85 (3) | P18: EN-ISO 5163 | Q18: 2005
A19: Vapour Pressure, DVPE (6) | B19: kPa | O19: (4)
A20: -- required for summer period only | C20: 0 | D20: 0 | E20: 0 | F20: 0 | G20: 0 | H20: 0 | I20: 0 | J20: 0 | K20: 0 | O20: =IF(E8="A",70,60) -> 60 | P20: EN 13106-1 | Q20: 2007
A21: Distillation | P21: EN-ISO 3405
A22: -- evaporated at 100 oC | B22: % V/V | C22: 0 | D22: 0 | E22: 0 | F22: 0 | G22: 0 | H22: 0 | I22: 0 | J22: 0 | K22: 0 | N22: 46 | Q22: 2000
A23: -- evaporated at 150 oC | B23: % V/V | C23: 0 | D23: 0 | E23: 0 | F23: 0 | G23: 0 | H23: 0 | I23: 0 | J23: 0 | K23: 0 | N23: 75
A24: Hydrocarbon analysis
A25: -- Olefins | B25: % V/V | C25: 0 | D25: 0 | E25: 0 | F25: 0 | G25: 0 | H25: 0 | I25: 0 | J25: 0 | K25: 0 | O25: 18.0 (5) | P25: ASTM D 1319 EN 15553 EN-ISO 22854 | Q25: 1995 2007 2008
A26: -- Aromatics | B26: % V/V | C26: 0 | D26: 0 | E26: 0 | F26: 0 | G26: 0 | H26: 0 | I26: 0 | J26: 0 | K26: 0 | O26: 35 | P26: EN-ISO 22854 | Q26: 1995 2008
A27: -- Benzene | B27: % V/V | C27: 0 | D27: 0 | E27: 0 | F27: 0 | G27: 0 | H27: 0 | I27: 0 | J27: 0 | K27: 0 | O27: 1 | P27: EN 238 EN 12177 EN-ISO 22854 | Q27: 1996 1998 2008
A28: =IF(C29>0,"Do not complete","Oxygen content") -> Oxygen content | B28: % (m/m) | C28: 0 | D28: 0 | E28: 0 | F28: 0 | G28: 0 | H28: 0 | I28: 0 | J28: 0 | K28: 0 | O28: 3.7 | P28: EN 1601 EN 13132 EN-ISO 22854 | Q28: 1997 2000 2008
A29: =IF(C28>0,"Do not complete","Oxygen content* *petrol with 5% (v/v) or less ethanol content") -> Oxygen content* *petrol with 5% (v/v) or less ethanol content | B29: % (m/m) | C29: 0 | D29: 0 | E29: 0 | F29: 0 | G29: 0 | H29: 0 | I29: 0 | J29: 0 | K29: 0 | O29: 2.7
A30: Oxygenates
A31: -- Methanol | B31: % V/V | C31: 0 | D31: 0 | E31: 0 | F31: 0 | G31: 0 | H31: 0 | I31: 0 | J31: 0 | K31: 0 | O31: 3
A32: -- Ethanol | B32: % V/V | C32: 0 | D32: 0 | E32: 0 | F32: 0 | G32: 0 | H32: 0 | I32: 0 | J32: 0 | K32: 0 | O32: 10
A33: -- Iso-propyl alcohol | B33: % V/V | C33: 0 | D33: 0 | E33: 0 | F33: 0 | G33: 0 | H33: 0 | I33: 0 | J33: 0 | K33: 0 | O33: 12 | P33: EN 1601 | Q33: 1997
A34: -- Tert-butyl alcohol | B34: % V/V | C34: 0 | D34: 0 | E34: 0 | F34: 0 | G34: 0 | H34: 0 | I34: 0 | J34: 0 | K34: 0 | O34: 15 | P34: EN 13132 | Q34: 2000
A35: -- Iso-butyl alcohol | B35: % V/V | C35: 0 | D35: 0 | E35: 0 | F35: 0 | G35: 0 | H35: 0 | I35: 0 | J35: 0 | K35: 0 | O35: 15 | P35: EN-ISO 22854 | Q35: 2008
A36: -- Ethers with ≥5 carbon atoms / molecule | B36: % V/V | C36: 0 | D36: 0 | E36: 0 | F36: 0 | G36: 0 | H36: 0 | I36: 0 | J36: 0 | K36: 0 | O36: 22
A37: -- other oxygenates | B37: % V/V | C37: 0 | D37: 0 | E37: 0 | F37: 0 | G37: 0 | H37: 0 | I37: 0 | J37: 0 | K37: 0 | O37: 15
A38: Sulphur content | B38: mg/kg | C38: 0 | D38: 0 | E38: 0 | F38: 0 | G38: 0 | H38: 0 | I38: 0 | J38: 0 | K38: 0 | O38: 10 | P38: EN-ISO 14596 EN 24260 EN-ISO 20846 EN-ISO 20884 | Q38: 1998 1994 2004 2004
A39: Lead content | B39: g/l | C39: 0 | D39: 0 | E39: 0 | F39: 0 | G39: 0 | H39: 0 | I39: 0 | J39: 0 | K39: 0 | O39: 0.005 | P39: EN 237 | Q39: 1996
A42: Sampling frequency
A44: Number of samples in month
A45: January | B45: 0 | C45: July | D45: 0 | E45: (1) The limiting values are "true values" and were established according to the procedures for limit setting in EN 228:2008 The results of individual measurements shall be interpreted following the criteria described in EN 228:2008.
A46: February | B46: 0 | C46: August | D46: 0
A47: March | B47: 0 | C47: September | D47: 0 | E47: (2) 91 for unleaded regular grade petrol: See 2009/30/EC Annex I, Footnote 3.
A48: April | B48: 0 | C48: October | D48: 0 | E48: (3) 81 for unleaded regular grade petrol: See 2009/30/EC Annex I, Footnote 3.
A49: May | B49: 0 | C49: November | D49: 0 | E49: (4) 70 kPa for Member States with arctic or severe weather conditions: See 2003/30/EC Annex I, Footnotes 4 & 5.
A50: June | B50: 0 | C50: December | D50: 0 | E50: (5) 21 for unleaded regular grade petrol: See 98/70/EC, Annex I, Footnote 6.
C51: Winter Months Total | D51: =SUM(B45:B50,D45:D50) -> 0 | E51: (6) Vapour pressure waiver applies for petrol containing Bioethanol, see 2009/30/EC Annex I, Footnote 5 and Annex III.
A53: Other notes (optional):
A57: Test Methods and Analysis
A59: Parameter | B59: Unit | C59: Test specified in 2009/30/EC or EN228:2008 | J59: Notes on exceedences
C60: Method | D60: Date | E60: Reproducability, R | F60: Tolerance limits | J60: Sample location (S,T or R) | K60: Values | L60: Details/action taken
F61: Minimum | G61: Maximum | H61: Exceeded?
A62: ='Methods&Limits'!A9 -> Research Octane Number (RON) | B62: ='Methods&Limits'!B9 -> -- | C62: ='Methods&Limits'!E9 -> EN-ISO 5164 | D62: ='Methods&Limits'!F9 -> 2014 | E62: ='Methods&Limits'!G9 -> 0.7 | F62: ='Methods&Limits'!H9 -> 94.587 | H62: =IF(D17="","",IF(D17<F62,"Yes","")) -> Yes
A63: ='Methods&Limits'!A10 -> (RON 91 fuel only) | B63: ='Methods&Limits'!B10 -> -- | C63: ='Methods&Limits'!E10 -> EN-ISO 5164 | D63: ='Methods&Limits'!F10 -> 2014 | E63: ='Methods&Limits'!G10 -> 0.7 | F63: ='Methods&Limits'!H10 -> 90.587 | H63: =IF(D17="","",IF(D17<F63,"Yes","")) -> Yes
A64: ='Methods&Limits'!A11 -> Motor Octane Number (MON) | B64: ='Methods&Limits'!B11 -> -- | C64: ='Methods&Limits'!E11 -> EN-ISO 5163 | D64: ='Methods&Limits'!F11 -> 2014 | E64: ='Methods&Limits'!G11 -> 0.9 | F64: ='Methods&Limits'!H11 -> 84.469 | H64: =IF(D18="","",IF(D18<F64,"Yes","")) -> Yes
A65: ='Methods&Limits'!A12 -> (RON 91 fuel only) | B65: ='Methods&Limits'!B12 -> -- | C65: ='Methods&Limits'!E12 -> EN-ISO 5163 | D65: ='Methods&Limits'!F12 -> 2014 | E65: ='Methods&Limits'!G12 -> 0.9 | F65: ='Methods&Limits'!H12 -> 80.469 | H65: =IF(D18="","",IF(D18<F65,"Yes","")) -> Yes
A66: ='Methods&Limits'!A13 -> Vapour Pressure, DVPE
A67: ='Methods&Limits'!A14 -> --summer period (normal) | B67: ='Methods&Limits'!B14 -> kPa | C67: ='Methods&Limits'!E14 -> EN 13016-1 | D67: ='Methods&Limits'!F14 -> 2018 | E67: ='Methods&Limits'!G14 -> 2.2 | G67: ='Methods&Limits'!I14 -> 61.298
A68: ='Methods&Limits'!A15 -> -- Petrol with bioethanol content 0-2 | B68: ='Methods&Limits'!B15 -> kPa | C68: ='Methods&Limits'!E15 -> EN 1601 | D68: ='Methods&Limits'!F15 -> 2017 | E68: ='Methods&Limits'!G15 -> 2.3 | G68: ='Methods&Limits'!I15 -> 67.307
A69: ='Methods&Limits'!A16 -> -- Petrol with bioethanol content 2-4 | B69: ='Methods&Limits'!B16 -> kPa | C69: ='Methods&Limits'!E16 -> EN 1601 | D69: ='Methods&Limits'!F16 -> 2017 | E69: ='Methods&Limits'!G16 -> 2.3 | G69: ='Methods&Limits'!I16 -> 69.157
A70: ='Methods&Limits'!A17 -> -- Petrol with bioethanol content 4-6 | B70: ='Methods&Limits'!B17 -> kPa | C70: ='Methods&Limits'!E17 -> EN 1601 | D70: ='Methods&Limits'!F17 -> 2017 | E70: ='Methods&Limits'!G17 -> 2.3 | G70: ='Methods&Limits'!I17 -> 69.357
A71: ='Methods&Limits'!A18 -> -- Petrol with bioethanol content 6-8 | B71: ='Methods&Limits'!B18 -> kPa | C71: ='Methods&Limits'!E18 -> EN 1601 | D71: ='Methods&Limits'!F18 -> 2017 | E71: ='Methods&Limits'!G18 -> 2.3 | G71: ='Methods&Limits'!I18 -> 69.237
A72: ='Methods&Limits'!A19 -> -- Petrol with bioethanol content 8-10 | B72: ='Methods&Limits'!B19 -> kPa | C72: ='Methods&Limits'!E19 -> EN 1601 | D72: ='Methods&Limits'!F19 -> 2017 | E72: ='Methods&Limits'!G19 -> 2.3 | G72: ='Methods&Limits'!I19 -> 69.117
A73: ='Methods&Limits'!A20 -> --summer period (arctic or severe weather conditions) | B73: ='Methods&Limits'!B20 -> kPa | C73: ='Methods&Limits'!E20 -> EN 13016-1 | D73: ='Methods&Limits'!F20 -> 2018 | E73: ='Methods&Limits'!G20 -> 2.3 | G73: ='Methods&Limits'!I20 -> 71.357
A74: ='Methods&Limits'!A21 -> Distillation *
A75: ='Methods&Limits'!A22 -> --evaporated at 100 oC | B75: ='Methods&Limits'!B22 -> % V/V | C75: ='Methods&Limits'!E22 -> EN-ISO 3405 | D75: ='Methods&Limits'!F22 -> 2020 | E75: ='Methods&Limits'!G22 -> 4 | F75: ='Methods&Limits'!H22 -> 43.64 | H75: =IF(D22="","",IF(D22<F75,"Yes","")) -> Yes
A76: ='Methods&Limits'!A23 -> -- evaporated at 150 oC | B76: ='Methods&Limits'!B23 -> % V/V | C76: ='Methods&Limits'!E23 -> EN-ISO 3405 | D76: ='Methods&Limits'!F23 -> 2020 | E76: ='Methods&Limits'!G23 -> 4 | F76: ='Methods&Limits'!H23 -> 72.64 | H76: =IF(D23="","",IF(D23<F76,"Yes","")) -> Yes
A77: ='Methods&Limits'!A24 -> Hydrocarbon analysis | H77: =IF(D24<F77,"Yes","") -> 
A78: ='Methods&Limits'!A25 -> -- Olefins | B78: ='Methods&Limits'!B25 -> % V/V | C78: ='Methods&Limits'!E25 -> EN 15553 | D78: ='Methods&Limits'!F25 -> 2021 | E78: ='Methods&Limits'!G25 -> 6.4 | G78: ='Methods&Limits'!I25 -> 21.776 | H78: =IF($E$25>G78,"Yes","") -> 
C79: ='Methods&Limits'!E26 -> EN-ISO 22854 | D79: ='Methods&Limits'!F26 -> 2021 | E79: ='Methods&Limits'!G26 -> 2.6 | G79: ='Methods&Limits'!I26 -> 19.534 | H79: =IF($E$25>G79,"Yes","") -> 
A80: ='Methods&Limits'!A27 -> *without oxygenates | C80: ='Methods&Limits'!E27 -> EN 15553 | D80: ='Methods&Limits'!F27 -> 2021 | E80: ='Methods&Limits'!G27 -> - | G80: ='Methods&Limits'!I27 -> - | H80: =IF($E$25>G80,"Yes","") -> 
C81: ='Methods&Limits'!E28 -> EN-ISO 22854 | D81: ='Methods&Limits'!F28 -> 2021 | E81: ='Methods&Limits'!G28 -> - | G81: ='Methods&Limits'!I28 -> - | H81: =IF($E$25>G81,"Yes","") -> 
A82: ='Methods&Limits'!A29 -> -- Olefins (RON 91 fuel only)*** | B82: ='Methods&Limits'!B29 -> % V/V | C82: ='Methods&Limits'!E29 -> ASTM D1319 | D82: ='Methods&Limits'!F29 -> 2020 | E82: ='Methods&Limits'!G29 -> 5.1 | G82: ='Methods&Limits'!I29 -> 24.009 | H82: =IF($E$25>G82,"Yes","") -> 
A83: ='Methods&Limits'!A30 -> -- Aromatics (from 2005) | C83: ='Methods&Limits'!E30 -> EN-ISO 22854 | D83: ='Methods&Limits'!F30 -> 2021 | E83: ='Methods&Limits'!G30 -> 1.7 | G83: ='Methods&Limits'!I30 -> 36.003 | H83: =IF($E$26>G83,"Yes","") -> 
A84: ='Methods&Limits'!A31 -> -- Benzene | B84: ='Methods&Limits'!B31 -> % V/V | C84: ='Methods&Limits'!E31 -> EN 12177 | D84: ='Methods&Limits'!F31 -> 2022 | E84: ='Methods&Limits'!G31 -> 0.1 | G84: ='Methods&Limits'!I31 -> 1.059 | H84: =IF(E27>G84,"Yes","") -> 
C85: ='Methods&Limits'!E32 -> EN 238 | D85: ='Methods&Limits'!F32 -> 1996 | E85: ='Methods&Limits'!G32 -> 0.17 | G85: ='Methods&Limits'!I32 -> 1.1003 | H85: =IF(E27>G85,"Yes","") -> 
C86: ='Methods&Limits'!E33 -> EN-ISO 22854 | D86: ='Methods&Limits'!F33 -> 2021 | E86: ='Methods&Limits'!G33 -> 0.05 | G86: ='Methods&Limits'!I33 -> 1.0295 | H86: =IF(E27>G86,"Yes","") -> 
A87: ='Methods&Limits'!A34 -> Oxygen content | B87: ='Methods&Limits'!B34 -> % (m/m) | C87: ='Methods&Limits'!E34 -> EN 1601 | D87: ='Methods&Limits'!F34 -> 2017 | E87: ='Methods&Limits'!G34 -> 0.41 | G87: ='Methods&Limits'!I34 -> 3.9419 | H87: =IF(E28>G87,"Yes","") -> 
C88: ='Methods&Limits'!E35 -> EN 1601 | D88: ='Methods&Limits'!F35 -> 2017 | E88: ='Methods&Limits'!G35 -> 0.41 | G88: ='Methods&Limits'!I35 -> 2.9419 | H88: =IF(E29>G88,"Yes","") -> 
A89: ='Methods&Limits'!A36 -> Oxygenates
A90: ='Methods&Limits'!A37 -> -- Methanol | B90: ='Methods&Limits'!B37 -> % V/V | C90: ='Methods&Limits'!E37 -> EN 1601 | D90: ='Methods&Limits'!F37 -> 2017 | E90: ='Methods&Limits'!G37 -> 0.3 | G90: ='Methods&Limits'!I37 -> 3.177 | H90: =IF(E31>G90,"Yes","") -> 
A91: ='Methods&Limits'!A38 -> -- Ethanol | B91: ='Methods&Limits'!B38 -> % V/V | C91: ='Methods&Limits'!E38 -> EN 1601 | D91: ='Methods&Limits'!F38 -> 2017 | E91: ='Methods&Limits'!G38 -> 0.8 | G91: ='Methods&Limits'!I38 -> 10.472
A92: ='Methods&Limits'!A39 -> -- Iso-propyl alcohol | B92: ='Methods&Limits'!B39 -> % V/V | C92: ='Methods&Limits'!E39 -> EN 1601 | D92: ='Methods&Limits'!F39 -> 2017 | E92: ='Methods&Limits'!G39 -> 0.9 | G92: ='Methods&Limits'!I39 -> 12.531
A93: ='Methods&Limits'!A40 -> -- Tert-butyl alcohol | B93: ='Methods&Limits'!B40 -> % V/V | C93: ='Methods&Limits'!E40 -> EN 1601 | D93: ='Methods&Limits'!F40 -> 2017 | E93: ='Methods&Limits'!G40 -> 1 | G93: ='Methods&Limits'!I40 -> 15.59
A94: ='Methods&Limits'!A41 -> -- Iso-butyl alcohol | B94: ='Methods&Limits'!B41 -> % V/V | C94: ='Methods&Limits'!E41 -> EN 1601 | D94: ='Methods&Limits'!F41 -> 2017 | E94: ='Methods&Limits'!G41 -> 1 | G94: ='Methods&Limits'!I41 -> 15.59
A95: ='Methods&Limits'!A42 -> -- Ethers with 5 or more carbon atoms per molecule | B95: ='Methods&Limits'!B42 -> % V/V | C95: ='Methods&Limits'!E42 -> EN 1601 | D95: ='Methods&Limits'!F42 -> 2017 | E95: ='Methods&Limits'!G42 -> 1 | G95: ='Methods&Limits'!I42 -> 22.59
A96: ='Methods&Limits'!A43 -> -- other oxygenates | B96: ='Methods&Limits'!B43 -> % V/V | C96: ='Methods&Limits'!E43 -> EN 1601 | D96: ='Methods&Limits'!F43 -> 2017 | E96: ='Methods&Limits'!G43 -> 1 | G96: ='Methods&Limits'!I43 -> 15.59
A97: ='Methods&Limits'!A44 -> Oxygen content | B97: ='Methods&Limits'!B44 -> % (m/m) | C97: ='Methods&Limits'!E44 -> EN 13132 | D97: ='Methods&Limits'!F44 -> 2002 | E97: ='Methods&Limits'!G44 -> 0.3 | G97: ='Methods&Limits'!I44 -> 3.877 | H97: =IF(E28>G97,"Yes","") -> 
C98: ='Methods&Limits'!E45 -> EN 13132 | D98: ='Methods&Limits'!F45 -> 2002 | E98: ='Methods&Limits'!G45 -> 0.3 | G98: ='Methods&Limits'!I45 -> 2.877 | H98: =IF(E29>G98,"Yes","") -> 
A99: ='Methods&Limits'!A46 -> Oxygenates
A100: ='Methods&Limits'!A47 -> -- Methanol | B100: ='Methods&Limits'!B47 -> % V/V | C100: ='Methods&Limits'!E47 -> EN 13132 | D100: ='Methods&Limits'!F47 -> 2002 | E100: ='Methods&Limits'!G47 -> 0.3 | G100: ='Methods&Limits'!I47 -> 3.177 | H100: =IF(E31>G100,"Yes","") -> 
A101: ='Methods&Limits'!A48 -> -- Ethanol | B101: ='Methods&Limits'!B48 -> % V/V | C101: ='Methods&Limits'!E48 -> EN 13132 | D101: ='Methods&Limits'!F48 -> 2002 | E101: ='Methods&Limits'!G48 -> 0.8 | G101: ='Methods&Limits'!I48 -> 10.472
A102: ='Methods&Limits'!A49 -> -- Iso-propyl alcohol | B102: ='Methods&Limits'!B49 -> % V/V | C102: ='Methods&Limits'!E49 -> EN 13132 | D102: ='Methods&Limits'!F49 -> 2002 | E102: ='Methods&Limits'!G49 -> 0.8 | G102: ='Methods&Limits'!I49 -> 12.472
A103: ='Methods&Limits'!A50 -> -- Tert-butyl alcohol | B103: ='Methods&Limits'!B50 -> % V/V | C103: ='Methods&Limits'!E50 -> EN 13132 | D103: ='Methods&Limits'!F50 -> 2002 | E103: ='Methods&Limits'!G50 -> 1 | G103: ='Methods&Limits'!I50 -> 15.59
A104: ='Methods&Limits'!A51 -> -- Iso-butyl alcohol | B104: ='Methods&Limits'!B51 -> % V/V | C104: ='Methods&Limits'!E51 -> EN 13132 | D104: ='Methods&Limits'!F51 -> 2002 | E104: ='Methods&Limits'!G51 -> 1 | G104: ='Methods&Limits'!I51 -> 15.59
A105: ='Methods&Limits'!A52 -> -- Ethers with 5 or more carbon atoms per molecule | B105: ='Methods&Limits'!B52 -> % V/V | C105: ='Methods&Limits'!E52 -> EN 13132 | D105: ='Methods&Limits'!F52 -> 2002 | E105: ='Methods&Limits'!G52 -> 1 | G105: ='Methods&Limits'!I52 -> 22.59
A106: ='Methods&Limits'!A53 -> -- other oxygenates | B106: ='Methods&Limits'!B53 -> % V/V | C106: ='Methods&Limits'!E53 -> EN 13132 | D106: ='Methods&Limits'!F53 -> 2002 | E106: ='Methods&Limits'!G53 -> 1 | G106: ='Methods&Limits'!I53 -> 15.59
A107: ='Methods&Limits'!A54 -> Oxygen content | B107: ='Methods&Limits'!B54 -> % (m/m) | C107: ='Methods&Limits'!E54 -> EN-ISO 22854 | D107: ='Methods&Limits'!F54 -> 2021 | E107: ='Methods&Limits'!G54 -> 0.4 | G107: ='Methods&Limits'!I54 -> 3.936 | H107: =IF(E28>G107,"Yes","") -> 
C108: ='Methods&Limits'!E55 -> EN-ISO 22854 | D108: ='Methods&Limits'!F55 -> 2021 | E108: ='Methods&Limits'!G55 -> 0.4 | G108: ='Methods&Limits'!I55 -> 2.936 | H108: =IF(E29>G108,"Yes","") -> 
A109: ='Methods&Limits'!A56 -> Oxyginates
A110: ='Methods&Limits'!A57 -> -- Methanol | B110: ='Methods&Limits'!B57 -> % V/V | C110: ='Methods&Limits'!E57 -> EN-ISO 22854 | D110: ='Methods&Limits'!F57 -> 2021 | E110: ='Methods&Limits'!G57 -> 0.4 | G110: ='Methods&Limits'!I57 -> 3.236 | H110: =IF(E31>G110,"Yes","") -> 
A111: ='Methods&Limits'!A58 -> -- Ethanol | B111: ='Methods&Limits'!B58 -> % V/V | C111: ='Methods&Limits'!E58 -> EN-ISO 22854 | D111: ='Methods&Limits'!F58 -> 2021 | E111: ='Methods&Limits'!G58 -> 0.6 | G111: ='Methods&Limits'!I58 -> 10.354
A112: ='Methods&Limits'!A59 -> -- Iso-propyl alcohol | B112: ='Methods&Limits'!B59 -> % V/V | C112: ='Methods&Limits'!E59 -> EN-ISO 22854 | D112: ='Methods&Limits'!F59 -> 2021 | E112: ='Methods&Limits'!G59 -> 0.7 | G112: ='Methods&Limits'!I59 -> 12.413
A113: ='Methods&Limits'!A60 -> -- Tert-butyl alcohol | B113: ='Methods&Limits'!B60 -> % V/V | C113: ='Methods&Limits'!E60 -> EN-ISO 22854 | D113: ='Methods&Limits'!F60 -> 2021 | E113: ='Methods&Limits'!G60 -> 0.7 | G113: ='Methods&Limits'!I60 -> 15.413
A114: ='Methods&Limits'!A61 -> -- Iso-butyl alcohol | B114: ='Methods&Limits'!B61 -> % V/V | C114: ='Methods&Limits'!E61 -> EN-ISO 22854 | D114: ='Methods&Limits'!F61 -> 2021 | E114: ='Methods&Limits'!G61 -> 0.7 | G114: ='Methods&Limits'!I61 -> 15.413
A115: ='Methods&Limits'!A62 -> -- Ethers with 5 or more carbon atoms per molecule | B115: ='Methods&Limits'!B62 -> % V/V | C115: ='Methods&Limits'!E62 -> EN-ISO 22854 | D115: ='Methods&Limits'!F62 -> 2021 | E115: ='Methods&Limits'!G62 -> 0.9 | G115: ='Methods&Limits'!I62 -> 22.531
A116: ='Methods&Limits'!A63 -> -- other oxygenates | B116: ='Methods&Limits'!B63 -> % V/V | C116: ='Methods&Limits'!E63 -> EN-ISO 22854 | D116: ='Methods&Limits'!F63 -> 2021 | E116: ='Methods&Limits'!G63 -> 0.7 | G116: ='Methods&Limits'!I63 -> 15.413
A117: ='Methods&Limits'!A64:A64 -> Sulphur content (sulphur free, from 2005)** | B117: ='Methods&Limits'!B64 -> mg/kg | C117: ='Methods&Limits'!E64 -> EN-ISO 14596 | D117: ='Methods&Limits'!F64 -> 2018 | E117: ='Methods&Limits'!G64 -> 5 | G117: ='Methods&Limits'!I64 -> 12.95 | H117: =IF(E$38>G117,"Yes","") -> 
C118: ='Methods&Limits'!E65 -> EN 24260 | D118: ='Methods&Limits'!F65 -> 1994 | E118: ='Methods&Limits'!G65 -> 1 | G118: ='Methods&Limits'!I65 -> 10.59 | H118: =IF(E$38>G118,"Yes","") -> 
C119: ='Methods&Limits'!E66 -> EN-ISO 20846 | D119: ='Methods&Limits'!F66 -> 2019 | E119: ='Methods&Limits'!G66 -> 2.7 | G119: ='Methods&Limits'!I66 -> 11.593 | H119: =IF(E$38>G119,"Yes","") -> 
C120: ='Methods&Limits'!E67 -> EN-ISO 20884 | D120: ='Methods&Limits'!F67 -> 2019 | E120: ='Methods&Limits'!G67 -> 3.1 | G120: ='Methods&Limits'!I67 -> 11.829 | H120: =IF(E$38>G120,"Yes","") -> 
A121: ='Methods&Limits'!A68:A68 -> Lead content | B121: ='Methods&Limits'!B68 -> g/l | C121: ='Methods&Limits'!E68 -> EN 237 | D121: ='Methods&Limits'!F68 -> 2004 | E121: ='Methods&Limits'!G68 -> 0.0062 | G121: ='Methods&Limits'!I68 -> 0.008658 | H121: =IF($E$39>G121,"Yes","") -> 

Sheet Petrol (5+6)
A1: Market Fuels used in Vehicles with Spark Ignition Engines (Petrol) | R1: <-- GO BACK
A3: Country | B3: =IF(LEN('Contacts&Annual Summary'!C9) > 1,'Contacts&Annual Summary'!C9,"") ->  | G3: Notes on completing the tables The table structure has been locked to prevent modification - data can be copied and pasted, in bulk into the Reporting Results blue table cells. Where a white row exists between rows, it will not be possible to paste over white rows and sections should be pasted separately. Column H in the Test Methods and Analysis table is set to automatically check whether the values entered in the Reporting Results table exceed maximum or minimum Tolerance Limits. If any exceedance is detected, please provide details in the columns to the right including the number of samples, location samples were taken from, Values and Details of any action taken to address non-compliant samples. Compliance information is verified manually and this automated compliance check is not solely relied upon during data analysis. Please do not unlock this template - modified templates cannot be processed and may delay reporting.
A4: Reporting Year | B4: ='Contacts&Annual Summary'!C8 -> 2023
A5: Period (Summer or Winter) | B5: Full Year
A6: Parent fuel grade | B6: Petrol
A7: National fuel grade | B7: ='Petrol (5)'!B7 -> 0
A8: Summer Period (N or A)* | B8: 0 | C8: =IF( B8="A","1st June to 31st August (arctic)","1st May to 30th September (normal)") -> 1st May to 30th September (normal)
A9: The maximum bioethanol content (% v/v) | B9: =MAX('Petrol (5)'!B9,'Petrol (6)'!B9) -> 0 | C9: Please include the bioethanol content as a numerical figure in % V/V
A10: * N = 1st May to 30th September (normal) ; A = 1st June to 31st August (arctic).
A12: Reporting results
A14: Parameter | B14: Unit | C14: Analytical and statistical results (Please see an explanation and examples for new columns/ information required in Cells I15 to K37 on the Introduction & Instructions tab). | L14: Limiting Value (1) | P14: Test method
L15: National Specification, if any | N15: According to Directive 2009/30/EC | P15: (more recent versions may also be used)
C16: No Samples | D16: Minimum | E16: Maximum | F16: Median | G16: Mean | H16: Standard Deviation | I16: No Samples outside 95% tolerance limit | J16: 25% of Sample Value | K16: 75% of Sample Value | L16: Minimum | M16: Maximum | N16: Minimum | O16: Maximum | P16: Method | Q16: Date
A17: Research Octane Number | B17: -- | C17: =IF(AND('Petrol (5)'!C17="",'Petrol (6)'!C17=""),"",'Petrol (5)'!C17+'Petrol (6)'!C17) -> 0 | D17: =IF(AND('Petrol (5)'!D17="",'Petrol (6)'!D17=""),"",MIN('Petrol (5)'!D17,'Petrol (6)'!D17)) -> 0 | E17: =IF(AND('Petrol (5)'!E17="",'Petrol (6)'!E17=""),"",MAX('Petrol (5)'!E17,'Petrol (6)'!E17)) -> 0 | F17: 0 | G17: 0 | H17: 0 | I17: =IF(AND('Petrol (5)'!I17="",'Petrol (6)'!I17=""),"",'Petrol (5)'!I17+'Petrol (6)'!I17) -> 0 | J17: 0 | K17: 0 | N17: 95 (2) | P17: EN-ISO 5164 | Q17: 2005
A18: Motor Octane Number | B18: -- | C18: =IF(AND('Petrol (5)'!C18="",'Petrol (6)'!C18=""),"",'Petrol (5)'!C18+'Petrol (6)'!C18) -> 0 | D18: =IF(AND('Petrol (5)'!D18="",'Petrol (6)'!D18=""),"",MIN('Petrol (5)'!D18,'Petrol (6)'!D18)) -> 0 | E18: =IF(AND('Petrol (5)'!E18="",'Petrol (6)'!E18=""),"",MAX('Petrol (5)'!E18,'Petrol (6)'!E18)) -> 0 | F18: 0 | G18: 0 | H18: 0 | I18: =IF(AND('Petrol (5)'!I18="",'Petrol (6)'!I18=""),"",'Petrol (5)'!I18+'Petrol (6)'!I18) -> 0 | J18: 0 | K18: 0 | N18: 85 (3) | P18: EN-ISO 5163 | Q18: 2005
A19: Vapour Pressure, DVPE (6) | B19: kPa | O19: (4)
A20: -- required for summer period only | C20: =IF(AND('Petrol (5)'!C20="",'Petrol (6)'!C20=""),"",'Petrol (5)'!C20+'Petrol (6)'!C20) -> 0 | D20: =IF(AND('Petrol (5)'!D20="",'Petrol (6)'!D20=""),"",MIN('Petrol (5)'!D20,'Petrol (6)'!D20)) -> 0 | E20: =IF(AND('Petrol (5)'!E20="",'Petrol (6)'!E20=""),"",MAX('Petrol (5)'!E20,'Petrol (6)'!E20)) -> 0 | F20: 0 | G20: 0 | H20: 0 | I20: =IF(AND('Petrol (5)'!I20="",'Petrol (6)'!I20=""),"",'Petrol (5)'!I20+'Petrol (6)'!I20) -> 0 | J20: 0 | K20: 0 | O20: =IF(E8="A",70,60) -> 60 | P20: EN 13106-1 | Q20: 2007
A21: Distillation | P21: EN-ISO 3405
A22: -- evaporated at 100 oC | B22: % V/V | C22: =IF(AND('Petrol (5)'!C22="",'Petrol (6)'!C22=""),"",'Petrol (5)'!C22+'Petrol (6)'!C22) -> 0 | D22: =IF(AND('Petrol (5)'!D22="",'Petrol (6)'!D22=""),"",MIN('Petrol (5)'!D22,'Petrol (6)'!D22)) -> 0 | E22: =IF(AND('Petrol (5)'!E22="",'Petrol (6)'!E22=""),"",MAX('Petrol (5)'!E22,'Petrol (6)'!E22)) -> 0 | F22: 0 | G22: 0 | H22: 0 | I22: =IF(AND('Petrol (5)'!I22="",'Petrol (6)'!I22=""),"",'Petrol (5)'!I22+'Petrol (6)'!I22) -> 0 | J22: 0 | K22: 0 | N22: 46 | Q22: 2000
A23: -- evaporated at 150 oC | B23: % V/V | C23: =IF(AND('Petrol (5)'!C23="",'Petrol (6)'!C23=""),"",'Petrol (5)'!C23+'Petrol (6)'!C23) -> 0 | D23: =IF(AND('Petrol (5)'!D23="",'Petrol (6)'!D23=""),"",MIN('Petrol (5)'!D23,'Petrol (6)'!D23)) -> 0 | E23: =IF(AND('Petrol (5)'!E23="",'Petrol (6)'!E23=""),"",MAX('Petrol (5)'!E23,'Petrol (6)'!E23)) -> 0 | F23: 0 | G23: 0 | H23: 0 | I23: =IF(AND('Petrol (5)'!I23="",'Petrol (6)'!I23=""),"",'Petrol (5)'!I23+'Petrol (6)'!I23) -> 0 | J23: 0 | K23: 0 | N23: 75
A24: Hydrocarbon analysis
A25: -- Olefins | B25: % V/V | C25: =IF(AND('Petrol (5)'!C25="",'Petrol (6)'!C25=""),"",'Petrol (5)'!C25+'Petrol (6)'!C25) -> 0 | D25: =IF(AND('Petrol (5)'!D25="",'Petrol (6)'!D25=""),"",MIN('Petrol (5)'!D25,'Petrol (6)'!D25)) -> 0 | E25: =IF(AND('Petrol (5)'!E25="",'Petrol (6)'!E25=""),"",MAX('Petrol (5)'!E25,'Petrol (6)'!E25)) -> 0 | F25: 0 | G25: 0 | H25: 0 | I25: =IF(AND('Petrol (5)'!I25="",'Petrol (6)'!I25=""),"",'Petrol (5)'!I25+'Petrol (6)'!I25) -> 0 | J25: 0 | K25: 0 | O25: 18.0 (5) | P25: ASTM D 1319 EN 15553 EN-ISO 22854 | Q25: 1995 2007 2008
A26: -- Aromatics | B26: % V/V | C26: =IF(AND('Petrol (5)'!C26="",'Petrol (6)'!C26=""),"",'Petrol (5)'!C26+'Petrol (6)'!C26) -> 0 | D26: =IF(AND('Petrol (5)'!D26="",'Petrol (6)'!D26=""),"",MIN('Petrol (5)'!D26,'Petrol (6)'!D26)) -> 0 | E26: =IF(AND('Petrol (5)'!E26="",'Petrol (6)'!E26=""),"",MAX('Petrol (5)'!E26,'Petrol (6)'!E26)) -> 0 | F26: 0 | G26: 0 | H26: 0 | I26: =IF(AND('Petrol (5)'!I26="",'Petrol (6)'!I26=""),"",'Petrol (5)'!I26+'Petrol (6)'!I26) -> 0 | J26: 0 | K26: 0 | O26: 35 | P26: EN-ISO 22854 | Q26: 1995 2008
A27: -- Benzene | B27: % V/V | C27: =IF(AND('Petrol (5)'!C27="",'Petrol (6)'!C27=""),"",'Petrol (5)'!C27+'Petrol (6)'!C27) -> 0 | D27: =IF(AND('Petrol (5)'!D27="",'Petrol (6)'!D27=""),"",MIN('Petrol (5)'!D27,'Petrol (6)'!D27)) -> 0 | E27: =IF(AND('Petrol (5)'!E27="",'Petrol (6)'!E27=""),"",MAX('Petrol (5)'!E27,'Petrol (6)'!E27)) -> 0 | F27: 0 | G27: 0 | H27: 0 | I27: =IF(AND('Petrol (5)'!I27="",'Petrol (6)'!I27=""),"",'Petrol (5)'!I27+'Petrol (6)'!I27) -> 0 | J27: 0 | K27: 0 | O27: 1 | P27: EN 238 EN 12177 EN-ISO 22854 | Q27: 1996 1998 2008
A28: =IF(C29>0,"Do not complete","Oxygen content") -> Oxygen content | B28: % (m/m) | C28: =IF(AND('Petrol (5)'!C28="",'Petrol (6)'!C28=""),"",'Petrol (5)'!C28+'Petrol (6)'!C28) -> 0 | D28: =IF(AND('Petrol (5)'!D28="",'Petrol (6)'!D28=""),"",MIN('Petrol (5)'!D28,'Petrol (6)'!D28)) -> 0 | E28: =IF(AND('Petrol (5)'!E28="",'Petrol (6)'!E28=""),"",MAX('Petrol (5)'!E28,'Petrol (6)'!E28)) -> 0 | F28: 0 | G28: 0 | H28: 0 | I28: =IF(AND('Petrol (5)'!I28="",'Petrol (6)'!I28=""),"",'Petrol (5)'!I28+'Petrol (6)'!I28) -> 0 | J28: 0 | K28: 0 | O28: 3.7 | P28: EN 1601 EN 13132 EN-ISO 22854 | Q28: 1997 2000 2008
A29: =IF(C28>0,"Do not complete","Oxygen content* *petrol with 5% (v/v) or less ethanol content") -> Oxygen content* *petrol with 5% (v/v) or less ethanol content | B29: % (m/m) | C29: =IF(AND('Petrol (5)'!C29="",'Petrol (6)'!C29=""),"",'Petrol (5)'!C29+'Petrol (6)'!C29) -> 0 | D29: =IF(AND('Petrol (5)'!D29="",'Petrol (6)'!D29=""),"",MIN('Petrol (5)'!D29,'Petrol (6)'!D29)) -> 0 | E29: =IF(AND('Petrol (5)'!E29="",'Petrol (6)'!E29=""),"",MAX('Petrol (5)'!E29,'Petrol (6)'!E29)) -> 0 | F29: 0 | G29: 0 | H29: 0 | I29: =IF(AND('Petrol (5)'!I29="",'Petrol (6)'!I29=""),"",'Petrol (5)'!I29+'Petrol (6)'!I29) -> 0 | J29: 0 | K29: 0 | O29: 2.7
A30: Oxygenates
A31: -- Methanol | B31: % V/V | C31: =IF(AND('Petrol (5)'!C31="",'Petrol (6)'!C31=""),"",'Petrol (5)'!C31+'Petrol (6)'!C31) -> 0 | D31: =IF(AND('Petrol (5)'!D31="",'Petrol (6)'!D31=""),"",MIN('Petrol (5)'!D31,'Petrol (6)'!D31)) -> 0 | E31: =IF(AND('Petrol (5)'!E31="",'Petrol (6)'!E31=""),"",MAX('Petrol (5)'!E31,'Petrol (6)'!E31)) -> 0 | F31: 0 | G31: 0 | H31: 0 | I31: =IF(AND('Petrol (5)'!I31="",'Petrol (6)'!I31=""),"",'Petrol (5)'!I31+'Petrol (6)'!I31) -> 0 | J31: 0 | K31: 0 | O31: 3
A32: -- Ethanol | B32: % V/V | C32: =IF(AND('Petrol (5)'!C32="",'Petrol (6)'!C32=""),"",'Petrol (5)'!C32+'Petrol (6)'!C32) -> 0 | D32: =IF(AND('Petrol (5)'!D32="",'Petrol (6)'!D32=""),"",MIN('Petrol (5)'!D32,'Petrol (6)'!D32)) -> 0 | E32: =IF(AND('Petrol (5)'!E32="",'Petrol (6)'!E32=""),"",MAX('Petrol (5)'!E32,'Petrol (6)'!E32)) -> 0 | F32: 0 | G32: 0 | H32: 0 | I32: =IF(AND('Petrol (5)'!I32="",'Petrol (6)'!I32=""),"",'Petrol (5)'!I32+'Petrol (6)'!I32) -> 0 | J32: 0 | K32: 0 | O32: 10
A33: -- Iso-propyl alcohol | B33: % V/V | C33: =IF(AND('Petrol (5)'!C33="",'Petrol (6)'!C33=""),"",'Petrol (5)'!C33+'Petrol (6)'!C33) -> 0 | D33: =IF(AND('Petrol (5)'!D33="",'Petrol (6)'!D33=""),"",MIN('Petrol (5)'!D33,'Petrol (6)'!D33)) -> 0 | E33: =IF(AND('Petrol (5)'!E33="",'Petrol (6)'!E33=""),"",MAX('Petrol (5)'!E33,'Petrol (6)'!E33)) -> 0 | F33: 0 | G33: 0 | H33: 0 | I33: =IF(AND('Petrol (5)'!I33="",'Petrol (6)'!I33=""),"",'Petrol (5)'!I33+'Petrol (6)'!I33) -> 0 | J33: 0 | K33: 0 | O33: 12 | P33: EN 1601 | Q33: 1997
A34: -- Tert-butyl alcohol | B34: % V/V | C34: =IF(AND('Petrol (5)'!C34="",'Petrol (6)'!C34=""),"",'Petrol (5)'!C34+'Petrol (6)'!C34) -> 0 | D34: =IF(AND('Petrol (5)'!D34="",'Petrol (6)'!D34=""),"",MIN('Petrol (5)'!D34,'Petrol (6)'!D34)) -> 0 | E34: =IF(AND('Petrol (5)'!E34="",'Petrol (6)'!E34=""),"",MAX('Petrol (5)'!E34,'Petrol (6)'!E34)) -> 0 | F34: 0 | G34: 0 | H34: 0 | I34: =IF(AND('Petrol (5)'!I34="",'Petrol (6)'!I34=""),"",'Petrol (5)'!I34+'Petrol (6)'!I34) -> 0 | J34: 0 | K34: 0 | O34: 15 | P34: EN 13132 | Q34: 2000
A35: -- Iso-butyl alcohol | B35: % V/V | C35: =IF(AND('Petrol (5)'!C35="",'Petrol (6)'!C35=""),"",'Petrol (5)'!C35+'Petrol (6)'!C35) -> 0 | D35: =IF(AND('Petrol (5)'!D35="",'Petrol (6)'!D35=""),"",MIN('Petrol (5)'!D35,'Petrol (6)'!D35)) -> 0 | E35: =IF(AND('Petrol (5)'!E35="",'Petrol (6)'!E35=""),"",MAX('Petrol (5)'!E35,'Petrol (6)'!E35)) -> 0 | F35: 0 | G35: 0 | H35: 0 | I35: =IF(AND('Petrol (5)'!I35="",'Petrol (6)'!I35=""),"",'Petrol (5)'!I35+'Petrol (6)'!I35) -> 0 | J35: 0 | K35: 0 | O35: 15 | P35: EN-ISO 22854 | Q35: 2008
A36: -- Ethers with ≥5 carbon atoms / molecule | B36: % V/V | C36: =IF(AND('Petrol (5)'!C36="",'Petrol (6)'!C36=""),"",'Petrol (5)'!C36+'Petrol (6)'!C36) -> 0 | D36: =IF(AND('Petrol (5)'!D36="",'Petrol (6)'!D36=""),"",MIN('Petrol (5)'!D36,'Petrol (6)'!D36)) -> 0 | E36: =IF(AND('Petrol (5)'!E36="",'Petrol (6)'!E36=""),"",MAX('Petrol (5)'!E36,'Petrol (6)'!E36)) -> 0 | F36: 0 | G36: 0 | H36: 0 | I36: =IF(AND('Petrol (5)'!I36="",'Petrol (6)'!I36=""),"",'Petrol (5)'!I36+'Petrol (6)'!I36) -> 0 | J36: 0 | K36: 0 | O36: 22
A37: -- other oxygenates | B37: % V/V | C37: =IF(AND('Petrol (5)'!C37="",'Petrol (6)'!C37=""),"",'Petrol (5)'!C37+'Petrol (6)'!C37) -> 0 | D37: =IF(AND('Petrol (5)'!D37="",'Petrol (6)'!D37=""),"",MIN('Petrol (5)'!D37,'Petrol (6)'!D37)) -> 0 | E37: =IF(AND('Petrol (5)'!E37="",'Petrol (6)'!E37=""),"",MAX('Petrol (5)'!E37,'Petrol (6)'!E37)) -> 0 | F37: 0 | G37: 0 | H37: 0 | I37: =IF(AND('Petrol (5)'!I37="",'Petrol (6)'!I37=""),"",'Petrol (5)'!I37+'Petrol (6)'!I37) -> 0 | J37: 0 | K37: 0 | O37: 15
A38: Sulphur content | B38: mg/kg | C38: =IF(AND('Petrol (5)'!C38="",'Petrol (6)'!C38=""),"",'Petrol (5)'!C38+'Petrol (6)'!C38) -> 0 | D38: =IF(AND('Petrol (5)'!D38="",'Petrol (6)'!D38=""),"",MIN('Petrol (5)'!D38,'Petrol (6)'!D38)) -> 0 | E38: =IF(AND('Petrol (5)'!E38="",'Petrol (6)'!E38=""),"",MAX('Petrol (5)'!E38,'Petrol (6)'!E38)) -> 0 | F38: 0 | G38: 0 | H38: 0 | I38: =IF(AND('Petrol (5)'!I38="",'Petrol (6)'!I38=""),"",'Petrol (5)'!I38+'Petrol (6)'!I38) -> 0 | J38: 0 | K38: 0 | O38: 10 | P38: EN-ISO 14596 EN 24260 EN-ISO 20846 EN-ISO 20884 | Q38: 1998 1994 2004 2004
A39: Lead content | B39: g/l | C39: =IF(AND('Petrol (5)'!C39="",'Petrol (6)'!C39=""),"",'Petrol (5)'!C39+'Petrol (6)'!C39) -> 0 | D39: =IF(AND('Petrol (5)'!D39="",'Petrol (6)'!D39=""),"",MIN('Petrol (5)'!D39,'Petrol (6)'!D39)) -> 0 | E39: =IF(AND('Petrol (5)'!E39="",'Petrol (6)'!E39=""),"",MAX('Petrol (5)'!E39,'Petrol (6)'!E39)) -> 0 | F39: 0 | G39: 0 | H39: 0 | I39: =IF(AND('Petrol (5)'!I39="",'Petrol (6)'!I39=""),"",'Petrol (5)'!I39+'Petrol (6)'!I39) -> 0 | J39: 0 | K39: 0 | O39: 0.005 | P39: EN 237 | Q39: 1996
A42: Sampling frequency
A44: Number of samples in month
A45: January | B45: ='Petrol (5)'!B45+'Petrol (6)'!B45 -> 0 | C45: July | D45: ='Petrol (5)'!D45+'Petrol (6)'!D45 -> 0 | E45: (1) The limiting values are "true values" and were established according to the procedures for limit setting in EN 228:2008 The results of individual measurements shall be interpreted following the criteria described in EN 228:2008.
A46: February | B46: ='Petrol (5)'!B46+'Petrol (6)'!B46 -> 0 | C46: August | D46: ='Petrol (5)'!D46+'Petrol (6)'!D46 -> 0
A47: March | B47: ='Petrol (5)'!B47+'Petrol (6)'!B47 -> 0 | C47: September | D47: ='Petrol (5)'!D47+'Petrol (6)'!D47 -> 0 | E47: (2) 91 for unleaded regular grade petrol: See 2009/30/EC Annex I, Footnote 3.
A48: April | B48: ='Petrol (5)'!B48+'Petrol (6)'!B48 -> 0 | C48: October | D48: ='Petrol (5)'!D48+'Petrol (6)'!D48 -> 0 | E48: (3) 81 for unleaded regular grade petrol: See 2009/30/EC Annex I, Footnote 3.
A49: May | B49: ='Petrol (5)'!B49+'Petrol (6)'!B49 -> 0 | C49: November | D49: ='Petrol (5)'!D49+'Petrol (6)'!D49 -> 0 | E49: (4) 70 kPa for Member States with arctic or severe weather conditions: See 2003/30/EC Annex I, Footnotes 4 & 5.
A50: June | B50: ='Petrol (5)'!B50+'Petrol (6)'!B50 -> 0 | C50: December | D50: ='Petrol (5)'!D50+'Petrol (6)'!D50 -> 0 | E50: (5) 21 for unleaded regular grade petrol: See 98/70/EC, Annex I, Footnote 6.
C51: Full YearTotal | D51: =SUM(B45:B50,D45:D50) -> 0 | E51: (6) Vapour pressure waiver applies for petrol containing Bioethanol, see 2009/30/EC Annex I, Footnote 5 and Annex III.
A53: Other notes (optional):
A57: Test Methods and Analysis | I57: Only if not provided in Summer and Winter sheets
A59: Parameter | B59: Unit | C59: Test specified in 2009/30/EC or EN228:2008 | J59: Notes on exceedences
C60: Method | D60: Date | E60: Reproducability, R | F60: Tolerance limits | J60: Sample location (S,T or R) | K60: Values | L60: Details/action taken
F61: Minimum | G61: Maximum | H61: Exceeded?
A62: ='Methods&Limits'!A9 -> Research Octane Number (RON) | B62: ='Methods&Limits'!B9 -> -- | C62: ='Methods&Limits'!E9 -> EN-ISO 5164 | D62: ='Methods&Limits'!F9 -> 2014 | E62: ='Methods&Limits'!G9 -> 0.7 | F62: ='Methods&Limits'!H9 -> 94.587 | H62: =IF(D17="","",IF(D17<F62,"Yes","")) -> Yes
A63: ='Methods&Limits'!A10 -> (RON 91 fuel only) | B63: ='Methods&Limits'!B10 -> -- | C63: ='Methods&Limits'!E10 -> EN-ISO 5164 | D63: ='Methods&Limits'!F10 -> 2014 | E63: ='Methods&Limits'!G10 -> 0.7 | F63: ='Methods&Limits'!H10 -> 90.587 | H63: =IF(D17="","",IF(D17<F63,"Yes","")) -> Yes
A64: ='Methods&Limits'!A11 -> Motor Octane Number (MON) | B64: ='Methods&Limits'!B11 -> -- | C64: ='Methods&Limits'!E11 -> EN-ISO 5163 | D64: ='Methods&Limits'!F11 -> 2014 | E64: ='Methods&Limits'!G11 -> 0.9 | F64: ='Methods&Limits'!H11 -> 84.469 | H64: =IF(D18="","",IF(D18<F64,"Yes","")) -> Yes
A65: ='Methods&Limits'!A12 -> (RON 91 fuel only) | B65: ='Methods&Limits'!B12 -> -- | C65: ='Methods&Limits'!E12 -> EN-ISO 5163 | D65: ='Methods&Limits'!F12 -> 2014 | E65: ='Methods&Limits'!G12 -> 0.9 | F65: ='Methods&Limits'!H12 -> 80.469 | H65: =IF(D18="","",IF(D18<F65,"Yes","")) -> Yes
A66: ='Methods&Limits'!A13 -> Vapour Pressure, DVPE
A67: ='Methods&Limits'!A14 -> --summer period (normal) | B67: ='Methods&Limits'!B14 -> kPa | C67: ='Methods&Limits'!E14 -> EN 13016-1 | D67: ='Methods&Limits'!F14 -> 2018 | E67: ='Methods&Limits'!G14 -> 2.2 | G67: ='Methods&Limits'!I14 -> 61.298 | H67: =IF(E$20="","",IF(E$20>G67,"Yes","")) -> 
A68: ='Methods&Limits'!A15 -> -- Petrol with bioethanol content 0-2 | B68: ='Methods&Limits'!B15 -> kPa | C68: ='Methods&Limits'!E15 -> EN 1601 | D68: ='Methods&Limits'!F15 -> 2017 | E68: ='Methods&Limits'!G15 -> 2.3 | G68: ='Methods&Limits'!I15 -> 67.307 | H68: =IF(E$20="","",IF(E$20>G68,"Yes","")) -> 
A69: ='Methods&Limits'!A16 -> -- Petrol with bioethanol content 2-4 | B69: ='Methods&Limits'!B16 -> kPa | C69: ='Methods&Limits'!E16 -> EN 1601 | D69: ='Methods&Limits'!F16 -> 2017 | E69: ='Methods&Limits'!G16 -> 2.3 | G69: ='Methods&Limits'!I16 -> 69.157
A70: ='Methods&Limits'!A17 -> -- Petrol with bioethanol content 4-6 | B70: ='Methods&Limits'!B17 -> kPa | C70: ='Methods&Limits'!E17 -> EN 1601 | D70: ='Methods&Limits'!F17 -> 2017 | E70: ='Methods&Limits'!G17 -> 2.3 | G70: ='Methods&Limits'!I17 -> 69.357
A71: ='Methods&Limits'!A18 -> -- Petrol with bioethanol content 6-8 | B71: ='Methods&Limits'!B18 -> kPa | C71: ='Methods&Limits'!E18 -> EN 1601 | D71: ='Methods&Limits'!F18 -> 2017 | E71: ='Methods&Limits'!G18 -> 2.3 | G71: ='Methods&Limits'!I18 -> 69.237
A72: ='Methods&Limits'!A19 -> -- Petrol with bioethanol content 8-10 | B72: ='Methods&Limits'!B19 -> kPa | C72: ='Methods&Limits'!E19 -> EN 1601 | D72: ='Methods&Limits'!F19 -> 2017 | E72: ='Methods&Limits'!G19 -> 2.3 | G72: ='Methods&Limits'!I19 -> 69.117
A73: ='Methods&Limits'!A20 -> --summer period (arctic or severe weather conditions) | B73: ='Methods&Limits'!B20 -> kPa | C73: ='Methods&Limits'!E20 -> EN 13016-1 | D73: ='Methods&Limits'!F20 -> 2018 | E73: ='Methods&Limits'!G20 -> 2.3 | G73: ='Methods&Limits'!I20 -> 71.357
A74: ='Methods&Limits'!A21 -> Distillation *
A75: ='Methods&Limits'!A22 -> --evaporated at 100 oC | B75: ='Methods&Limits'!B22 -> % V/V | C75: ='Methods&Limits'!E22 -> EN-ISO 3405 | D75: ='Methods&Limits'!F22 -> 2020 | E75: ='Methods&Limits'!G22 -> 4 | F75: ='Methods&Limits'!H22 -> 43.64 | H75: =IF(D22="","",IF(D22<F75,"Yes","")) -> Yes
A76: ='Methods&Limits'!A23 -> -- evaporated at 150 oC | B76: ='Methods&Limits'!B23 -> % V/V | C76: ='Methods&Limits'!E23 -> EN-ISO 3405 | D76: ='Methods&Limits'!F23 -> 2020 | E76: ='Methods&Limits'!G23 -> 4 | F76: ='Methods&Limits'!H23 -> 72.64 | H76: =IF(D23="","",IF(D23<F76,"Yes","")) -> Yes
A77: ='Methods&Limits'!A24 -> Hydrocarbon analysis | H77: =IF(D24<F77,"Yes","") -> 
A78: ='Methods&Limits'!A25 -> -- Olefins | B78: ='Methods&Limits'!B25 -> % V/V | C78: ='Methods&Limits'!E25 -> EN 15553 | D78: ='Methods&Limits'!F25 -> 2021 | E78: ='Methods&Limits'!G25 -> 6.4 | G78: ='Methods&Limits'!I25 -> 21.776 | H78: =IF(E$25="","",IF(E$25>G78,"Yes","")) -> 
C79: ='Methods&Limits'!E26 -> EN-ISO 22854 | D79: ='Methods&Limits'!F26 -> 2021 | E79: ='Methods&Limits'!G26 -> 2.6 | G79: ='Methods&Limits'!I26 -> 19.534 | H79: =IF(E$25="","",IF(E$25>G79,"Yes","")) -> 
A80: ='Methods&Limits'!A27 -> *without oxygenates | C80: ='Methods&Limits'!E27 -> EN 15553 | D80: ='Methods&Limits'!F27 -> 2021 | E80: ='Methods&Limits'!G27 -> - | G80: ='Methods&Limits'!I27 -> - | H80: =IF(E$25="","",IF(E$25>G80,"Yes","")) -> 
C81: ='Methods&Limits'!E28 -> EN-ISO 22854 | D81: ='Methods&Limits'!F28 -> 2021 | E81: ='Methods&Limits'!G28 -> - | G81: ='Methods&Limits'!I28 -> - | H81: =IF(E$25="","",IF(E$25>G81,"Yes","")) -> 
A82: ='Methods&Limits'!A29 -> -- Olefins (RON 91 fuel only)*** | B82: ='Methods&Limits'!B29 -> % V/V | C82: ='Methods&Limits'!E29 -> ASTM D1319 | D82: ='Methods&Limits'!F29 -> 2020 | E82: ='Methods&Limits'!G29 -> 5.1 | G82: ='Methods&Limits'!I29 -> 24.009 | H82: =IF(E$25="","",IF(E$25>G82,"Yes","")) -> 
A83: ='Methods&Limits'!A30 -> -- Aromatics (from 2005) | C83: ='Methods&Limits'!E30 -> EN-ISO 22854 | D83: ='Methods&Limits'!F30 -> 2021 | E83: ='Methods&Limits'!G30 -> 1.7 | G83: ='Methods&Limits'!I30 -> 36.003 | H83: =IF(E$26="","",IF(E$26>G83,"Yes","")) -> 
A84: ='Methods&Limits'!A31 -> -- Benzene | B84: ='Methods&Limits'!B31 -> % V/V | C84: ='Methods&Limits'!E31 -> EN 12177 | D84: ='Methods&Limits'!F31 -> 2022 | E84: ='Methods&Limits'!G31 -> 0.1 | G84: ='Methods&Limits'!I31 -> 1.059 | H84: =IF(E$27="","",IF(E$27>G84,"Yes","")) -> 
C85: ='Methods&Limits'!E32 -> EN 238 | D85: ='Methods&Limits'!F32 -> 1996 | E85: ='Methods&Limits'!G32 -> 0.17 | G85: ='Methods&Limits'!I32 -> 1.1003 | H85: =IF(E$27="","",IF(E$27>G85,"Yes","")) -> 
C86: ='Methods&Limits'!E33 -> EN-ISO 22854 | D86: ='Methods&Limits'!F33 -> 2021 | E86: ='Methods&Limits'!G33 -> 0.05 | G86: ='Methods&Limits'!I33 -> 1.0295 | H86: =IF(E$27="","",IF(E$27>G86,"Yes","")) -> 
A87: ='Methods&Limits'!A34 -> Oxygen content | B87: ='Methods&Limits'!B34 -> % (m/m) | C87: ='Methods&Limits'!E34 -> EN 1601 | D87: ='Methods&Limits'!F34 -> 2017 | E87: ='Methods&Limits'!G34 -> 0.41 | G87: ='Methods&Limits'!I34 -> 3.9419 | H87: =IF(E$27="","",IF(E$27>G87,"Yes","")) -> 
C88: ='Methods&Limits'!E35 -> EN 1601 | D88: ='Methods&Limits'!F35 -> 2017 | E88: ='Methods&Limits'!G35 -> 0.41 | G88: ='Methods&Limits'!I35 -> 2.9419 | H88: =IF(E$27="","",IF(E$27>G88,"Yes","")) -> 
A89: ='Methods&Limits'!A36 -> Oxygenates
A90: ='Methods&Limits'!A37 -> -- Methanol | B90: ='Methods&Limits'!B37 -> % V/V | C90: ='Methods&Limits'!E37 -> EN 1601 | D90: ='Methods&Limits'!F37 -> 2017 | E90: ='Methods&Limits'!G37 -> 0.3 | G90: ='Methods&Limits'!I37 -> 3.177 | H90: =IF(E31="","",IF(E31>G90,"Yes","")) -> 
A91: ='Methods&Limits'!A38 -> -- Ethanol | B91: ='Methods&Limits'!B38 -> % V/V | C91: ='Methods&Limits'!E38 -> EN 1601 | D91: ='Methods&Limits'!F38 -> 2017 | E91: ='Methods&Limits'!G38 -> 0.8 | G91: ='Methods&Limits'!I38 -> 10.472
A92: ='Methods&Limits'!A39 -> -- Iso-propyl alcohol | B92: ='Methods&Limits'!B39 -> % V/V | C92: ='Methods&Limits'!E39 -> EN 1601 | D92: ='Methods&Limits'!F39 -> 2017 | E92: ='Methods&Limits'!G39 -> 0.9 | G92: ='Methods&Limits'!I39 -> 12.531
A93: ='Methods&Limits'!A40 -> -- Tert-butyl alcohol | B93: ='Methods&Limits'!B40 -> % V/V | C93: ='Methods&Limits'!E40 -> EN 1601 | D93: ='Methods&Limits'!F40 -> 2017 | E93: ='Methods&Limits'!G40 -> 1 | G93: ='Methods&Limits'!I40 -> 15.59
A94: ='Methods&Limits'!A41 -> -- Iso-butyl alcohol | B94: ='Methods&Limits'!B41 -> % V/V | C94: ='Methods&Limits'!E41 -> EN 1601 | D94: ='Methods&Limits'!F41 -> 2017 | E94: ='Methods&Limits'!G41 -> 1 | G94: ='Methods&Limits'!I41 -> 15.59
A95: ='Methods&Limits'!A42 -> -- Ethers with 5 or more carbon atoms per molecule | B95: ='Methods&Limits'!B42 -> % V/V | C95: ='Methods&Limits'!E42 -> EN 1601 | D95: ='Methods&Limits'!F42 -> 2017 | E95: ='Methods&Limits'!G42 -> 1 | G95: ='Methods&Limits'!I42 -> 22.59
A96: ='Methods&Limits'!A43 -> -- other oxygenates | B96: ='Methods&Limits'!B43 -> % V/V | C96: ='Methods&Limits'!E43 -> EN 1601 | D96: ='Methods&Limits'!F43 -> 2017 | E96: ='Methods&Limits'!G43 -> 1 | G96: ='Methods&Limits'!I43 -> 15.59
A97: ='Methods&Limits'!A44 -> Oxygen content | B97: ='Methods&Limits'!B44 -> % (m/m) | C97: ='Methods&Limits'!E44 -> EN 13132 | D97: ='Methods&Limits'!F44 -> 2002 | E97: ='Methods&Limits'!G44 -> 0.3 | G97: ='Methods&Limits'!I44 -> 3.877 | H97: =IF(E28="","",IF(E28>G97,"Yes","")) -> 
C98: ='Methods&Limits'!E45 -> EN 13132 | D98: ='Methods&Limits'!F45 -> 2002 | E98: ='Methods&Limits'!G45 -> 0.3 | G98: ='Methods&Limits'!I45 -> 2.877 | H98: =IF(E29="","",IF(E29>G98,"Yes","")) -> 
A99: ='Methods&Limits'!A46 -> Oxygenates
A100: ='Methods&Limits'!A47 -> -- Methanol | B100: ='Methods&Limits'!B47 -> % V/V | C100: ='Methods&Limits'!E47 -> EN 13132 | D100: ='Methods&Limits'!F47 -> 2002 | E100: ='Methods&Limits'!G47 -> 0.3 | G100: ='Methods&Limits'!I47 -> 3.177 | H100: =IF(E31="","",IF(E31>G100,"Yes","")) -> 
A101: ='Methods&Limits'!A48 -> -- Ethanol | B101: ='Methods&Limits'!B48 -> % V/V | C101: ='Methods&Limits'!E48 -> EN 13132 | D101: ='Methods&Limits'!F48 -> 2002 | E101: ='Methods&Limits'!G48 -> 0.8 | G101: ='Methods&Limits'!I48 -> 10.472
A102: ='Methods&Limits'!A49 -> -- Iso-propyl alcohol | B102: ='Methods&Limits'!B49 -> % V/V | C102: ='Methods&Limits'!E49 -> EN 13132 | D102: ='Methods&Limits'!F49 -> 2002 | E102: ='Methods&Limits'!G49 -> 0.8 | G102: ='Methods&Limits'!I49 -> 12.472
A103: ='Methods&Limits'!A50 -> -- Tert-butyl alcohol | B103: ='Methods&Limits'!B50 -> % V/V | C103: ='Methods&Limits'!E50 -> EN 13132 | D103: ='Methods&Limits'!F50 -> 2002 | E103: ='Methods&Limits'!G50 -> 1 | G103: ='Methods&Limits'!I50 -> 15.59
A104: ='Methods&Limits'!A51 -> -- Iso-butyl alcohol | B104: ='Methods&Limits'!B51 -> % V/V | C104: ='Methods&Limits'!E51 -> EN 13132 | D104: ='Methods&Limits'!F51 -> 2002 | E104: ='Methods&Limits'!G51 -> 1 | G104: ='Methods&Limits'!I51 -> 15.59
A105: ='Methods&Limits'!A52 -> -- Ethers with 5 or more carbon atoms per molecule | B105: ='Methods&Limits'!B52 -> % V/V | C105: ='Methods&Limits'!E52 -> EN 13132 | D105: ='Methods&Limits'!F52 -> 2002 | E105: ='Methods&Limits'!G52 -> 1 | G105: ='Methods&Limits'!I52 -> 22.59
A106: ='Methods&Limits'!A53 -> -- other oxygenates | B106: ='Methods&Limits'!B53 -> % V/V | C106: ='Methods&Limits'!E53 -> EN 13132 | D106: ='Methods&Limits'!F53 -> 2002 | E106: ='Methods&Limits'!G53 -> 1 | G106: ='Methods&Limits'!I53 -> 15.59
A107: ='Methods&Limits'!A54 -> Oxygen content | B107: ='Methods&Limits'!B54 -> % (m/m) | C107: ='Methods&Limits'!E54 -> EN-ISO 22854 | D107: ='Methods&Limits'!F54 -> 2021 | E107: ='Methods&Limits'!G54 -> 0.4 | G107: ='Methods&Limits'!I54 -> 3.936 | H107: =IF(E28="","",IF(E28>G107,"Yes","")) -> 
C108: ='Methods&Limits'!E55 -> EN-ISO 22854 | D108: ='Methods&Limits'!F55 -> 2021 | E108: ='Methods&Limits'!G55 -> 0.4 | G108: ='Methods&Limits'!I55 -> 2.936 | H108: =IF(E29="","",IF(E29>G108,"Yes","")) -> 
A109: ='Methods&Limits'!A56 -> Oxyginates
A110: ='Methods&Limits'!A57 -> -- Methanol | B110: ='Methods&Limits'!B57 -> % V/V | C110: ='Methods&Limits'!E57 -> EN-ISO 22854 | D110: ='Methods&Limits'!F57 -> 2021 | E110: ='Methods&Limits'!G57 -> 0.4 | G110: ='Methods&Limits'!I57 -> 3.236 | H110: =IF(E31="","",IF(E31>G110,"Yes","")) -> 
A111: ='Methods&Limits'!A58 -> -- Ethanol | B111: ='Methods&Limits'!B58 -> % V/V | C111: ='Methods&Limits'!E58 -> EN-ISO 22854 | D111: ='Methods&Limits'!F58 -> 2021 | E111: ='Methods&Limits'!G58 -> 0.6 | G111: ='Methods&Limits'!I58 -> 10.354
A112: ='Methods&Limits'!A59 -> -- Iso-propyl alcohol | B112: ='Methods&Limits'!B59 -> % V/V | C112: ='Methods&Limits'!E59 -> EN-ISO 22854 | D112: ='Methods&Limits'!F59 -> 2021 | E112: ='Methods&Limits'!G59 -> 0.7 | G112: ='Methods&Limits'!I59 -> 12.413
A113: ='Methods&Limits'!A60 -> -- Tert-butyl alcohol | B113: ='Methods&Limits'!B60 -> % V/V | C113: ='Methods&Limits'!E60 -> EN-ISO 22854 | D113: ='Methods&Limits'!F60 -> 2021 | E113: ='Methods&Limits'!G60 -> 0.7 | G113: ='Methods&Limits'!I60 -> 15.413
A114: ='Methods&Limits'!A61 -> -- Iso-butyl alcohol | B114: ='Methods&Limits'!B61 -> % V/V | C114: ='Methods&Limits'!E61 -> EN-ISO 22854 | D114: ='Methods&Limits'!F61 -> 2021 | E114: ='Methods&Limits'!G61 -> 0.7 | G114: ='Methods&Limits'!I61 -> 15.413
A115: ='Methods&Limits'!A62 -> -- Ethers with 5 or more carbon atoms per molecule | B115: ='Methods&Limits'!B62 -> % V/V | C115: ='Methods&Limits'!E62 -> EN-ISO 22854 | D115: ='Methods&Limits'!F62 -> 2021 | E115: ='Methods&Limits'!G62 -> 0.9 | G115: ='Methods&Limits'!I62 -> 22.531
A116: ='Methods&Limits'!A63 -> -- other oxygenates | B116: ='Methods&Limits'!B63 -> % V/V | C116: ='Methods&Limits'!E63 -> EN-ISO 22854 | D116: ='Methods&Limits'!F63 -> 2021 | E116: ='Methods&Limits'!G63 -> 0.7 | G116: ='Methods&Limits'!I63 -> 15.413
A117: ='Methods&Limits'!A64:A64 -> Sulphur content (sulphur free, from 2005)** | B117: ='Methods&Limits'!B64 -> mg/kg | C117: ='Methods&Limits'!E64 -> EN-ISO 14596 | D117: ='Methods&Limits'!F64 -> 2018 | E117: ='Methods&Limits'!G64 -> 5 | G117: ='Methods&Limits'!I64 -> 12.95 | H117: =IF(E$38="","",IF(E$38>G117,"Yes","")) -> 
C118: ='Methods&Limits'!E65 -> EN 24260 | D118: ='Methods&Limits'!F65 -> 1994 | E118: ='Methods&Limits'!G65 -> 1 | G118: ='Methods&Limits'!I65 -> 10.59 | H118: =IF(E$38="","",IF(E$38>G118,"Yes","")) -> 
C119: ='Methods&Limits'!E66 -> EN-ISO 20846 | D119: ='Methods&Limits'!F66 -> 2019 | E119: ='Methods&Limits'!G66 -> 2.7 | G119: ='Methods&Limits'!I66 -> 11.593 | H119: =IF(E$38="","",IF(E$38>G119,"Yes","")) -> 
C120: ='Methods&Limits'!E67 -> EN-ISO 20884 | D120: ='Methods&Limits'!F67 -> 2019 | E120: ='Methods&Limits'!G67 -> 3.1 | G120: ='Methods&Limits'!I67 -> 11.829 | H120: =IF(E$38="","",IF(E$38>G120,"Yes","")) -> 
A121: ='Methods&Limits'!A68:A68 -> Lead content | B121: ='Methods&Limits'!B68 -> g/l | C121: ='Methods&Limits'!E68 -> EN 237 | D121: ='Methods&Limits'!F68 -> 2004 | E121: ='Methods&Limits'!G68 -> 0.0062 | G121: ='Methods&Limits'!I68 -> 0.008658 | H121: =IF(E39="","",IF(E39>G121,"Yes","")) -> 

Sheet Petrol (7)
A1: Market Fuels used in Vehicles with Spark Ignition Engines (Petrol) | R1: <-- GO BACK
A3: Country | B3: =IF(LEN('Contacts&Annual Summary'!C9) > 1,'Contacts&Annual Summary'!C9,"") ->  | G3: Notes on completing the tables The table structure has been locked to prevent modification - data can be copied and pasted, in bulk into the Reporting Results blue table cells. Where a white row exists between rows, it will not be possible to paste over white rows and sections should be pasted separately. Column H in the Test Methods and Analysis table is set to automatically check whether the values entered in the Reporting Results table exceed maximum or minimum Tolerance Limits. If any exceedance is detected, please provide details in the columns to the right including the number of samples, location samples were taken from, Values and Details of any action taken to address non-compliant samples. Compliance information is verified manually and this automated compliance check is not solely relied upon during data analysis. Please do not unlock this template - modified templates cannot be processed and may delay reporting.
A4: Reporting Year | B4: ='Contacts&Annual Summary'!C8 -> 2023
A5: Period (Summer or Winter) | B5: Summer
A6: Parent fuel grade | B6: Petrol
A7: National fuel grade
A8: Summer Period (N or A)* | B8: 0 | C8: =IF( B8="A","1st June to 31st August (arctic)","1st May to 30th September (normal)") -> 1st May to 30th September (normal)
A9: The maximum bioethanol content (% v/v) | B9: 0 | C9: Please include the bioethanol content as a numerical figure in % V/V
A10: * N = 1st May to 30th September (normal) ; A = 1st June to 31st August (arctic).
A12: Reporting results
A14: Parameter | B14: Unit | C14: Analytical and statistical results (Please see an explanation and examples for new columns/ information required in Cells I15 to K37 on the Introduction & Instructions tab). | L14: Limiting Value (1) | P14: Test method
L15: National Specification, if any | N15: According to Directive 2009/30/EC | P15: (more recent versions may also be used)
C16: No Samples | D16: Minimum | E16: Maximum | F16: Median | G16: Mean | H16: Standard Deviation | I16: No Samples outside 95% tolerance limit | J16: 25% of Sample Value | K16: 75% of Sample Value | L16: Minimum | M16: Maximum | N16: Minimum | O16: Maximum | P16: Method | Q16: Date
A17: Research Octane Number | B17: -- | C17: 0 | D17: 0 | E17: 0 | F17: 0 | G17: 0 | H17: 0 | I17: 0 | J17: 0 | K17: 0 | N17: 95 (2) | P17: EN-ISO 5164 | Q17: 2005
A18: Motor Octane Number | B18: -- | C18: 0 | D18: 0 | E18: 0 | F18: 0 | G18: 0 | H18: 0 | I18: 0 | J18: 0 | K18: 0 | N18: 85 (3) | P18: EN-ISO 5163 | Q18: 2005
A19: Vapour Pressure, DVPE (6) | B19: kPa | O19: (4)
A20: -- required for summer period only | C20: 0 | D20: 0 | E20: 0 | F20: 0 | G20: 0 | H20: 0 | I20: 0 | J20: 0 | K20: 0 | O20: =IF(E8="A",70,60) -> 60 | P20: EN 13106-1 | Q20: 2007
A21: Distillation | P21: EN-ISO 3405
A22: -- evaporated at 100 oC | B22: % V/V | C22: 0 | D22: 0 | E22: 0 | F22: 0 | G22: 0 | H22: 0 | I22: 0 | J22: 0 | K22: 0 | N22: 46 | Q22: 2000
A23: -- evaporated at 150 oC | B23: % V/V | C23: 0 | D23: 0 | E23: 0 | F23: 0 | G23: 0 | H23: 0 | I23: 0 | J23: 0 | K23: 0 | N23: 75
A24: Hydrocarbon analysis
A25: -- Olefins | B25: % V/V | C25: 0 | D25: 0 | E25: 0 | F25: 0 | G25: 0 | H25: 0 | I25: 0 | J25: 0 | K25: 0 | O25: 18.0 (5) | P25: ASTM D 1319 EN 15553 EN-ISO 22854 | Q25: 1995 2007 2008
A26: -- Aromatics | B26: % V/V | C26: 0 | D26: 0 | E26: 0 | F26: 0 | G26: 0 | H26: 0 | I26: 0 | J26: 0 | K26: 0 | O26: 35 | P26: EN-ISO 22854 | Q26: 1995 2008
A27: -- Benzene | B27: % V/V | C27: 0 | D27: 0 | E27: 0 | F27: 0 | G27: 0 | H27: 0 | I27: 0 | J27: 0 | K27: 0 | O27: 1 | P27: EN 238 EN 12177 EN-ISO 22854 | Q27: 1996 1998 2008
A28: =IF(C29>0,"Do not complete","Oxygen content") -> Oxygen content | B28: % (m/m) | C28: 0 | D28: 0 | E28: 0 | F28: 0 | G28: 0 | H28: 0 | I28: 0 | J28: 0 | K28: 0 | O28: 3.7 | P28: EN 1601 EN 13132 EN-ISO 22854 | Q28: 1997 2000 2008
A29: =IF(C28>0,"Do not complete","Oxygen content* *petrol with 5% (v/v) or less ethanol content") -> Oxygen content* *petrol with 5% (v/v) or less ethanol content | B29: % (m/m) | C29: 0 | D29: 0 | E29: 0 | F29: 0 | G29: 0 | H29: 0 | I29: 0 | J29: 0 | K29: 0 | O29: 2.7
A30: Oxygenates
A31: -- Methanol | B31: % V/V | C31: 0 | D31: 0 | E31: 0 | F31: 0 | G31: 0 | H31: 0 | I31: 0 | J31: 0 | K31: 0 | O31: 3
A32: -- Ethanol | B32: % V/V | C32: 0 | D32: 0 | E32: 0 | F32: 0 | G32: 0 | H32: 0 | I32: 0 | J32: 0 | K32: 0 | O32: 10
A33: -- Iso-propyl alcohol | B33: % V/V | C33: 0 | D33: 0 | E33: 0 | F33: 0 | G33: 0 | H33: 0 | I33: 0 | J33: 0 | K33: 0 | O33: 12 | P33: EN 1601 | Q33: 1997
A34: -- Tert-butyl alcohol | B34: % V/V | C34: 0 | D34: 0 | E34: 0 | F34: 0 | G34: 0 | H34: 0 | I34: 0 | J34: 0 | K34: 0 | O34: 15 | P34: EN 13132 | Q34: 2000
A35: -- Iso-butyl alcohol | B35: % V/V | C35: 0 | D35: 0 | E35: 0 | F35: 0 | G35: 0 | H35: 0 | I35: 0 | J35: 0 | K35: 0 | O35: 15 | P35: EN-ISO 22854 | Q35: 2008
A36: -- Ethers with ≥5 carbon atoms / molecule | B36: % V/V | C36: 0 | D36: 0 | E36: 0 | F36: 0 | G36: 0 | H36: 0 | I36: 0 | J36: 0 | K36: 0 | O36: 22
A37: -- other oxygenates | B37: % V/V | C37: 0 | D37: 0 | E37: 0 | F37: 0 | G37: 0 | H37: 0 | I37: 0 | J37: 0 | K37: 0 | O37: 15
A38: Sulphur content | B38: mg/kg | C38: 0 | D38: 0 | E38: 0 | F38: 0 | G38: 0 | H38: 0 | I38: 0 | J38: 0 | K38: 0 | O38: 10 | P38: EN-ISO 14596 EN 24260 EN-ISO 20846 EN-ISO 20884 | Q38: 1998 1994 2004 2004
A39: Lead content | B39: g/l | C39: 0 | D39: 0 | E39: 0 | F39: 0 | G39: 0 | H39: 0 | I39: 0 | J39: 0 | K39: 0 | O39: 0.005 | P39: EN 237 | Q39: 1996
A42: Sampling frequency
A44: Number of samples in month
A45: January | B45: 0 | C45: July | D45: 0 | E45: (1) The limiting values are "true values" and were established according to the procedures for limit setting in EN 228:2008 The results of individual measurements shall be interpreted following the criteria described in EN 228:2008.
A46: February | B46: 0 | C46: August | D46: 0
A47: March | B47: 0 | C47: September | D47: 0 | E47: (2) 91 for unleaded regular grade petrol: See 2009/30/EC Annex I, Footnote 3.
A48: April | B48: 0 | C48: October | D48: 0 | E48: (3) 81 for unleaded regular grade petrol: See 2009/30/EC Annex I, Footnote 3.
A49: May | B49: 0 | C49: November | D49: 0 | E49: (4) 70 kPa for Member States with arctic or severe weather conditions: See 2003/30/EC Annex I, Footnotes 4 & 5.
A50: June | B50: 0 | C50: December | D50: 0 | E50: (5) 21 for unleaded regular grade petrol: See 98/70/EC, Annex I, Footnote 6.
C51: Summer Months Total | D51: =SUM(B45:B50,D45:D50) -> 0 | E51: (6) Vapour pressure waiver applies for petrol containing Bioethanol, see 2009/30/EC Annex I, Footnote 5 and Annex III.
A53: Other notes (optional):
A57: Test Methods and Analysis
A59: Parameter | B59: Unit | C59: Test specified in 2009/30/EC or EN228:2008 | J59: Notes on exceedences
C60: Method | D60: Date | E60: Reproducability, R | F60: Tolerance limits | J60: Sample location (S,T or R) | K60: Values | L60: Details/action taken
F61: Minimum | G61: Maximum | H61: Exceeded?
A62: ='Methods&Limits'!A9 -> Research Octane Number (RON) | B62: ='Methods&Limits'!B9 -> -- | C62: ='Methods&Limits'!E9 -> EN-ISO 5164 | D62: ='Methods&Limits'!F9 -> 2014 | E62: ='Methods&Limits'!G9 -> 0.7 | F62: ='Methods&Limits'!H9 -> 94.587 | H62: =IF(D17="","",IF(D17<F62,"Yes","")) -> Yes
A63: ='Methods&Limits'!A10 -> (RON 91 fuel only) | B63: ='Methods&Limits'!B10 -> -- | C63: ='Methods&Limits'!E10 -> EN-ISO 5164 | D63: ='Methods&Limits'!F10 -> 2014 | E63: ='Methods&Limits'!G10 -> 0.7 | F63: ='Methods&Limits'!H10 -> 90.587 | H63: =IF(D17="","",IF(D17<F63,"Yes","")) -> Yes
A64: ='Methods&Limits'!A11 -> Motor Octane Number (MON) | B64: ='Methods&Limits'!B11 -> -- | C64: ='Methods&Limits'!E11 -> EN-ISO 5163 | D64: ='Methods&Limits'!F11 -> 2014 | E64: ='Methods&Limits'!G11 -> 0.9 | F64: ='Methods&Limits'!H11 -> 84.469 | H64: =IF(D18="","",IF(D18<F64,"Yes","")) -> Yes
A65: ='Methods&Limits'!A12 -> (RON 91 fuel only) | B65: ='Methods&Limits'!B12 -> -- | C65: ='Methods&Limits'!E12 -> EN-ISO 5163 | D65: ='Methods&Limits'!F12 -> 2014 | E65: ='Methods&Limits'!G12 -> 0.9 | F65: ='Methods&Limits'!H12 -> 80.469 | H65: =IF(D18="","",IF(D18<F65,"Yes","")) -> Yes
A66: ='Methods&Limits'!A13 -> Vapour Pressure, DVPE
A67: ='Methods&Limits'!A14 -> --summer period (normal) | B67: ='Methods&Limits'!B14 -> kPa | C67: ='Methods&Limits'!E14 -> EN 13016-1 | D67: ='Methods&Limits'!F14 -> 2018 | E67: ='Methods&Limits'!G14 -> 2.2 | G67: ='Methods&Limits'!I14 -> 61.298 | H67: =IF(E20>G67,"Yes","") -> 
A68: ='Methods&Limits'!A15 -> -- Petrol with bioethanol content 0-2 | B68: ='Methods&Limits'!B15 -> kPa | C68: ='Methods&Limits'!E15 -> EN 1601 | D68: ='Methods&Limits'!F15 -> 2017 | E68: ='Methods&Limits'!G15 -> 2.3 | G68: ='Methods&Limits'!I15 -> 67.307 | H68: =IF(E20>G68,"Yes","") -> 
A69: ='Methods&Limits'!A16 -> -- Petrol with bioethanol content 2-4 | B69: ='Methods&Limits'!B16 -> kPa | C69: ='Methods&Limits'!E16 -> EN 1601 | D69: ='Methods&Limits'!F16 -> 2017 | E69: ='Methods&Limits'!G16 -> 2.3 | G69: ='Methods&Limits'!I16 -> 69.157 | H69: =IF(E20>G69,"Yes","") -> 
A70: ='Methods&Limits'!A17 -> -- Petrol with bioethanol content 4-6 | B70: ='Methods&Limits'!B17 -> kPa | C70: ='Methods&Limits'!E17 -> EN 1601 | D70: ='Methods&Limits'!F17 -> 2017 | E70: ='Methods&Limits'!G17 -> 2.3 | G70: ='Methods&Limits'!I17 -> 69.357 | H70: =IF(E20>G70,"Yes","") -> 
A71: ='Methods&Limits'!A18 -> -- Petrol with bioethanol content 6-8 | B71: ='Methods&Limits'!B18 -> kPa | C71: ='Methods&Limits'!E18 -> EN 1601 | D71: ='Methods&Limits'!F18 -> 2017 | E71: ='Methods&Limits'!G18 -> 2.3 | G71: ='Methods&Limits'!I18 -> 69.237 | H71: =IF(E20>G71,"Yes","") -> 
A72: ='Methods&Limits'!A19 -> -- Petrol with bioethanol content 8-10 | B72: ='Methods&Limits'!B19 -> kPa | C72: ='Methods&Limits'!E19 -> EN 1601 | D72: ='Methods&Limits'!F19 -> 2017 | E72: ='Methods&Limits'!G19 -> 2.3 | G72: ='Methods&Limits'!I19 -> 69.117 | H72: =IF(E20>G72,"Yes","") -> 
A73: ='Methods&Limits'!A20 -> --summer period (arctic or severe weather conditions) | B73: ='Methods&Limits'!B20 -> kPa | C73: ='Methods&Limits'!E20 -> EN 13016-1 | D73: ='Methods&Limits'!F20 -> 2018 | E73: ='Methods&Limits'!G20 -> 2.3 | G73: ='Methods&Limits'!I20 -> 71.357 | H73: =IF(E20>G73,"Yes","") -> 
A74: ='Methods&Limits'!A21 -> Distillation *
A75: ='Methods&Limits'!A22 -> --evaporated at 100 oC | B75: ='Methods&Limits'!B22 -> % V/V | C75: ='Methods&Limits'!E22 -> EN-ISO 3405 | D75: ='Methods&Limits'!F22 -> 2020 | E75: ='Methods&Limits'!G22 -> 4 | F75: ='Methods&Limits'!H22 -> 43.64 | H75: =IF(D22="","",IF(D22<F75,"Yes","")) -> Yes
A76: ='Methods&Limits'!A23 -> -- evaporated at 150 oC | B76: ='Methods&Limits'!B23 -> % V/V | C76: ='Methods&Limits'!E23 -> EN-ISO 3405 | D76: ='Methods&Limits'!F23 -> 2020 | E76: ='Methods&Limits'!G23 -> 4 | F76: ='Methods&Limits'!H23 -> 72.64 | H76: =IF(D23="","",IF(D23<F76,"Yes","")) -> Yes
A77: ='Methods&Limits'!A24 -> Hydrocarbon analysis | H77: =IF(D24<F77,"Yes","") -> 
A78: ='Methods&Limits'!A25 -> -- Olefins | B78: ='Methods&Limits'!B25 -> % V/V | C78: ='Methods&Limits'!E25 -> EN 15553 | D78: ='Methods&Limits'!F25 -> 2021 | E78: ='Methods&Limits'!G25 -> 6.4 | G78: ='Methods&Limits'!I25 -> 21.776 | H78: =IF($E$25>G78,"Yes","") -> 
C79: ='Methods&Limits'!E26 -> EN-ISO 22854 | D79: ='Methods&Limits'!F26 -> 2021 | E79: ='Methods&Limits'!G26 -> 2.6 | G79: ='Methods&Limits'!I26 -> 19.534 | H79: =IF($E$25>G79,"Yes","") -> 
A80: ='Methods&Limits'!A27 -> *without oxygenates | C80: ='Methods&Limits'!E27 -> EN 15553 | D80: ='Methods&Limits'!F27 -> 2021 | E80: ='Methods&Limits'!G27 -> - | G80: ='Methods&Limits'!I27 -> - | H80: =IF($E$25>G80,"Yes","") -> 
C81: ='Methods&Limits'!E28 -> EN-ISO 22854 | D81: ='Methods&Limits'!F28 -> 2021 | E81: ='Methods&Limits'!G28 -> - | G81: ='Methods&Limits'!I28 -> - | H81: =IF($E$25>G81,"Yes","") -> 
A82: ='Methods&Limits'!A29 -> -- Olefins (RON 91 fuel only)*** | B82: ='Methods&Limits'!B29 -> % V/V | C82: ='Methods&Limits'!E29 -> ASTM D1319 | D82: ='Methods&Limits'!F29 -> 2020 | E82: ='Methods&Limits'!G29 -> 5.1 | G82: ='Methods&Limits'!I29 -> 24.009 | H82: =IF($E$25>G82,"Yes","") -> 
A83: ='Methods&Limits'!A30 -> -- Aromatics (from 2005) | C83: ='Methods&Limits'!E30 -> EN-ISO 22854 | D83: ='Methods&Limits'!F30 -> 2021 | E83: ='Methods&Limits'!G30 -> 1.7 | G83: ='Methods&Limits'!I30 -> 36.003 | H83: =IF($E$26>G83,"Yes","") -> 
A84: ='Methods&Limits'!A31 -> -- Benzene | B84: ='Methods&Limits'!B31 -> % V/V | C84: ='Methods&Limits'!E31 -> EN 12177 | D84: ='Methods&Limits'!F31 -> 2022 | E84: ='Methods&Limits'!G31 -> 0.1 | G84: ='Methods&Limits'!I31 -> 1.059 | H84: =IF(E27>G84,"Yes","") -> 
C85: ='Methods&Limits'!E32 -> EN 238 | D85: ='Methods&Limits'!F32 -> 1996 | E85: ='Methods&Limits'!G32 -> 0.17 | G85: ='Methods&Limits'!I32 -> 1.1003 | H85: =IF(E27>G85,"Yes","") -> 
C86: ='Methods&Limits'!E33 -> EN-ISO 22854 | D86: ='Methods&Limits'!F33 -> 2021 | E86: ='Methods&Limits'!G33 -> 0.05 | G86: ='Methods&Limits'!I33 -> 1.0295 | H86: =IF(E27>G86,"Yes","") -> 
A87: ='Methods&Limits'!A34 -> Oxygen content | B87: ='Methods&Limits'!B34 -> % (m/m) | C87: ='Methods&Limits'!E34 -> EN 1601 | D87: ='Methods&Limits'!F34 -> 2017 | E87: ='Methods&Limits'!G34 -> 0.41 | G87: ='Methods&Limits'!I34 -> 3.9419 | H87: =IF(E28>G87,"Yes","") -> 
C88: ='Methods&Limits'!E35 -> EN 1601 | D88: ='Methods&Limits'!F35 -> 2017 | E88: ='Methods&Limits'!G35 -> 0.41 | G88: ='Methods&Limits'!I35 -> 2.9419 | H88: =IF(E29>G88,"Yes","") -> 
A89: ='Methods&Limits'!A36 -> Oxygenates
A90: ='Methods&Limits'!A37 -> -- Methanol | B90: ='Methods&Limits'!B37 -> % V/V | C90: ='Methods&Limits'!E37 -> EN 1601 | D90: ='Methods&Limits'!F37 -> 2017 | E90: ='Methods&Limits'!G37 -> 0.3 | G90: ='Methods&Limits'!I37 -> 3.177 | H90: =IF(E31>G90,"Yes","") -> 
A91: ='Methods&Limits'!A38 -> -- Ethanol | B91: ='Methods&Limits'!B38 -> % V/V | C91: ='Methods&Limits'!E38 -> EN 1601 | D91: ='Methods&Limits'!F38 -> 2017 | E91: ='Methods&Limits'!G38 -> 0.8 | G91: ='Methods&Limits'!I38 -> 10.472
A92: ='Methods&Limits'!A39 -> -- Iso-propyl alcohol | B92: ='Methods&Limits'!B39 -> % V/V | C92: ='Methods&Limits'!E39 -> EN 1601 | D92: ='Methods&Limits'!F39 -> 2017 | E92: ='Methods&Limits'!G39 -> 0.9 | G92: ='Methods&Limits'!I39 -> 12.531
A93: ='Methods&Limits'!A40 -> -- Tert-butyl alcohol | B93: ='Methods&Limits'!B40 -> % V/V | C93: ='Methods&Limits'!E40 -> EN 1601 | D93: ='Methods&Limits'!F40 -> 2017 | E93: ='Methods&Limits'!G40 -> 1 | G93: ='Methods&Limits'!I40 -> 15.59
A94: ='Methods&Limits'!A41 -> -- Iso-butyl alcohol | B94: ='Methods&Limits'!B41 -> % V/V | C94: ='Methods&Limits'!E41 -> EN 1601 | D94: ='Methods&Limits'!F41 -> 2017 | E94: ='Methods&Limits'!G41 -> 1 | G94: ='Methods&Limits'!I41 -> 15.59
A95: ='Methods&Limits'!A42 -> -- Ethers with 5 or more carbon atoms per molecule | B95: ='Methods&Limits'!B42 -> % V/V | C95: ='Methods&Limits'!E42 -> EN 1601 | D95: ='Methods&Limits'!F42 -> 2017 | E95: ='Methods&Limits'!G42 -> 1 | G95: ='Methods&Limits'!I42 -> 22.59
A96: ='Methods&Limits'!A43 -> -- other oxygenates | B96: ='Methods&Limits'!B43 -> % V/V | C96: ='Methods&Limits'!E43 -> EN 1601 | D96: ='Methods&Limits'!F43 -> 2017 | E96: ='Methods&Limits'!G43 -> 1 | G96: ='Methods&Limits'!I43 -> 15.59
A97: ='Methods&Limits'!A44 -> Oxygen content | B97: ='Methods&Limits'!B44 -> % (m/m) | C97: ='Methods&Limits'!E44 -> EN 13132 | D97: ='Methods&Limits'!F44 -> 2002 | E97: ='Methods&Limits'!G44 -> 0.3 | G97: ='Methods&Limits'!I44 -> 3.877 | H97: =IF(E28>G97,"Yes","") -> 
C98: ='Methods&Limits'!E45 -> EN 13132 | D98: ='Methods&Limits'!F45 -> 2002 | E98: ='Methods&Limits'!G45 -> 0.3 | G98: ='Methods&Limits'!I45 -> 2.877 | H98: =IF(E29>G98,"Yes","") -> 
A99: ='Methods&Limits'!A46 -> Oxygenates
A100: ='Methods&Limits'!A47 -> -- Methanol | B100: ='Methods&Limits'!B47 -> % V/V | C100: ='Methods&Limits'!E47 -> EN 13132 | D100: ='Methods&Limits'!F47 -> 2002 | E100: ='Methods&Limits'!G47 -> 0.3 | G100: ='Methods&Limits'!I47 -> 3.177 | H100: =IF(E31>G100,"Yes","") -> 
A101: ='Methods&Limits'!A48 -> -- Ethanol | B101: ='Methods&Limits'!B48 -> % V/V | C101: ='Methods&Limits'!E48 -> EN 13132 | D101: ='Methods&Limits'!F48 -> 2002 | E101: ='Methods&Limits'!G48 -> 0.8 | G101: ='Methods&Limits'!I48 -> 10.472
A102: ='Methods&Limits'!A49 -> -- Iso-propyl alcohol | B102: ='Methods&Limits'!B49 -> % V/V | C102: ='Methods&Limits'!E49 -> EN 13132 | D102: ='Methods&Limits'!F49 -> 2002 | E102: ='Methods&Limits'!G49 -> 0.8 | G102: ='Methods&Limits'!I49 -> 12.472
